{"text_format":"1","workbook":"xlsx","n_sheets":5,"sheets":["UI","Wartungsplan","Fahrzeugdaten","Servicezeiten","VIN Table"],"not_rendered":{"charts":0,"images":1,"macros":1,"external_links":0,"defined_names":3,"comments":0,"pivot_tables":0},"unopened":[],"bounds":{"document_bytes":16777216,"sheet_cells":100000,"rows_first":2000,"rows_last":500,"rows_between":2000,"halvings":0,"cell_chars":16384,"cell_head_chars":4096},"cells_cut":0,"cells_raw":0,"read":"whole","date_system":"1900"}

{"sheet":"UI","index":0,"n_rows":14,"n_cols":11,"rows_kept":14,"cut":false,"hidden":false,"merged":[[11,8,11,9],[5,8,5,9],[1,8,1,9],[1,1,1,4],[1,5,2,5],[2,1,2,4],[4,1,4,2],[4,3,4,5]]}
[]
[null,{"$f":"IF(J9=\"VIN not found\",J3,J9)","v":"T60 Max"},null,null,null,{"$error":"#VALUE!"},null,null,"Suche ohne VIN\nRecherche sans VIN\nRicerca senza VIN"]
[null,"MAINTENANCE CHECK SHEET ",null,null,null,null,null,null,"Modell"]
[null,null,null,null,null,null,null,null,"Baujahr"]
[null,"Intervall"]
[null,"km","Jahre","Wartungsplan","Arbeitszeit (h) *","Ausgeführt",null,null,"Fahrzeug Daten"]
[null,null,null,null,null,null,null,null,"VIN","LSFAM11C1SA074265","leer lassen bei Suche ohne VIN"]
[null,null,null,null,null,null,null,null,"km-Stand",5002]
[null,null,null,null,null,null,null,null,"Modell",{"$f":"IF(J7=\"\",\"VIN not found\",IF(_xlfn.XLOOKUP(J7,Fahrzeugdaten!A:A,Fahrzeugdaten!K:K,\"VIN not found\")=0,\"\",_xlfn.XLOOKUP(J7,Fahrzeugdaten!A:A,Fahrzeugdaten!K:K,\"VIN not found\")))","v":"T60 Max"}]
[null,null,null,null,null,null,null,null,"Baujahr",{"$f":"IF(J7=\"\",\"VIN not found\",IF(_xlfn.XLOOKUP(J7,Fahrzeugdaten!A:A,Fahrzeugdaten!J:J,\"VIN not found\")=0,\"\",_xlfn.XLOOKUP(J7,Fahrzeugdaten!A:A,Fahrzeugdaten!J:J,\"VIN not found\")))","v":2025}]
[]
[null,null,null,null,null,null,null,null,"Fällige Wartung"]
[null,null,null,null,null,null,null,null,"nach km",{"$f":"IF(J9=\"Deliver 9\",IF($J$8<5001,\"5000km or 6 Months\",\"Standard\"),\"Standard\")","v":"Standard"}]
[null,null,null,null,null,null,null,null,"nach Alter",{"$f":"IFERROR(YEAR(TODAY())-J10,\"\")","v":1}]

{"sheet":"Wartungsplan","index":1,"n_rows":253,"n_cols":48,"rows_kept":253,"cut":false,"hidden":true,"merged":[]}
[]
[null,"Serviceplan Maxus"]
[]
["Sprache","Motor","Wartungsplan","T90 EV KM","T90 EV Jahre","T90 EV Zeit","T60 Max pre erste KM","T60 Max pre erste Jahre","T60 Max pre erste Zeit","T60 Max pre KM","T60 Max pre Jahre","T60 Max pre Zeit","T60 Max KM","T60 Max Jahre","T60 Max Zeit","eDeliver 5 KM","eDeliver 5 Jahre","eDeliver 5 Zeit","Deliver 7 KM","Deliver 7 Jahre","Deliver 7 Zeit","eTerron 9 KM","eTerron 9 Jahre","eTerron 9 Zeit","Mifa 7 KM","Mifa 7 Jahre","Mifa 7 Zeit","Mifa 9 KM","Mifa 9 Jahre","Mifa 9 Zeit","eDeliver 3 KM","eDeliver 3 Jahre","eDeliver 3 Zeit","eDeliver 7 KM","eDeliver 7 Jahre","eDeliver 7 Zeit","eDeliver 9 KM","eDeliver 9 Jahre","eDeliver 9 Zeit","Deliver 9 KM","Deliver 9 Jahre","Deliver 9 Zeit","Deliver 9 erste KM","Deliver 9 erste Jahre","Deliver 9 erste Zeit","EV80 KM","EV80 Jahre","EV80 Zeit"]
["D","E","Vorab Prüfung und Kampagnen","-","-","-","-","-","-","-","-","-","-","-","-","-","-","-","-","-","-","-","-","-","-","-","-","-","-","-","-","-","-","-","-","-","-","-","-","-","-","-","-","-","-","-","-","-"]
["D","E","Probefahrt",30000,2,"Standartwartung",null,null,null,null,null,null,null,null,null,30000,2,"Standartwartung",null,null,null,null,null,null,30000,2,"Standartwartung",30000,2,"Standartwartung",30000,2,"Standartwartung",30000,2,"Standartwartung",30000,2,"Standartwartung",null,null,null,null,null,null,15000,1,"Standartwartung"]
["D","E","Fahrzeug auf anstehende Kampagnen prüfen",30000,2,"Standartwartung",null,null,null,null,null,null,null,null,null,30000,2,"Standartwartung",null,null,null,null,null,null,30000,2,"Standartwartung",30000,2,"Standartwartung",30000,2,"Standartwartung",30000,2,"Standartwartung",30000,2,"Standartwartung",null,null,null,null,null,null,15000,1,"Standartwartung"]
["D","E","Fehlerspeicher Abfrage",30000,2,"Standartwartung",null,null,null,null,null,null,null,null,null,30000,2,"Standartwartung",null,null,null,null,null,null,30000,2,"Standartwartung",30000,2,"Standartwartung",30000,2,"Standartwartung",30000,2,"Standartwartung",30000,2,"Standartwartung",null,null,null,null,null,null,15000,1,"Standartwartung"]
["D","E","Am und im Fahrzeug","-","-","-","-","-","-","-","-","-","-","-","-","-","-","-","-","-","-","-","-","-","-","-","-","-","-","-","-","-","-","-","-","-","-","-","-","-","-","-","-","-","-","-","-","-"]
["D","E","Bremspedal schmieren",30000,2,"Standartwartung",null,null,null,null,null,null,null,null,null,30000,2,"Standartwartung",null,null,null,null,null,null,30000,2,"Standartwartung",30000,2,"Standartwartung",30000,2,"Standartwartung",30000,2,"Standartwartung",30000,2,"Standartwartung",null,null,null,null,null,null,15000,1,"Standartwartung"]
["D","E","Lenksäule und Lenkradaufhängung prüfen",30000,2,"Standartwartung",null,null,null,null,null,null,null,null,null,30000,2,"Standartwartung",null,null,null,null,null,null,30000,2,"Standartwartung",30000,2,"Standartwartung",30000,2,"Standartwartung",30000,2,"Standartwartung",30000,2,"Standartwartung",null,null,null,null,null,null,15000,1,"Standartwartung"]
["D","E","Reinigung und Schmierung von Scharnieren und Schlössern",30000,2,"Standartwartung",null,null,null,null,null,null,null,null,null,30000,2,"Standartwartung",null,null,null,null,null,null,30000,2,"Standartwartung",30000,2,"Standartwartung",30000,2,"Standartwartung",30000,2,"Standartwartung",30000,2,"Standartwartung",null,null,null,null,null,null,15000,1,"Standartwartung"]
["D","E","Kontrolle des Innenraumluftfilters, ersetzten wenn nötig",30000,2,0.2,null,null,null,null,null,null,null,null,null,30000,2,0.2,null,null,null,null,null,null,30000,2,0.2,30000,2,0.2,30000,2,0.2,30000,2,0.2,30000,2,0.2,null,null,null,null,null,null,15000,1,0.2]
["D","E","Kontrolle des Airbagsystems und korrekter Funktion der Gurte",30000,2,"Standartwartung",null,null,null,null,null,null,null,null,null,30000,2,"Standartwartung",null,null,null,null,null,null,30000,2,"Standartwartung",30000,2,"Standartwartung",30000,2,"Standartwartung",30000,2,"Standartwartung",30000,2,"Standartwartung",null,null,null,null,null,null,15000,1,"Standartwartung"]
["D","E","Kontrolle der Aussenbeleuchtung, Kombiinstrument und allen elektrischen Funktionen des Fahrzeugs",30000,2,"Standartwartung",null,null,null,null,null,null,null,null,null,30000,2,"Standartwartung",null,null,null,null,null,null,30000,2,"Standartwartung",30000,2,"Standartwartung",30000,2,"Standartwartung",30000,2,"Standartwartung",30000,2,"Standartwartung",null,null,null,null,null,null,15000,1,"Standartwartung"]
["D","E","Im Motorraum","-","-","-","-","-","-","-","-","-","-","-","-","-","-","-","-","-","-","-","-","-","-","-","-","-","-","-","-","-","-","-","-","-","-","-","-","-","-","-","-","-","-","-","-","-"]
["D","E","Kühlsystem auf Dichtheit prüfen und die Leitungen und Anschlüsse Sichtprüfen",30000,2,"Standartwartung",null,null,null,null,null,null,null,null,null,30000,2,"Standartwartung",null,null,null,null,null,null,30000,2,"Standartwartung",30000,2,"Standartwartung",30000,2,"Standartwartung",30000,2,"Standartwartung",30000,2,"Standartwartung",null,null,null,null,null,null,15000,1,"Standartwartung"]
["D","E","Kühlsystem inkl. Gefrierschutz prüfen",30000,2,"Standartwartung",null,null,null,null,null,null,null,null,null,30000,2,"Standartwartung",null,null,null,null,null,null,30000,2,"Standartwartung",30000,2,"Standartwartung",30000,2,"Standartwartung",30000,2,"Standartwartung",30000,2,"Standartwartung",null,null,null,null,null,null,15000,1,"Standartwartung"]
["D","E","Kontrolle des Ladezustandes der 12V Batterie, korrekte und saubere Montage der Polanschlüsse",30000,2,"Standartwartung",null,null,null,null,null,null,null,null,null,30000,2,"Standartwartung",null,null,null,null,null,null,30000,2,"Standartwartung",30000,2,"Standartwartung",30000,2,"Standartwartung",30000,2,"Standartwartung",30000,2,"Standartwartung",null,null,null,null,null,null,15000,1,"Standartwartung"]
["D","E","Sichtkontrolle des 12V Kabelstrangs und Stecker",30000,2,"Standartwartung",null,null,null,null,null,null,null,null,null,30000,2,"Standartwartung",null,null,null,null,null,null,30000,2,"Standartwartung",30000,2,"Standartwartung",30000,2,"Standartwartung",30000,2,"Standartwartung",30000,2,"Standartwartung",null,null,null,null,null,null,15000,1,"Standartwartung"]
["D","E","Kontrolle des Bremsflüssigkeitsstand, Nachfüllen wenn nötig",30000,2,"Standartwartung",null,null,null,null,null,null,null,null,null,30000,2,"Standartwartung",null,null,null,null,null,null,30000,2,"Standartwartung",30000,2,"Standartwartung",30000,2,"Standartwartung",30000,2,"Standartwartung",30000,2,"Standartwartung",null,null,null,null,null,null,15000,1,"Standartwartung"]
["D","E","Sicht- und Funktionskontrolle der Klimaanlage und aller Ihrer Bauteile",30000,2,"Standartwartung",null,null,null,null,null,null,null,null,null,30000,2,"Standartwartung",null,null,null,null,null,null,30000,2,"Standartwartung",30000,2,"Standartwartung",30000,2,"Standartwartung",30000,2,"Standartwartung",30000,2,"Standartwartung",null,null,null,null,null,null,15000,1,"Standartwartung"]
["D","E","Unterdrucksystem prüfen",30000,2,"Standartwartung",null,null,null,null,null,null,null,null,null,30000,2,"Standartwartung",null,null,null,null,null,null,30000,2,"Standartwartung",30000,2,"Standartwartung",30000,2,"Standartwartung",30000,2,"Standartwartung",30000,2,"Standartwartung",null,null,null,null,null,null,15000,1,"Standartwartung"]
["D","E","Unter dem Fahrzeug","-","-","-","-","-","-","-","-","-","-","-","-","-","-","-","-","-","-","-","-","-","-","-","-","-","-","-","-","-","-","-","-","-","-","-","-","-","-","-","-","-","-","-","-","-"]
["D","E","Inspektion des Chassis, Korrosionsschutz der Karosserie prüfen",30000,2,"Standartwartung",null,null,null,null,null,null,null,null,null,30000,2,"Standartwartung",null,null,null,null,null,null,30000,2,"Standartwartung",30000,2,"Standartwartung",30000,2,"Standartwartung",30000,2,"Standartwartung",30000,2,"Standartwartung",null,null,null,null,null,null,15000,1,"Standartwartung"]
["D","E","Kontrolle der Vorder- und Hinterradaufhängung",30000,2,"Standartwartung",null,null,null,null,null,null,null,null,null,30000,2,"Standartwartung",null,null,null,null,null,null,30000,2,"Standartwartung",30000,2,"Standartwartung",30000,2,"Standartwartung",30000,2,"Standartwartung",30000,2,"Standartwartung",null,null,null,null,null,null,15000,1,"Standartwartung"]
["D","E","Motorlager prüfen",30000,2,"Standartwartung",null,null,null,null,null,null,null,null,null,30000,2,"Standartwartung",null,null,null,null,null,null,30000,2,"Standartwartung",30000,2,"Standartwartung",30000,2,"Standartwartung",30000,2,"Standartwartung",30000,2,"Standartwartung",null,null,null,null,null,null,15000,1,"Standartwartung"]
["D","E","Kontrolle des Bremssystems auf Funktion inkl. Parkbremse",30000,2,"Standartwartung",null,null,null,null,null,null,null,null,null,30000,2,"Standartwartung",null,null,null,null,null,null,30000,2,"Standartwartung",30000,2,"Standartwartung",30000,2,"Standartwartung",30000,2,"Standartwartung",30000,2,"Standartwartung",null,null,null,null,null,null,15000,1,"Standartwartung"]
["D","E","Antriebswellen und Manschetten prüfen",30000,2,"Standartwartung",null,null,null,null,null,null,null,null,null,30000,2,"Standartwartung",null,null,null,null,null,null,30000,2,"Standartwartung",30000,2,"Standartwartung",30000,2,"Standartwartung",30000,2,"Standartwartung",30000,2,"Standartwartung",null,null,null,null,null,null,15000,1,"Standartwartung"]
["D","E","Kontrolle der Lenkung auf Spiel und ausreichendes Anzugsdrehmoment der Schrauben",30000,2,"Standartwartung",null,null,null,null,null,null,null,null,null,30000,2,"Standartwartung",null,null,null,null,null,null,30000,2,"Standartwartung",30000,2,"Standartwartung",30000,2,"Standartwartung",30000,2,"Standartwartung",30000,2,"Standartwartung",null,null,null,null,null,null,15000,1,"Standartwartung"]
["D","E","Kontrolle und Einstellung des Reifendrucks, Reifendruck kalibrieren, Kontrolle der Radlager, Anzugsdrehmoment der Räder kontollieren",30000,2,"Standartwartung",null,null,null,null,null,null,null,null,null,30000,2,"Standartwartung",null,null,null,null,null,null,30000,2,"Standartwartung",30000,2,"Standartwartung",30000,2,"Standartwartung",30000,2,"Standartwartung",30000,2,"Standartwartung",null,null,null,null,null,null,15000,1,"Standartwartung"]
["D","E","Sichtkontrolle des Hochvoltkabelstrangs und der Stecker",30000,2,"Standartwartung",null,null,null,null,null,null,null,null,null,30000,2,"Standartwartung",null,null,null,null,null,null,30000,2,"Standartwartung",30000,2,"Standartwartung",30000,2,"Standartwartung",30000,2,"Standartwartung",30000,2,"Standartwartung",null,null,null,null,null,null,15000,1,"Standartwartung"]
["D","E","Sichtkontrolle des Hochvolt-Batteriegehäuses auf Risse oder Beulen",30000,2,"Standartwartung",null,null,null,null,null,null,null,null,null,30000,2,"Standartwartung",null,null,null,null,null,null,30000,2,"Standartwartung",30000,2,"Standartwartung",30000,2,"Standartwartung",30000,2,"Standartwartung",30000,2,"Standartwartung",null,null,null,null,null,null,15000,1,"Standartwartung"]
["D","E","Sichtkontrolle des Manual Service Disconnects",30000,2,"Standartwartung",null,null,null,null,null,null,null,null,null,30000,2,"Standartwartung",null,null,null,null,null,null,30000,2,"Standartwartung",30000,2,"Standartwartung",30000,2,"Standartwartung",30000,2,"Standartwartung",30000,2,"Standartwartung",null,null,null,null,null,null,15000,1,"Standartwartung"]
["D","E","Kontrolle der Hochvoltkabel auf Verschleiss und Beschädigungen ",30000,2,"Standartwartung",null,null,null,null,null,null,null,null,null,30000,2,"Standartwartung",null,null,null,null,null,null,30000,2,"Standartwartung",30000,2,"Standartwartung",30000,2,"Standartwartung",30000,2,"Standartwartung",30000,2,"Standartwartung",null,null,null,null,null,null,15000,1,"Standartwartung"]
["D","E","Zusatzaufgaben","-","-","-","-","-","-","-","-","-","-","-","-","-","-","-","-","-","-","-","-","-","-","-","-","-","-","-","-","-","-","-","-","-","-","-","-","-","-","-","-","-","-","-","-","-"]
["D","E","Ersetzten des Getriebeöls",80000,3,0.5,null,null,null,null,null,null,null,null,null,80000,3,0.5,null,null,null,null,null,null,30000,null,0.5,80000,3,0.5,30000,null,0.5,80000,3,0.5,160000,null,0.5,null,null,null,null,null,null,15000,1,"Standartwartung"]
["D","E","Ersetzten der Bremsflüssigkeit",60000,2,0.6,null,null,null,null,null,null,null,null,null,60000,2,0.6,null,null,null,null,null,null,60000,2,0.6,60000,2,0.6,60000,2,0.6,60000,2,0.6,60000,2,0.6,null,null,null,null,null,null,60000,2,0.6]
["D","E","Ersetzten des Kühlmittels",60000,2,0.5,null,null,null,null,null,null,null,null,null,60000,2,0.5,null,null,null,null,null,null,60000,2,0.5,60000,2,0.5,60000,2,0.5,60000,2,0.5,60000,2,0.5,null,null,null,null,null,null,60000,2,0.5]
["D","D","Vorab Prüfung und Kampagnen","-","-","-","-","-","-","-","-","-","-","-","-","-","-","-","-","-","-","-","-","-","-","-","-","-","-","-","-","-","-","-","-","-","-","-","-","-","-","-","-","-","-","-","-","-"]
["D","D","Probefahrt",null,null,null,5000,0.5,"Standartwartung",15000,1,"Standartwartung",20000,1,"Standartwartung",null,null,null,40000,2,"Standartwartung",null,null,null,null,null,null,null,null,null,null,null,null,null,null,null,null,null,null,20000,1,"Standartwartung",5000,0.5,"Standartwartung"]
["D","D","Fahrzeug auf anstehende Kampagnen prüfen",null,null,null,5000,0.5,"Standartwartung",15000,1,"Standartwartung",20000,1,"Standartwartung",null,null,null,40000,2,"Standartwartung",null,null,null,null,null,null,null,null,null,null,null,null,null,null,null,null,null,null,20000,1,"Standartwartung",5000,0.5,"Standartwartung"]
["D","D","Fehlerspeicher Abfrage",null,null,null,5000,0.5,"Standartwartung",15000,1,"Standartwartung",20000,1,"Standartwartung",null,null,null,40000,2,"Standartwartung",null,null,null,null,null,null,null,null,null,null,null,null,null,null,null,null,null,null,20000,1,"Standartwartung",5000,0.5,"Standartwartung"]
["D","D","Am und im Fahrzeug","-","-","-","-","-","-","-","-","-","-","-","-","-","-","-","-","-","-","-","-","-","-","-","-","-","-","-","-","-","-","-","-","-","-","-","-","-","-","-","-","-","-","-","-","-"]
["D","D","Funktionen von Blinker, Instrumentenanzeige und elektrischen Geräten auf Vollständigkeit und Funktion überprüfen.",null,null,null,5000,0.5,"Standartwartung",15000,1,"Standartwartung",20000,1,"Standartwartung",null,null,null,40000,2,"Standartwartung",null,null,null,null,null,null,null,null,null,null,null,null,null,null,null,null,null,null,20000,1,"Standartwartung",5000,0.5,"Standartwartung"]
["D","D","Pollenfilter der Klimaanlage reinigen und bei Bedarf austauschen.",null,null,null,null,null,null,15000,null,0.1,20000,null,0.1,null,null,null,40000,2,"Standartwartung",null,null,null,null,null,null,null,null,null,null,null,null,null,null,null,null,null,null,20000,1,0.2,5000,0.5,"Standartwartung"]
["D","D","Airbag-Flächen auf Beschädigungen und die zuverlässige sowie wirksame Funktionen der Sicherheitsgurte überprüfen.",null,null,null,5000,0.5,"Standartwartung",15000,1,"Standartwartung",20000,1,"Standartwartung",null,null,null,40000,2,"Standartwartung",null,null,null,null,null,null,null,null,null,null,null,null,null,null,null,null,null,null,20000,1,"Standartwartung",5000,0.5,"Standartwartung"]
["D","D","Auf normale Ein-/Ausfahrfunktion der elektrischen Trittstufe überprüfen; auf unnormale Symptome wie ungewöhnliche Geräusche, Festfressen oder Öllecks überprüfen; auf normale Funktion der elektrischen Trittstufenanzeige überprüfen und bei Bedarf austauschen.",null,null,null,5000,0.5,"Standartwartung",15000,1,"Standartwartung",20000,1,"Standartwartung",null,null,null,40000,2,"Standartwartung",null,null,null,null,null,null,null,null,null,null,null,null,null,null,null,null,null,null,20000,1,"Standartwartung",5000,0.5,"Standartwartung"]
["D","D","Spiel des Bremspedals überprüfen und bei Bedarf einstellen.",null,null,null,5000,0.5,"Standartwartung",15000,1,"Standartwartung",20000,1,"Standartwartung",null,null,null,40000,2,"Standartwartung",null,null,null,null,null,null,null,null,null,null,null,null,null,null,null,null,null,null,20000,1,"Standartwartung",5000,0.5,"Standartwartung"]
["D","D","Freigängigkeit des Lenkrads überprüfen und bei Bedarf einstellen.",null,null,null,5000,0.5,"Standartwartung",15000,1,"Standartwartung",20000,1,"Standartwartung",null,null,null,40000,2,"Standartwartung",null,null,null,null,null,null,null,null,null,null,null,null,null,null,null,null,null,null,20000,1,"Standartwartung",5000,0.5,"Standartwartung"]
["D","D","Spiel des Kupplungspedals überprüfen und bei Bedarf einstellen.",null,null,null,5000,0.5,"Standartwartung",15000,1,"Standartwartung",20000,1,"Standartwartung",null,null,null,40000,2,"Standartwartung",null,null,null,null,null,null,null,null,null,null,null,null,null,null,null,null,null,null,20000,1,"Standartwartung",5000,0.5,"Standartwartung"]
["D","D","Spiel des Schalthebels überprüfen und bei Bedarf einstellen.",null,null,null,5000,0.5,"Standartwartung",15000,1,"Standartwartung",20000,1,"Standartwartung",null,null,null,40000,2,"Standartwartung",null,null,null,null,null,null,null,null,null,null,null,null,null,null,null,null,null,null,20000,1,"Standartwartung",5000,0.5,"Standartwartung"]
["D","D","Karosseriezubehör des Fahrzeugs wie Türschloss, -Scharnier sowie -Führung reinigen und abschmieren.",null,null,null,5000,0.5,"Standartwartung",15000,1,"Standartwartung",20000,1,"Standartwartung",null,null,null,40000,2,"Standartwartung",null,null,null,null,null,null,null,null,null,null,null,null,null,null,null,null,null,null,20000,1,"Standartwartung",5000,0.5,"Standartwartung"]
["D","D","Im Motorraum","-","-","-","-","-","-","-","-","-","-","-","-","-","-","-","-","-","-","-","-","-","-","-","-","-","-","-","-","-","-","-","-","-","-","-","-","-","-","-","-","-","-","-","-","-"]
["D","D","Wechsel von Motoröl und Ölfilter.",null,null,null,5000,0.5,"Standartwartung",15000,1,"Standartwartung",20000,1,"Standartwartung",null,null,null,40000,2,"Standartwartung",null,null,null,null,null,null,null,null,null,null,null,null,null,null,null,null,null,null,20000,1,"Standartwartung",5000,0.5,"Standartwartung"]
["D","D","Niveau des Kühlsystems und die Leitungen des Kühlsystems überprüfen und bei Bedarf Kühlmittel nachfüllen.",null,null,null,5000,0.5,"Standartwartung",15000,1,"Standartwartung",20000,1,"Standartwartung",null,null,null,40000,2,"Standartwartung",null,null,null,null,null,null,null,null,null,null,null,null,null,null,null,null,null,null,20000,1,"Standartwartung",5000,0.5,"Standartwartung"]
["D","D","Das Luftfiltergehäuse und das Luftfilterelement ersetzten",null,null,null,null,null,null,30000,null,0.1,40000,null,0.1,null,null,null,40000,2,"Standartwartung",null,null,null,null,null,null,null,null,null,null,null,null,null,null,null,null,null,null,20000,1,"Standartwartung",5000,0.5,"Standartwartung"]
["D","D","Kraftstofffilter und O-Ring austauschen.",null,null,null,5000,0.5,0.3,30000,null,0.3,40000,null,0.3,null,null,null,40000,2,"Standartwartung",null,null,null,null,null,null,null,null,null,null,null,null,null,null,null,null,null,null,20000,1,"Standartwartung",5000,0.5,"Standartwartung"]
["D","D","Die Leitungsanschlüsse und -Befestigungen des Kraftstoffsystems auf Sicherheit überprüfen.",null,null,null,5000,0.5,"Standartwartung",15000,1,"Standartwartung",20000,1,"Standartwartung",null,null,null,40000,2,"Standartwartung",null,null,null,null,null,null,null,null,null,null,null,null,null,null,null,null,null,null,20000,1,"Standartwartung",5000,0.5,"Standartwartung"]
["D","D","Niveau der Bremsflüssigkeit und die Leitungen der Bremsanlage überprüfen und bei Bedarf Bremsflüssigkeit nachfüllen",null,null,null,5000,0.5,"Standartwartung",15000,1,"Standartwartung",20000,1,"Standartwartung",null,null,null,40000,2,"Standartwartung",null,null,null,null,null,null,null,null,null,null,null,null,null,null,null,null,null,null,20000,1,"Standartwartung",5000,0.5,"Standartwartung"]
["D","D","Batterie-Zustand, Anschlüsse und Pole prüfen",null,null,null,5000,0.5,"Standartwartung",15000,1,"Standartwartung",20000,1,"Standartwartung",null,null,null,40000,2,"Standartwartung",null,null,null,null,null,null,null,null,null,null,null,null,null,null,null,null,null,null,20000,1,"Standartwartung",5000,0.5,"Standartwartung"]
["D","D","Kurbelwellenentlüftung prüfen.",null,null,null,5000,0.5,"Standartwartung",15000,1,"Standartwartung",20000,1,"Standartwartung",null,null,null,40000,2,"Standartwartung",null,null,null,null,null,null,null,null,null,null,null,null,null,null,null,null,null,null,20000,1,"Standartwartung",5000,0.5,"Standartwartung"]
["D","D","Die Klimaanlage auf Dichtheit (optisch) und Funktion prüfen.",null,null,null,5000,0.5,"Standartwartung",15000,1,"Standartwartung",20000,1,"Standartwartung",null,null,null,40000,2,"Standartwartung",null,null,null,null,null,null,null,null,null,null,null,null,null,null,null,null,null,null,20000,1,"Standartwartung",5000,0.5,"Standartwartung"]
["D","D","Die Schellen an beiden Enden des Ladeluftkühlerschlauchs kontrollieren und mit einem Anzugsdrehmoment von 5 Nm festziehen.",null,null,null,5000,0.5,"Standartwartung",15000,1,"Standartwartung",20000,1,"Standartwartung",null,null,null,40000,2,"Standartwartung",null,null,null,null,null,null,null,null,null,null,null,null,null,null,null,null,null,null,20000,1,"Standartwartung",5000,0.5,"Standartwartung"]
["D","D","Auf Alterserscheinungen und Risse des Antriebsriemens des Motors überprüfen und bei Bedarf austauschen.",null,null,null,5000,0.5,"Standartwartung",15000,1,"Standartwartung",20000,1,"Standartwartung",null,null,null,40000,2,"Standartwartung",null,null,null,null,null,null,null,null,null,null,null,null,null,null,null,null,null,null,20000,1,"Standartwartung",5000,0.5,"Standartwartung"]
["D","D","Unter dem Fahrzeug","-","-","-","-","-","-","-","-","-","-","-","-","-","-","-","-","-","-","-","-","-","-","-","-","-","-","-","-","-","-","-","-","-","-","-","-","-","-","-","-","-","-","-","-","-"]
["D","D","Vorder- und Hinterradaufhängung überprüfen.",null,null,null,5000,0.5,"Standartwartung",15000,1,"Standartwartung",20000,1,"Standartwartung",null,null,null,40000,2,"Standartwartung",null,null,null,null,null,null,null,null,null,null,null,null,null,null,null,null,null,null,20000,1,"Standartwartung",5000,0.5,"Standartwartung"]
["D","D","Das Spiel der Bremsklötze vorne und hinten sowie der Parkbremse überprüfen, dazu den Hub des Bremshebels; diesen bei Bedarf einstellen und ggf. austauschen.",null,null,null,5000,0.5,"Standartwartung",15000,1,"Standartwartung",20000,1,"Standartwartung",null,null,null,40000,2,"Standartwartung",null,null,null,null,null,null,null,null,null,null,null,null,null,null,null,null,null,null,20000,1,"Standartwartung",5000,0.5,"Standartwartung"]
["D","D","Die Kreuzgelenk-Manschette der Antriebswelle auf Schäden überprüfen.",null,null,null,null,null,null,15000,1,"Standartwartung",20000,1,"Standartwartung",null,null,null,40000,2,"Standartwartung",null,null,null,null,null,null,null,null,null,null,null,null,null,null,null,null,null,null,20000,1,"Standartwartung"]
["D","D","Niveau des Getriebeöls überprüfen und bei Bedarf auffüllen.",null,null,null,null,null,null,15000,1,"Standartwartung",20000,1,"Standartwartung",null,null,null,40000,2,"Standartwartung",null,null,null,null,null,null,null,null,null,null,null,null,null,null,null,null,null,null,20000,1,"Standartwartung"]
["D","D","Modelle mit Kardanwelle (wenn vorhanden) mit Schmiernippeln prüfen bzw. fetten.",null,null,null,null,null,null,15000,1,"Standartwartung",20000,1,"Standartwartung",null,null,null,40000,2,"Standartwartung",null,null,null,null,null,null,null,null,null,null,null,null,null,null,null,null,null,null,20000,1,"Standartwartung"]
["D","D","Anschlussstellen des Abgasrohrs auf zuverlässige und effektive Sicherheit überprüfen, und ob die Gummimuffen des Abgasrohrs Alterungserscheinungen aufweisen oder gebrochen sind.",null,null,null,null,null,null,15000,1,"Standartwartung",20000,1,"Standartwartung",null,null,null,40000,2,"Standartwartung",null,null,null,null,null,null,null,null,null,null,null,null,null,null,null,null,null,null,20000,1,"Standartwartung"]
["D","D","Die Leitungen des Vakuumsystems auf Störungen und Schäden überprüfen.",null,null,null,null,null,null,15000,1,"Standartwartung",20000,1,"Standartwartung",null,null,null,40000,2,"Standartwartung",null,null,null,null,null,null,null,null,null,null,null,null,null,null,null,null,null,null,20000,1,"Standartwartung"]
["D","D","Den Kabelbaum auf zuverlässige und effektive Sicherheit überprüfen, und ob er nicht durch andere Teile beeinträchtigt wird oder beschädigt ist.",null,null,null,null,null,null,15000,1,"Standartwartung",20000,1,"Standartwartung",null,null,null,40000,2,"Standartwartung",null,null,null,null,null,null,null,null,null,null,null,null,null,null,null,null,null,null,20000,1,"Standartwartung"]
["D","D","Prüfen des Chassis: alle Teile, Befestigungen, Kabelstränge und Leitungen; Flüssigkeitsverlust überprüfen.",null,null,null,null,null,null,15000,1,"Standartwartung",20000,1,"Standartwartung",null,null,null,40000,2,"Standartwartung",null,null,null,null,null,null,null,null,null,null,null,null,null,null,null,null,null,null,20000,1,"Standartwartung"]
["D","D","Reifen (einschliesslich Ersatzreifen): Das Hinterrad-Nabenlager überprüfen, ebenfalls den Reifendruck und auf Verschleiss überprüfen; den Reifendruck kalibrieren; Schrauben auf das vorgegebenen Anzugsdrehmoment überprüfen und festziehen.",null,null,null,null,null,null,15000,1,"Standartwartung",20000,1,"Standartwartung",null,null,null,40000,2,"Standartwartung",null,null,null,null,null,null,null,null,null,null,null,null,null,null,null,null,null,null,20000,1,"Standartwartung"]
["D","D","Niveau der Servolenkungsflüssigkeit und die Leitungen der Hydraulikanlage überprüfen,bei Bedarf Öl nachfüllen. Auf zuverlässige und effektive Verbindungen von Spurstange, überprüfen und Achsschenkel-Haltebolzen kontrollieren.",null,null,null,null,null,null,15000,1,"Standartwartung",20000,1,"Standartwartung",null,null,null,40000,2,"Standartwartung",null,null,null,null,null,null,null,null,null,null,null,null,null,null,null,null,null,null,20000,1,"Standartwartung"]
["D","D","Verunreinigungen vom NOx-Sensor entfernen (bei Fahrzeugen mit Ad-Blue)",null,null,null,null,null,null,null,null,null,null,null,null,null,null,null,40000,2,"Standartwartung"]
["D","D","Reinigung der Einspritzdüse für Ad-Blue. ",null,null,null,null,null,null,null,null,null,null,null,null,null,null,null,40000,2,"Standartwartung"]
["D","D","Zusatzaufgaben","-","-","-","-","-","-","-","-","-","-","-","-","-","-","-","-","-","-","-","-","-","-","-","-","-","-","-","-","-","-","-","-","-","-","-","-","-","-","-","-","-","-","-","-","-"]
["D","D","Die Bremsflüssigkeit austauschen inkl. Entlüfen des Systems.",null,null,null,null,null,null,65000,2,0.5,65000,2,0.5,null,null,null,80000,2,0.6,null,null,null,null,null,null,null,null,null,null,null,null,null,null,null,null,null,null,60000,2]
["D","D","Das Kühlmittel austauschen. ",null,null,null,null,null,null,80000,4,0.6,80000,4,0.6,null,null,null,40000,2,0.6,null,null,null,null,null,null,null,null,null,null,null,null,null,null,null,null,null,null,60000,2]
["D","D","Die Servolenkungsflüssigkeit alle 3 Jahre oder 80.000 km (je nachdem, was früher eintritt) austauschen.",null,null,null,null,null,null,null,null,null,null,null,null,null,null,null,null,null,null,null,null,null,null,null,null,null,null,null,null,null,null,null,null,null,null,null,null,80000,3]
["D","D","Getriebeflüssigkeit für 6-Gang-Handschaltung und 6-Gang-Automatikgetriebe wechseln. ",null,null,null,5000,0.5,0.5,80000,null,0.5,80000,null,0.5,null,null,null,"1. 40000, dann alle 80000",2,0.5,null,null,null,null,null,null,null,null,null,null,null,null,null,null,null,null,null,null,80000]
["D","D","Zahnriemen, Spannrollen und Riemenscheiben ersetzten",null,null,null,null,null,null,95000,5,1.7,95000,5,1.7,null,null,null,120000,4,1.6,null,null,null,null,null,null,null,null,null,null,null,null,null,null,null,null,null,null,105000,5]
["D","D","Bei Fahrzeugen mit Allrad muss das Mitteldifferentialöl ersetzt werden. Fahrzuege mit permanentem Allrad alle 50'000km. Bei Fahrzeugen mit Zuschaltbarem Allrad alle 80'000km.",null,null,null,5000,0.5,0.7,80000,null,0.3,80000,null,0.3]
["D","D","Bei Fahrzeugen mit Allrad muss das Front- und Heckdifferentialöl ersetzt werden. ",null,null,null,null,null,null,80000,3,0.7,80000,3,0.7]
["F","E","Examen préalable et campagnes","-","-","-","-","-","-","-","-","-","-","-","-","-","-","-","-","-","-","-","-","-","-","-","-","-","-","-","-","-","-","-","-","-","-","-","-","-","-","-","-","-","-","-","-","-"]
["F","E","Essai sur route",30000,2,"Maintenance standard",null,null,null,null,null,null,null,null,null,30000,2,"Maintenance standard",null,null,null,null,null,null,30000,2,"Maintenance standard",30000,2,"Maintenance standard",30000,2,"Maintenance standard",30000,2,"Maintenance standard",30000,2,"Maintenance standard",null,null,null,null,null,null,15000,1,"Maintenance standard"]
["F","E","Contrôle du véhicule pour les campagnes à venir",30000,2,"Maintenance standard",null,null,null,null,null,null,null,null,null,30000,2,"Maintenance standard",null,null,null,null,null,null,30000,2,"Maintenance standard",30000,2,"Maintenance standard",30000,2,"Maintenance standard",30000,2,"Maintenance standard",30000,2,"Maintenance standard",null,null,null,null,null,null,15000,1,"Maintenance standard"]
["F","E","Consultation de la mémoire des erreurs",30000,2,"Maintenance standard",null,null,null,null,null,null,null,null,null,30000,2,"Maintenance standard",null,null,null,null,null,null,30000,2,"Maintenance standard",30000,2,"Maintenance standard",30000,2,"Maintenance standard",30000,2,"Maintenance standard",30000,2,"Maintenance standard",null,null,null,null,null,null,15000,1,"Maintenance standard"]
["F","E","Sur et dans le véhicule","-","-","-","-","-","-","-","-","-","-","-","-","-","-","-","-","-","-","-","-","-","-","-","-","-","-","-","-","-","-","-","-","-","-","-","-","-","-","-","-","-","-","-","-","-"]
["F","E","Lubrifier la pédale de frein",30000,2,"Maintenance standard",null,null,null,null,null,null,null,null,null,30000,2,"Maintenance standard",null,null,null,null,null,null,30000,2,"Maintenance standard",30000,2,"Maintenance standard",30000,2,"Maintenance standard",30000,2,"Maintenance standard",30000,2,"Maintenance standard",null,null,null,null,null,null,15000,1,"Maintenance standard"]
["F","E","Contrôler la colonne de direction et la suspension du volant",30000,2,"Maintenance standard",null,null,null,null,null,null,null,null,null,30000,2,"Maintenance standard",null,null,null,null,null,null,30000,2,"Maintenance standard",30000,2,"Maintenance standard",30000,2,"Maintenance standard",30000,2,"Maintenance standard",30000,2,"Maintenance standard",null,null,null,null,null,null,15000,1,"Maintenance standard"]
["F","E","Nettoyage et lubrification des charnières et des serrures",30000,2,"Maintenance standard",null,null,null,null,null,null,null,null,null,30000,2,"Maintenance standard",null,null,null,null,null,null,30000,2,"Maintenance standard",30000,2,"Maintenance standard",30000,2,"Maintenance standard",30000,2,"Maintenance standard",30000,2,"Maintenance standard",null,null,null,null,null,null,15000,1,"Maintenance standard"]
["F","E","Contrôle du filtre à air de l'habitacle, le remplacer si nécessaire",30000,2,0.2,null,null,null,null,null,null,null,null,null,30000,2,0.2,null,null,null,null,null,null,30000,2,0.2,30000,2,0.2,30000,2,0.2,30000,2,0.2,30000,2,0.2,null,null,null,null,null,null,15000,1,0.2]
["F","E","Contrôle du système d'airbags et du bon fonctionnement des ceintures de sécurité",30000,2,"Maintenance standard",null,null,null,null,null,null,null,null,null,30000,2,"Maintenance standard",null,null,null,null,null,null,30000,2,"Maintenance standard",30000,2,"Maintenance standard",30000,2,"Maintenance standard",30000,2,"Maintenance standard",30000,2,"Maintenance standard",null,null,null,null,null,null,15000,1,"Maintenance standard"]
["F","E","Contrôle de l'éclairage extérieur, du combiné d'instruments et de toutes les fonctions électriques du véhicule",30000,2,"Maintenance standard",null,null,null,null,null,null,null,null,null,30000,2,"Maintenance standard",null,null,null,null,null,null,30000,2,"Maintenance standard",30000,2,"Maintenance standard",30000,2,"Maintenance standard",30000,2,"Maintenance standard",30000,2,"Maintenance standard",null,null,null,null,null,null,15000,1,"Maintenance standard"]
["F","E","Dans le compartiment moteur","-","-","-","-","-","-","-","-","-","-","-","-","-","-","-","-","-","-","-","-","-","-","-","-","-","-","-","-","-","-","-","-","-","-","-","-","-","-","-","-","-","-","-","-","-"]
["F","E","Contrôler l'étanchéité du système de refroidissement et contrôler visuellement les conduites et les raccords.",30000,2,"Maintenance standard",null,null,null,null,null,null,null,null,null,30000,2,"Maintenance standard",null,null,null,null,null,null,30000,2,"Maintenance standard",30000,2,"Maintenance standard",30000,2,"Maintenance standard",30000,2,"Maintenance standard",30000,2,"Maintenance standard",null,null,null,null,null,null,15000,1,"Maintenance standard"]
["F","E","Contrôler le système de refroidissement, y compris l'antigel",30000,2,"Maintenance standard",null,null,null,null,null,null,null,null,null,30000,2,"Maintenance standard",null,null,null,null,null,null,30000,2,"Maintenance standard",30000,2,"Maintenance standard",30000,2,"Maintenance standard",30000,2,"Maintenance standard",30000,2,"Maintenance standard",null,null,null,null,null,null,15000,1,"Maintenance standard"]
["F","E","Contrôle de l'état de charge de la batterie 12V, montage correct et propre des connexions des pôles",30000,2,"Maintenance standard",null,null,null,null,null,null,null,null,null,30000,2,"Maintenance standard",null,null,null,null,null,null,30000,2,"Maintenance standard",30000,2,"Maintenance standard",30000,2,"Maintenance standard",30000,2,"Maintenance standard",30000,2,"Maintenance standard",null,null,null,null,null,null,15000,1,"Maintenance standard"]
["F","E","Contrôle visuel du faisceau de câbles 12V et des connecteurs",30000,2,"Maintenance standard",null,null,null,null,null,null,null,null,null,30000,2,"Maintenance standard",null,null,null,null,null,null,30000,2,"Maintenance standard",30000,2,"Maintenance standard",30000,2,"Maintenance standard",30000,2,"Maintenance standard",30000,2,"Maintenance standard",null,null,null,null,null,null,15000,1,"Maintenance standard"]
["F","E","Contrôle du niveau de liquide de frein, faire l'appoint si nécessaire",30000,2,"Maintenance standard",null,null,null,null,null,null,null,null,null,30000,2,"Maintenance standard",null,null,null,null,null,null,30000,2,"Maintenance standard",30000,2,"Maintenance standard",30000,2,"Maintenance standard",30000,2,"Maintenance standard",30000,2,"Maintenance standard",null,null,null,null,null,null,15000,1,"Maintenance standard"]
["F","E","Contrôle visuel et fonctionnel de la climatisation et de tous ses composants",30000,2,"Maintenance standard",null,null,null,null,null,null,null,null,null,30000,2,"Maintenance standard",null,null,null,null,null,null,30000,2,"Maintenance standard",30000,2,"Maintenance standard",30000,2,"Maintenance standard",30000,2,"Maintenance standard",30000,2,"Maintenance standard",null,null,null,null,null,null,15000,1,"Maintenance standard"]
["F","E","Contrôle du système de dépression",30000,2,"Maintenance standard",null,null,null,null,null,null,null,null,null,30000,2,"Maintenance standard",null,null,null,null,null,null,30000,2,"Maintenance standard",30000,2,"Maintenance standard",30000,2,"Maintenance standard",30000,2,"Maintenance standard",30000,2,"Maintenance standard",null,null,null,null,null,null,15000,1,"Maintenance standard"]
["F","E","Sous le véhicule","-","-","-","-","-","-","-","-","-","-","-","-","-","-","-","-","-","-","-","-","-","-","-","-","-","-","-","-","-","-","-","-","-","-","-","-","-","-","-","-","-","-","-","-","-"]
["F","E","Inspection du châssis, contrôle de la protection anticorrosion de la carrosserie",30000,2,"Maintenance standard",null,null,null,null,null,null,null,null,null,30000,2,"Maintenance standard",null,null,null,null,null,null,30000,2,"Maintenance standard",30000,2,"Maintenance standard",30000,2,"Maintenance standard",30000,2,"Maintenance standard",30000,2,"Maintenance standard",null,null,null,null,null,null,15000,1,"Maintenance standard"]
["F","E","Contrôle des suspensions avant et arrière",30000,2,"Maintenance standard",null,null,null,null,null,null,null,null,null,30000,2,"Maintenance standard",null,null,null,null,null,null,30000,2,"Maintenance standard",30000,2,"Maintenance standard",30000,2,"Maintenance standard",30000,2,"Maintenance standard",30000,2,"Maintenance standard",null,null,null,null,null,null,15000,1,"Maintenance standard"]
["F","E","Contrôle des paliers du moteur",30000,2,"Maintenance standard",null,null,null,null,null,null,null,null,null,30000,2,"Maintenance standard",null,null,null,null,null,null,30000,2,"Maintenance standard",30000,2,"Maintenance standard",30000,2,"Maintenance standard",30000,2,"Maintenance standard",30000,2,"Maintenance standard",null,null,null,null,null,null,15000,1,"Maintenance standard"]
["F","E","Contrôle du fonctionnement du système de freinage, y compris le frein de stationnement",30000,2,"Maintenance standard",null,null,null,null,null,null,null,null,null,30000,2,"Maintenance standard",null,null,null,null,null,null,30000,2,"Maintenance standard",30000,2,"Maintenance standard",30000,2,"Maintenance standard",30000,2,"Maintenance standard",30000,2,"Maintenance standard",null,null,null,null,null,null,15000,1,"Maintenance standard"]
["F","E","Contrôle des arbres de transmission et des manchettes",30000,2,"Maintenance standard",null,null,null,null,null,null,null,null,null,30000,2,"Maintenance standard",null,null,null,null,null,null,30000,2,"Maintenance standard",30000,2,"Maintenance standard",30000,2,"Maintenance standard",30000,2,"Maintenance standard",30000,2,"Maintenance standard",null,null,null,null,null,null,15000,1,"Maintenance standard"]
["F","E","Contrôle du jeu de la direction et du couple de serrage suffisant des vis",30000,2,"Maintenance standard",null,null,null,null,null,null,null,null,null,30000,2,"Maintenance standard",null,null,null,null,null,null,30000,2,"Maintenance standard",30000,2,"Maintenance standard",30000,2,"Maintenance standard",30000,2,"Maintenance standard",30000,2,"Maintenance standard",null,null,null,null,null,null,15000,1,"Maintenance standard"]
["F","E","Contrôle et réglage de la pression des pneus, étalonnage de la pression des pneus, contrôle des roulements de roue, contrôle du couple de serrage des roues",30000,2,"Maintenance standard",null,null,null,null,null,null,null,null,null,30000,2,"Maintenance standard",null,null,null,null,null,null,30000,2,"Maintenance standard",30000,2,"Maintenance standard",30000,2,"Maintenance standard",30000,2,"Maintenance standard",30000,2,"Maintenance standard",null,null,null,null,null,null,15000,1,"Maintenance standard"]
["F","E","Contrôle visuel du faisceau de câbles haute tension et des connecteurs",30000,2,"Maintenance standard",null,null,null,null,null,null,null,null,null,30000,2,"Maintenance standard",null,null,null,null,null,null,30000,2,"Maintenance standard",30000,2,"Maintenance standard",30000,2,"Maintenance standard",30000,2,"Maintenance standard",30000,2,"Maintenance standard",null,null,null,null,null,null,15000,1,"Maintenance standard"]
["F","E","Contrôle visuel du boîtier de la batterie haute tension pour détecter des fissures ou des bosses",30000,2,"Maintenance standard",null,null,null,null,null,null,null,null,null,30000,2,"Maintenance standard",null,null,null,null,null,null,30000,2,"Maintenance standard",30000,2,"Maintenance standard",30000,2,"Maintenance standard",30000,2,"Maintenance standard",30000,2,"Maintenance standard",null,null,null,null,null,null,15000,1,"Maintenance standard"]
["F","E","Contrôle visuel du Manual Service Disconnect",30000,2,"Maintenance standard",null,null,null,null,null,null,null,null,null,30000,2,"Maintenance standard",null,null,null,null,null,null,30000,2,"Maintenance standard",30000,2,"Maintenance standard",30000,2,"Maintenance standard",30000,2,"Maintenance standard",30000,2,"Maintenance standard",null,null,null,null,null,null,15000,1,"Maintenance standard"]
["F","E","Contrôle de l'usure et des dommages des câbles haute tension ",30000,2,"Maintenance standard",null,null,null,null,null,null,null,null,null,30000,2,"Maintenance standard",null,null,null,null,null,null,30000,2,"Maintenance standard",30000,2,"Maintenance standard",30000,2,"Maintenance standard",30000,2,"Maintenance standard",30000,2,"Maintenance standard",null,null,null,null,null,null,15000,1,"Maintenance standard"]
["F","E","Tâches supplémentaires","-","-","-","-","-","-","-","-","-","-","-","-","-","-","-","-","-","-","-","-","-","-","-","-","-","-","-","-","-","-","-","-","-","-","-","-","-","-","-","-","-","-","-","-","-"]
["F","E","Remplacement de l'huile de boîte de vitesses",80000,3,0.5,null,null,null,null,null,null,null,null,null,80000,3,0.5,null,null,null,null,null,null,30000,null,0.5,80000,3,0.5,30000,null,0.5,80000,3,0.5,160000,null,0.5,null,null,null,null,null,null,15000,1,"Maintenance standard"]
["F","E","Remplacement du liquide de frein",60000,2,0.6,null,null,null,null,null,null,null,null,null,60000,2,0.6,null,null,null,null,null,null,60000,2,0.6,60000,2,0.6,60000,2,0.6,60000,2,0.6,60000,2,0.6,null,null,null,null,null,null,60000,2,0.6]
["F","E","Remplacement du liquide de refroidissement",60000,2,0.5,null,null,null,null,null,null,null,null,null,60000,2,0.5,null,null,null,null,null,null,60000,2,0.5,60000,2,0.5,60000,2,0.5,60000,2,0.5,60000,2,0.5,null,null,null,null,null,null,60000,2,0.5]
["F","D","Examen préalable et campagnes","-","-","-","-","-","-","-","-","-","-","-","-","-","-","-","-","-","-","-","-","-","-","-","-","-","-","-","-","-","-","-","-","-","-","-","-","-","-","-","-","-","-","-","-","-"]
["F","D","Essai sur route",null,null,null,5000,0.5,"Maintenance standard",15000,1,"Maintenance standard",20000,1,"Maintenance standard",null,null,null,40000,2,"Maintenance standard",null,null,null,null,null,null,null,null,null,null,null,null,null,null,null,null,null,null,20000,1,"Maintenance standard",5000,0.5,"Maintenance standard"]
["F","D","Contrôle du véhicule pour les campagnes à venir",null,null,null,5000,0.5,"Maintenance standard",15000,1,"Maintenance standard",20000,1,"Maintenance standard",null,null,null,40000,2,"Maintenance standard",null,null,null,null,null,null,null,null,null,null,null,null,null,null,null,null,null,null,20000,1,"Maintenance standard",5000,0.5,"Maintenance standard"]
["F","D","Consultation de la mémoire des erreurs",null,null,null,5000,0.5,"Maintenance standard",15000,1,"Maintenance standard",20000,1,"Maintenance standard",null,null,null,40000,2,"Maintenance standard",null,null,null,null,null,null,null,null,null,null,null,null,null,null,null,null,null,null,20000,1,"Maintenance standard",5000,0.5,"Maintenance standard"]
["F","D","Sur et dans le véhicule","-","-","-","-","-","-","-","-","-","-","-","-","-","-","-","-","-","-","-","-","-","-","-","-","-","-","-","-","-","-","-","-","-","-","-","-","-","-","-","-","-","-","-","-","-"]
["F","D","Vérifier les fonctions des clignotants, du tableau de bord et des appareils électriques pour s'assurer qu'ils sont complets et fonctionnels.",null,null,null,5000,0.5,"Maintenance standard",15000,1,"Maintenance standard",20000,1,"Maintenance standard",null,null,null,40000,2,"Maintenance standard",null,null,null,null,null,null,null,null,null,null,null,null,null,null,null,null,null,null,20000,1,"Maintenance standard",5000,0.5,"Maintenance standard"]
["F","D","Nettoyer le filtre à pollen de la climatisation et le remplacer si nécessaire.",null,null,null,null,null,null,15000,null,0.1,20000,null,0.1,null,null,null,40000,2,"Maintenance standard",null,null,null,null,null,null,null,null,null,null,null,null,null,null,null,null,null,null,20000,1,0.2,5000,0.5,"Maintenance standard"]
["F","D","Vérifier que les surfaces des airbags ne sont pas endommagées et que les ceintures de sécurité fonctionnent de manière fiable et efficace.",null,null,null,5000,0.5,"Maintenance standard",15000,1,"Maintenance standard",20000,1,"Maintenance standard",null,null,null,40000,2,"Maintenance standard",null,null,null,null,null,null,null,null,null,null,null,null,null,null,null,null,null,null,20000,1,"Maintenance standard",5000,0.5,"Maintenance standard"]
["F","D","Vérifier le fonctionnement normal du marchepied électrique ; vérifier l'absence de symptômes anormaux tels que bruits inhabituels, grippage ou fuites d'huile ; vérifier le fonctionnement normal de l'indicateur de marchepied électrique et le remplacer si nécessaire.",null,null,null,5000,0.5,"Maintenance standard",15000,1,"Maintenance standard",20000,1,"Maintenance standard",null,null,null,40000,2,"Maintenance standard",null,null,null,null,null,null,null,null,null,null,null,null,null,null,null,null,null,null,20000,1,"Maintenance standard",5000,0.5,"Maintenance standard"]
["F","D","Vérifier le jeu de la pédale de frein et le régler si nécessaire.",null,null,null,5000,0.5,"Maintenance standard",15000,1,"Maintenance standard",20000,1,"Maintenance standard",null,null,null,40000,2,"Maintenance standard",null,null,null,null,null,null,null,null,null,null,null,null,null,null,null,null,null,null,20000,1,"Maintenance standard",5000,0.5,"Maintenance standard"]
["F","D","Vérifier la liberté de mouvement du volant et le régler si nécessaire.",null,null,null,5000,0.5,"Maintenance standard",15000,1,"Maintenance standard",20000,1,"Maintenance standard",null,null,null,40000,2,"Maintenance standard",null,null,null,null,null,null,null,null,null,null,null,null,null,null,null,null,null,null,20000,1,"Maintenance standard",5000,0.5,"Maintenance standard"]
["F","D","Vérifier le jeu de la pédale d'embrayage et le régler si nécessaire.",null,null,null,5000,0.5,"Maintenance standard",15000,1,"Maintenance standard",20000,1,"Maintenance standard",null,null,null,40000,2,"Maintenance standard",null,null,null,null,null,null,null,null,null,null,null,null,null,null,null,null,null,null,20000,1,"Maintenance standard",5000,0.5,"Maintenance standard"]
["F","D","Vérifier le jeu du levier de vitesses et le régler si nécessaire.",null,null,null,5000,0.5,"Maintenance standard",15000,1,"Maintenance standard",20000,1,"Maintenance standard",null,null,null,40000,2,"Maintenance standard",null,null,null,null,null,null,null,null,null,null,null,null,null,null,null,null,null,null,20000,1,"Maintenance standard",5000,0.5,"Maintenance standard"]
["F","D","Nettoyer et lubrifier les accessoires de la carrosserie du véhicule tels que la serrure, les charnières et le guide de porte.",null,null,null,5000,0.5,"Maintenance standard",15000,1,"Maintenance standard",20000,1,"Maintenance standard",null,null,null,40000,2,"Maintenance standard",null,null,null,null,null,null,null,null,null,null,null,null,null,null,null,null,null,null,20000,1,"Maintenance standard",5000,0.5,"Maintenance standard"]
["F","D","Dans le compartiment moteur","-","-","-","-","-","-","-","-","-","-","-","-","-","-","-","-","-","-","-","-","-","-","-","-","-","-","-","-","-","-","-","-","-","-","-","-","-","-","-","-","-","-","-","-","-"]
["F","D","Changer l'huile moteur et le filtre à huile.",null,null,null,5000,0.5,"Maintenance standard",15000,1,"Maintenance standard",20000,1,"Maintenance standard",null,null,null,40000,2,"Maintenance standard",null,null,null,null,null,null,null,null,null,null,null,null,null,null,null,null,null,null,20000,1,"Maintenance standard",5000,0.5,"Maintenance standard"]
["F","D","Vérifier le niveau du système de refroidissement et les conduites du système de refroidissement et ajouter du liquide de refroidissement si nécessaire.",null,null,null,5000,0.5,"Maintenance standard",15000,1,"Maintenance standard",20000,1,"Maintenance standard",null,null,null,40000,2,"Maintenance standard",null,null,null,null,null,null,null,null,null,null,null,null,null,null,null,null,null,null,20000,1,"Maintenance standard",5000,0.5,"Maintenance standard"]
["F","D","Nettoyer le boîtier du filtre à air et l'élément du filtre à air.",null,null,null,null,null,null,30000,null,0.1,40000,null,0.1,null,null,null,40000,2,"Maintenance standard",null,null,null,null,null,null,null,null,null,null,null,null,null,null,null,null,null,null,20000,1,"Maintenance standard",5000,0.5,"Maintenance standard"]
["F","D","Remplacer le filtre à carburant et le joint torique.",null,null,null,"x",null,null,30000,null,0.3,40000,null,0.3,null,null,null,40000,2,"Maintenance standard",null,null,null,null,null,null,null,null,null,null,null,null,null,null,null,null,null,null,20000,1,"Maintenance standard",5000,0.5,"Maintenance standard"]
["F","D","Vérifier la sécurité des raccords et des fixations des conduites du système de carburant.",null,null,null,5000,0.5,"Maintenance standard",15000,1,"Maintenance standard",20000,1,"Maintenance standard",null,null,null,40000,2,"Maintenance standard",null,null,null,null,null,null,null,null,null,null,null,null,null,null,null,null,null,null,20000,1,"Maintenance standard",5000,0.5,"Maintenance standard"]
["F","D","Vérifier le niveau de liquide de frein et les conduites du système de freinage et, si nécessaire, ajouter du liquide de frein.",null,null,null,5000,0.5,"Maintenance standard",15000,1,"Maintenance standard",20000,1,"Maintenance standard",null,null,null,40000,2,"Maintenance standard",null,null,null,null,null,null,null,null,null,null,null,null,null,null,null,null,null,null,20000,1,"Maintenance standard",5000,0.5,"Maintenance standard"]
["F","D","Vérifier l'état de la batterie, les connexions et les pôles.",null,null,null,5000,0.5,"Maintenance standard",15000,1,"Maintenance standard",20000,1,"Maintenance standard",null,null,null,40000,2,"Maintenance standard",null,null,null,null,null,null,null,null,null,null,null,null,null,null,null,null,null,null,20000,1,"Maintenance standard",5000,0.5,"Maintenance standard"]
["F","D","Vérifier la ventilation du vilebrequin.",null,null,null,5000,0.5,"Maintenance standard",15000,1,"Maintenance standard",20000,1,"Maintenance standard",null,null,null,40000,2,"Maintenance standard",null,null,null,null,null,null,null,null,null,null,null,null,null,null,null,null,null,null,20000,1,"Maintenance standard",5000,0.5,"Maintenance standard"]
["F","D","Vérifier l'étanchéité (visuelle) et le fonctionnement de la climatisation.",null,null,null,5000,0.5,"Maintenance standard",15000,1,"Maintenance standard",20000,1,"Maintenance standard",null,null,null,40000,2,"Maintenance standard",null,null,null,null,null,null,null,null,null,null,null,null,null,null,null,null,null,null,20000,1,"Maintenance standard",5000,0.5,"Maintenance standard"]
["F","D","Contrôler les colliers de serrage aux deux extrémités du tuyau du refroidisseur d'air de suralimentation et les serrer avec un couple de serrage de 5 Nm.",null,null,null,5000,0.5,"Maintenance standard",15000,1,"Maintenance standard",20000,1,"Maintenance standard",null,null,null,40000,2,"Maintenance standard",null,null,null,null,null,null,null,null,null,null,null,null,null,null,null,null,null,null,20000,1,"Maintenance standard",5000,0.5,"Maintenance standard"]
["F","D","Vérifier l'absence de signes de vieillissement et de fissures sur la courroie d'entraînement du moteur et la remplacer si nécessaire.",null,null,null,5000,0.5,"Maintenance standard",15000,1,"Maintenance standard",20000,1,"Maintenance standard",null,null,null,40000,2,"Maintenance standard",null,null,null,null,null,null,null,null,null,null,null,null,null,null,null,null,null,null,20000,1,"Maintenance standard",5000,0.5,"Maintenance standard"]
["F","D","Sous le véhicule","-","-","-","-","-","-","-","-","-","-","-","-","-","-","-","-","-","-","-","-","-","-","-","-","-","-","-","-","-","-","-","-","-","-","-","-","-","-","-","-","-","-","-","-","-"]
["F","D","Contrôler les suspensions avant et arrière.",null,null,null,5000,0.5,"Maintenance standard",15000,1,"Maintenance standard",20000,1,"Maintenance standard",null,null,null,40000,2,"Maintenance standard",null,null,null,null,null,null,null,null,null,null,null,null,null,null,null,null,null,null,20000,1,"Maintenance standard",5000,0.5,"Maintenance standard"]
["F","D","Contrôler le jeu des plaquettes de frein avant et arrière et du frein de stationnement, ainsi que la course du levier de frein ; régler ce dernier si nécessaire et le remplacer si nécessaire.",null,null,null,5000,0.5,"Maintenance standard",15000,1,"Maintenance standard",20000,1,"Maintenance standard",null,null,null,40000,2,"Maintenance standard",null,null,null,null,null,null,null,null,null,null,null,null,null,null,null,null,null,null,20000,1,"Maintenance standard",5000,0.5,"Maintenance standard"]
["F","D","Vérifier que la manchette du joint universel de l'arbre de transmission n'est pas endommagée.",null,null,null,null,null,null,15000,1,"Maintenance standard",20000,1,"Maintenance standard",null,null,null,40000,2,"Maintenance standard",null,null,null,null,null,null,null,null,null,null,null,null,null,null,null,null,null,null,20000,1,"Maintenance standard"]
["F","D","Vérifier le niveau d'huile de la boîte de vitesses et faire l'appoint si nécessaire.",null,null,null,null,null,null,15000,1,"Maintenance standard",20000,1,"Maintenance standard",null,null,null,40000,2,"Maintenance standard",null,null,null,null,null,null,null,null,null,null,null,null,null,null,null,null,null,null,20000,1,"Maintenance standard"]
["F","D","Contrôler ou graisser les modèles avec arbre à cardan (le cas échéant) avec des graisseurs.",null,null,null,null,null,null,15000,1,"Maintenance standard",20000,1,"Maintenance standard",null,null,null,40000,2,"Maintenance standard",null,null,null,null,null,null,null,null,null,null,null,null,null,null,null,null,null,null,20000,1,"Maintenance standard"]
["F","D","Vérifier les points de raccordement du tuyau d'échappement pour s'assurer qu'ils sont fiables et efficaces et que les manchons en caoutchouc du tuyau d'échappement ne présentent pas de signes de vieillissement ou ne sont pas cassés.",null,null,null,null,null,null,15000,1,"Maintenance standard",20000,1,"Maintenance standard",null,null,null,40000,2,"Maintenance standard",null,null,null,null,null,null,null,null,null,null,null,null,null,null,null,null,null,null,20000,1,"Maintenance standard"]
["F","D","Vérifier que les conduites du système de vide ne sont pas défectueuses ou endommagées.",null,null,null,null,null,null,15000,1,"Maintenance standard",20000,1,"Maintenance standard",null,null,null,40000,2,"Maintenance standard",null,null,null,null,null,null,null,null,null,null,null,null,null,null,null,null,null,null,20000,1,"Maintenance standard"]
["F","D","Vérifier le faisceau de câbles pour s'assurer qu'il est fiable et efficace, et qu'il n'est pas affecté par d'autres pièces ou endommagé.",null,null,null,null,null,null,15000,1,"Maintenance standard",20000,1,"Maintenance standard",null,null,null,40000,2,"Maintenance standard",null,null,null,null,null,null,null,null,null,null,null,null,null,null,null,null,null,null,20000,1,"Maintenance standard"]
["F","D","Inspecter le châssis : toutes les pièces, les fixations, les faisceaux de câbles et les conduites ; vérifier la perte de liquide.",null,null,null,null,null,null,15000,1,"Maintenance standard",20000,1,"Maintenance standard",null,null,null,40000,2,"Maintenance standard",null,null,null,null,null,null,null,null,null,null,null,null,null,null,null,null,null,null,20000,1,"Maintenance standard"]
["F","D","Pneus (y compris les pneus de rechange) : Contrôler le roulement de moyeu de la roue arrière, vérifier la pression des pneus et leur usure ; calibrer la pression des pneus ; vérifier le couple de serrage des vis et les serrer.",null,null,null,null,null,null,15000,1,"Maintenance standard",20000,1,"Maintenance standard",null,null,null,40000,2,"Maintenance standard",null,null,null,null,null,null,null,null,null,null,null,null,null,null,null,null,null,null,20000,1,"Maintenance standard"]
["F","D","Vérifier le niveau du liquide de direction assistée et les conduites du système hydraulique, ajouter de l'huile si nécessaire. Vérifier la fiabilité et l'efficacité des connexions de la barre d'accouplement et des pivots de fixation des fusées.",null,null,null,null,null,null,15000,1,"Maintenance standard",20000,1,"Maintenance standard",null,null,null,40000,2,"Maintenance standard",null,null,null,null,null,null,null,null,null,null,null,null,null,null,null,null,null,null,20000,1,"Maintenance standard"]
["F","D","Éliminer les impuretés du capteur de NOx (pour les véhicules avec Ad-Blue)",null,null,null,null,null,null,null,null,null,null,null,null,null,null,null,40000,2,"Maintenance standard"]
["F","D","Nettoyage de l'injecteur d'Ad-Blue. ",null,null,null,null,null,null,null,null,null,null,null,null,null,null,null,40000,2,"Maintenance standard"]
["F","D","Tâches supplémentaires","-","-","-","-","-","-","-","-","-","-","-","-","-","-","-","-","-","-","-","-","-","-","-","-","-","-","-","-","-","-","-","-","-","-","-","-","-","-","-","-","-","-","-","-","-"]
["F","D","Remplacer le liquide de frein et purger le système.",null,null,null,null,null,null,65000,2,0.5,65000,2,0.5,null,null,null,80000,2,0.6,null,null,null,null,null,null,null,null,null,null,null,null,null,null,null,null,null,null,60000,2]
["F","D","Remplacer le liquide de refroidissement.",null,null,null,null,null,null,80000,4,0.6,80000,4,0.6,null,null,null,40000,2,0.6,null,null,null,null,null,null,null,null,null,null,null,null,null,null,null,null,null,null,60000,2]
["F","D","Remplacer le liquide de direction assistée tous les 3 ans ou tous les 80 000 km (selon la première échéance).",null,null,null,null,null,null,null,null,null,null,null,null,null,null,null,null,null,null,null,null,null,null,null,null,null,null,null,null,null,null,null,null,null,null,null,null,80000,3]
["F","D","Remplacer le liquide de transmission pour la boîte manuelle à 6 vitesses et la boîte automatique à 6 vitesses. ",null,null,null,5000,0.5,0.5,80000,null,0.5,80000,null,0.5,null,null,null,"1. 40000, dann alle 80000",2,0.5,null,null,null,null,null,null,null,null,null,null,null,null,null,null,null,null,null,null,80000]
["F","D","Remplacer la courroie dentée, les galets tendeurs et les poulies.",null,null,null,null,null,null,95000,5,1.7,95000,5,1.7,null,null,null,120000,4,1.6,null,null,null,null,null,null,null,null,null,null,null,null,null,null,null,null,null,null,105000,5]
["F","D","Sur les véhicules à traction intégrale, l'huile du différentiel central doit être remplacée. Véhicules à traction intégrale permanente tous les 50 000 km. Véhicules à traction intégrale enclenchable tous les 80 000 km.",null,null,null,5000,0.5,0.7,80000,null,0.3,80000,null,0.3]
["F","D","Sur les véhicules à traction intégrale, l'huile des différentiels avant et arrière doit être remplacée.",null,null,null,null,null,null,80000,3,0.7,80000,3,0.7]
["I","E","Test e campagne preliminari","-","-","-","-","-","-","-","-","-","-","-","-","-","-","-","-","-","-","-","-","-","-","-","-","-","-","-","-","-","-","-","-","-","-","-","-","-","-","-","-","-","-","-","-","-"]
["I","E","Guida di prova",30000,2,"Manutenzione standard",null,null,null,null,null,null,null,null,null,30000,2,"Manutenzione standard",null,null,null,null,null,null,30000,2,"Manutenzione standard",30000,2,"Manutenzione standard",30000,2,"Manutenzione standard",30000,2,"Manutenzione standard",30000,2,"Manutenzione standard",null,null,null,null,null,null,15000,1,"Manutenzione standard"]
["I","E","Controllo del veicolo per le prossime campagne",30000,2,"Manutenzione standard",null,null,null,null,null,null,null,null,null,30000,2,"Manutenzione standard",null,null,null,null,null,null,30000,2,"Manutenzione standard",30000,2,"Manutenzione standard",30000,2,"Manutenzione standard",30000,2,"Manutenzione standard",30000,2,"Manutenzione standard",null,null,null,null,null,null,15000,1,"Manutenzione standard"]
["I","E","Interrogazione della memoria dei guasti",30000,2,"Manutenzione standard",null,null,null,null,null,null,null,null,null,30000,2,"Manutenzione standard",null,null,null,null,null,null,30000,2,"Manutenzione standard",30000,2,"Manutenzione standard",30000,2,"Manutenzione standard",30000,2,"Manutenzione standard",30000,2,"Manutenzione standard",null,null,null,null,null,null,15000,1,"Manutenzione standard"]
["I","E","Sul veicolo e nel veicolo","-","-","-","-","-","-","-","-","-","-","-","-","-","-","-","-","-","-","-","-","-","-","-","-","-","-","-","-","-","-","-","-","-","-","-","-","-","-","-","-","-","-","-","-","-"]
["I","E","Lubrificare il pedale del freno",30000,2,"Manutenzione standard",null,null,null,null,null,null,null,null,null,30000,2,"Manutenzione standard",null,null,null,null,null,null,30000,2,"Manutenzione standard",30000,2,"Manutenzione standard",30000,2,"Manutenzione standard",30000,2,"Manutenzione standard",30000,2,"Manutenzione standard",null,null,null,null,null,null,15000,1,"Manutenzione standard"]
["I","E","Controllare il piantone dello sterzo e le sospensioni del volante",30000,2,"Manutenzione standard",null,null,null,null,null,null,null,null,null,30000,2,"Manutenzione standard",null,null,null,null,null,null,30000,2,"Manutenzione standard",30000,2,"Manutenzione standard",30000,2,"Manutenzione standard",30000,2,"Manutenzione standard",30000,2,"Manutenzione standard",null,null,null,null,null,null,15000,1,"Manutenzione standard"]
["I","E","Pulire e lubrificare cerniere e serrature",30000,2,"Manutenzione standard",null,null,null,null,null,null,null,null,null,30000,2,"Manutenzione standard",null,null,null,null,null,null,30000,2,"Manutenzione standard",30000,2,"Manutenzione standard",30000,2,"Manutenzione standard",30000,2,"Manutenzione standard",30000,2,"Manutenzione standard",null,null,null,null,null,null,15000,1,"Manutenzione standard"]
["I","E","Controllare il filtro dell'aria dell'abitacolo e sostituirlo se necessario",30000,2,0.2,null,null,null,null,null,null,null,null,null,30000,2,0.2,null,null,null,null,null,null,30000,2,0.2,30000,2,0.2,30000,2,0.2,30000,2,0.2,30000,2,0.2,null,null,null,null,null,null,15000,1,0.2]
["I","E","Controllare il sistema airbag e il corretto funzionamento delle cinture di sicurezza",30000,2,"Manutenzione standard",null,null,null,null,null,null,null,null,null,30000,2,"Manutenzione standard",null,null,null,null,null,null,30000,2,"Manutenzione standard",30000,2,"Manutenzione standard",30000,2,"Manutenzione standard",30000,2,"Manutenzione standard",30000,2,"Manutenzione standard",null,null,null,null,null,null,15000,1,"Manutenzione standard"]
["I","E","Controllare l'illuminazione esterna, il quadro strumenti e tutte le funzioni elettriche del veicolo.",30000,2,"Manutenzione standard",null,null,null,null,null,null,null,null,null,30000,2,"Manutenzione standard",null,null,null,null,null,null,30000,2,"Manutenzione standard",30000,2,"Manutenzione standard",30000,2,"Manutenzione standard",30000,2,"Manutenzione standard",30000,2,"Manutenzione standard",null,null,null,null,null,null,15000,1,"Manutenzione standard"]
["I","E","Nel vano motore","-","-","-","-","-","-","-","-","-","-","-","-","-","-","-","-","-","-","-","-","-","-","-","-","-","-","-","-","-","-","-","-","-","-","-","-","-","-","-","-","-","-","-","-","-"]
["I","E","Controllare che l'impianto di raffreddamento non presenti perdite e ispezionare visivamente le linee e i collegamenti.",30000,2,"Manutenzione standard",null,null,null,null,null,null,null,null,null,30000,2,"Manutenzione standard",null,null,null,null,null,null,30000,2,"Manutenzione standard",30000,2,"Manutenzione standard",30000,2,"Manutenzione standard",30000,2,"Manutenzione standard",30000,2,"Manutenzione standard",null,null,null,null,null,null,15000,1,"Manutenzione standard"]
["I","E","Controllare il sistema di raffreddamento, compresa la protezione antigelo.",30000,2,"Manutenzione standard",null,null,null,null,null,null,null,null,null,30000,2,"Manutenzione standard",null,null,null,null,null,null,30000,2,"Manutenzione standard",30000,2,"Manutenzione standard",30000,2,"Manutenzione standard",30000,2,"Manutenzione standard",30000,2,"Manutenzione standard",null,null,null,null,null,null,15000,1,"Manutenzione standard"]
["I","E","Controllo dello stato di carica della batteria da 12 V, installazione corretta e pulita dei collegamenti dei morsetti",30000,2,"Manutenzione standard",null,null,null,null,null,null,null,null,null,30000,2,"Manutenzione standard",null,null,null,null,null,null,30000,2,"Manutenzione standard",30000,2,"Manutenzione standard",30000,2,"Manutenzione standard",30000,2,"Manutenzione standard",30000,2,"Manutenzione standard",null,null,null,null,null,null,15000,1,"Manutenzione standard"]
["I","E","Ispezione visiva del cablaggio e del connettore a 12 V",30000,2,"Manutenzione standard",null,null,null,null,null,null,null,null,null,30000,2,"Manutenzione standard",null,null,null,null,null,null,30000,2,"Manutenzione standard",30000,2,"Manutenzione standard",30000,2,"Manutenzione standard",30000,2,"Manutenzione standard",30000,2,"Manutenzione standard",null,null,null,null,null,null,15000,1,"Manutenzione standard"]
["I","E","Controllo del livello del liquido dei freni, rabbocco se necessario",30000,2,"Manutenzione standard",null,null,null,null,null,null,null,null,null,30000,2,"Manutenzione standard",null,null,null,null,null,null,30000,2,"Manutenzione standard",30000,2,"Manutenzione standard",30000,2,"Manutenzione standard",30000,2,"Manutenzione standard",30000,2,"Manutenzione standard",null,null,null,null,null,null,15000,1,"Manutenzione standard"]
["I","E","Controllo visivo e funzionale dell'impianto di climatizzazione e di tutti i suoi componenti",30000,2,"Manutenzione standard",null,null,null,null,null,null,null,null,null,30000,2,"Manutenzione standard",null,null,null,null,null,null,30000,2,"Manutenzione standard",30000,2,"Manutenzione standard",30000,2,"Manutenzione standard",30000,2,"Manutenzione standard",30000,2,"Manutenzione standard",null,null,null,null,null,null,15000,1,"Manutenzione standard"]
["I","E","Controllo del sistema di aspirazione",30000,2,"Manutenzione standard",null,null,null,null,null,null,null,null,null,30000,2,"Manutenzione standard",null,null,null,null,null,null,30000,2,"Manutenzione standard",30000,2,"Manutenzione standard",30000,2,"Manutenzione standard",30000,2,"Manutenzione standard",30000,2,"Manutenzione standard",null,null,null,null,null,null,15000,1,"Manutenzione standard"]
["I","E","Sotto il veicolo","-","-","-","-","-","-","-","-","-","-","-","-","-","-","-","-","-","-","-","-","-","-","-","-","-","-","-","-","-","-","-","-","-","-","-","-","-","-","-","-","-","-","-","-","-"]
["I","E","Ispezione del telaio, controllo della protezione anticorrosione della carrozzeria",30000,2,"Manutenzione standard",null,null,null,null,null,null,null,null,null,30000,2,"Manutenzione standard",null,null,null,null,null,null,30000,2,"Manutenzione standard",30000,2,"Manutenzione standard",30000,2,"Manutenzione standard",30000,2,"Manutenzione standard",30000,2,"Manutenzione standard",null,null,null,null,null,null,15000,1,"Manutenzione standard"]
["I","E","Controllo delle sospensioni anteriori e posteriori",30000,2,"Manutenzione standard",null,null,null,null,null,null,null,null,null,30000,2,"Manutenzione standard",null,null,null,null,null,null,30000,2,"Manutenzione standard",30000,2,"Manutenzione standard",30000,2,"Manutenzione standard",30000,2,"Manutenzione standard",30000,2,"Manutenzione standard",null,null,null,null,null,null,15000,1,"Manutenzione standard"]
["I","E","Controllo dei supporti del motore",30000,2,"Manutenzione standard",null,null,null,null,null,null,null,null,null,30000,2,"Manutenzione standard",null,null,null,null,null,null,30000,2,"Manutenzione standard",30000,2,"Manutenzione standard",30000,2,"Manutenzione standard",30000,2,"Manutenzione standard",30000,2,"Manutenzione standard",null,null,null,null,null,null,15000,1,"Manutenzione standard"]
["I","E","Controllo del funzionamento dell'impianto frenante, compreso il freno di stazionamento",30000,2,"Manutenzione standard",null,null,null,null,null,null,null,null,null,30000,2,"Manutenzione standard",null,null,null,null,null,null,30000,2,"Manutenzione standard",30000,2,"Manutenzione standard",30000,2,"Manutenzione standard",30000,2,"Manutenzione standard",30000,2,"Manutenzione standard",null,null,null,null,null,null,15000,1,"Manutenzione standard"]
["I","E","Controllo degli alberi di trasmissione e dei manicotti",30000,2,"Manutenzione standard",null,null,null,null,null,null,null,null,null,30000,2,"Manutenzione standard",null,null,null,null,null,null,30000,2,"Manutenzione standard",30000,2,"Manutenzione standard",30000,2,"Manutenzione standard",30000,2,"Manutenzione standard",30000,2,"Manutenzione standard",null,null,null,null,null,null,15000,1,"Manutenzione standard"]
["I","E","Controllo del gioco dello sterzo e della coppia di serraggio sufficiente delle viti",30000,2,"Manutenzione standard",null,null,null,null,null,null,null,null,null,30000,2,"Manutenzione standard",null,null,null,null,null,null,30000,2,"Manutenzione standard",30000,2,"Manutenzione standard",30000,2,"Manutenzione standard",30000,2,"Manutenzione standard",30000,2,"Manutenzione standard",null,null,null,null,null,null,15000,1,"Manutenzione standard"]
["I","E","Controllo e regolazione della pressione dei pneumatici, taratura della pressione dei pneumatici, controllo dei cuscinetti delle ruote, controllo della coppia di serraggio delle ruote",30000,2,"Manutenzione standard",null,null,null,null,null,null,null,null,null,30000,2,"Manutenzione standard",null,null,null,null,null,null,30000,2,"Manutenzione standard",30000,2,"Manutenzione standard",30000,2,"Manutenzione standard",30000,2,"Manutenzione standard",30000,2,"Manutenzione standard",null,null,null,null,null,null,15000,1,"Manutenzione standard"]
["I","E","Controllo visivo del cablaggio ad alta tensione e delle spine",30000,2,"Manutenzione standard",null,null,null,null,null,null,null,null,null,30000,2,"Manutenzione standard",null,null,null,null,null,null,30000,2,"Manutenzione standard",30000,2,"Manutenzione standard",30000,2,"Manutenzione standard",30000,2,"Manutenzione standard",30000,2,"Manutenzione standard",null,null,null,null,null,null,15000,1,"Manutenzione standard"]
["I","E","Ispezione visiva dell'alloggiamento della batteria ad alta tensione per verificare la presenza di crepe o ammaccature",30000,2,"Manutenzione standard",null,null,null,null,null,null,null,null,null,30000,2,"Manutenzione standard",null,null,null,null,null,null,30000,2,"Manutenzione standard",30000,2,"Manutenzione standard",30000,2,"Manutenzione standard",30000,2,"Manutenzione standard",30000,2,"Manutenzione standard",null,null,null,null,null,null,15000,1,"Manutenzione standard"]
["I","E","Esame visivo dello scollegamento manuale di servizio",30000,2,"Manutenzione standard",null,null,null,null,null,null,null,null,null,30000,2,"Manutenzione standard",null,null,null,null,null,null,30000,2,"Manutenzione standard",30000,2,"Manutenzione standard",30000,2,"Manutenzione standard",30000,2,"Manutenzione standard",30000,2,"Manutenzione standard",null,null,null,null,null,null,15000,1,"Manutenzione standard"]
["I","E","Controllo dei cavi dell'alta tensione per verificare che non siano usurati o danneggiati. ",30000,2,"Manutenzione standard",null,null,null,null,null,null,null,null,null,30000,2,"Manutenzione standard",null,null,null,null,null,null,30000,2,"Manutenzione standard",30000,2,"Manutenzione standard",30000,2,"Manutenzione standard",30000,2,"Manutenzione standard",30000,2,"Manutenzione standard",null,null,null,null,null,null,15000,1,"Manutenzione standard"]
["I","E","Altre operazioni","-","-","-","-","-","-","-","-","-","-","-","-","-","-","-","-","-","-","-","-","-","-","-","-","-","-","-","-","-","-","-","-","-","-","-","-","-","-","-","-","-","-","-","-","-"]
["I","E","Sostituzione dell'olio della trasmissione",80000,3,0.5,null,null,null,null,null,null,null,null,null,80000,3,0.5,null,null,null,null,null,null,30000,null,0.5,80000,3,0.5,30000,null,0.5,80000,3,0.5,160000,null,0.5,null,null,null,null,null,null,15000,1,"Manutenzione standard"]
["I","E","Sostituzione del liquido dei freni",60000,2,0.6,null,null,null,null,null,null,null,null,null,60000,2,0.6,null,null,null,null,null,null,60000,2,0.6,60000,2,0.6,60000,2,0.6,60000,2,0.6,60000,2,0.6,null,null,null,null,null,null,60000,2,0.6]
["I","E","Sostituzione del liquido di raffreddamento",60000,2,0.5,null,null,null,null,null,null,null,null,null,60000,2,0.5,null,null,null,null,null,null,60000,2,0.5,60000,2,0.5,60000,2,0.5,60000,2,0.5,60000,2,0.5,null,null,null,null,null,null,60000,2,0.5]
["I","D","Test e campagne preliminari","-","-","-","-","-","-","-","-","-","-","-","-","-","-","-","-","-","-","-","-","-","-","-","-","-","-","-","-","-","-","-","-","-","-","-","-","-","-","-","-","-","-","-","-","-"]
["I","D","Guida di prova",null,null,null,5000,0.5,"Manutenzione standard",15000,1,"Manutenzione standard",20000,1,"Manutenzione standard",null,null,null,40000,2,"Manutenzione standard",null,null,null,null,null,null,null,null,null,null,null,null,null,null,null,null,null,null,20000,1,"Manutenzione standard",5000,0.5,"Manutenzione standard"]
["I","D","Controllo del veicolo per le prossime campagne",null,null,null,5000,0.5,"Manutenzione standard",15000,1,"Manutenzione standard",20000,1,"Manutenzione standard",null,null,null,40000,2,"Manutenzione standard",null,null,null,null,null,null,null,null,null,null,null,null,null,null,null,null,null,null,20000,1,"Manutenzione standard",5000,0.5,"Manutenzione standard"]
["I","D","Interrogazione della memoria dei guasti",null,null,null,5000,0.5,"Manutenzione standard",15000,1,"Manutenzione standard",20000,1,"Manutenzione standard",null,null,null,40000,2,"Manutenzione standard",null,null,null,null,null,null,null,null,null,null,null,null,null,null,null,null,null,null,20000,1,"Manutenzione standard",5000,0.5,"Manutenzione standard"]
["I","D","Sul veicolo e nel veicolo","-","-","-","-","-","-","-","-","-","-","-","-","-","-","-","-","-","-","-","-","-","-","-","-","-","-","-","-","-","-","-","-","-","-","-","-","-","-","-","-","-","-","-","-","-"]
["I","D","Controllare le funzioni degli indicatori, del display della strumentazione e dei dispositivi elettrici per verificarne la completezza e il funzionamento.",null,null,null,5000,0.5,"Manutenzione standard",15000,1,"Manutenzione standard",20000,1,"Manutenzione standard",null,null,null,40000,2,"Manutenzione standard",null,null,null,null,null,null,null,null,null,null,null,null,null,null,null,null,null,null,20000,1,"Manutenzione standard",5000,0.5,"Manutenzione standard"]
["I","D","Pulire il filtro antipolline del climatizzatore e sostituirlo se necessario.",null,null,null,null,null,null,15000,null,0.1,20000,null,0.1,null,null,null,40000,2,"Manutenzione standard",null,null,null,null,null,null,null,null,null,null,null,null,null,null,null,null,null,null,20000,1,0.2,5000,0.5,"Manutenzione standard"]
["I","D","Controllare che le superfici degli airbag non siano danneggiate e che le cinture di sicurezza funzionino in modo affidabile ed efficace.",null,null,null,5000,0.5,"Manutenzione standard",15000,1,"Manutenzione standard",20000,1,"Manutenzione standard",null,null,null,40000,2,"Manutenzione standard",null,null,null,null,null,null,null,null,null,null,null,null,null,null,null,null,null,null,20000,1,"Manutenzione standard",5000,0.5,"Manutenzione standard"]
["I","D","Verificare la normale funzione di entrata/uscita del gradino elettrico; verificare la presenza di sintomi anomali quali rumori insoliti, grippaggio o perdite d'olio; verificare il normale funzionamento dell'indicatore del gradino elettrico e sostituirlo se necessario.",null,null,null,5000,0.5,"Manutenzione standard",15000,1,"Manutenzione standard",20000,1,"Manutenzione standard",null,null,null,40000,2,"Manutenzione standard",null,null,null,null,null,null,null,null,null,null,null,null,null,null,null,null,null,null,20000,1,"Manutenzione standard",5000,0.5,"Manutenzione standard"]
["I","D","Controllare il gioco del pedale del freno e regolarlo se necessario.",null,null,null,5000,0.5,"Manutenzione standard",15000,1,"Manutenzione standard",20000,1,"Manutenzione standard",null,null,null,40000,2,"Manutenzione standard",null,null,null,null,null,null,null,null,null,null,null,null,null,null,null,null,null,null,20000,1,"Manutenzione standard",5000,0.5,"Manutenzione standard"]
["I","D","Controllare che il volante si muova liberamente e, se necessario, regolarlo.",null,null,null,5000,0.5,"Manutenzione standard",15000,1,"Manutenzione standard",20000,1,"Manutenzione standard",null,null,null,40000,2,"Manutenzione standard",null,null,null,null,null,null,null,null,null,null,null,null,null,null,null,null,null,null,20000,1,"Manutenzione standard",5000,0.5,"Manutenzione standard"]
["I","D","Controllare il gioco del pedale della frizione e regolarlo se necessario.",null,null,null,5000,0.5,"Manutenzione standard",15000,1,"Manutenzione standard",20000,1,"Manutenzione standard",null,null,null,40000,2,"Manutenzione standard",null,null,null,null,null,null,null,null,null,null,null,null,null,null,null,null,null,null,20000,1,"Manutenzione standard",5000,0.5,"Manutenzione standard"]
["I","D","Controllare il gioco della leva del cambio e regolarlo se necessario.",null,null,null,5000,0.5,"Manutenzione standard",15000,1,"Manutenzione standard",20000,1,"Manutenzione standard",null,null,null,40000,2,"Manutenzione standard",null,null,null,null,null,null,null,null,null,null,null,null,null,null,null,null,null,null,20000,1,"Manutenzione standard",5000,0.5,"Manutenzione standard"]
["I","D","Pulire e lubrificare gli accessori della carrozzeria del veicolo, come la serratura, la cerniera e la guida della porta.",null,null,null,5000,0.5,"Manutenzione standard",15000,1,"Manutenzione standard",20000,1,"Manutenzione standard",null,null,null,40000,2,"Manutenzione standard",null,null,null,null,null,null,null,null,null,null,null,null,null,null,null,null,null,null,20000,1,"Manutenzione standard",5000,0.5,"Manutenzione standard"]
["I","D","Nel vano motore","-","-","-","-","-","-","-","-","-","-","-","-","-","-","-","-","-","-","-","-","-","-","-","-","-","-","-","-","-","-","-","-","-","-","-","-","-","-","-","-","-","-","-","-","-"]
["I","D","Cambiare l'olio motore e il filtro dell'olio.",null,null,null,5000,0.5,"Manutenzione standard",15000,1,"Manutenzione standard",20000,1,"Manutenzione standard",null,null,null,40000,2,"Manutenzione standard",null,null,null,null,null,null,null,null,null,null,null,null,null,null,null,null,null,null,20000,1,"Manutenzione standard",5000,0.5,"Manutenzione standard"]
["I","D","Controllare il livello dell'impianto di raffreddamento e delle tubazioni dell'impianto di raffreddamento e, se necessario, rabboccare il liquido di raffreddamento.",null,null,null,5000,0.5,"Manutenzione standard",15000,1,"Manutenzione standard",20000,1,"Manutenzione standard",null,null,null,40000,2,"Manutenzione standard",null,null,null,null,null,null,null,null,null,null,null,null,null,null,null,null,null,null,20000,1,"Manutenzione standard",5000,0.5,"Manutenzione standard"]
["I","D","Pulire l'alloggiamento del filtro dell'aria e l'elemento del filtro dell'aria.",null,null,null,null,null,null,30000,null,0.1,40000,null,0.1,null,null,null,40000,2,"Manutenzione standard",null,null,null,null,null,null,null,null,null,null,null,null,null,null,null,null,null,null,20000,1,"Manutenzione standard",5000,0.5,"Manutenzione standard"]
["I","D","Sostituire il filtro del carburante e l'O-ring.",null,null,null,"x",null,null,30000,null,0.3,40000,null,0.3,null,null,null,40000,2,"Manutenzione standard",null,null,null,null,null,null,null,null,null,null,null,null,null,null,null,null,null,null,20000,1,"Manutenzione standard",5000,0.5,"Manutenzione standard"]
["I","D","Controllare i collegamenti e i fissaggi dell'impianto di alimentazione per verificarne la sicurezza.",null,null,null,5000,0.5,"Manutenzione standard",15000,1,"Manutenzione standard",20000,1,"Manutenzione standard",null,null,null,40000,2,"Manutenzione standard",null,null,null,null,null,null,null,null,null,null,null,null,null,null,null,null,null,null,20000,1,"Manutenzione standard",5000,0.5,"Manutenzione standard"]
["I","D","Controllare il livello del liquido dei freni e le tubazioni dell'impianto frenante e, se necessario, rabboccare con il liquido dei freni.",null,null,null,5000,0.5,"Manutenzione standard",15000,1,"Manutenzione standard",20000,1,"Manutenzione standard",null,null,null,40000,2,"Manutenzione standard",null,null,null,null,null,null,null,null,null,null,null,null,null,null,null,null,null,null,20000,1,"Manutenzione standard",5000,0.5,"Manutenzione standard"]
["I","D","Controllare le condizioni della batteria, i collegamenti e i terminali",null,null,null,5000,0.5,"Manutenzione standard",15000,1,"Manutenzione standard",20000,1,"Manutenzione standard",null,null,null,40000,2,"Manutenzione standard",null,null,null,null,null,null,null,null,null,null,null,null,null,null,null,null,null,null,20000,1,"Manutenzione standard",5000,0.5,"Manutenzione standard"]
["I","D","Controllare la ventilazione dell'albero motore.",null,null,null,5000,0.5,"Manutenzione standard",15000,1,"Manutenzione standard",20000,1,"Manutenzione standard",null,null,null,40000,2,"Manutenzione standard",null,null,null,null,null,null,null,null,null,null,null,null,null,null,null,null,null,null,20000,1,"Manutenzione standard",5000,0.5,"Manutenzione standard"]
["I","D","Controllare che l'impianto di climatizzazione non presenti perdite (visivamente) e che non funzioni.",null,null,null,5000,0.5,"Manutenzione standard",15000,1,"Manutenzione standard",20000,1,"Manutenzione standard",null,null,null,40000,2,"Manutenzione standard",null,null,null,null,null,null,null,null,null,null,null,null,null,null,null,null,null,null,20000,1,"Manutenzione standard",5000,0.5,"Manutenzione standard"]
["I","D","Controllare le fascette alle due estremità del tubo flessibile del radiatore dell'aria di sovralimentazione e serrarle con una coppia di serraggio di 5 Nm.",null,null,null,5000,0.5,"Manutenzione standard",15000,1,"Manutenzione standard",20000,1,"Manutenzione standard",null,null,null,40000,2,"Manutenzione standard",null,null,null,null,null,null,null,null,null,null,null,null,null,null,null,null,null,null,20000,1,"Manutenzione standard",5000,0.5,"Manutenzione standard"]
["I","D","Controllare che la cinghia di trasmissione del motore non presenti segni di invecchiamento e crepe e, se necessario, sostituirla.",null,null,null,5000,0.5,"Manutenzione standard",15000,1,"Manutenzione standard",20000,1,"Manutenzione standard",null,null,null,40000,2,"Manutenzione standard",null,null,null,null,null,null,null,null,null,null,null,null,null,null,null,null,null,null,20000,1,"Manutenzione standard",5000,0.5,"Manutenzione standard"]
["I","D","Sotto il veicolo","-","-","-","-","-","-","-","-","-","-","-","-","-","-","-","-","-","-","-","-","-","-","-","-","-","-","-","-","-","-","-","-","-","-","-","-","-","-","-","-","-","-","-","-","-"]
["I","D","Controllare le sospensioni anteriori e posteriori.",null,null,null,5000,0.5,"Manutenzione standard",15000,1,"Manutenzione standard",20000,1,"Manutenzione standard",null,null,null,40000,2,"Manutenzione standard",null,null,null,null,null,null,null,null,null,null,null,null,null,null,null,null,null,null,20000,1,"Manutenzione standard",5000,0.5,"Manutenzione standard"]
["I","D","Controllare il gioco delle pastiglie dei freni anteriori e posteriori e del freno di stazionamento, nonché la corsa della leva del freno; regolare e sostituire se necessario.",null,null,null,5000,0.5,"Manutenzione standard",15000,1,"Manutenzione standard",20000,1,"Manutenzione standard",null,null,null,40000,2,"Manutenzione standard",null,null,null,null,null,null,null,null,null,null,null,null,null,null,null,null,null,null,20000,1,"Manutenzione standard",5000,0.5,"Manutenzione standard"]
["I","D","Controllare che la scatola del giunto cardanico dell'albero di trasmissione non sia danneggiata.",null,null,null,null,null,null,15000,1,"Manutenzione standard",20000,1,"Manutenzione standard",null,null,null,40000,2,"Manutenzione standard",null,null,null,null,null,null,null,null,null,null,null,null,null,null,null,null,null,null,20000,1,"Manutenzione standard"]
["I","D","Controllare il livello dell'olio della trasmissione e rabboccare se necessario.",null,null,null,null,null,null,15000,1,"Manutenzione standard",20000,1,"Manutenzione standard",null,null,null,40000,2,"Manutenzione standard",null,null,null,null,null,null,null,null,null,null,null,null,null,null,null,null,null,null,20000,1,"Manutenzione standard"]
["I","D","Controllare o ingrassare i modelli con albero cardanico (se presente) con gli ingrassatori.",null,null,null,null,null,null,15000,1,"Manutenzione standard",20000,1,"Manutenzione standard",null,null,null,40000,2,"Manutenzione standard",null,null,null,null,null,null,null,null,null,null,null,null,null,null,null,null,null,null,20000,1,"Manutenzione standard"]
["I","D","Controllare che i punti di collegamento del tubo di scarico siano sicuri ed efficaci e che i manicotti di gomma del tubo di scarico non presentino segni di invecchiamento o siano rotti.",null,null,null,null,null,null,15000,1,"Manutenzione standard",20000,1,"Manutenzione standard",null,null,null,40000,2,"Manutenzione standard",null,null,null,null,null,null,null,null,null,null,null,null,null,null,null,null,null,null,20000,1,"Manutenzione standard"]
["I","D","Controllare che le linee del sistema di depressione non presentino guasti o danni.",null,null,null,null,null,null,15000,1,"Manutenzione standard",20000,1,"Manutenzione standard",null,null,null,40000,2,"Manutenzione standard",null,null,null,null,null,null,null,null,null,null,null,null,null,null,null,null,null,null,20000,1,"Manutenzione standard"]
["I","D","Controllare che il cablaggio sia sicuro ed efficace e che non sia compromesso da altre parti o danneggiato.",null,null,null,null,null,null,15000,1,"Manutenzione standard",20000,1,"Manutenzione standard",null,null,null,40000,2,"Manutenzione standard",null,null,null,null,null,null,null,null,null,null,null,null,null,null,null,null,null,null,20000,1,"Manutenzione standard"]
["I","D","Controllare il telaio: tutte le parti, i fissaggi, i cablaggi e le linee; verificare che non vi siano perdite di liquido.",null,null,null,null,null,null,15000,1,"Manutenzione standard",20000,1,"Manutenzione standard",null,null,null,40000,2,"Manutenzione standard",null,null,null,null,null,null,null,null,null,null,null,null,null,null,null,null,null,null,20000,1,"Manutenzione standard"]
["I","D","Pneumatici (compresi quelli di scorta): Controllare il cuscinetto del mozzo della ruota posteriore, controllare la pressione e l'usura degli pneumatici; calibrare la pressione degli pneumatici; controllare e serrare i bulloni alla coppia specificata.",null,null,null,null,null,null,15000,1,"Manutenzione standard",20000,1,"Manutenzione standard",null,null,null,40000,2,"Manutenzione standard",null,null,null,null,null,null,null,null,null,null,null,null,null,null,null,null,null,null,20000,1,"Manutenzione standard"]
["I","D","Controllare il livello del liquido del servosterzo e delle tubazioni dell'impianto idraulico; se necessario, rabboccare con olio. Controllare che i collegamenti dei tiranti e dei perni di articolazione siano affidabili ed efficaci.",null,null,null,null,null,null,15000,1,"Manutenzione standard",20000,1,"Manutenzione standard",null,null,null,40000,2,"Manutenzione standard",null,null,null,null,null,null,null,null,null,null,null,null,null,null,null,null,null,null,20000,1,"Manutenzione standard"]
["I","D","L'olio del differenziale centrale deve essere sostituito sui veicoli con trazione integrale. Per i veicoli con trazione integrale permanente ogni 50.000 km. Per i veicoli con trazione integrale selezionabile ogni 80.000 km.",null,null,null,null,null,null,null,null,null,null,null,null,null,null,null,40000,2,"Manutenzione standard"]
["I","D","Sui veicoli a trazione integrale è necessario sostituire l'olio del differenziale anteriore e posteriore. ",null,null,null,null,null,null,null,null,null,null,null,null,null,null,null,40000,2,"Manutenzione standard"]
["I","D","Altre operazioni","-","-","-","-","-","-","-","-","-","-","-","-","-","-","-","-","-","-","-","-","-","-","-","-","-","-","-","-","-","-","-","-","-","-","-","-","-","-","-","-","-","-","-","-","-"]
["I","D","Sostituire il liquido dei freni, compreso lo sfiato dell'impianto.",null,null,null,null,null,null,65000,2,0.5,65000,2,0.5,null,null,null,80000,2,0.6,null,null,null,null,null,null,null,null,null,null,null,null,null,null,null,null,null,null,60000,2]
["I","D","Sostituire il liquido di raffreddamento.",null,null,null,null,null,null,80000,4,0.6,80000,4,0.6,null,null,null,40000,2,0.6,null,null,null,null,null,null,null,null,null,null,null,null,null,null,null,null,null,null,60000,2]
["I","D","Sostituire il liquido del servosterzo ogni 3 anni o 80.000 km (a seconda di quale condizione si verifica prima).",null,null,null,null,null,null,null,null,null,null,null,null,null,null,null,null,null,null,null,null,null,null,null,null,null,null,null,null,null,null,null,null,null,null,null,null,80000,3]
["I","D","Sostituire il liquido del cambio per il cambio manuale a 6 marce e il cambio automatico a 6 marce.",null,null,null,5000,0.5,0.5,80000,null,0.5,80000,null,0.5,null,null,null,"1. 40000, dann alle 80000",2,0.5,null,null,null,null,null,null,null,null,null,null,null,null,null,null,null,null,null,null,80000]
["I","D","Sostituire la cinghia dentata, i rulli tenditori e le pulegge.",null,null,null,null,null,null,95000,5,1.7,95000,5,1.7,null,null,null,120000,4,1.6,null,null,null,null,null,null,null,null,null,null,null,null,null,null,null,null,null,null,105000,5]
["I","D","Nei veicoli a trazione integrale è necessario sostituire l'olio del differenziale centrale. Veicoli con trazione integrale permanente ogni 50.000 km. Veicoli con trazione integrale inseribile ogni 80.000 km.",null,null,null,5000,0.5,0.7,80000,null,0.3,80000,null,0.3]
["I","D","Nei veicoli a trazione integrale è necessario sostituire l'olio del differenziale anteriore e posteriore.",null,null,null,null,null,null,80000,3,0.7,80000,3,0.7]

{"sheet":"Fahrzeugdaten","index":2,"n_rows":1115,"n_cols":12,"rows_kept":1115,"cut":false,"hidden":true,"merged":[]}
["VIN","Sharing-Marke","Familie","Modell","Ausführung","Ausführung-ID","Erstzulassungsdatum","Motor Nr.","Kraftstoff","Jahr","Modell Clean","Produktionsdatum"]
["LSH14J4C1PA100728","Maxus_CH","(e)Deliver 9","eDeliver 9 VAN L3H2","72kWh","a0pQC00000DMtZe","31.12.2024","919181P00034P5170298","Electric",{"$f":"IF(report1737987713132[[#This Row],[Erstzulassungsdatum]]=\"\",\"\",YEAR(report1737987713132[[#This Row],[Erstzulassungsdatum]]))","v":2024},"eDeliver 9",""]
["LSH14J7C5PA107922","Maxus_CH","(e)Deliver 9","Deliver 9 VAN L3H2 FWD","Luxury","a0pQC00000DMlx3","31.10.2024","M923A089734","Diesel",{"$f":"IF(report1737987713132[[#This Row],[Erstzulassungsdatum]]=\"\",\"\",YEAR(report1737987713132[[#This Row],[Erstzulassungsdatum]]))","v":2024},"Deliver 9",""]
["LSH14C4C0MA122677","Maxus_CH","EV30 PV","OLDEV30 PV","VEV3P","a0pQC00000DhecN","31.08.2022","918674P00044MA096118","",{"$f":"IF(report1737987713132[[#This Row],[Erstzulassungsdatum]]=\"\",\"\",YEAR(report1737987713132[[#This Row],[Erstzulassungsdatum]]))","v":2022},"eDeliver 3",""]
["LSH15J5C1SV120930","Maxus_CH","(e)Deliver 7","eDeliver 7 VAN L2H1 AWD","88kWh Dual Sliding Door Swiss Post Los 49 #1","a0pQC00000HhTgA","31.07.2025","918787P06014R8250003","Electric",{"$f":"IF(report1737987713132[[#This Row],[Erstzulassungsdatum]]=\"\",\"\",YEAR(report1737987713132[[#This Row],[Erstzulassungsdatum]]))","v":2025},"eDeliver 7",""]
["LSH15J5C2SV120919","Maxus_CH","(e)Deliver 7","eDeliver 7 VAN L2H1 AWD","88kWh Dual Sliding Door Swiss Post Los 49 #1","a0pQC00000HhTgA","31.07.2025","918787P06014RA230011","Electric",{"$f":"IF(report1737987713132[[#This Row],[Erstzulassungsdatum]]=\"\",\"\",YEAR(report1737987713132[[#This Row],[Erstzulassungsdatum]]))","v":2025},"eDeliver 7",""]
["LSH14J4C3SV121520","Maxus_CH","(e)Deliver 7","eDeliver 7 VAN L1H1 FWD","88kWh","a0pQC00000HQjcY","31.07.2025","914712P03299RB050020","Electric",{"$f":"IF(report1737987713132[[#This Row],[Erstzulassungsdatum]]=\"\",\"\",YEAR(report1737987713132[[#This Row],[Erstzulassungsdatum]]))","v":2025},"eDeliver 7",""]
["LSFAM11C1SA082057","Maxus_CH","T60 MAX","T60 MAX","AWD","a0pQC00000FBTso","31.07.2025","M9253017485","Diesel",{"$f":"IF(report1737987713132[[#This Row],[Erstzulassungsdatum]]=\"\",\"\",YEAR(report1737987713132[[#This Row],[Erstzulassungsdatum]]))","v":2025},"T60 Max","2025-02-28"]
["LSFAM1209PA067091","Maxus_CH","T90 EV","T90 EV Pick Up RWD","89kWh","a0pQC00000DMoF4","31.07.2023","917939P04016NA130062","Electric",{"$f":"IF(report1737987713132[[#This Row],[Erstzulassungsdatum]]=\"\",\"\",YEAR(report1737987713132[[#This Row],[Erstzulassungsdatum]]))","v":2023},"T90 EV",""]
["LSH14C4C1LA079997","Maxus_CH","EV30 PV","OLDEV30 PV","VEV3P","a0pQC00000DhecN","31.05.2021","912832P00044L5246012","",{"$f":"IF(report1737987713132[[#This Row],[Erstzulassungsdatum]]=\"\",\"\",YEAR(report1737987713132[[#This Row],[Erstzulassungsdatum]]))","v":2021},"eDeliver 3",""]
["LSH14C4C9LA080055","Maxus_CH","EV30 PV","OLDEV30 PV","VEV3P","a0pQC00000DhecN","31.05.2021","912832P00044L5246066","",{"$f":"IF(report1737987713132[[#This Row],[Erstzulassungsdatum]]=\"\",\"\",YEAR(report1737987713132[[#This Row],[Erstzulassungsdatum]]))","v":2021},"eDeliver 3",""]
["LSH14J7C6RV125504","Maxus_CH","(e)Deliver 7","Deliver 7 VAN L2H1 FWD","-","a0pQC00000DMxYG","31.03.2025","M924A059748","Diesel",{"$f":"IF(report1737987713132[[#This Row],[Erstzulassungsdatum]]=\"\",\"\",YEAR(report1737987713132[[#This Row],[Erstzulassungsdatum]]))","v":2025},"Deliver 7",""]
["LSH14J7C1RV125488","Maxus_CH","(e)Deliver 7","Deliver 7 VAN L2H1 FWD","Dual Sliding Door","a0pQC00000DMxYH","31.03.2025","M9249059187","Diesel",{"$f":"IF(report1737987713132[[#This Row],[Erstzulassungsdatum]]=\"\",\"\",YEAR(report1737987713132[[#This Row],[Erstzulassungsdatum]]))","v":2025},"Deliver 7",""]
["LSFAM11C9RA134545","Maxus_CH","T60 MAX","T60 MAX","AWD","a0pQC00000FBTso","31.03.2025","M924A064113","Diesel",{"$f":"IF(report1737987713132[[#This Row],[Erstzulassungsdatum]]=\"\",\"\",YEAR(report1737987713132[[#This Row],[Erstzulassungsdatum]]))","v":2025},"T60 Max","2024-09-30"]
["LSFAL1103KA102947","Maxus_CH","EV80 CC","OLDEV80 CC","VE8C","a0pQC00000DhUIg","31.03.2022","105855P01109KB190010","",{"$f":"IF(report1737987713132[[#This Row],[Erstzulassungsdatum]]=\"\",\"\",YEAR(report1737987713132[[#This Row],[Erstzulassungsdatum]]))","v":2022},"EV 80",""]
["LSH14C4C5NA137175","Maxus_CH","eDeliver 3","eDeliver 3 VAN L2H1 FWD","50kWh","a0pQC00000DMpio","31.01.2024","910851P00044N7266006","Electric",{"$f":"IF(report1737987713132[[#This Row],[Erstzulassungsdatum]]=\"\",\"\",YEAR(report1737987713132[[#This Row],[Erstzulassungsdatum]]))","v":2024},"eDeliver 3",""]
["LSH14J7C5PA108889","Maxus_CH","(e)Deliver 9","Deliver 9 VAN L3H2 FWD","Luxury","a0pQC00000DMlx3","30.12.2024","M923A089730","Diesel",{"$f":"IF(report1737987713132[[#This Row],[Erstzulassungsdatum]]=\"\",\"\",YEAR(report1737987713132[[#This Row],[Erstzulassungsdatum]]))","v":2024},"Deliver 9",""]
["LSH14J4C3NA057250","Maxus_CH","(e)Deliver 9","eDeliver 9 VAN L3H3","FWD 72kWh","a0pQC00000DN1K5","30.11.2023","914600P00034N8100037","Electric",{"$f":"IF(report1737987713132[[#This Row],[Erstzulassungsdatum]]=\"\",\"\",YEAR(report1737987713132[[#This Row],[Erstzulassungsdatum]]))","v":2023},"eDeliver 9",""]
["LSH14J4C6NA057257","Maxus_CH","(e)Deliver 9","eDeliver 9 VAN L3H3","FWD 72kWh","a0pQC00000DN1K5","30.11.2023","914600P00034N8150043","Electric",{"$f":"IF(report1737987713132[[#This Row],[Erstzulassungsdatum]]=\"\",\"\",YEAR(report1737987713132[[#This Row],[Erstzulassungsdatum]]))","v":2023},"eDeliver 9",""]
["LSH14J4C7NA057252","Maxus_CH","(e)Deliver 9","eDeliver 9 VAN L3H3","FWD 72kWh","a0pQC00000DN1K5","30.11.2023","914600P00034N8140477","Electric",{"$f":"IF(report1737987713132[[#This Row],[Erstzulassungsdatum]]=\"\",\"\",YEAR(report1737987713132[[#This Row],[Erstzulassungsdatum]]))","v":2023},"eDeliver 9",""]
["LSH14C4CXMA122704","Maxus_CH","EV30 PV","OLDEV30 PV","VEV3P","a0pQC00000DhecN","30.11.2023","918674P00044M8106077","",{"$f":"IF(report1737987713132[[#This Row],[Erstzulassungsdatum]]=\"\",\"\",YEAR(report1737987713132[[#This Row],[Erstzulassungsdatum]]))","v":2023},"eDeliver 3",""]
["LSH14J7C1PA108985","Maxus_CH","(e)Deliver 9","Deliver 9 VAN L3H2 FWD","Comfort","a0pQC00000DMlx4","30.10.2024","M923B097710","Diesel",{"$f":"IF(report1737987713132[[#This Row],[Erstzulassungsdatum]]=\"\",\"\",YEAR(report1737987713132[[#This Row],[Erstzulassungsdatum]]))","v":2024},"Deliver 9",""]
["LSFAL1104KA102942","Maxus_CH","EV80 CC","OLDEV80 CC","VE8C","a0pQC00000DhUIg","30.10.2020","105855P01109KB280006","",{"$f":"IF(report1737987713132[[#This Row],[Erstzulassungsdatum]]=\"\",\"\",YEAR(report1737987713132[[#This Row],[Erstzulassungsdatum]]))","v":2020},"EV 80",""]
["LSH14J7C8SV122643","Maxus_CH","(e)Deliver 7","Deliver 7 VAN L2H1 FWD","Dual Sliding Door","a0pQC00000DMxYH","30.09.2025","M9256035442","Diesel",{"$f":"IF(report1737987713132[[#This Row],[Erstzulassungsdatum]]=\"\",\"\",YEAR(report1737987713132[[#This Row],[Erstzulassungsdatum]]))","v":2025},"Deliver 7",""]
["LSH15J5C0SV122085","Maxus_CH","(e)Deliver 7","eDeliver 7 VAN L1H1 AWD","88kWh Dual Sliding Door Luxury","a0pQC00000IdnUl","30.09.2025","","Electric",{"$f":"IF(report1737987713132[[#This Row],[Erstzulassungsdatum]]=\"\",\"\",YEAR(report1737987713132[[#This Row],[Erstzulassungsdatum]]))","v":2025},"eDeliver 7",""]
["LSH14J4C1RV121851","Maxus_CH","(e)Deliver 7","eDeliver 7 VAN L2H1 FWD","88kWh","a0pQC00000DMo24","30.09.2025","917164P03299PC090198","Electric",{"$f":"IF(report1737987713132[[#This Row],[Erstzulassungsdatum]]=\"\",\"\",YEAR(report1737987713132[[#This Row],[Erstzulassungsdatum]]))","v":2025},"eDeliver 7",""]
["LSH14J4C5PA086087","Maxus_CH","(e)Deliver 9","eDeliver 9 VAN L2H2","FWD 52kWh Pack Plus","a0pQC00000DMtxj","30.09.2024","914600P00034NC290132","Electric",{"$f":"IF(report1737987713132[[#This Row],[Erstzulassungsdatum]]=\"\",\"\",YEAR(report1737987713132[[#This Row],[Erstzulassungsdatum]]))","v":2024},"eDeliver 9",""]
["LSH14J4C7PA100992","Maxus_CH","(e)Deliver 9","eDeliver 9 VAN L2H2","72kWh Plus Pack","a0pQC00000DMtxl","30.09.2024","919181P00034P6260155","Electric",{"$f":"IF(report1737987713132[[#This Row],[Erstzulassungsdatum]]=\"\",\"\",YEAR(report1737987713132[[#This Row],[Erstzulassungsdatum]]))","v":2024},"eDeliver 9",""]
["LSH14J4C5NA057539","Maxus_CH","(e)Deliver 9","eDeliver 9 VAN L3H2","FWD 72kWh","a0pQC00000DMtZb","30.09.2022","917785P00034MB300109","Electric",{"$f":"IF(report1737987713132[[#This Row],[Erstzulassungsdatum]]=\"\",\"\",YEAR(report1737987713132[[#This Row],[Erstzulassungsdatum]]))","v":2022},"eDeliver 9",""]
["LSH14J4C3LA050375","Maxus_CH","EV80 PV","OLDEV80 PV","VE8P","a0pQC00000DhYVe","30.09.2021","104125P01109L3130017","",{"$f":"IF(report1737987713132[[#This Row],[Erstzulassungsdatum]]=\"\",\"\",YEAR(report1737987713132[[#This Row],[Erstzulassungsdatum]]))","v":2021},"EV 80",""]
["LSH14J4C4LA050367","Maxus_CH","EV80 PV","OLDEV80 PV","VE8P","a0pQC00000DhYVe","30.09.2021","104125P01109L3070022","",{"$f":"IF(report1737987713132[[#This Row],[Erstzulassungsdatum]]=\"\",\"\",YEAR(report1737987713132[[#This Row],[Erstzulassungsdatum]]))","v":2021},"EV 80",""]
["LSH14J4C4LA050370","Maxus_CH","EV80 PV","OLDEV80 PV","VE8P","a0pQC00000DhYVe","30.09.2021","104125P01109L3070015","",{"$f":"IF(report1737987713132[[#This Row],[Erstzulassungsdatum]]=\"\",\"\",YEAR(report1737987713132[[#This Row],[Erstzulassungsdatum]]))","v":2021},"EV 80",""]
["LSH14J4C4LA050384","Maxus_CH","EV80 PV","OLDEV80 PV","VE8P","a0pQC00000DhYVe","30.09.2021","104125P01109L3160035","",{"$f":"IF(report1737987713132[[#This Row],[Erstzulassungsdatum]]=\"\",\"\",YEAR(report1737987713132[[#This Row],[Erstzulassungsdatum]]))","v":2021},"EV 80",""]
["LSH14J4C4KA045314","Maxus_CH","9999","GREY IMPORTER DUMMIE","EV80-OD","a0pQC00000ECYij","30.09.2019","","",{"$f":"IF(report1737987713132[[#This Row],[Erstzulassungsdatum]]=\"\",\"\",YEAR(report1737987713132[[#This Row],[Erstzulassungsdatum]]))","v":2019},null,""]
["LSH14J4C6KA045315","Maxus_CH","9999","GREY IMPORTER DUMMIE","EV80-OD","a0pQC00000ECYij","30.09.2019","","",{"$f":"IF(report1737987713132[[#This Row],[Erstzulassungsdatum]]=\"\",\"\",YEAR(report1737987713132[[#This Row],[Erstzulassungsdatum]]))","v":2019},null,""]
["LSH14J4C5KA045323","Maxus_CH","9999","GREY IMPORTER DUMMIE","EV80-OD","a0pQC00000ECYij","30.09.2019","","",{"$f":"IF(report1737987713132[[#This Row],[Erstzulassungsdatum]]=\"\",\"\",YEAR(report1737987713132[[#This Row],[Erstzulassungsdatum]]))","v":2019},null,""]
["LSH14J7C7PA109025","Maxus_CH","(e)Deliver 9","Deliver 9 VAN L3H2 FWD","Comfort","a0pQC00000DMlx4","30.08.2024","M923B097305","Diesel",{"$f":"IF(report1737987713132[[#This Row],[Erstzulassungsdatum]]=\"\",\"\",YEAR(report1737987713132[[#This Row],[Erstzulassungsdatum]]))","v":2024},"Deliver 9",""]
["LSH14J4C3RV120782","Maxus_CH","(e)Deliver 7","eDeliver 7 VAN L1H1 FWD","77kWh","a0pQC00000DMveU","30.08.2024","917164P03299PC250030","Electric",{"$f":"IF(report1737987713132[[#This Row],[Erstzulassungsdatum]]=\"\",\"\",YEAR(report1737987713132[[#This Row],[Erstzulassungsdatum]]))","v":2024},"eDeliver 7",""]
["LSH14J4C3RV120801","Maxus_CH","(e)Deliver 7","eDeliver 7 VAN L1H1 FWD","77kWh","a0pQC00000DMveU","30.08.2024","917164P03299PC250011","Electric",{"$f":"IF(report1737987713132[[#This Row],[Erstzulassungsdatum]]=\"\",\"\",YEAR(report1737987713132[[#This Row],[Erstzulassungsdatum]]))","v":2024},"eDeliver 7",""]
["LSH14J4C5RV120802","Maxus_CH","(e)Deliver 7","eDeliver 7 VAN L1H1 FWD","77kWh","a0pQC00000DMveU","30.08.2024","917164P03299PC250022","Electric",{"$f":"IF(report1737987713132[[#This Row],[Erstzulassungsdatum]]=\"\",\"\",YEAR(report1737987713132[[#This Row],[Erstzulassungsdatum]]))","v":2024},"eDeliver 7",""]
["LSH14J4C8RV120678","Maxus_CH","(e)Deliver 7","eDeliver 7 VAN L1H1 FWD","88kWh","a0pQC00000DMveV","30.08.2024","917164P03299PC090046","Electric",{"$f":"IF(report1737987713132[[#This Row],[Erstzulassungsdatum]]=\"\",\"\",YEAR(report1737987713132[[#This Row],[Erstzulassungsdatum]]))","v":2024},"eDeliver 7",""]
["LSH14J7C5PA108925","Maxus_CH","(e)Deliver 9","Deliver 9 VAN L3H2 FWD","Luxury","a0pQC00000DMlx3","30.06.2025","M923A089231","Diesel",{"$f":"IF(report1737987713132[[#This Row],[Erstzulassungsdatum]]=\"\",\"\",YEAR(report1737987713132[[#This Row],[Erstzulassungsdatum]]))","v":2025},"Deliver 9",""]
["LSH14J7C6PA107931","Maxus_CH","(e)Deliver 9","Deliver 9 VAN L3H2 FWD","Luxury","a0pQC00000DMlx3","30.06.2025","M923A089750","Diesel",{"$f":"IF(report1737987713132[[#This Row],[Erstzulassungsdatum]]=\"\",\"\",YEAR(report1737987713132[[#This Row],[Erstzulassungsdatum]]))","v":2025},"Deliver 9",""]
["LSH14J7C3RA073336","Maxus_CH","(e)Deliver 9","Deliver 9 VAN L3H2 RWD","Luxury","a0pQC00000DN0uH","30.06.2025","M9241006413","Diesel",{"$f":"IF(report1737987713132[[#This Row],[Erstzulassungsdatum]]=\"\",\"\",YEAR(report1737987713132[[#This Row],[Erstzulassungsdatum]]))","v":2025},"Deliver 9",""]
["LSH14J7C6RA073332","Maxus_CH","(e)Deliver 9","Deliver 9 VAN L3H2 RWD","Luxury","a0pQC00000DN0uH","30.06.2025","M9241004503","Diesel",{"$f":"IF(report1737987713132[[#This Row],[Erstzulassungsdatum]]=\"\",\"\",YEAR(report1737987713132[[#This Row],[Erstzulassungsdatum]]))","v":2025},"Deliver 9",""]
["LSH14J7C7PA106769","Maxus_CH","(e)Deliver 9","Deliver 9 VAN L3H2 RWD","Comfort","a0pQC00000DN0uI","30.06.2025","M9235046950","Diesel",{"$f":"IF(report1737987713132[[#This Row],[Erstzulassungsdatum]]=\"\",\"\",YEAR(report1737987713132[[#This Row],[Erstzulassungsdatum]]))","v":2025},"Deliver 9",""]
["LSH14J4C1NA068988","Maxus_CH","(e)Deliver 9","eDeliver 9 VAN L3H2","FWD 88kWh","a0pQC00000DMtZc","30.06.2025","914600P00034N5170191","Electric",{"$f":"IF(report1737987713132[[#This Row],[Erstzulassungsdatum]]=\"\",\"\",YEAR(report1737987713132[[#This Row],[Erstzulassungsdatum]]))","v":2025},"eDeliver 9",""]
["LSH14J4C4NA825107","Maxus_CH","(e)Deliver 9","eDeliver 9 VAN L3H3","FWD 72kWh","a0pQC00000DN1K5","30.06.2025","914600P00034NB040197","Electric",{"$f":"IF(report1737987713132[[#This Row],[Erstzulassungsdatum]]=\"\",\"\",YEAR(report1737987713132[[#This Row],[Erstzulassungsdatum]]))","v":2025},"eDeliver 9",""]
["LSH14J4C9NA069015","Maxus_CH","(e)Deliver 9","eDeliver 9 VAN L3H3","FWD 88kWh","a0pQC00000DN1K6","30.06.2025","914600P00034N7280194","Electric",{"$f":"IF(report1737987713132[[#This Row],[Erstzulassungsdatum]]=\"\",\"\",YEAR(report1737987713132[[#This Row],[Erstzulassungsdatum]]))","v":2025},"eDeliver 9",""]
["LSH14J4C6RD060762","Maxus_CH","eDeliver 5","eDeliver 5 VAN L1H1 FWD","64kWh","a0pQC00000DMtZm","30.06.2025","911693P03299R5090083","Electric",{"$f":"IF(report1737987713132[[#This Row],[Erstzulassungsdatum]]=\"\",\"\",YEAR(report1737987713132[[#This Row],[Erstzulassungsdatum]]))","v":2025},"eDeliver 5",""]
["LSH14J4C1RD055940","Maxus_CH","eDeliver 5","eDeliver 5 VAN L1H1 FWD","64kWh","a0pQC00000DMtZm","30.06.2025","911693P03299R4280018","Electric",{"$f":"IF(report1737987713132[[#This Row],[Erstzulassungsdatum]]=\"\",\"\",YEAR(report1737987713132[[#This Row],[Erstzulassungsdatum]]))","v":2025},"eDeliver 5",""]
["LSKG48C12ND069658","Maxus_CH","MIFA 9","MIFA 9 Luxury","90kWh 7-Seater","a0pQC00000DN1aD","30.06.2025","A122B03A10114527","Electric",{"$f":"IF(report1737987713132[[#This Row],[Erstzulassungsdatum]]=\"\",\"\",YEAR(report1737987713132[[#This Row],[Erstzulassungsdatum]]))","v":2025},"Mifa 9",""]
["LSH14C4C1LA079921","Maxus_CH","EV30 PV","OLDEV30 PV","VEV3P","a0pQC00000DhecN","30.06.2022","912832P00044L5246086","",{"$f":"IF(report1737987713132[[#This Row],[Erstzulassungsdatum]]=\"\",\"\",YEAR(report1737987713132[[#This Row],[Erstzulassungsdatum]]))","v":2022},"eDeliver 3",""]
["LSH14J7CXRV125490","Maxus_CH","(e)Deliver 7","Deliver 7 VAN L2H1 FWD","Dual Sliding Door","a0pQC00000DMxYH","30.04.2025","M9249057998","Diesel",{"$f":"IF(report1737987713132[[#This Row],[Erstzulassungsdatum]]=\"\",\"\",YEAR(report1737987713132[[#This Row],[Erstzulassungsdatum]]))","v":2025},"Deliver 7",""]
["LSFAL1601RA138669","Maxus_CH","eTerron 9","eTerron 9 Luxury","AWD 102kWh Black Met","a0pQC00000FQqle","30.04.2025","","Electric",{"$f":"IF(report1737987713132[[#This Row],[Erstzulassungsdatum]]=\"\",\"\",YEAR(report1737987713132[[#This Row],[Erstzulassungsdatum]]))","v":2025},"eTerron 9",""]
["LSH14C4CXNA058648","Maxus_CH","eDeliver 3","eDeliver 3 VAN L2H1 FWD","50kWh","a0pQC00000DMpio","30.03.2023","910851P00044N7226136","Electric",{"$f":"IF(report1737987713132[[#This Row],[Erstzulassungsdatum]]=\"\",\"\",YEAR(report1737987713132[[#This Row],[Erstzulassungsdatum]]))","v":2023},"eDeliver 3",""]
["LSH14C4C3NA157991","Maxus_CH","eDeliver 3","eDeliver 3 VAN L1H1 FWD","50kWh","a0pQC00000DMhJv","29.12.2023","910851P00044N9216063","Electric",{"$f":"IF(report1737987713132[[#This Row],[Erstzulassungsdatum]]=\"\",\"\",YEAR(report1737987713132[[#This Row],[Erstzulassungsdatum]]))","v":2023},"eDeliver 3",""]
["LSH14C4C2NA157965","Maxus_CH","eDeliver 3","eDeliver 3 VAN L1H1 FWD","50kWh","a0pQC00000DMhJv","29.11.2023","910851P00044N9186016","Electric",{"$f":"IF(report1737987713132[[#This Row],[Erstzulassungsdatum]]=\"\",\"\",YEAR(report1737987713132[[#This Row],[Erstzulassungsdatum]]))","v":2023},"eDeliver 3",""]
["LSH14C4C5NA157975","Maxus_CH","eDeliver 3","eDeliver 3 VAN L1H1 FWD","50kWh","a0pQC00000DMhJv","29.11.2023","910851P00044N9186150","Electric",{"$f":"IF(report1737987713132[[#This Row],[Erstzulassungsdatum]]=\"\",\"\",YEAR(report1737987713132[[#This Row],[Erstzulassungsdatum]]))","v":2023},"eDeliver 3",""]
["LSH14C4C8MA122670","Maxus_CH","EV30 PV","OLDEV30 PV","VEV3P","a0pQC00000DhecN","29.11.2021","912832P00044M5076030","",{"$f":"IF(report1737987713132[[#This Row],[Erstzulassungsdatum]]=\"\",\"\",YEAR(report1737987713132[[#This Row],[Erstzulassungsdatum]]))","v":2021},"eDeliver 3",""]
["LSH14J4C2PA100995","Maxus_CH","(e)Deliver 9","eDeliver 9 VAN L3H2","72kWh","a0pQC00000DMtZe","29.09.2025","919181P00034P5170211","Electric",{"$f":"IF(report1737987713132[[#This Row],[Erstzulassungsdatum]]=\"\",\"\",YEAR(report1737987713132[[#This Row],[Erstzulassungsdatum]]))","v":2025},"eDeliver 9",""]
["LSH14J4C6NA820782","Maxus_CH","(e)Deliver 9","eDeliver 9 VAN L3H3","FWD 72kWh","a0pQC00000DN1K5","29.09.2025","914600P00034NA050352","Electric",{"$f":"IF(report1737987713132[[#This Row],[Erstzulassungsdatum]]=\"\",\"\",YEAR(report1737987713132[[#This Row],[Erstzulassungsdatum]]))","v":2025},"eDeliver 9",""]
["LSH14J7C9SV122277","Maxus_CH","(e)Deliver 7","Deliver 7 VAN L2H1 FWD","-","a0pQC00000DMxYG","29.09.2025","M9255028999","Diesel",{"$f":"IF(report1737987713132[[#This Row],[Erstzulassungsdatum]]=\"\",\"\",YEAR(report1737987713132[[#This Row],[Erstzulassungsdatum]]))","v":2025},"Deliver 7",""]
["LSH14J4C8RV121779","Maxus_CH","(e)Deliver 7","eDeliver 7 VAN L1H1 FWD","77kWh","a0pQC00000DMveU","29.09.2025","917164P03299PC090092","Electric",{"$f":"IF(report1737987713132[[#This Row],[Erstzulassungsdatum]]=\"\",\"\",YEAR(report1737987713132[[#This Row],[Erstzulassungsdatum]]))","v":2025},"eDeliver 7",""]
["LSFAM1205PA135919","Maxus_CH","T90 EV","T90 EV Pick Up RWD","89kWh","a0pQC00000DMoF4","29.09.2025","917939P04016NC240061","Electric",{"$f":"IF(report1737987713132[[#This Row],[Erstzulassungsdatum]]=\"\",\"\",YEAR(report1737987713132[[#This Row],[Erstzulassungsdatum]]))","v":2025},"T90 EV",""]
["LSFAM11CXRA134540","Maxus_CH","T60 MAX","T60 MAX","AWD","a0pQC00000FBTso","29.09.2025","M924A063652","Diesel",{"$f":"IF(report1737987713132[[#This Row],[Erstzulassungsdatum]]=\"\",\"\",YEAR(report1737987713132[[#This Row],[Erstzulassungsdatum]]))","v":2025},"T60 Max","2024-09-30"]
["LSFAM11C5SA098486","Maxus_CH","T60 MAX","T60 MAX","AWD","a0pQC00000FBTso","29.09.2025","M9255027806","Diesel",{"$f":"IF(report1737987713132[[#This Row],[Erstzulassungsdatum]]=\"\",\"\",YEAR(report1737987713132[[#This Row],[Erstzulassungsdatum]]))","v":2025},"T60 Max","2025-04-30"]
["LSH14J7C5SV121529","Maxus_CH","(e)Deliver 7","Deliver 7 VAN L2H1 FWD","-","a0pQC00000DMxYG","29.08.2025","M9251003988","Diesel",{"$f":"IF(report1737987713132[[#This Row],[Erstzulassungsdatum]]=\"\",\"\",YEAR(report1737987713132[[#This Row],[Erstzulassungsdatum]]))","v":2025},"Deliver 7",""]
["LSH14J7CXSV122062","Maxus_CH","(e)Deliver 7","Deliver 7 VAN L2H1 FWD","-","a0pQC00000DMxYG","29.08.2025","M9253015128","Diesel",{"$f":"IF(report1737987713132[[#This Row],[Erstzulassungsdatum]]=\"\",\"\",YEAR(report1737987713132[[#This Row],[Erstzulassungsdatum]]))","v":2025},"Deliver 7",""]
["LSFAM11C7SA098490","Maxus_CH","T60 MAX","T60 MAX","AWD","a0pQC00000FBTso","29.08.2025","M9255027401","Diesel",{"$f":"IF(report1737987713132[[#This Row],[Erstzulassungsdatum]]=\"\",\"\",YEAR(report1737987713132[[#This Row],[Erstzulassungsdatum]]))","v":2025},"T60 Max","2025-04-30"]
["LSH15J5C2SV120922","Maxus_CH","(e)Deliver 7","eDeliver 7 VAN L2H1 AWD","88kWh Dual Sliding Door Swiss Post Los 49 #1","a0pQC00000HhTgA","29.07.2025","918787P06014R4210006","Electric",{"$f":"IF(report1737987713132[[#This Row],[Erstzulassungsdatum]]=\"\",\"\",YEAR(report1737987713132[[#This Row],[Erstzulassungsdatum]]))","v":2025},"eDeliver 7",""]
["LSH14J7CXSV121624","Maxus_CH","(e)Deliver 7","Deliver 7 VAN L2H1 FWD","-","a0pQC00000DMxYG","29.07.2025","M9253013708","Diesel",{"$f":"IF(report1737987713132[[#This Row],[Erstzulassungsdatum]]=\"\",\"\",YEAR(report1737987713132[[#This Row],[Erstzulassungsdatum]]))","v":2025},"Deliver 7",""]
["LSH14J4C9KA097179","Maxus_CH","EV80 PV","OLDEV80 PV","VE8P","a0pQC00000DhYVe","29.05.2020","105855P01109KA300011","",{"$f":"IF(report1737987713132[[#This Row],[Erstzulassungsdatum]]=\"\",\"\",YEAR(report1737987713132[[#This Row],[Erstzulassungsdatum]]))","v":2020},"EV 80",""]
["LSH14C4C1PA094120","Maxus_CH","eDeliver 3","eDeliver 3 VAN L1H1 FWD","50kWh","a0pQC00000DJbxP","29.04.2025","916502P03299P1120048","Electric",{"$f":"IF(report1737987713132[[#This Row],[Erstzulassungsdatum]]=\"\",\"\",YEAR(report1737987713132[[#This Row],[Erstzulassungsdatum]]))","v":2025},"eDeliver 3",""]
["LSH14C4C6LA080031","Maxus_CH","EV30 PV","OLDEV30 PV","VEV3P","a0pQC00000DhecN","29.04.2021","912832P00044L5196019","",{"$f":"IF(report1737987713132[[#This Row],[Erstzulassungsdatum]]=\"\",\"\",YEAR(report1737987713132[[#This Row],[Erstzulassungsdatum]]))","v":2021},"eDeliver 3",""]
["LSH14C4C2NA153172","Maxus_CH","eDeliver 3","eDeliver 3 VAN L1H1 FWD","50kWh","a0pQC00000DMhJv","29.03.2023","910851P00044N9216091","Electric",{"$f":"IF(report1737987713132[[#This Row],[Erstzulassungsdatum]]=\"\",\"\",YEAR(report1737987713132[[#This Row],[Erstzulassungsdatum]]))","v":2023},"eDeliver 3",""]
["LSH14C4C3NA153164","Maxus_CH","eDeliver 3","eDeliver 3 VAN L1H1 FWD","50kWh","a0pQC00000DMhJv","29.03.2023","910851P00044N9156072","Electric",{"$f":"IF(report1737987713132[[#This Row],[Erstzulassungsdatum]]=\"\",\"\",YEAR(report1737987713132[[#This Row],[Erstzulassungsdatum]]))","v":2023},"eDeliver 3",""]
["LSH14J4C7MA147841","Maxus_CH","(e)Deliver 9","eDeliver 9 VAN L2H2","FWD 72kWh Pack Plus","a0pQC00000DMtxk","29.03.2022","917785P00034M9150004","Electric",{"$f":"IF(report1737987713132[[#This Row],[Erstzulassungsdatum]]=\"\",\"\",YEAR(report1737987713132[[#This Row],[Erstzulassungsdatum]]))","v":2022},"eDeliver 9",""]
["LSH14C4C3MA122740","Maxus_CH","EV30 PV","OLDEV30 PV","VEV3P","a0pQC00000DhecN","29.03.2022","918674P00044M9036013","",{"$f":"IF(report1737987713132[[#This Row],[Erstzulassungsdatum]]=\"\",\"\",YEAR(report1737987713132[[#This Row],[Erstzulassungsdatum]]))","v":2022},"eDeliver 3",""]
["LSH14C4C0LA079926","Maxus_CH","EV30 PV","OLDEV30 PV","VEV3P","a0pQC00000DhecN","29.03.2021","912832P00044L5246083","",{"$f":"IF(report1737987713132[[#This Row],[Erstzulassungsdatum]]=\"\",\"\",YEAR(report1737987713132[[#This Row],[Erstzulassungsdatum]]))","v":2021},"eDeliver 3",""]
["LSH14J4C6NA057534","Maxus_CH","(e)Deliver 9","eDeliver 9 VAN L2H2","FWD 72kWh Pack Plus","a0pQC00000DMtxk","28.12.2022","914600P00034N4190040","Electric",{"$f":"IF(report1737987713132[[#This Row],[Erstzulassungsdatum]]=\"\",\"\",YEAR(report1737987713132[[#This Row],[Erstzulassungsdatum]]))","v":2022},"eDeliver 9",""]
["LSH14J7C5PA108892","Maxus_CH","(e)Deliver 9","Deliver 9 VAN L3H2 FWD","Luxury","a0pQC00000DMlx3","28.11.2024","M923A090877","Diesel",{"$f":"IF(report1737987713132[[#This Row],[Erstzulassungsdatum]]=\"\",\"\",YEAR(report1737987713132[[#This Row],[Erstzulassungsdatum]]))","v":2024},"Deliver 9",""]
["LSH14C4C3NA137191","Maxus_CH","eDeliver 3","eDeliver 3 VAN L2H1 FWD","50kWh","a0pQC00000DMpio","28.11.2023","910851P00044N8166044","Electric",{"$f":"IF(report1737987713132[[#This Row],[Erstzulassungsdatum]]=\"\",\"\",YEAR(report1737987713132[[#This Row],[Erstzulassungsdatum]]))","v":2023},"eDeliver 3",""]
["LSH14C4C9PA072558","Maxus_CH","9999","GREY IMPORTER DUMMIE","EV30-OD","a0pQC00000ECYih","28.09.2023","","",{"$f":"IF(report1737987713132[[#This Row],[Erstzulassungsdatum]]=\"\",\"\",YEAR(report1737987713132[[#This Row],[Erstzulassungsdatum]]))","v":2023},null,""]
["LSH14J7C2SV121519","Maxus_CH","(e)Deliver 7","Deliver 7 VAN L2H1 FWD","-","a0pQC00000DMxYG","28.08.2025","M9251006623","Diesel",{"$f":"IF(report1737987713132[[#This Row],[Erstzulassungsdatum]]=\"\",\"\",YEAR(report1737987713132[[#This Row],[Erstzulassungsdatum]]))","v":2025},"Deliver 7",""]
["LSH14J7C6SV122060","Maxus_CH","(e)Deliver 7","Deliver 7 VAN L2H1 FWD","-","a0pQC00000DMxYG","28.08.2025","M9254021828","Diesel",{"$f":"IF(report1737987713132[[#This Row],[Erstzulassungsdatum]]=\"\",\"\",YEAR(report1737987713132[[#This Row],[Erstzulassungsdatum]]))","v":2025},"Deliver 7",""]
["LSH14J7C5SV122065","Maxus_CH","(e)Deliver 7","Deliver 7 VAN L2H1 FWD","-","a0pQC00000DMxYG","28.08.2025","M9254021823","Diesel",{"$f":"IF(report1737987713132[[#This Row],[Erstzulassungsdatum]]=\"\",\"\",YEAR(report1737987713132[[#This Row],[Erstzulassungsdatum]]))","v":2025},"Deliver 7",""]
["LSH14J7C5SV122051","Maxus_CH","(e)Deliver 7","Deliver 7 VAN L2H1 FWD","-","a0pQC00000DMxYG","28.08.2025","M9254022146","Diesel",{"$f":"IF(report1737987713132[[#This Row],[Erstzulassungsdatum]]=\"\",\"\",YEAR(report1737987713132[[#This Row],[Erstzulassungsdatum]]))","v":2025},"Deliver 7",""]
["LSH14J7C4SV122073","Maxus_CH","(e)Deliver 7","Deliver 7 VAN L2H1 FWD","-","a0pQC00000DMxYG","28.08.2025","M9254022134","Diesel",{"$f":"IF(report1737987713132[[#This Row],[Erstzulassungsdatum]]=\"\",\"\",YEAR(report1737987713132[[#This Row],[Erstzulassungsdatum]]))","v":2025},"Deliver 7",""]
["LSH14J7C4SV122056","Maxus_CH","(e)Deliver 7","Deliver 7 VAN L2H1 FWD","-","a0pQC00000DMxYG","28.08.2025","M9254022126","Diesel",{"$f":"IF(report1737987713132[[#This Row],[Erstzulassungsdatum]]=\"\",\"\",YEAR(report1737987713132[[#This Row],[Erstzulassungsdatum]]))","v":2025},"Deliver 7",""]
["LSFAM11C5SA098505","Maxus_CH","T60 MAX","T60 MAX","AWD","a0pQC00000FBTso","28.08.2025","M9255029064","Diesel",{"$f":"IF(report1737987713132[[#This Row],[Erstzulassungsdatum]]=\"\",\"\",YEAR(report1737987713132[[#This Row],[Erstzulassungsdatum]]))","v":2025},"T60 Max","2025-04-30"]
["LSFAL1103KA102933","Maxus_CH","EV80 CC","OLDEV80 CC","VE8C","a0pQC00000DhUIg","28.08.2020","105855P01109KB270037","",{"$f":"IF(report1737987713132[[#This Row],[Erstzulassungsdatum]]=\"\",\"\",YEAR(report1737987713132[[#This Row],[Erstzulassungsdatum]]))","v":2020},"EV 80",""]
["LSH14J4CXNA057553","Maxus_CH","(e)Deliver 9","eDeliver 9 VAN L3H2","FWD 72kWh","a0pQC00000DMtZb","28.07.2022","915536P00034N1220023","Electric",{"$f":"IF(report1737987713132[[#This Row],[Erstzulassungsdatum]]=\"\",\"\",YEAR(report1737987713132[[#This Row],[Erstzulassungsdatum]]))","v":2022},"eDeliver 9",""]
["LSH14C4C5MA122772","Maxus_CH","EV30 PV","OLDEV30 PV","VEV3P","a0pQC00000DhecN","28.07.2022","918674P00044M9016068","",{"$f":"IF(report1737987713132[[#This Row],[Erstzulassungsdatum]]=\"\",\"\",YEAR(report1737987713132[[#This Row],[Erstzulassungsdatum]]))","v":2022},"eDeliver 3",""]
["LSFAM1102PA097213","Maxus_CH","eDeliver 3","eDeliver 3 Cabine L2 FWD","50kWh","a0pQC00000DMkMk","28.05.2025","918674P00044NB166008","Electric",{"$f":"IF(report1737987713132[[#This Row],[Erstzulassungsdatum]]=\"\",\"\",YEAR(report1737987713132[[#This Row],[Erstzulassungsdatum]]))","v":2025},"eDeliver 3",""]
["LSH14C4C4PA093592","Maxus_CH","eDeliver 3","eDeliver 3 VAN L2H1 FWD","50kWh","a0pQC00000DMpip","28.05.2025","916502P03299P1060125","Electric",{"$f":"IF(report1737987713132[[#This Row],[Erstzulassungsdatum]]=\"\",\"\",YEAR(report1737987713132[[#This Row],[Erstzulassungsdatum]]))","v":2025},"eDeliver 3",""]
["LSFAM11C3RA134539","Maxus_CH","T60 MAX","T60 MAX","AWD","a0pQC00000FBTso","28.05.2025","M924A064092","Diesel",{"$f":"IF(report1737987713132[[#This Row],[Erstzulassungsdatum]]=\"\",\"\",YEAR(report1737987713132[[#This Row],[Erstzulassungsdatum]]))","v":2025},"T60 Max","2024-09-30"]
["LSH14J7C2RA073327","Maxus_CH","(e)Deliver 9","Deliver 9 VAN L3H2 FWD","Luxury","a0pQC00000DMlx3","28.04.2025","M9241007718","Diesel",{"$f":"IF(report1737987713132[[#This Row],[Erstzulassungsdatum]]=\"\",\"\",YEAR(report1737987713132[[#This Row],[Erstzulassungsdatum]]))","v":2025},"Deliver 9",""]
["LSH15J5C7RV126127","Maxus_CH","(e)Deliver 7","eDeliver 7 VAN L2H1 AWD","88kWh","a0pQC00000DMnfa","28.04.2025","","Electric",{"$f":"IF(report1737987713132[[#This Row],[Erstzulassungsdatum]]=\"\",\"\",YEAR(report1737987713132[[#This Row],[Erstzulassungsdatum]]))","v":2025},"eDeliver 7",""]
["LSH15J5C9RV126131","Maxus_CH","(e)Deliver 7","eDeliver 7 VAN L2H1 AWD","88kWh","a0pQC00000DMnfa","28.04.2025","","Electric",{"$f":"IF(report1737987713132[[#This Row],[Erstzulassungsdatum]]=\"\",\"\",YEAR(report1737987713132[[#This Row],[Erstzulassungsdatum]]))","v":2025},"eDeliver 7",""]
["LSH14J7C3RV125492","Maxus_CH","(e)Deliver 7","Deliver 7 VAN L2H1 FWD","-","a0pQC00000DMxYG","28.04.2025","M924A059519","Diesel",{"$f":"IF(report1737987713132[[#This Row],[Erstzulassungsdatum]]=\"\",\"\",YEAR(report1737987713132[[#This Row],[Erstzulassungsdatum]]))","v":2025},"Deliver 7",""]
["LSH14J7C3RV125508","Maxus_CH","(e)Deliver 7","Deliver 7 VAN L2H1 FWD","-","a0pQC00000DMxYG","28.04.2025","M9249059195","Diesel",{"$f":"IF(report1737987713132[[#This Row],[Erstzulassungsdatum]]=\"\",\"\",YEAR(report1737987713132[[#This Row],[Erstzulassungsdatum]]))","v":2025},"Deliver 7",""]
["LSH14J7C4RV125453","Maxus_CH","(e)Deliver 7","Deliver 7 VAN L2H1 FWD","-","a0pQC00000DMxYG","28.04.2025","M9249058579","Diesel",{"$f":"IF(report1737987713132[[#This Row],[Erstzulassungsdatum]]=\"\",\"\",YEAR(report1737987713132[[#This Row],[Erstzulassungsdatum]]))","v":2025},"Deliver 7",""]
["LSFAL1601RA138672","Maxus_CH","eTerron 9","eTerron 9 Luxury","AWD 102kWh","a0pQC00000FQqlf","28.04.2025","","Electric",{"$f":"IF(report1737987713132[[#This Row],[Erstzulassungsdatum]]=\"\",\"\",YEAR(report1737987713132[[#This Row],[Erstzulassungsdatum]]))","v":2025},"eTerron 9",""]
["LSFAM11C3RA134556","Maxus_CH","T60 MAX","T60 MAX","AWD","a0pQC00000FBTso","28.04.2025","M924B069991","Diesel",{"$f":"IF(report1737987713132[[#This Row],[Erstzulassungsdatum]]=\"\",\"\",YEAR(report1737987713132[[#This Row],[Erstzulassungsdatum]]))","v":2025},"T60 Max","2024-09-30"]
["LSFAM11CXRA134554","Maxus_CH","T60 MAX","T60 MAX","AWD","a0pQC00000FBTso","28.04.2025","M924A063655","Diesel",{"$f":"IF(report1737987713132[[#This Row],[Erstzulassungsdatum]]=\"\",\"\",YEAR(report1737987713132[[#This Row],[Erstzulassungsdatum]]))","v":2025},"T60 Max","2024-09-30"]
["LSFAL1101NA057575","Maxus_CH","(e)Deliver 9","eDeliver 9 Cabine L3","FWD 65kWh","a0pQC00000DMoJk","28.03.2024","914600P00034NB040185","Electric",{"$f":"IF(report1737987713132[[#This Row],[Erstzulassungsdatum]]=\"\",\"\",YEAR(report1737987713132[[#This Row],[Erstzulassungsdatum]]))","v":2024},"eDeliver 9",""]
["LSH14C4C6MA122702","Maxus_CH","EV30 PV","OLDEV30 PV","VEV3P","a0pQC00000DhecN","28.03.2023","918674P00044MC166031","",{"$f":"IF(report1737987713132[[#This Row],[Erstzulassungsdatum]]=\"\",\"\",YEAR(report1737987713132[[#This Row],[Erstzulassungsdatum]]))","v":2023},"eDeliver 3",""]
["LSH14J7C0RV125451","Maxus_CH","(e)Deliver 7","Deliver 7 VAN L2H1 FWD","-","a0pQC00000DMxYG","28.02.2025","M9249058600","Diesel",{"$f":"IF(report1737987713132[[#This Row],[Erstzulassungsdatum]]=\"\",\"\",YEAR(report1737987713132[[#This Row],[Erstzulassungsdatum]]))","v":2025},"Deliver 7",""]
["LSH14J4C2RV121809","Maxus_CH","(e)Deliver 7","eDeliver 7 VAN L2H1 FWD","88kWh","a0pQC00000DMo24","28.01.2025","917164P03299R1040029","Electric",{"$f":"IF(report1737987713132[[#This Row],[Erstzulassungsdatum]]=\"\",\"\",YEAR(report1737987713132[[#This Row],[Erstzulassungsdatum]]))","v":2025},"eDeliver 7",""]
["LSH14J4C2MA069629","Maxus_CH","(e)Deliver 9","eDeliver 9 VAN L3H2","FWD 72kWh","a0pQC00000DMtZb","28.01.2022","917785P00034M3010007","Electric",{"$f":"IF(report1737987713132[[#This Row],[Erstzulassungsdatum]]=\"\",\"\",YEAR(report1737987713132[[#This Row],[Erstzulassungsdatum]]))","v":2022},"eDeliver 9",""]
["LSFAM1102NA068470","Maxus_CH","eDeliver 3","eDeliver 3 Cabine L2 FWD","50kWh","a0pQC00000DMkMk","27.12.2023","918674P00044NA276120","Electric",{"$f":"IF(report1737987713132[[#This Row],[Erstzulassungsdatum]]=\"\",\"\",YEAR(report1737987713132[[#This Row],[Erstzulassungsdatum]]))","v":2023},"eDeliver 3",""]
["LSH14C4C1NA157990","Maxus_CH","eDeliver 3","eDeliver 3 VAN L1H1 FWD","50kWh","a0pQC00000DMhJv","27.12.2023","910851P00044N9216071","Electric",{"$f":"IF(report1737987713132[[#This Row],[Erstzulassungsdatum]]=\"\",\"\",YEAR(report1737987713132[[#This Row],[Erstzulassungsdatum]]))","v":2023},"eDeliver 3",""]
["LSH14J4C9NA057544","Maxus_CH","(e)Deliver 9","eDeliver 9 VAN L3H2","FWD 72kWh","a0pQC00000DMtZb","27.12.2022","915536P00034N1150008","Electric",{"$f":"IF(report1737987713132[[#This Row],[Erstzulassungsdatum]]=\"\",\"\",YEAR(report1737987713132[[#This Row],[Erstzulassungsdatum]]))","v":2022},"eDeliver 9",""]
["LSKG47C19PD044026","Maxus_CH","9999","GREY IMPORTER DUMMIE","D90-OD","a0pQC00000ECYig","27.11.2024","","",{"$f":"IF(report1737987713132[[#This Row],[Erstzulassungsdatum]]=\"\",\"\",YEAR(report1737987713132[[#This Row],[Erstzulassungsdatum]]))","v":2024},null,""]
["LSKG47C1XPD043581","Maxus_CH","9999","GREY IMPORTER DUMMIE","D90-OD","a0pQC00000ECYig","27.11.2024","","",{"$f":"IF(report1737987713132[[#This Row],[Erstzulassungsdatum]]=\"\",\"\",YEAR(report1737987713132[[#This Row],[Erstzulassungsdatum]]))","v":2024},null,""]
["LSKG47C19PD043538","Maxus_CH","9999","GREY IMPORTER DUMMIE","MIFA 9-OD","a0pQC00000ECYim","27.11.2024","","",{"$f":"IF(report1737987713132[[#This Row],[Erstzulassungsdatum]]=\"\",\"\",YEAR(report1737987713132[[#This Row],[Erstzulassungsdatum]]))","v":2024},null,""]
["LSKG47C1XPD043970","Maxus_CH","9999","GREY IMPORTER DUMMIE","MIFA 9-OD","a0pQC00000ECYim","27.11.2024","","",{"$f":"IF(report1737987713132[[#This Row],[Erstzulassungsdatum]]=\"\",\"\",YEAR(report1737987713132[[#This Row],[Erstzulassungsdatum]]))","v":2024},null,""]
["LSH14C4C4NA068432","Maxus_CH","eDeliver 3","eDeliver 3 VAN L2H1 FWD","50kWh","a0pQC00000DMpio","27.11.2023","910851P00044N8196074","Electric",{"$f":"IF(report1737987713132[[#This Row],[Erstzulassungsdatum]]=\"\",\"\",YEAR(report1737987713132[[#This Row],[Erstzulassungsdatum]]))","v":2023},"eDeliver 3",""]
["LSFAL1100MA147895","Maxus_CH","(e)Deliver 9","eDeliver 9 Cabine L4","FWD 65kWh","a0pQC00000DMvQ1","27.11.2023","914600P00034NB070054","Electric",{"$f":"IF(report1737987713132[[#This Row],[Erstzulassungsdatum]]=\"\",\"\",YEAR(report1737987713132[[#This Row],[Erstzulassungsdatum]]))","v":2023},"eDeliver 9",""]
["LSH14J7C6PA108769","Maxus_CH","(e)Deliver 9","Deliver 9 VAN L3H2 FWD","Luxury","a0pQC00000DMlx3","27.09.2024","M923A089502","Diesel",{"$f":"IF(report1737987713132[[#This Row],[Erstzulassungsdatum]]=\"\",\"\",YEAR(report1737987713132[[#This Row],[Erstzulassungsdatum]]))","v":2024},"Deliver 9",""]
["LSH14J7C6PA107914","Maxus_CH","(e)Deliver 9","Deliver 9 VAN L3H2 FWD","Luxury","a0pQC00000DMlx3","27.09.2024","M923A088537","Diesel",{"$f":"IF(report1737987713132[[#This Row],[Erstzulassungsdatum]]=\"\",\"\",YEAR(report1737987713132[[#This Row],[Erstzulassungsdatum]]))","v":2024},"Deliver 9",""]
["LSH14J4C5PA100991","Maxus_CH","(e)Deliver 9","eDeliver 9 VAN L2H2","72kWh Plus Pack","a0pQC00000DMtxl","27.09.2024","919181P00034P6260057","Electric",{"$f":"IF(report1737987713132[[#This Row],[Erstzulassungsdatum]]=\"\",\"\",YEAR(report1737987713132[[#This Row],[Erstzulassungsdatum]]))","v":2024},"eDeliver 9",""]
["LSH14J4C1RV121803","Maxus_CH","(e)Deliver 7","eDeliver 7 VAN L1H1 FWD","77kWh","a0pQC00000DMveU","27.09.2024","917164P03299R1040038","Electric",{"$f":"IF(report1737987713132[[#This Row],[Erstzulassungsdatum]]=\"\",\"\",YEAR(report1737987713132[[#This Row],[Erstzulassungsdatum]]))","v":2024},"eDeliver 7",""]
["LSH14J4C6RV120680","Maxus_CH","(e)Deliver 7","eDeliver 7 VAN L2H1 FWD","77kWh","a0pQC00000DMo23","27.09.2024","917164P03299P9250115","Electric",{"$f":"IF(report1737987713132[[#This Row],[Erstzulassungsdatum]]=\"\",\"\",YEAR(report1737987713132[[#This Row],[Erstzulassungsdatum]]))","v":2024},"eDeliver 7",""]
["LSFAM1201PA067103","Maxus_CH","T90 EV","T90 EV Pick Up RWD","89kWh","a0pQC00000DMoF4","27.09.2024","917939P04016NA130203","Electric",{"$f":"IF(report1737987713132[[#This Row],[Erstzulassungsdatum]]=\"\",\"\",YEAR(report1737987713132[[#This Row],[Erstzulassungsdatum]]))","v":2024},"T90 EV",""]
["LSFAL11A1PA107497","Maxus_CH","(e)Deliver 9","Deliver 9 Cabine L3 RWD","Luxury","a0pQC00000DMnfX","27.08.2025","M9221009368","Diesel",{"$f":"IF(report1737987713132[[#This Row],[Erstzulassungsdatum]]=\"\",\"\",YEAR(report1737987713132[[#This Row],[Erstzulassungsdatum]]))","v":2025},"Deliver 9",""]
["LSH14J7C8SV122061","Maxus_CH","(e)Deliver 7","Deliver 7 VAN L2H1 FWD","Dual Sliding Door","a0pQC00000DMxYH","27.08.2025","M9254022478","Diesel",{"$f":"IF(report1737987713132[[#This Row],[Erstzulassungsdatum]]=\"\",\"\",YEAR(report1737987713132[[#This Row],[Erstzulassungsdatum]]))","v":2025},"Deliver 7",""]
["LSFAM11C3SA092959","Maxus_CH","T60 MAX","T60 MAX","AWD","a0pQC00000FBTso","27.08.2025","M9254022738","Diesel",{"$f":"IF(report1737987713132[[#This Row],[Erstzulassungsdatum]]=\"\",\"\",YEAR(report1737987713132[[#This Row],[Erstzulassungsdatum]]))","v":2025},"T60 Max","2025-03-31"]
["LSH14C4C8NA168615","Maxus_CH","9999","GREY IMPORTER DUMMIE","EV30-OD","a0pQC00000ECYih","27.08.2023","","",{"$f":"IF(report1737987713132[[#This Row],[Erstzulassungsdatum]]=\"\",\"\",YEAR(report1737987713132[[#This Row],[Erstzulassungsdatum]]))","v":2023},null,""]
["LSFAM1109NA068451","Maxus_CH","eDeliver 3","eDeliver 3 Cabine L2 FWD","50kWh","a0pQC00000DMkMk","27.06.2025","918674P00044NA016083","Electric",{"$f":"IF(report1737987713132[[#This Row],[Erstzulassungsdatum]]=\"\",\"\",YEAR(report1737987713132[[#This Row],[Erstzulassungsdatum]]))","v":2025},"eDeliver 3",""]
["LSH14J7C5PA108746","Maxus_CH","(e)Deliver 9","Deliver 9 VAN L3H2 FWD","Luxury","a0pQC00000DMlx3","27.06.2025","M923A089237","Diesel",{"$f":"IF(report1737987713132[[#This Row],[Erstzulassungsdatum]]=\"\",\"\",YEAR(report1737987713132[[#This Row],[Erstzulassungsdatum]]))","v":2025},"Deliver 9",""]
["LSH14J7CXRA073320","Maxus_CH","(e)Deliver 9","Deliver 9 VAN L3H2 FWD","Luxury","a0pQC00000DMlx3","27.06.2025","M9241008144","Diesel",{"$f":"IF(report1737987713132[[#This Row],[Erstzulassungsdatum]]=\"\",\"\",YEAR(report1737987713132[[#This Row],[Erstzulassungsdatum]]))","v":2025},"Deliver 9",""]
["LSH14J7C6PA189417","Maxus_CH","(e)Deliver 9","Deliver 9 VAN L3H2 FWD","Comfort","a0pQC00000DMlx4","27.06.2025","M923B100656","Diesel",{"$f":"IF(report1737987713132[[#This Row],[Erstzulassungsdatum]]=\"\",\"\",YEAR(report1737987713132[[#This Row],[Erstzulassungsdatum]]))","v":2025},"Deliver 9",""]
["LSH14J7C7PA106724","Maxus_CH","(e)Deliver 9","Deliver 9 VAN L3H2 RWD","Comfort","a0pQC00000DN0uI","27.06.2025","M9235048052","Diesel",{"$f":"IF(report1737987713132[[#This Row],[Erstzulassungsdatum]]=\"\",\"\",YEAR(report1737987713132[[#This Row],[Erstzulassungsdatum]]))","v":2025},"Deliver 9",""]
["LSH14J7C2PA105674","Maxus_CH","(e)Deliver 9","Deliver 9 VAN L3H2 RWD","Comfort","a0pQC00000DN0uI","27.06.2025","M9234040887","Diesel",{"$f":"IF(report1737987713132[[#This Row],[Erstzulassungsdatum]]=\"\",\"\",YEAR(report1737987713132[[#This Row],[Erstzulassungsdatum]]))","v":2025},"Deliver 9",""]
["LSH14J4C4PA101081","Maxus_CH","(e)Deliver 9","eDeliver 9 VAN L3H2","72kWh","a0pQC00000DMtZe","27.06.2025","919181P00034P6260068","Electric",{"$f":"IF(report1737987713132[[#This Row],[Erstzulassungsdatum]]=\"\",\"\",YEAR(report1737987713132[[#This Row],[Erstzulassungsdatum]]))","v":2025},"eDeliver 9",""]
["LSH14J4C5RD055942","Maxus_CH","eDeliver 5","eDeliver 5 VAN L1H1 FWD","64kWh","a0pQC00000DMtZm","27.06.2025","911693P03299R1230070","Electric",{"$f":"IF(report1737987713132[[#This Row],[Erstzulassungsdatum]]=\"\",\"\",YEAR(report1737987713132[[#This Row],[Erstzulassungsdatum]]))","v":2025},"eDeliver 5",""]
["LSFAM11C4RA134551","Maxus_CH","T60 MAX","T60 MAX","AWD","a0pQC00000FBTso","27.06.2025","M924A063653","Diesel",{"$f":"IF(report1737987713132[[#This Row],[Erstzulassungsdatum]]=\"\",\"\",YEAR(report1737987713132[[#This Row],[Erstzulassungsdatum]]))","v":2025},"T60 Max","2024-09-30"]
["LSH14J4CXRV120679","Maxus_CH","(e)Deliver 7","eDeliver 7 VAN L2H1 FWD","77kWh","a0pQC00000DMo23","27.06.2024","917164P03299PC090053","Electric",{"$f":"IF(report1737987713132[[#This Row],[Erstzulassungsdatum]]=\"\",\"\",YEAR(report1737987713132[[#This Row],[Erstzulassungsdatum]]))","v":2024},"eDeliver 7",""]
["LSFAM1203PA135918","Maxus_CH","T90 EV","T90 EV Pick Up RWD","89kWh","a0pQC00000DMoF4","27.06.2024","917939P04016NA160112","Electric",{"$f":"IF(report1737987713132[[#This Row],[Erstzulassungsdatum]]=\"\",\"\",YEAR(report1737987713132[[#This Row],[Erstzulassungsdatum]]))","v":2024},"T90 EV",""]
["LSH14C4C0PA096036","Maxus_CH","eDeliver 3","eDeliver 3 VAN L1H1 FWD","50kWh","a0pQC00000DJbxP","27.05.2025","916502P03299P2020052","Electric",{"$f":"IF(report1737987713132[[#This Row],[Erstzulassungsdatum]]=\"\",\"\",YEAR(report1737987713132[[#This Row],[Erstzulassungsdatum]]))","v":2025},"eDeliver 3",""]
["LSH14J7C7PA107341","Maxus_CH","(e)Deliver 9","Deliver 9 VAN L3H2 RWD","Comfort","a0pQC00000DN0uI","27.05.2025","M9235048051","Diesel",{"$f":"IF(report1737987713132[[#This Row],[Erstzulassungsdatum]]=\"\",\"\",YEAR(report1737987713132[[#This Row],[Erstzulassungsdatum]]))","v":2025},"Deliver 9",""]
["LSH14J7C5RV125509","Maxus_CH","(e)Deliver 7","Deliver 7 VAN L2H1 FWD","-","a0pQC00000DMxYG","27.05.2025","M924A059922","Diesel",{"$f":"IF(report1737987713132[[#This Row],[Erstzulassungsdatum]]=\"\",\"\",YEAR(report1737987713132[[#This Row],[Erstzulassungsdatum]]))","v":2025},"Deliver 7",""]
["LSH14J4C8RV120793","Maxus_CH","(e)Deliver 7","eDeliver 7 VAN L1H1 FWD","77kWh","a0pQC00000DMveU","27.05.2025","917164P03299PC070080","Electric",{"$f":"IF(report1737987713132[[#This Row],[Erstzulassungsdatum]]=\"\",\"\",YEAR(report1737987713132[[#This Row],[Erstzulassungsdatum]]))","v":2025},"eDeliver 7",""]
["LSH14J4C6KA097172","Maxus_CH","EV80 PV","OLDEV80 PV","VE8P","a0pQC00000DhYVe","27.04.2021","105855P01109KA290005","",{"$f":"IF(report1737987713132[[#This Row],[Erstzulassungsdatum]]=\"\",\"\",YEAR(report1737987713132[[#This Row],[Erstzulassungsdatum]]))","v":2021},"EV 80",""]
["LSH14J4CXKA097174","Maxus_CH","EV80 PV","OLDEV80 PV","VE8P","a0pQC00000DhYVe","27.04.2020","105855P01109KA300003","",{"$f":"IF(report1737987713132[[#This Row],[Erstzulassungsdatum]]=\"\",\"\",YEAR(report1737987713132[[#This Row],[Erstzulassungsdatum]]))","v":2020},"EV 80",""]
["LSH14J7C7PA189409","Maxus_CH","(e)Deliver 9","Deliver 9 VAN L3H2 FWD","Comfort","a0pQC00000DMlx4","27.03.2025","M923B099159","Diesel",{"$f":"IF(report1737987713132[[#This Row],[Erstzulassungsdatum]]=\"\",\"\",YEAR(report1737987713132[[#This Row],[Erstzulassungsdatum]]))","v":2025},"Deliver 9",""]
["LSH14J7C6RV125471","Maxus_CH","(e)Deliver 7","Deliver 7 VAN L2H1 FWD","Dual Sliding Door","a0pQC00000DMxYH","27.03.2025","M9248051989","Diesel",{"$f":"IF(report1737987713132[[#This Row],[Erstzulassungsdatum]]=\"\",\"\",YEAR(report1737987713132[[#This Row],[Erstzulassungsdatum]]))","v":2025},"Deliver 7",""]
["LSH14C4C7NA153166","Maxus_CH","eDeliver 3","eDeliver 3 VAN L1H1 FWD","50kWh","a0pQC00000DMhJv","27.03.2023","910851P00044N9156052","Electric",{"$f":"IF(report1737987713132[[#This Row],[Erstzulassungsdatum]]=\"\",\"\",YEAR(report1737987713132[[#This Row],[Erstzulassungsdatum]]))","v":2023},"eDeliver 3",""]
["LSH14J7C3RA073319","Maxus_CH","(e)Deliver 9","Deliver 9 VAN L3H2 FWD","Luxury","a0pQC00000DMlx3","27.01.2025","M9241007645","Diesel",{"$f":"IF(report1737987713132[[#This Row],[Erstzulassungsdatum]]=\"\",\"\",YEAR(report1737987713132[[#This Row],[Erstzulassungsdatum]]))","v":2025},"Deliver 9",""]
["LSH14J4C3RD060752","Maxus_CH","eDeliver 5","eDeliver 5 VAN L1H1 FWD","64kWh","a0pQC00000DMtZm","27.01.2025","911693P03299R5160132","Electric",{"$f":"IF(report1737987713132[[#This Row],[Erstzulassungsdatum]]=\"\",\"\",YEAR(report1737987713132[[#This Row],[Erstzulassungsdatum]]))","v":2025},"eDeliver 5",""]
["LSH14C4C4NA078037","Maxus_CH","eDeliver 3","eDeliver 3 VAN L2H1 FWD","50kWh","a0pQC00000DMpio","27.01.2023","910851P00044N7226063","Electric",{"$f":"IF(report1737987713132[[#This Row],[Erstzulassungsdatum]]=\"\",\"\",YEAR(report1737987713132[[#This Row],[Erstzulassungsdatum]]))","v":2023},"eDeliver 3",""]
["LSFAL1101KA102932","Maxus_CH","EV80 CC","OLDEV80 CC","VE8C","a0pQC00000DhUIg","27.01.2021","105855P01109KB280021","",{"$f":"IF(report1737987713132[[#This Row],[Erstzulassungsdatum]]=\"\",\"\",YEAR(report1737987713132[[#This Row],[Erstzulassungsdatum]]))","v":2021},"EV 80",""]
["LSFAL1102KA102938","Maxus_CH","EV80 CC","OLDEV80 CC","VE8C","a0pQC00000DhUIg","27.01.2021","105855P01109KB280011","",{"$f":"IF(report1737987713132[[#This Row],[Erstzulassungsdatum]]=\"\",\"\",YEAR(report1737987713132[[#This Row],[Erstzulassungsdatum]]))","v":2021},"EV 80",""]
["LSH14C4C4LA079928","Maxus_CH","EV30 PV","OLDEV30 PV","VEV3P","a0pQC00000DhecN","26.10.2021","912832P00044L5196035","",{"$f":"IF(report1737987713132[[#This Row],[Erstzulassungsdatum]]=\"\",\"\",YEAR(report1737987713132[[#This Row],[Erstzulassungsdatum]]))","v":2021},"eDeliver 3",""]
["LSH14J7C1SV122287","Maxus_CH","(e)Deliver 7","Deliver 7 VAN L2H1 FWD","-","a0pQC00000DMxYG","26.09.2025","M9255028057","Diesel",{"$f":"IF(report1737987713132[[#This Row],[Erstzulassungsdatum]]=\"\",\"\",YEAR(report1737987713132[[#This Row],[Erstzulassungsdatum]]))","v":2025},"Deliver 7",""]
["LSH14J7C2SV122265","Maxus_CH","(e)Deliver 7","Deliver 7 VAN L2H1 FWD","-","a0pQC00000DMxYG","26.09.2025","M9255028347","Diesel",{"$f":"IF(report1737987713132[[#This Row],[Erstzulassungsdatum]]=\"\",\"\",YEAR(report1737987713132[[#This Row],[Erstzulassungsdatum]]))","v":2025},"Deliver 7",""]
["LSH14J7C2SV122685","Maxus_CH","(e)Deliver 7","Deliver 7 VAN L2H1 FWD","-","a0pQC00000DMxYG","26.09.2025","M9256037356","Diesel",{"$f":"IF(report1737987713132[[#This Row],[Erstzulassungsdatum]]=\"\",\"\",YEAR(report1737987713132[[#This Row],[Erstzulassungsdatum]]))","v":2025},"Deliver 7",""]
["LSH14J7C5SV122650","Maxus_CH","(e)Deliver 7","Deliver 7 VAN L2H1 FWD","-","a0pQC00000DMxYG","26.09.2025","M9256036333","Diesel",{"$f":"IF(report1737987713132[[#This Row],[Erstzulassungsdatum]]=\"\",\"\",YEAR(report1737987713132[[#This Row],[Erstzulassungsdatum]]))","v":2025},"Deliver 7",""]
["LSH14J7C5SV121613","Maxus_CH","(e)Deliver 7","Deliver 7 VAN L2H1 FWD","Dual Sliding Door","a0pQC00000DMxYH","26.09.2025","M9251003971","Diesel",{"$f":"IF(report1737987713132[[#This Row],[Erstzulassungsdatum]]=\"\",\"\",YEAR(report1737987713132[[#This Row],[Erstzulassungsdatum]]))","v":2025},"Deliver 7",""]
["LSH14J7C2SV121617","Maxus_CH","(e)Deliver 7","Deliver 7 VAN L2H1 FWD","Dual Sliding Door","a0pQC00000DMxYH","26.09.2025","M9253013711","Diesel",{"$f":"IF(report1737987713132[[#This Row],[Erstzulassungsdatum]]=\"\",\"\",YEAR(report1737987713132[[#This Row],[Erstzulassungsdatum]]))","v":2025},"Deliver 7",""]
["LSH14J7C1SV121611","Maxus_CH","(e)Deliver 7","Deliver 7 VAN L2H1 FWD","Dual Sliding Door","a0pQC00000DMxYH","26.09.2025","M9253012980","Diesel",{"$f":"IF(report1737987713132[[#This Row],[Erstzulassungsdatum]]=\"\",\"\",YEAR(report1737987713132[[#This Row],[Erstzulassungsdatum]]))","v":2025},"Deliver 7",""]
["LSH14J7C2SV122248","Maxus_CH","(e)Deliver 7","Deliver 7 VAN L2H1 FWD","Dual Sliding Door","a0pQC00000DMxYH","26.09.2025","M9254025611","Diesel",{"$f":"IF(report1737987713132[[#This Row],[Erstzulassungsdatum]]=\"\",\"\",YEAR(report1737987713132[[#This Row],[Erstzulassungsdatum]]))","v":2025},"Deliver 7",""]
["LSH14J7C5SV122048","Maxus_CH","(e)Deliver 7","Deliver 7 VAN L2H1 FWD","Dual Sliding Door","a0pQC00000DMxYH","26.09.2025","M9253015133","Diesel",{"$f":"IF(report1737987713132[[#This Row],[Erstzulassungsdatum]]=\"\",\"\",YEAR(report1737987713132[[#This Row],[Erstzulassungsdatum]]))","v":2025},"Deliver 7",""]
["LSFAM11C3SA098504","Maxus_CH","T60 MAX","T60 MAX","AWD","a0pQC00000FBTso","26.09.2025","M9255029052","Diesel",{"$f":"IF(report1737987713132[[#This Row],[Erstzulassungsdatum]]=\"\",\"\",YEAR(report1737987713132[[#This Row],[Erstzulassungsdatum]]))","v":2025},"T60 Max","2025-04-30"]
["LSFAM11C8SA109027","Maxus_CH","T60 MAX","T60 MAX","AWD","a0pQC00000FBTso","26.09.2025","M9256034948","Diesel",{"$f":"IF(report1737987713132[[#This Row],[Erstzulassungsdatum]]=\"\",\"\",YEAR(report1737987713132[[#This Row],[Erstzulassungsdatum]]))","v":2025},"T60 Max","2025-05-31"]
["LSFAM11CXSA109031","Maxus_CH","T60 MAX","T60 MAX","AWD","a0pQC00000FBTso","26.09.2025","M9256035860","Diesel",{"$f":"IF(report1737987713132[[#This Row],[Erstzulassungsdatum]]=\"\",\"\",YEAR(report1737987713132[[#This Row],[Erstzulassungsdatum]]))","v":2025},"T60 Max","2025-05-31"]
["LSFAM11C4SA109042","Maxus_CH","T60 MAX","T60 MAX","AWD","a0pQC00000FBTso","26.09.2025","M9256035200","Diesel",{"$f":"IF(report1737987713132[[#This Row],[Erstzulassungsdatum]]=\"\",\"\",YEAR(report1737987713132[[#This Row],[Erstzulassungsdatum]]))","v":2025},"T60 Max","2025-05-31"]
["LSH14J4C5NA177079","Maxus_CH","(e)Deliver 9","eDeliver 9 VAN L3H2","FWD 52kWh","a0pQC00000DMtZa","26.09.2024","914600P00034NB250411","Electric",{"$f":"IF(report1737987713132[[#This Row],[Erstzulassungsdatum]]=\"\",\"\",YEAR(report1737987713132[[#This Row],[Erstzulassungsdatum]]))","v":2024},"eDeliver 9",""]
["LSH14J4CXPA100680","Maxus_CH","(e)Deliver 9","eDeliver 9 VAN L3H2","72kWh","a0pQC00000DMtZe","26.09.2024","919181P00034P5170229","Electric",{"$f":"IF(report1737987713132[[#This Row],[Erstzulassungsdatum]]=\"\",\"\",YEAR(report1737987713132[[#This Row],[Erstzulassungsdatum]]))","v":2024},"eDeliver 9",""]
["LSH14J4CXNA069010","Maxus_CH","(e)Deliver 9","eDeliver 9 VAN L3H3","FWD 88kWh","a0pQC00000DN1K6","26.09.2024","914600P00034N8100008","Electric",{"$f":"IF(report1737987713132[[#This Row],[Erstzulassungsdatum]]=\"\",\"\",YEAR(report1737987713132[[#This Row],[Erstzulassungsdatum]]))","v":2024},"eDeliver 9",""]
["LSH14J4C4NA825110","Maxus_CH","(e)Deliver 9","eDeliver 9 VAN L3H3","FWD 72kWh","a0pQC00000DN1K5","26.09.2023","914600P00034NB190141","Electric",{"$f":"IF(report1737987713132[[#This Row],[Erstzulassungsdatum]]=\"\",\"\",YEAR(report1737987713132[[#This Row],[Erstzulassungsdatum]]))","v":2023},"eDeliver 9",""]
["LSH14C4C0RD056444","Maxus_CH","eDeliver 3","eDeliver 3 VAN L1H1 FWD","50kWh","a0pQC00000DMhJw","26.08.2025","916145P03299R4090064","Electric",{"$f":"IF(report1737987713132[[#This Row],[Erstzulassungsdatum]]=\"\",\"\",YEAR(report1737987713132[[#This Row],[Erstzulassungsdatum]]))","v":2025},"eDeliver 3",""]
["LSH14J4C3RA107683","Maxus_CH","(e)Deliver 9","eDeliver 9 VAN L3H2","FWD 88kWh","a0pQC00000DMtZj","26.08.2025","915046P03299R3230109","Electric",{"$f":"IF(report1737987713132[[#This Row],[Erstzulassungsdatum]]=\"\",\"\",YEAR(report1737987713132[[#This Row],[Erstzulassungsdatum]]))","v":2025},"eDeliver 9",""]
["LSH14J7C3SV122064","Maxus_CH","(e)Deliver 7","Deliver 7 VAN L2H1 FWD","-","a0pQC00000DMxYG","26.08.2025","M9254021821","Diesel",{"$f":"IF(report1737987713132[[#This Row],[Erstzulassungsdatum]]=\"\",\"\",YEAR(report1737987713132[[#This Row],[Erstzulassungsdatum]]))","v":2025},"Deliver 7",""]
["LSFAM11C7SA098506","Maxus_CH","T60 MAX","T60 MAX","AWD","a0pQC00000FBTso","26.08.2025","M9255028786","Diesel",{"$f":"IF(report1737987713132[[#This Row],[Erstzulassungsdatum]]=\"\",\"\",YEAR(report1737987713132[[#This Row],[Erstzulassungsdatum]]))","v":2025},"T60 Max","2025-04-30"]
["LSFAM11C8SA098501","Maxus_CH","T60 MAX","T60 MAX","AWD","a0pQC00000FBTso","26.08.2025","M9255028788","Diesel",{"$f":"IF(report1737987713132[[#This Row],[Erstzulassungsdatum]]=\"\",\"\",YEAR(report1737987713132[[#This Row],[Erstzulassungsdatum]]))","v":2025},"T60 Max","2025-04-30"]
["LSH14J4C7RV121787","Maxus_CH","(e)Deliver 7","eDeliver 7 VAN L1H1 FWD","77kWh","a0pQC00000DMveU","26.08.2024","917164P03299PC090164","Electric",{"$f":"IF(report1737987713132[[#This Row],[Erstzulassungsdatum]]=\"\",\"\",YEAR(report1737987713132[[#This Row],[Erstzulassungsdatum]]))","v":2024},"eDeliver 7",""]
["LSH14J4C0LA050382","Maxus_CH","EV80 PV","OLDEV80 PV","VE8P","a0pQC00000DhYVe","26.08.2020","104125P01109L3160009","",{"$f":"IF(report1737987713132[[#This Row],[Erstzulassungsdatum]]=\"\",\"\",YEAR(report1737987713132[[#This Row],[Erstzulassungsdatum]]))","v":2020},"EV 80",""]
["LSH14J4C3RV120636","Maxus_CH","(e)Deliver 7","eDeliver 7 VAN L1H1 FWD","77kWh","a0pQC00000DMveU","26.07.2024","917164P03299PB170050","Electric",{"$f":"IF(report1737987713132[[#This Row],[Erstzulassungsdatum]]=\"\",\"\",YEAR(report1737987713132[[#This Row],[Erstzulassungsdatum]]))","v":2024},"eDeliver 7",""]
["LSH14J4C5RV120685","Maxus_CH","(e)Deliver 7","eDeliver 7 VAN L1H1 FWD","88kWh","a0pQC00000DMveV","26.07.2024","917164P03299P9070082","Electric",{"$f":"IF(report1737987713132[[#This Row],[Erstzulassungsdatum]]=\"\",\"\",YEAR(report1737987713132[[#This Row],[Erstzulassungsdatum]]))","v":2024},"eDeliver 7",""]
["LSKG48C19RD042821","Maxus_CH","MIFA 9","MIFA 9 Luxury","90kWh 8-Seater","a0pQC00000DN1aE","26.07.2024","A123C13A10136709","Electric",{"$f":"IF(report1737987713132[[#This Row],[Erstzulassungsdatum]]=\"\",\"\",YEAR(report1737987713132[[#This Row],[Erstzulassungsdatum]]))","v":2024},"Mifa 9",""]
["LSH14C4CXLA116075","Maxus_CH","EV30 PV","OLDEV30 PV","VEV3P","a0pQC00000DhecN","26.07.2021","912832P00044L8126023","",{"$f":"IF(report1737987713132[[#This Row],[Erstzulassungsdatum]]=\"\",\"\",YEAR(report1737987713132[[#This Row],[Erstzulassungsdatum]]))","v":2021},"eDeliver 3",""]
["LSH14J7C4PA108902","Maxus_CH","(e)Deliver 9","Deliver 9 VAN L3H2 FWD","Luxury","a0pQC00000DMlx3","26.06.2025","M923A089754","Diesel",{"$f":"IF(report1737987713132[[#This Row],[Erstzulassungsdatum]]=\"\",\"\",YEAR(report1737987713132[[#This Row],[Erstzulassungsdatum]]))","v":2025},"Deliver 9",""]
["LSH14J7C5PA108911","Maxus_CH","(e)Deliver 9","Deliver 9 VAN L3H2 FWD","Luxury","a0pQC00000DMlx3","26.06.2025","M923A089476","Diesel",{"$f":"IF(report1737987713132[[#This Row],[Erstzulassungsdatum]]=\"\",\"\",YEAR(report1737987713132[[#This Row],[Erstzulassungsdatum]]))","v":2025},"Deliver 9",""]
["LSH14J7C3PA189455","Maxus_CH","(e)Deliver 9","Deliver 9 VAN L3H2 FWD","Comfort","a0pQC00000DMlx4","26.06.2025","M923B100663","Diesel",{"$f":"IF(report1737987713132[[#This Row],[Erstzulassungsdatum]]=\"\",\"\",YEAR(report1737987713132[[#This Row],[Erstzulassungsdatum]]))","v":2025},"Deliver 9",""]
["LSH14J7C6PA107377","Maxus_CH","(e)Deliver 9","Deliver 9 VAN L3H2 RWD","Luxury","a0pQC00000DN0uH","26.06.2025","M9235045599","Diesel",{"$f":"IF(report1737987713132[[#This Row],[Erstzulassungsdatum]]=\"\",\"\",YEAR(report1737987713132[[#This Row],[Erstzulassungsdatum]]))","v":2025},"Deliver 9",""]
["LSH14J7C7PA107338","Maxus_CH","(e)Deliver 9","Deliver 9 VAN L3H2 RWD","Comfort","a0pQC00000DN0uI","26.06.2025","M9235046097","Diesel",{"$f":"IF(report1737987713132[[#This Row],[Erstzulassungsdatum]]=\"\",\"\",YEAR(report1737987713132[[#This Row],[Erstzulassungsdatum]]))","v":2025},"Deliver 9",""]
["LSH14J4C0PA100994","Maxus_CH","(e)Deliver 9","eDeliver 9 VAN L3H2","72kWh","a0pQC00000DMtZe","26.06.2025","919181P00034P6260053","Electric",{"$f":"IF(report1737987713132[[#This Row],[Erstzulassungsdatum]]=\"\",\"\",YEAR(report1737987713132[[#This Row],[Erstzulassungsdatum]]))","v":2025},"eDeliver 9",""]
["LSH14J4C9NA801319","Maxus_CH","(e)Deliver 9","eDeliver 9 VAN L3H3","FWD 88kWh","a0pQC00000DN1K6","26.06.2025","914600P00034N8240025","Electric",{"$f":"IF(report1737987713132[[#This Row],[Erstzulassungsdatum]]=\"\",\"\",YEAR(report1737987713132[[#This Row],[Erstzulassungsdatum]]))","v":2025},"eDeliver 9",""]
["LSH14J7C9SV121517","Maxus_CH","(e)Deliver 7","Deliver 7 VAN L2H1 FWD","-","a0pQC00000DMxYG","26.06.2025","M9252007871","Diesel",{"$f":"IF(report1737987713132[[#This Row],[Erstzulassungsdatum]]=\"\",\"\",YEAR(report1737987713132[[#This Row],[Erstzulassungsdatum]]))","v":2025},"Deliver 7",""]
["LSKG48C12RD042823","Maxus_CH","MIFA 9","MIFA 9 Luxury","90kWh 8-Seater","a0pQC00000DN1aE","26.06.2025","A123C25A10138380","Electric",{"$f":"IF(report1737987713132[[#This Row],[Erstzulassungsdatum]]=\"\",\"\",YEAR(report1737987713132[[#This Row],[Erstzulassungsdatum]]))","v":2025},"Mifa 9",""]
["LSFAL160XRA138671","Maxus_CH","eTerron 9","eTerron 9 Luxury","AWD 102kWh","a0pQC00000FQqlf","26.06.2025","","Electric",{"$f":"IF(report1737987713132[[#This Row],[Erstzulassungsdatum]]=\"\",\"\",YEAR(report1737987713132[[#This Row],[Erstzulassungsdatum]]))","v":2025},"eTerron 9",""]
["LSH14J4C5NA057542","Maxus_CH","(e)Deliver 9","eDeliver 9 VAN L3H2","FWD 72kWh","a0pQC00000DMtZb","26.06.2024","915536P00034N1220090","Electric",{"$f":"IF(report1737987713132[[#This Row],[Erstzulassungsdatum]]=\"\",\"\",YEAR(report1737987713132[[#This Row],[Erstzulassungsdatum]]))","v":2024},"eDeliver 9",""]
["LSH14J4CXRV120682","Maxus_CH","(e)Deliver 7","eDeliver 7 VAN L2H1 FWD","77kWh","a0pQC00000DMo23","26.06.2024","917164P03299PC250153","Electric",{"$f":"IF(report1737987713132[[#This Row],[Erstzulassungsdatum]]=\"\",\"\",YEAR(report1737987713132[[#This Row],[Erstzulassungsdatum]]))","v":2024},"eDeliver 7",""]
["LSKG48C13RD041745","Maxus_CH","MIFA 9","MIFA 9 Luxury","90kWh 8-Seater","a0pQC00000DN1aE","26.06.2024","A123B28A10134893","Electric",{"$f":"IF(report1737987713132[[#This Row],[Erstzulassungsdatum]]=\"\",\"\",YEAR(report1737987713132[[#This Row],[Erstzulassungsdatum]]))","v":2024},"Mifa 9",""]
["LSH14J7C4RV125467","Maxus_CH","(e)Deliver 7","Deliver 7 VAN L2H1 FWD","-","a0pQC00000DMxYG","26.03.2025","M9249058590","Diesel",{"$f":"IF(report1737987713132[[#This Row],[Erstzulassungsdatum]]=\"\",\"\",YEAR(report1737987713132[[#This Row],[Erstzulassungsdatum]]))","v":2025},"Deliver 7",""]
["LSH14C4C7MA122742","Maxus_CH","EV30 PV","OLDEV30 PV","VEV3P","a0pQC00000DhecN","26.03.2024","918674P00044M9036043","",{"$f":"IF(report1737987713132[[#This Row],[Erstzulassungsdatum]]=\"\",\"\",YEAR(report1737987713132[[#This Row],[Erstzulassungsdatum]]))","v":2024},"eDeliver 3",""]
["LSH14C4C0LA080039","Maxus_CH","EV30 PV","OLDEV30 PV","VEV3P","a0pQC00000DhecN","26.03.2021","912832P00044L5206033","",{"$f":"IF(report1737987713132[[#This Row],[Erstzulassungsdatum]]=\"\",\"\",YEAR(report1737987713132[[#This Row],[Erstzulassungsdatum]]))","v":2021},"eDeliver 3",""]
["LSH14J7CXRV125456","Maxus_CH","(e)Deliver 7","Deliver 7 VAN L2H1 FWD","-","a0pQC00000DMxYG","26.02.2025","M9248051995","Diesel",{"$f":"IF(report1737987713132[[#This Row],[Erstzulassungsdatum]]=\"\",\"\",YEAR(report1737987713132[[#This Row],[Erstzulassungsdatum]]))","v":2025},"Deliver 7",""]
["LSKG47C1XPD043967","Maxus_CH","9999","GREY IMPORTER DUMMIE","EV30-OD","a0pQC00000ECYih","26.02.2024","","",{"$f":"IF(report1737987713132[[#This Row],[Erstzulassungsdatum]]=\"\",\"\",YEAR(report1737987713132[[#This Row],[Erstzulassungsdatum]]))","v":2024},null,""]
["LSKG48C1XRD054699","Maxus_CH","MIFA 7","MIFA 7 Premium","90kWh","a0pQC00000DYs3P","25.10.2024","A123B08B10008475","Electric",{"$f":"IF(report1737987713132[[#This Row],[Erstzulassungsdatum]]=\"\",\"\",YEAR(report1737987713132[[#This Row],[Erstzulassungsdatum]]))","v":2024},"Mifa 7",""]
["LSH14J4C3RD055986","Maxus_CH","eDeliver 5","eDeliver 5 VAN L1H1 FWD","64kWh","a0pQC00000DMtZm","25.10.2024","911693P03299R4280017","Electric",{"$f":"IF(report1737987713132[[#This Row],[Erstzulassungsdatum]]=\"\",\"\",YEAR(report1737987713132[[#This Row],[Erstzulassungsdatum]]))","v":2024},"eDeliver 5",""]
["LSH14J4C5RV121822","Maxus_CH","(e)Deliver 7","eDeliver 7 VAN L1H1 FWD","77kWh","a0pQC00000DMveU","25.09.2025","917164P03299R1040042","Electric",{"$f":"IF(report1737987713132[[#This Row],[Erstzulassungsdatum]]=\"\",\"\",YEAR(report1737987713132[[#This Row],[Erstzulassungsdatum]]))","v":2025},"eDeliver 7",""]
["LSH15J5C0SV121518","Maxus_CH","(e)Deliver 7","eDeliver 7 VAN L1H1 AWD","88kWh","a0pQC00000DN1Ov","25.09.2025","918787P06014RA010028","Electric",{"$f":"IF(report1737987713132[[#This Row],[Erstzulassungsdatum]]=\"\",\"\",YEAR(report1737987713132[[#This Row],[Erstzulassungsdatum]]))","v":2025},"eDeliver 7",""]
["LSFAM11C1SA074265","Maxus_CH","T60 MAX","T60 MAX","AWD","a0pQC00000FBTso","25.09.2025","M9252007582","Diesel",{"$f":"IF(report1737987713132[[#This Row],[Erstzulassungsdatum]]=\"\",\"\",YEAR(report1737987713132[[#This Row],[Erstzulassungsdatum]]))","v":2025},"T60 Max","2025-01-31"]
["LSFAM11C2SA109024","Maxus_CH","T60 MAX","T60 MAX","AWD","a0pQC00000FBTso","25.09.2025","M9256035199","Diesel",{"$f":"IF(report1737987713132[[#This Row],[Erstzulassungsdatum]]=\"\",\"\",YEAR(report1737987713132[[#This Row],[Erstzulassungsdatum]]))","v":2025},"T60 Max","2025-05-31"]
["LSH14J7C9SV122053","Maxus_CH","(e)Deliver 7","Deliver 7 VAN L2H1 FWD","-","a0pQC00000DMxYG","25.08.2025","M9254022708","Diesel",{"$f":"IF(report1737987713132[[#This Row],[Erstzulassungsdatum]]=\"\",\"\",YEAR(report1737987713132[[#This Row],[Erstzulassungsdatum]]))","v":2025},"Deliver 7",""]
["LSFAM11C3SA098485","Maxus_CH","T60 MAX","T60 MAX","AWD","a0pQC00000FBTso","25.08.2025","M9255027791","Diesel",{"$f":"IF(report1737987713132[[#This Row],[Erstzulassungsdatum]]=\"\",\"\",YEAR(report1737987713132[[#This Row],[Erstzulassungsdatum]]))","v":2025},"T60 Max","2025-04-30"]
["LSH14J4C2NA057255","Maxus_CH","(e)Deliver 9","eDeliver 9 VAN L3H3","FWD 72kWh","a0pQC00000DN1K5","25.08.2023","914600P00034N8150065","Electric",{"$f":"IF(report1737987713132[[#This Row],[Erstzulassungsdatum]]=\"\",\"\",YEAR(report1737987713132[[#This Row],[Erstzulassungsdatum]]))","v":2023},"eDeliver 9",""]
["LSH14J7C4PA189433","Maxus_CH","(e)Deliver 9","Deliver 9 VAN L3H2 FWD","Comfort","a0pQC00000DMlx4","25.06.2025","M923B100316","Diesel",{"$f":"IF(report1737987713132[[#This Row],[Erstzulassungsdatum]]=\"\",\"\",YEAR(report1737987713132[[#This Row],[Erstzulassungsdatum]]))","v":2025},"Deliver 9",""]
["LSH14J4C5PA086090","Maxus_CH","(e)Deliver 9","eDeliver 9 VAN L2H2","FWD 52kWh Pack Plus","a0pQC00000DMtxj","25.06.2025","914600P00034NC050194","Electric",{"$f":"IF(report1737987713132[[#This Row],[Erstzulassungsdatum]]=\"\",\"\",YEAR(report1737987713132[[#This Row],[Erstzulassungsdatum]]))","v":2025},"eDeliver 9",""]
["LSKG48C13ND069698","Maxus_CH","MIFA 9","MIFA 9 Luxury","90kWh 7-Seater","a0pQC00000DN1aD","25.06.2025","A122B05A10115352","Electric",{"$f":"IF(report1737987713132[[#This Row],[Erstzulassungsdatum]]=\"\",\"\",YEAR(report1737987713132[[#This Row],[Erstzulassungsdatum]]))","v":2025},"Mifa 9",""]
["LSFAM11C0SA074256","Maxus_CH","T60 MAX","T60 MAX","AWD","a0pQC00000FBTso","25.06.2025","M9252007571","Diesel",{"$f":"IF(report1737987713132[[#This Row],[Erstzulassungsdatum]]=\"\",\"\",YEAR(report1737987713132[[#This Row],[Erstzulassungsdatum]]))","v":2025},"T60 Max","2025-01-31"]
["LSFAL1107KA102949","Maxus_CH","EV80 CC","OLDEV80 CC","VE8C","a0pQC00000DhUIg","25.06.2021","105855P01109KB260008","",{"$f":"IF(report1737987713132[[#This Row],[Erstzulassungsdatum]]=\"\",\"\",YEAR(report1737987713132[[#This Row],[Erstzulassungsdatum]]))","v":2021},"EV 80",""]
["LSH14J4C8KA097187","Maxus_CH","EV80 PV","OLDEV80 PV","VE8P","a0pQC00000DhYVe","25.06.2020","105855P01109K8280008","",{"$f":"IF(report1737987713132[[#This Row],[Erstzulassungsdatum]]=\"\",\"\",YEAR(report1737987713132[[#This Row],[Erstzulassungsdatum]]))","v":2020},"EV 80",""]
["LSH14J4C8RV123046","Maxus_CH","(e)Deliver 7","eDeliver 7 VAN L1H1 FWD","88kWh","a0pQC00000DMveV","25.04.2025","917164P03299R3280081","Electric",{"$f":"IF(report1737987713132[[#This Row],[Erstzulassungsdatum]]=\"\",\"\",YEAR(report1737987713132[[#This Row],[Erstzulassungsdatum]]))","v":2025},"eDeliver 7",""]
["LSFAL160XRA138668","Maxus_CH","eTerron 9","eTerron 9 Luxury","AWD 102kWh Black Met","a0pQC00000FQqle","25.04.2025","","Electric",{"$f":"IF(report1737987713132[[#This Row],[Erstzulassungsdatum]]=\"\",\"\",YEAR(report1737987713132[[#This Row],[Erstzulassungsdatum]]))","v":2025},"eTerron 9",""]
["LSH14J7C8RV125455","Maxus_CH","(e)Deliver 7","Deliver 7 VAN L2H1 FWD","Dual Sliding Door","a0pQC00000DMxYH","25.03.2025","M9249057987","Diesel",{"$f":"IF(report1737987713132[[#This Row],[Erstzulassungsdatum]]=\"\",\"\",YEAR(report1737987713132[[#This Row],[Erstzulassungsdatum]]))","v":2025},"Deliver 7",""]
["LSH14J7CXRV125487","Maxus_CH","(e)Deliver 7","Deliver 7 VAN L2H1 FWD","-","a0pQC00000DMxYG","25.02.2025","M924A059521","Diesel",{"$f":"IF(report1737987713132[[#This Row],[Erstzulassungsdatum]]=\"\",\"\",YEAR(report1737987713132[[#This Row],[Erstzulassungsdatum]]))","v":2025},"Deliver 7",""]
["LSH14J7C5RV125459","Maxus_CH","(e)Deliver 7","Deliver 7 VAN L2H1 FWD","Dual Sliding Door","a0pQC00000DMxYH","25.02.2025","M9249057992","Diesel",{"$f":"IF(report1737987713132[[#This Row],[Erstzulassungsdatum]]=\"\",\"\",YEAR(report1737987713132[[#This Row],[Erstzulassungsdatum]]))","v":2025},"Deliver 7",""]
["LSH14C4C8NA078039","Maxus_CH","eDeliver 3","eDeliver 3 VAN L2H1 FWD","50kWh","a0pQC00000DMpio","25.01.2023","910851P00044N7236039","Electric",{"$f":"IF(report1737987713132[[#This Row],[Erstzulassungsdatum]]=\"\",\"\",YEAR(report1737987713132[[#This Row],[Erstzulassungsdatum]]))","v":2023},"eDeliver 3",""]
["LSH14J4C3MA121690","Maxus_CH","(e)Deliver 9","eDeliver 9 VAN L3H2","FWD 88kWh","a0pQC00000DMtZc","24.11.2022","914600P00034N5230073","Electric",{"$f":"IF(report1737987713132[[#This Row],[Erstzulassungsdatum]]=\"\",\"\",YEAR(report1737987713132[[#This Row],[Erstzulassungsdatum]]))","v":2022},"eDeliver 9",""]
["LSH14J7C4PA189416","Maxus_CH","(e)Deliver 9","Deliver 9 VAN L3H2 FWD","Comfort","a0pQC00000DMlx4","24.09.2024","M923B099960","Diesel",{"$f":"IF(report1737987713132[[#This Row],[Erstzulassungsdatum]]=\"\",\"\",YEAR(report1737987713132[[#This Row],[Erstzulassungsdatum]]))","v":2024},"Deliver 9",""]
["LSH14J7C7PA109011","Maxus_CH","(e)Deliver 9","Deliver 9 VAN L3H2 FWD","Comfort","a0pQC00000DMlx4","24.09.2024","M923B097303","Diesel",{"$f":"IF(report1737987713132[[#This Row],[Erstzulassungsdatum]]=\"\",\"\",YEAR(report1737987713132[[#This Row],[Erstzulassungsdatum]]))","v":2024},"Deliver 9",""]
["LSH14J4C0RV122604","Maxus_CH","(e)Deliver 7","eDeliver 7 VAN L1H1 FWD","88kWh","a0pQC00000DMveV","24.09.2024","917164P03299R4030160","Electric",{"$f":"IF(report1737987713132[[#This Row],[Erstzulassungsdatum]]=\"\",\"\",YEAR(report1737987713132[[#This Row],[Erstzulassungsdatum]]))","v":2024},"eDeliver 7",""]
["LSFAL1606RA138702","Maxus_CH","eTerron 9","eTerron 9 Premium","AWD 102kWh Black Met (Black&White Interior)","a0pQC00000FQlNo","24.07.2025","","Electric",{"$f":"IF(report1737987713132[[#This Row],[Erstzulassungsdatum]]=\"\",\"\",YEAR(report1737987713132[[#This Row],[Erstzulassungsdatum]]))","v":2025},"eTerron 9",""]
["LSH14J7C4PA108933","Maxus_CH","(e)Deliver 9","Deliver 9 VAN L3H2 FWD","Luxury","a0pQC00000DMlx3","24.06.2025","M923A088820","Diesel",{"$f":"IF(report1737987713132[[#This Row],[Erstzulassungsdatum]]=\"\",\"\",YEAR(report1737987713132[[#This Row],[Erstzulassungsdatum]]))","v":2025},"Deliver 9",""]
["LSFAM11C3SA074266","Maxus_CH","T60 MAX","T60 MAX","AWD","a0pQC00000FBTso","24.06.2025","M9252007574","Diesel",{"$f":"IF(report1737987713132[[#This Row],[Erstzulassungsdatum]]=\"\",\"\",YEAR(report1737987713132[[#This Row],[Erstzulassungsdatum]]))","v":2025},"T60 Max","2025-01-31"]
["LSFAM11CXSA074264","Maxus_CH","T60 MAX","T60 MAX","AWD","a0pQC00000FBTso","24.06.2025","M9252007576","Diesel",{"$f":"IF(report1737987713132[[#This Row],[Erstzulassungsdatum]]=\"\",\"\",YEAR(report1737987713132[[#This Row],[Erstzulassungsdatum]]))","v":2025},"T60 Max","2025-01-31"]
["LSH15J5C9RV126128","Maxus_CH","(e)Deliver 7","eDeliver 7 VAN L2H1 AWD","88kWh","a0pQC00000DMnfa","24.04.2025","","Electric",{"$f":"IF(report1737987713132[[#This Row],[Erstzulassungsdatum]]=\"\",\"\",YEAR(report1737987713132[[#This Row],[Erstzulassungsdatum]]))","v":2025},"eDeliver 7",""]
["LSH14J4C3RD059486","Maxus_CH","eDeliver 5","eDeliver 5 VAN L1H1 FWD","64kWh","a0pQC00000DMtZm","24.04.2025","911693P03299R5160094","Electric",{"$f":"IF(report1737987713132[[#This Row],[Erstzulassungsdatum]]=\"\",\"\",YEAR(report1737987713132[[#This Row],[Erstzulassungsdatum]]))","v":2025},"eDeliver 5",""]
["LSH15J5C8RV126136","Maxus_CH","(e)Deliver 7","eDeliver 7 VAN L1H1 AWD","88kWh","a0pQC00000DN1Ov","24.03.2025","918787P06014R9250031","Electric",{"$f":"IF(report1737987713132[[#This Row],[Erstzulassungsdatum]]=\"\",\"\",YEAR(report1737987713132[[#This Row],[Erstzulassungsdatum]]))","v":2025},"eDeliver 7",""]
["LSKG47C1XPD043547","Maxus_CH","9999","GREY IMPORTER DUMMIE","MIFA 9-OD","a0pQC00000ECYim","24.01.2025","","",{"$f":"IF(report1737987713132[[#This Row],[Erstzulassungsdatum]]=\"\",\"\",YEAR(report1737987713132[[#This Row],[Erstzulassungsdatum]]))","v":2025},null,""]
["LSH14C4C3PA093311","Maxus_CH","eDeliver 3","eDeliver 3 VAN L1H1 FWD","50kWh","a0pQC00000DJbxP","23.12.2024","916502P03299P1040170","Electric",{"$f":"IF(report1737987713132[[#This Row],[Erstzulassungsdatum]]=\"\",\"\",YEAR(report1737987713132[[#This Row],[Erstzulassungsdatum]]))","v":2024},"eDeliver 3",""]
["LSKG48C15RD041777","Maxus_CH","MIFA 7","MIFA 7 Premium","90kWh","a0pQC00000DMtmO","23.12.2024","A123B08B10008364","Electric",{"$f":"IF(report1737987713132[[#This Row],[Erstzulassungsdatum]]=\"\",\"\",YEAR(report1737987713132[[#This Row],[Erstzulassungsdatum]]))","v":2024},"Mifa 7",""]
["LSKG48C17RD042820","Maxus_CH","MIFA 9","MIFA 9 Luxury","90kWh 8-Seater","a0pQC00000DN1aE","23.12.2024","","Electric",{"$f":"IF(report1737987713132[[#This Row],[Erstzulassungsdatum]]=\"\",\"\",YEAR(report1737987713132[[#This Row],[Erstzulassungsdatum]]))","v":2024},"Mifa 9",""]
["LSH14J7C5PA109010","Maxus_CH","(e)Deliver 9","Deliver 9 VAN L3H2 FWD","Comfort","a0pQC00000DMlx4","23.11.2024","M923B097237","Diesel",{"$f":"IF(report1737987713132[[#This Row],[Erstzulassungsdatum]]=\"\",\"\",YEAR(report1737987713132[[#This Row],[Erstzulassungsdatum]]))","v":2024},"Deliver 9",""]
["LSH14J7C5PA108729","Maxus_CH","(e)Deliver 9","Deliver 9 VAN L3H2 FWD","Luxury","a0pQC00000DMlx3","23.10.2024","M923A089915","Diesel",{"$f":"IF(report1737987713132[[#This Row],[Erstzulassungsdatum]]=\"\",\"\",YEAR(report1737987713132[[#This Row],[Erstzulassungsdatum]]))","v":2024},"Deliver 9",""]
["LSFAM1200PA066332","Maxus_CH","T90 EV","T90 EV Pick Up RWD","89kWh","a0pQC00000DMoF4","23.09.2024","917939P04016NA250224","Electric",{"$f":"IF(report1737987713132[[#This Row],[Erstzulassungsdatum]]=\"\",\"\",YEAR(report1737987713132[[#This Row],[Erstzulassungsdatum]]))","v":2024},"T90 EV",""]
["LSH14J4C1NA057540","Maxus_CH","(e)Deliver 9","eDeliver 9 VAN L3H2","FWD 72kWh","a0pQC00000DMtZb","23.09.2022","915536P00034MC230005","Electric",{"$f":"IF(report1737987713132[[#This Row],[Erstzulassungsdatum]]=\"\",\"\",YEAR(report1737987713132[[#This Row],[Erstzulassungsdatum]]))","v":2022},"eDeliver 9",""]
["LSH14J7C9PA105753","Maxus_CH","(e)Deliver 9","Deliver 9 VAN L3H2 FWD","Luxury","a0pQC00000DMlx3","23.08.2024","M9239085158","Diesel",{"$f":"IF(report1737987713132[[#This Row],[Erstzulassungsdatum]]=\"\",\"\",YEAR(report1737987713132[[#This Row],[Erstzulassungsdatum]]))","v":2024},"Deliver 9",""]
["LSH14J7C7PA109008","Maxus_CH","(e)Deliver 9","Deliver 9 VAN L3H2 FWD","Comfort","a0pQC00000DMlx4","23.08.2024","M923B097269","Diesel",{"$f":"IF(report1737987713132[[#This Row],[Erstzulassungsdatum]]=\"\",\"\",YEAR(report1737987713132[[#This Row],[Erstzulassungsdatum]]))","v":2024},"Deliver 9",""]
["LSH14J4C5NA057251","Maxus_CH","(e)Deliver 9","eDeliver 9 VAN L3H3","FWD 72kWh","a0pQC00000DN1K5","23.08.2024","914600P00034N8150018","Electric",{"$f":"IF(report1737987713132[[#This Row],[Erstzulassungsdatum]]=\"\",\"\",YEAR(report1737987713132[[#This Row],[Erstzulassungsdatum]]))","v":2024},"eDeliver 9",""]
["LSH14J4C5NA823284","Maxus_CH","(e)Deliver 9","eDeliver 9 VAN L3H3","FWD 72kWh","a0pQC00000DN1K5","23.08.2024","914600P00034N9250546","Electric",{"$f":"IF(report1737987713132[[#This Row],[Erstzulassungsdatum]]=\"\",\"\",YEAR(report1737987713132[[#This Row],[Erstzulassungsdatum]]))","v":2024},"eDeliver 9",""]
["LSH14J4C7NA057266","Maxus_CH","(e)Deliver 9","eDeliver 9 VAN L3H3","FWD 88kWh","a0pQC00000DN1K6","23.08.2024","914600P00034N8150017","Electric",{"$f":"IF(report1737987713132[[#This Row],[Erstzulassungsdatum]]=\"\",\"\",YEAR(report1737987713132[[#This Row],[Erstzulassungsdatum]]))","v":2024},"eDeliver 9",""]
["LSKG48C10RD042822","Maxus_CH","MIFA 9","MIFA 9 Luxury","90kWh 8-Seater","a0pQC00000DN1aE","23.08.2024","A123C11A10136234","Electric",{"$f":"IF(report1737987713132[[#This Row],[Erstzulassungsdatum]]=\"\",\"\",YEAR(report1737987713132[[#This Row],[Erstzulassungsdatum]]))","v":2024},"Mifa 9",""]
["LSH14J7C4SV121618","Maxus_CH","(e)Deliver 7","Deliver 7 VAN L2H1 FWD","-","a0pQC00000DMxYG","23.07.2025","M9251003964","Diesel",{"$f":"IF(report1737987713132[[#This Row],[Erstzulassungsdatum]]=\"\",\"\",YEAR(report1737987713132[[#This Row],[Erstzulassungsdatum]]))","v":2025},"Deliver 7",""]
["LSH14J7C3SV121528","Maxus_CH","(e)Deliver 7","Deliver 7 VAN L2H1 FWD","-","a0pQC00000DMxYG","23.06.2025","M9251006630","Diesel",{"$f":"IF(report1737987713132[[#This Row],[Erstzulassungsdatum]]=\"\",\"\",YEAR(report1737987713132[[#This Row],[Erstzulassungsdatum]]))","v":2025},"Deliver 7",""]
["LSH14J7C4SV121523","Maxus_CH","(e)Deliver 7","Deliver 7 VAN L2H1 FWD","-","a0pQC00000DMxYG","23.06.2025","M9251003987","Diesel",{"$f":"IF(report1737987713132[[#This Row],[Erstzulassungsdatum]]=\"\",\"\",YEAR(report1737987713132[[#This Row],[Erstzulassungsdatum]]))","v":2025},"Deliver 7",""]
["LSH14J7C2RV125497","Maxus_CH","(e)Deliver 7","Deliver 7 VAN L2H1 FWD","-","a0pQC00000DMxYG","23.05.2025","M9249059196","Diesel",{"$f":"IF(report1737987713132[[#This Row],[Erstzulassungsdatum]]=\"\",\"\",YEAR(report1737987713132[[#This Row],[Erstzulassungsdatum]]))","v":2025},"Deliver 7",""]
["LSH14C4C5NA157958","Maxus_CH","eDeliver 3","eDeliver 3 VAN L1H1 FWD","50kWh","a0pQC00000DMhJv","23.05.2023","910851P00044N9186138","Electric",{"$f":"IF(report1737987713132[[#This Row],[Erstzulassungsdatum]]=\"\",\"\",YEAR(report1737987713132[[#This Row],[Erstzulassungsdatum]]))","v":2023},"eDeliver 3",""]
["LSH14C4C9PA096049","Maxus_CH","eDeliver 3","eDeliver 3 VAN L1H1 FWD","50kWh","a0pQC00000DJbxP","23.04.2025","916502P03299P2060080","Electric",{"$f":"IF(report1737987713132[[#This Row],[Erstzulassungsdatum]]=\"\",\"\",YEAR(report1737987713132[[#This Row],[Erstzulassungsdatum]]))","v":2025},"eDeliver 3",""]
["LSH14J7C0RV125465","Maxus_CH","(e)Deliver 7","Deliver 7 VAN L2H1 FWD","Dual Sliding Door","a0pQC00000DMxYH","23.04.2025","M9248051999","Diesel",{"$f":"IF(report1737987713132[[#This Row],[Erstzulassungsdatum]]=\"\",\"\",YEAR(report1737987713132[[#This Row],[Erstzulassungsdatum]]))","v":2025},"Deliver 7",""]
["LSH14J7C0RV125482","Maxus_CH","(e)Deliver 7","Deliver 7 VAN L2H1 FWD","Dual Sliding Door","a0pQC00000DMxYH","23.04.2025","M9248051991","Diesel",{"$f":"IF(report1737987713132[[#This Row],[Erstzulassungsdatum]]=\"\",\"\",YEAR(report1737987713132[[#This Row],[Erstzulassungsdatum]]))","v":2025},"Deliver 7",""]
["LSFAM11C7RA134558","Maxus_CH","T60 MAX","T60 MAX","AWD","a0pQC00000FBTso","23.04.2025","M924A064094","Diesel",{"$f":"IF(report1737987713132[[#This Row],[Erstzulassungsdatum]]=\"\",\"\",YEAR(report1737987713132[[#This Row],[Erstzulassungsdatum]]))","v":2025},"T60 Max","2024-09-30"]
["LSH14J4C2NA057532","Maxus_CH","(e)Deliver 9","eDeliver 9 VAN L2H2","FWD 72kWh Pack Plus","a0pQC00000DMtxk","22.12.2022","914600P00034N4190034","Electric",{"$f":"IF(report1737987713132[[#This Row],[Erstzulassungsdatum]]=\"\",\"\",YEAR(report1737987713132[[#This Row],[Erstzulassungsdatum]]))","v":2022},"eDeliver 9",""]
["LSH14C4C1LA116160","Maxus_CH","EV30 PV","OLDEV30 PV","VEV3P","a0pQC00000DhecN","22.11.2021","912832P00044L8126039","",{"$f":"IF(report1737987713132[[#This Row],[Erstzulassungsdatum]]=\"\",\"\",YEAR(report1737987713132[[#This Row],[Erstzulassungsdatum]]))","v":2021},"eDeliver 3",""]
["LSH14J7C2SV122069","Maxus_CH","(e)Deliver 7","Deliver 7 VAN L2H1 FWD","-","a0pQC00000DMxYG","22.09.2025","M9254023024","Diesel",{"$f":"IF(report1737987713132[[#This Row],[Erstzulassungsdatum]]=\"\",\"\",YEAR(report1737987713132[[#This Row],[Erstzulassungsdatum]]))","v":2025},"Deliver 7",""]
["LSFAM11CXSA092957","Maxus_CH","T60 MAX","T60 MAX","AWD","a0pQC00000FBTso","22.09.2025","M9254022746","Diesel",{"$f":"IF(report1737987713132[[#This Row],[Erstzulassungsdatum]]=\"\",\"\",YEAR(report1737987713132[[#This Row],[Erstzulassungsdatum]]))","v":2025},"T60 Max","2025-03-31"]
["LSH14J7C1SV122077","Maxus_CH","(e)Deliver 7","Deliver 7 VAN L2H1 FWD","-","a0pQC00000DMxYG","22.08.2025","M9253015129","Diesel",{"$f":"IF(report1737987713132[[#This Row],[Erstzulassungsdatum]]=\"\",\"\",YEAR(report1737987713132[[#This Row],[Erstzulassungsdatum]]))","v":2025},"Deliver 7",""]
["LSH14J7C1SV122063","Maxus_CH","(e)Deliver 7","Deliver 7 VAN L2H1 FWD","-","a0pQC00000DMxYG","22.08.2025","M9254022135","Diesel",{"$f":"IF(report1737987713132[[#This Row],[Erstzulassungsdatum]]=\"\",\"\",YEAR(report1737987713132[[#This Row],[Erstzulassungsdatum]]))","v":2025},"Deliver 7",""]
["LSH14J7C0SV122068","Maxus_CH","(e)Deliver 7","Deliver 7 VAN L2H1 FWD","-","a0pQC00000DMxYG","22.08.2025","M9253014529","Diesel",{"$f":"IF(report1737987713132[[#This Row],[Erstzulassungsdatum]]=\"\",\"\",YEAR(report1737987713132[[#This Row],[Erstzulassungsdatum]]))","v":2025},"Deliver 7",""]
["LSH14J7C3SV122050","Maxus_CH","(e)Deliver 7","Deliver 7 VAN L2H1 FWD","Dual Sliding Door","a0pQC00000DMxYH","22.08.2025","M9254022143","Diesel",{"$f":"IF(report1737987713132[[#This Row],[Erstzulassungsdatum]]=\"\",\"\",YEAR(report1737987713132[[#This Row],[Erstzulassungsdatum]]))","v":2025},"Deliver 7",""]
["LSFAM11C5SA098522","Maxus_CH","T60 MAX","T60 MAX","AWD","a0pQC00000FBTso","22.08.2025","M9255027574","Diesel",{"$f":"IF(report1737987713132[[#This Row],[Erstzulassungsdatum]]=\"\",\"\",YEAR(report1737987713132[[#This Row],[Erstzulassungsdatum]]))","v":2025},"T60 Max","2025-04-30"]
["LSFAM11C9SA098524","Maxus_CH","T60 MAX","T60 MAX","AWD","a0pQC00000FBTso","22.08.2025","M9255027572","Diesel",{"$f":"IF(report1737987713132[[#This Row],[Erstzulassungsdatum]]=\"\",\"\",YEAR(report1737987713132[[#This Row],[Erstzulassungsdatum]]))","v":2025},"T60 Max","2025-04-30"]
["LSH14J7C1PA108999","Maxus_CH","(e)Deliver 9","Deliver 9 VAN L3H2 FWD","Comfort","a0pQC00000DMlx4","22.08.2024","M923B097297","Diesel",{"$f":"IF(report1737987713132[[#This Row],[Erstzulassungsdatum]]=\"\",\"\",YEAR(report1737987713132[[#This Row],[Erstzulassungsdatum]]))","v":2024},"Deliver 9",""]
["LSH14C4C5MA122755","Maxus_CH","EV30 PV","OLDEV30 PV","VEV3P","a0pQC00000DhecN","22.08.2022","918674P00044MA246162","",{"$f":"IF(report1737987713132[[#This Row],[Erstzulassungsdatum]]=\"\",\"\",YEAR(report1737987713132[[#This Row],[Erstzulassungsdatum]]))","v":2022},"eDeliver 3",""]
["LSKG48C18ND069700","Maxus_CH","MIFA 9","MIFA 9 Luxury","90kWh 7-Seater","a0pQC00000DN1aD","22.07.2025","A122B03A10114848","Electric",{"$f":"IF(report1737987713132[[#This Row],[Erstzulassungsdatum]]=\"\",\"\",YEAR(report1737987713132[[#This Row],[Erstzulassungsdatum]]))","v":2025},"Mifa 9",""]
["LSH14J4C0RV120612","Maxus_CH","(e)Deliver 7","eDeliver 7 VAN L2H1 FWD","88kWh Dual Sliding Door","a0pQC00000DMo25","22.07.2024","917164P03299PC250061","Electric",{"$f":"IF(report1737987713132[[#This Row],[Erstzulassungsdatum]]=\"\",\"\",YEAR(report1737987713132[[#This Row],[Erstzulassungsdatum]]))","v":2024},"eDeliver 7",""]
["LSH14C4CXLA080078","Maxus_CH","EV30 PV","OLDEV30 PV","VEV3P","a0pQC00000DhecN","22.07.2021","912832P00044L5246053","",{"$f":"IF(report1737987713132[[#This Row],[Erstzulassungsdatum]]=\"\",\"\",YEAR(report1737987713132[[#This Row],[Erstzulassungsdatum]]))","v":2021},"eDeliver 3",""]
["LSFAL1605SA068101","Maxus_CH","eTerron 9","eTerron 9 Premium","AWD 102kWh (Black&White Interior)","a0pQC00000FQlNp","22.05.2025","TZ180XS0951A124405A002494","Electric",{"$f":"IF(report1737987713132[[#This Row],[Erstzulassungsdatum]]=\"\",\"\",YEAR(report1737987713132[[#This Row],[Erstzulassungsdatum]]))","v":2025},"eTerron 9",""]
["LSH14C4C1PA093307","Maxus_CH","eDeliver 3","eDeliver 3 VAN L1H1 FWD","50kWh","a0pQC00000DJbxP","22.05.2024","916502P03299NC290061","Electric",{"$f":"IF(report1737987713132[[#This Row],[Erstzulassungsdatum]]=\"\",\"\",YEAR(report1737987713132[[#This Row],[Erstzulassungsdatum]]))","v":2024},"eDeliver 3",""]
["LSH14C4C2NA157982","Maxus_CH","eDeliver 3","eDeliver 3 VAN L1H1 FWD","50kWh","a0pQC00000DMhJv","22.05.2024","910851P00044N9186052","Electric",{"$f":"IF(report1737987713132[[#This Row],[Erstzulassungsdatum]]=\"\",\"\",YEAR(report1737987713132[[#This Row],[Erstzulassungsdatum]]))","v":2024},"eDeliver 3",""]
["LSH14C4CXNA137141","Maxus_CH","eDeliver 3","eDeliver 3 VAN L2H1 FWD","50kWh","a0pQC00000DMpio","22.05.2024","910851P00044N8186073","Electric",{"$f":"IF(report1737987713132[[#This Row],[Erstzulassungsdatum]]=\"\",\"\",YEAR(report1737987713132[[#This Row],[Erstzulassungsdatum]]))","v":2024},"eDeliver 3",""]
["LSFAL1101MA114050","Maxus_CH","(e)Deliver 9","eDeliver 9 Cabine L3","FWD 65kWh","a0pQC00000DMoJk","22.05.2024","914600P00034N8150160","Electric",{"$f":"IF(report1737987713132[[#This Row],[Erstzulassungsdatum]]=\"\",\"\",YEAR(report1737987713132[[#This Row],[Erstzulassungsdatum]]))","v":2024},"eDeliver 9",""]
["LSFAM11C0RA134546","Maxus_CH","T60 MAX","T60 MAX","AWD","a0pQC00000FBTso","22.04.2025","M924B067744","Diesel",{"$f":"IF(report1737987713132[[#This Row],[Erstzulassungsdatum]]=\"\",\"\",YEAR(report1737987713132[[#This Row],[Erstzulassungsdatum]]))","v":2025},"T60 Max","2024-09-30"]
["LSH14C4C9LA080069","Maxus_CH","EV30 PV","OLDEV30 PV","VEV3P","a0pQC00000DhecN","22.03.2021","912832P00044L6106031","",{"$f":"IF(report1737987713132[[#This Row],[Erstzulassungsdatum]]=\"\",\"\",YEAR(report1737987713132[[#This Row],[Erstzulassungsdatum]]))","v":2021},"eDeliver 3",""]
["LSH14C4C5NA077995","Maxus_CH","eDeliver 3","eDeliver 3 VAN L2H1 FWD","50kWh","a0pQC00000DMpio","22.02.2023","910851P00044N7236023","Electric",{"$f":"IF(report1737987713132[[#This Row],[Erstzulassungsdatum]]=\"\",\"\",YEAR(report1737987713132[[#This Row],[Erstzulassungsdatum]]))","v":2023},"eDeliver 3",""]
["LSH14C4C1NA157987","Maxus_CH","eDeliver 3","eDeliver 3 VAN L1H1 FWD","50kWh","a0pQC00000DMhJv","21.12.2023","910851P00044N9176105","Electric",{"$f":"IF(report1737987713132[[#This Row],[Erstzulassungsdatum]]=\"\",\"\",YEAR(report1737987713132[[#This Row],[Erstzulassungsdatum]]))","v":2023},"eDeliver 3",""]
["LSH14C4C6NA157998","Maxus_CH","eDeliver 3","eDeliver 3 VAN L1H1 FWD","50kWh","a0pQC00000DMhJv","21.12.2023","910851P00044N9266014","Electric",{"$f":"IF(report1737987713132[[#This Row],[Erstzulassungsdatum]]=\"\",\"\",YEAR(report1737987713132[[#This Row],[Erstzulassungsdatum]]))","v":2023},"eDeliver 3",""]
["LSH14C4C1NA171131","Maxus_CH","eDeliver 3","eDeliver 3 VAN L1H1 FWD","50kWh","a0pQC00000DMhJv","21.12.2023","910851P00044NA176043","Electric",{"$f":"IF(report1737987713132[[#This Row],[Erstzulassungsdatum]]=\"\",\"\",YEAR(report1737987713132[[#This Row],[Erstzulassungsdatum]]))","v":2023},"eDeliver 3",""]
["LSH14C4C4NA157983","Maxus_CH","eDeliver 3","eDeliver 3 VAN L1H1 FWD","50kWh","a0pQC00000DMhJv","21.12.2023","910851P00044N9256114","Electric",{"$f":"IF(report1737987713132[[#This Row],[Erstzulassungsdatum]]=\"\",\"\",YEAR(report1737987713132[[#This Row],[Erstzulassungsdatum]]))","v":2023},"eDeliver 3",""]
["LSH14C4C8NA153175","Maxus_CH","eDeliver 3","eDeliver 3 VAN L1H1 FWD","50kWh","a0pQC00000DMhJv","21.12.2023","910851P00044N9186027","Electric",{"$f":"IF(report1737987713132[[#This Row],[Erstzulassungsdatum]]=\"\",\"\",YEAR(report1737987713132[[#This Row],[Erstzulassungsdatum]]))","v":2023},"eDeliver 3",""]
["LSH14C4C0NA150707","Maxus_CH","eDeliver 3","eDeliver 3 VAN L2H1 FWD","50kWh","a0pQC00000DMpio","21.12.2023","910851P00044N9156114","Electric",{"$f":"IF(report1737987713132[[#This Row],[Erstzulassungsdatum]]=\"\",\"\",YEAR(report1737987713132[[#This Row],[Erstzulassungsdatum]]))","v":2023},"eDeliver 3",""]
["LSH14C4C4NA150743","Maxus_CH","eDeliver 3","eDeliver 3 VAN L2H1 FWD","50kWh","a0pQC00000DMpio","21.12.2023","910851P00044N9156097","Electric",{"$f":"IF(report1737987713132[[#This Row],[Erstzulassungsdatum]]=\"\",\"\",YEAR(report1737987713132[[#This Row],[Erstzulassungsdatum]]))","v":2023},"eDeliver 3",""]
["LSH14C4CXNA058620","Maxus_CH","eDeliver 3","eDeliver 3 VAN L2H1 FWD","50kWh","a0pQC00000DMpio","21.12.2023","910851P00044N7226023","Electric",{"$f":"IF(report1737987713132[[#This Row],[Erstzulassungsdatum]]=\"\",\"\",YEAR(report1737987713132[[#This Row],[Erstzulassungsdatum]]))","v":2023},"eDeliver 3",""]
["LSH14C4CXNA137172","Maxus_CH","eDeliver 3","eDeliver 3 VAN L2H1 FWD","50kWh","a0pQC00000DMpio","21.12.2023","910851P00044N8186059","Electric",{"$f":"IF(report1737987713132[[#This Row],[Erstzulassungsdatum]]=\"\",\"\",YEAR(report1737987713132[[#This Row],[Erstzulassungsdatum]]))","v":2023},"eDeliver 3",""]
["LSH14C4CXNA169569","Maxus_CH","eDeliver 3","eDeliver 3 VAN L2H1 FWD","50kWh","a0pQC00000DMpio","21.12.2023","910851P00044NA306017","Electric",{"$f":"IF(report1737987713132[[#This Row],[Erstzulassungsdatum]]=\"\",\"\",YEAR(report1737987713132[[#This Row],[Erstzulassungsdatum]]))","v":2023},"eDeliver 3",""]
["LSH14J4C9NA820761","Maxus_CH","(e)Deliver 9","eDeliver 9 VAN L3H3","FWD 88kWh","a0pQC00000DN1K6","21.12.2023","914600P00034N7280173","Electric",{"$f":"IF(report1737987713132[[#This Row],[Erstzulassungsdatum]]=\"\",\"\",YEAR(report1737987713132[[#This Row],[Erstzulassungsdatum]]))","v":2023},"eDeliver 9",""]
["LSH14J4CXNA057522","Maxus_CH","(e)Deliver 9","eDeliver 9 VAN L2H2","FWD 52kWh Pack Plus","a0pQC00000DMtxj","21.12.2022","914600P00034N6080004","Electric",{"$f":"IF(report1737987713132[[#This Row],[Erstzulassungsdatum]]=\"\",\"\",YEAR(report1737987713132[[#This Row],[Erstzulassungsdatum]]))","v":2022},"eDeliver 9",""]
["LSH14J4C1NA057523","Maxus_CH","(e)Deliver 9","eDeliver 9 VAN L2H2","FWD 52kWh Pack Plus","a0pQC00000DMtxj","21.12.2022","914600P00034N4190036","Electric",{"$f":"IF(report1737987713132[[#This Row],[Erstzulassungsdatum]]=\"\",\"\",YEAR(report1737987713132[[#This Row],[Erstzulassungsdatum]]))","v":2022},"eDeliver 9",""]
["LSH14J4C3NA057524","Maxus_CH","(e)Deliver 9","eDeliver 9 VAN L2H2","FWD 52kWh Pack Plus","a0pQC00000DMtxj","21.12.2022","914600P00034N6050091","Electric",{"$f":"IF(report1737987713132[[#This Row],[Erstzulassungsdatum]]=\"\",\"\",YEAR(report1737987713132[[#This Row],[Erstzulassungsdatum]]))","v":2022},"eDeliver 9",""]
["LSH14J4C5NA057525","Maxus_CH","(e)Deliver 9","eDeliver 9 VAN L2H2","FWD 52kWh Pack Plus","a0pQC00000DMtxj","21.12.2022","914600P00034N3280051","Electric",{"$f":"IF(report1737987713132[[#This Row],[Erstzulassungsdatum]]=\"\",\"\",YEAR(report1737987713132[[#This Row],[Erstzulassungsdatum]]))","v":2022},"eDeliver 9",""]
["LSH14C4C0LA079943","Maxus_CH","EV30 PV","OLDEV30 PV","VEV3P","a0pQC00000DhecN","21.12.2020","912832P00044L5246052","",{"$f":"IF(report1737987713132[[#This Row],[Erstzulassungsdatum]]=\"\",\"\",YEAR(report1737987713132[[#This Row],[Erstzulassungsdatum]]))","v":2020},"eDeliver 3",""]
["LSKG47C14PD043978","Maxus_CH","9999","GREY IMPORTER DUMMIE","EV80-OD","a0pQC00000ECYij","21.11.2024","","",{"$f":"IF(report1737987713132[[#This Row],[Erstzulassungsdatum]]=\"\",\"\",YEAR(report1737987713132[[#This Row],[Erstzulassungsdatum]]))","v":2024},null,""]
["LSH14J4C8NA057552","Maxus_CH","(e)Deliver 9","eDeliver 9 VAN L3H2","FWD 72kWh","a0pQC00000DMtZb","21.09.2022","917785P00034MB300106","Electric",{"$f":"IF(report1737987713132[[#This Row],[Erstzulassungsdatum]]=\"\",\"\",YEAR(report1737987713132[[#This Row],[Erstzulassungsdatum]]))","v":2022},"eDeliver 9",""]
["LSH15J5C0SV120918","Maxus_CH","(e)Deliver 7","eDeliver 7 VAN L2H1 AWD","88kWh Dual Sliding Door Swiss Post Los 49 #1","a0pQC00000HhTgA","21.08.2025","918787P06014R9020012","Electric",{"$f":"IF(report1737987713132[[#This Row],[Erstzulassungsdatum]]=\"\",\"\",YEAR(report1737987713132[[#This Row],[Erstzulassungsdatum]]))","v":2025},"eDeliver 7",""]
["LSFAM11C0SA098492","Maxus_CH","T60 MAX","T60 MAX","AWD","a0pQC00000FBTso","21.08.2025","M9255027810","Diesel",{"$f":"IF(report1737987713132[[#This Row],[Erstzulassungsdatum]]=\"\",\"\",YEAR(report1737987713132[[#This Row],[Erstzulassungsdatum]]))","v":2025},"T60 Max","2025-04-30"]
["LSH14J7CXSV121610","Maxus_CH","(e)Deliver 7","Deliver 7 VAN L2H1 FWD","-","a0pQC00000DMxYG","21.07.2025","M9251004558","Diesel",{"$f":"IF(report1737987713132[[#This Row],[Erstzulassungsdatum]]=\"\",\"\",YEAR(report1737987713132[[#This Row],[Erstzulassungsdatum]]))","v":2025},"Deliver 7",""]
["LSH14J7C7SV121614","Maxus_CH","(e)Deliver 7","Deliver 7 VAN L2H1 FWD","-","a0pQC00000DMxYG","21.07.2025","M9251004559","Diesel",{"$f":"IF(report1737987713132[[#This Row],[Erstzulassungsdatum]]=\"\",\"\",YEAR(report1737987713132[[#This Row],[Erstzulassungsdatum]]))","v":2025},"Deliver 7",""]
["LSH14J7C6SV121619","Maxus_CH","(e)Deliver 7","Deliver 7 VAN L2H1 FWD","-","a0pQC00000DMxYG","21.07.2025","M9251000284","Diesel",{"$f":"IF(report1737987713132[[#This Row],[Erstzulassungsdatum]]=\"\",\"\",YEAR(report1737987713132[[#This Row],[Erstzulassungsdatum]]))","v":2025},"Deliver 7",""]
["LSH14J7C4SV121621","Maxus_CH","(e)Deliver 7","Deliver 7 VAN L2H1 FWD","-","a0pQC00000DMxYG","21.07.2025","M9251003966","Diesel",{"$f":"IF(report1737987713132[[#This Row],[Erstzulassungsdatum]]=\"\",\"\",YEAR(report1737987713132[[#This Row],[Erstzulassungsdatum]]))","v":2025},"Deliver 7",""]
["LSFAM11C8SA074263","Maxus_CH","T60 MAX","T60 MAX","AWD","a0pQC00000FBTso","21.07.2025","M9252007581","Diesel",{"$f":"IF(report1737987713132[[#This Row],[Erstzulassungsdatum]]=\"\",\"\",YEAR(report1737987713132[[#This Row],[Erstzulassungsdatum]]))","v":2025},"T60 Max","2025-01-31"]
["LSKG48C1XND069696","Maxus_CH","MIFA 9","MIFA 9 Luxury","90kWh 7-Seater","a0pQC00000DN1aD","21.06.2024","A122A15A10114091","Electric",{"$f":"IF(report1737987713132[[#This Row],[Erstzulassungsdatum]]=\"\",\"\",YEAR(report1737987713132[[#This Row],[Erstzulassungsdatum]]))","v":2024},"Mifa 9",""]
["LSFAL1102KA102941","Maxus_CH","EV80 CC","OLDEV80 CC","VE8C","a0pQC00000DhUIg","21.04.2023","105855P01109KB280001","",{"$f":"IF(report1737987713132[[#This Row],[Erstzulassungsdatum]]=\"\",\"\",YEAR(report1737987713132[[#This Row],[Erstzulassungsdatum]]))","v":2023},"EV 80",""]
["LSH14J7C7RV125477","Maxus_CH","(e)Deliver 7","Deliver 7 VAN L2H1 FWD","Dual Sliding Door","a0pQC00000DMxYH","21.03.2025","M9248051990","Diesel",{"$f":"IF(report1737987713132[[#This Row],[Erstzulassungsdatum]]=\"\",\"\",YEAR(report1737987713132[[#This Row],[Erstzulassungsdatum]]))","v":2025},"Deliver 7",""]
["LSFAM11C8RA134553","Maxus_CH","T60 MAX","T60 MAX","AWD","a0pQC00000FBTso","21.03.2025","M924A063657","Diesel",{"$f":"IF(report1737987713132[[#This Row],[Erstzulassungsdatum]]=\"\",\"\",YEAR(report1737987713132[[#This Row],[Erstzulassungsdatum]]))","v":2025},"T60 Max","2024-09-30"]
["LSH14J7C8RV125472","Maxus_CH","(e)Deliver 7","Deliver 7 VAN L2H1 FWD","-","a0pQC00000DMxYG","21.02.2025","M9249058585","Diesel",{"$f":"IF(report1737987713132[[#This Row],[Erstzulassungsdatum]]=\"\",\"\",YEAR(report1737987713132[[#This Row],[Erstzulassungsdatum]]))","v":2025},"Deliver 7",""]
["LSH14J7C9RV125464","Maxus_CH","(e)Deliver 7","Deliver 7 VAN L2H1 FWD","Dual Sliding Door","a0pQC00000DMxYH","21.02.2025","M9249057991","Diesel",{"$f":"IF(report1737987713132[[#This Row],[Erstzulassungsdatum]]=\"\",\"\",YEAR(report1737987713132[[#This Row],[Erstzulassungsdatum]]))","v":2025},"Deliver 7",""]
["LSFAM1108NA068473","Maxus_CH","eDeliver 3","eDeliver 3 Cabine L2 FWD","50kWh","a0pQC00000DMkMk","21.01.2025","918674P00044NA276080","Electric",{"$f":"IF(report1737987713132[[#This Row],[Erstzulassungsdatum]]=\"\",\"\",YEAR(report1737987713132[[#This Row],[Erstzulassungsdatum]]))","v":2025},"eDeliver 3",""]
["LSH14J4C0RV120786","Maxus_CH","(e)Deliver 7","eDeliver 7 VAN L1H1 FWD","77kWh","a0pQC00000DMveU","21.01.2025","917164P03299PC090110","Electric",{"$f":"IF(report1737987713132[[#This Row],[Erstzulassungsdatum]]=\"\",\"\",YEAR(report1737987713132[[#This Row],[Erstzulassungsdatum]]))","v":2025},"eDeliver 7",""]
["LSH14J7C4PA189450","Maxus_CH","(e)Deliver 9","Deliver 9 VAN L3H2 FWD","Comfort","a0pQC00000DMlx4","20.12.2024","M923B100307","Diesel",{"$f":"IF(report1737987713132[[#This Row],[Erstzulassungsdatum]]=\"\",\"\",YEAR(report1737987713132[[#This Row],[Erstzulassungsdatum]]))","v":2024},"Deliver 9",""]
["LSFAL1100MA147878","Maxus_CH","(e)Deliver 9","eDeliver 9 Cabine L3","FWD 65kWh","a0pQC00000DMoJk","20.12.2024","914600P00034NA290518","Electric",{"$f":"IF(report1737987713132[[#This Row],[Erstzulassungsdatum]]=\"\",\"\",YEAR(report1737987713132[[#This Row],[Erstzulassungsdatum]]))","v":2024},"eDeliver 9",""]
["LSH14J4C8NA057521","Maxus_CH","(e)Deliver 9","eDeliver 9 VAN L2H2","FWD 52kWh Pack Plus","a0pQC00000DMtxj","20.12.2022","914600P00034N5280076","Electric",{"$f":"IF(report1737987713132[[#This Row],[Erstzulassungsdatum]]=\"\",\"\",YEAR(report1737987713132[[#This Row],[Erstzulassungsdatum]]))","v":2022},"eDeliver 9",""]
["LSH14J4C6NA057548","Maxus_CH","(e)Deliver 9","eDeliver 9 VAN L3H2","FWD 72kWh","a0pQC00000DMtZb","20.12.2022","915536P00034MC270051","Electric",{"$f":"IF(report1737987713132[[#This Row],[Erstzulassungsdatum]]=\"\",\"\",YEAR(report1737987713132[[#This Row],[Erstzulassungsdatum]]))","v":2022},"eDeliver 9",""]
["LSKG47C16PD043979","Maxus_CH","9999","GREY IMPORTER DUMMIE","EV30-OD","a0pQC00000ECYih","20.11.2024","","",{"$f":"IF(report1737987713132[[#This Row],[Erstzulassungsdatum]]=\"\",\"\",YEAR(report1737987713132[[#This Row],[Erstzulassungsdatum]]))","v":2024},null,""]
["LSKG47C17PD043506","Maxus_CH","9999","GREY IMPORTER DUMMIE","EV30-OD","a0pQC00000ECYih","20.11.2024","","",{"$f":"IF(report1737987713132[[#This Row],[Erstzulassungsdatum]]=\"\",\"\",YEAR(report1737987713132[[#This Row],[Erstzulassungsdatum]]))","v":2024},null,""]
["LSKG47C16PD044016","Maxus_CH","9999","GREY IMPORTER DUMMIE","EV30-OD","a0pQC00000ECYih","20.11.2024","","",{"$f":"IF(report1737987713132[[#This Row],[Erstzulassungsdatum]]=\"\",\"\",YEAR(report1737987713132[[#This Row],[Erstzulassungsdatum]]))","v":2024},null,""]
["LSKG47C13PD044023","Maxus_CH","9999","GREY IMPORTER DUMMIE","EV80-OD","a0pQC00000ECYij","20.11.2024","","",{"$f":"IF(report1737987713132[[#This Row],[Erstzulassungsdatum]]=\"\",\"\",YEAR(report1737987713132[[#This Row],[Erstzulassungsdatum]]))","v":2024},null,""]
["LSKG47C13PD044068","Maxus_CH","9999","GREY IMPORTER DUMMIE","EV80-OD","a0pQC00000ECYij","20.11.2024","","",{"$f":"IF(report1737987713132[[#This Row],[Erstzulassungsdatum]]=\"\",\"\",YEAR(report1737987713132[[#This Row],[Erstzulassungsdatum]]))","v":2024},null,""]
["LSKG47C15PD043584","Maxus_CH","9999","GREY IMPORTER DUMMIE","EV80-OD","a0pQC00000ECYij","20.11.2024","","",{"$f":"IF(report1737987713132[[#This Row],[Erstzulassungsdatum]]=\"\",\"\",YEAR(report1737987713132[[#This Row],[Erstzulassungsdatum]]))","v":2024},null,""]
["LSKG47C15PD043598","Maxus_CH","9999","GREY IMPORTER DUMMIE","EV80-OD","a0pQC00000ECYij","20.11.2024","","",{"$f":"IF(report1737987713132[[#This Row],[Erstzulassungsdatum]]=\"\",\"\",YEAR(report1737987713132[[#This Row],[Erstzulassungsdatum]]))","v":2024},null,""]
["LSKG47C16PD044033","Maxus_CH","9999","GREY IMPORTER DUMMIE","EV80-OD","a0pQC00000ECYij","20.11.2024","","",{"$f":"IF(report1737987713132[[#This Row],[Erstzulassungsdatum]]=\"\",\"\",YEAR(report1737987713132[[#This Row],[Erstzulassungsdatum]]))","v":2024},null,""]
["LSKG47C16PD043593","Maxus_CH","9999","GREY IMPORTER DUMMIE","EV80-OD","a0pQC00000ECYij","20.11.2024","","",{"$f":"IF(report1737987713132[[#This Row],[Erstzulassungsdatum]]=\"\",\"\",YEAR(report1737987713132[[#This Row],[Erstzulassungsdatum]]))","v":2024},null,""]
["LSKG47C17PD043523","Maxus_CH","9999","GREY IMPORTER DUMMIE","EV80-OD","a0pQC00000ECYij","20.11.2024","","",{"$f":"IF(report1737987713132[[#This Row],[Erstzulassungsdatum]]=\"\",\"\",YEAR(report1737987713132[[#This Row],[Erstzulassungsdatum]]))","v":2024},null,""]
["LSKG47C15PD043505","Maxus_CH","9999","GREY IMPORTER DUMMIE","EV80-OD","a0pQC00000ECYij","20.11.2024","","",{"$f":"IF(report1737987713132[[#This Row],[Erstzulassungsdatum]]=\"\",\"\",YEAR(report1737987713132[[#This Row],[Erstzulassungsdatum]]))","v":2024},null,""]
["LSKG47C14PD044063","Maxus_CH","9999","GREY IMPORTER DUMMIE","MIFA 9-OD","a0pQC00000ECYim","20.11.2024","","",{"$f":"IF(report1737987713132[[#This Row],[Erstzulassungsdatum]]=\"\",\"\",YEAR(report1737987713132[[#This Row],[Erstzulassungsdatum]]))","v":2024},null,""]
["LSH14J4C2NA180246","Maxus_CH","(e)Deliver 9","eDeliver 9 VAN L3H2","FWD 72kWh Double Sliding Door","a0pQC00000DMtZd","20.11.2023","914600P00034P1050251","Electric",{"$f":"IF(report1737987713132[[#This Row],[Erstzulassungsdatum]]=\"\",\"\",YEAR(report1737987713132[[#This Row],[Erstzulassungsdatum]]))","v":2023},"eDeliver 9",""]
["LSH14J4C1NA148906","Maxus_CH","(e)Deliver 9","eDeliver 9 VAN L2H2","FWD 52kWh Pack Plus","a0pQC00000DMtxj","20.09.2024","914600P00034N9290268","Electric",{"$f":"IF(report1737987713132[[#This Row],[Erstzulassungsdatum]]=\"\",\"\",YEAR(report1737987713132[[#This Row],[Erstzulassungsdatum]]))","v":2024},"eDeliver 9",""]
["LSFAM11C2SA098512","Maxus_CH","T60 MAX","T60 MAX","AWD","a0pQC00000FBTso","20.08.2025","M9255028784","Diesel",{"$f":"IF(report1737987713132[[#This Row],[Erstzulassungsdatum]]=\"\",\"\",YEAR(report1737987713132[[#This Row],[Erstzulassungsdatum]]))","v":2025},"T60 Max","2025-04-30"]
["LSFAM11C1SA098517","Maxus_CH","T60 MAX","T60 MAX","AWD","a0pQC00000FBTso","20.08.2025","M9255027575","Diesel",{"$f":"IF(report1737987713132[[#This Row],[Erstzulassungsdatum]]=\"\",\"\",YEAR(report1737987713132[[#This Row],[Erstzulassungsdatum]]))","v":2025},"T60 Max","2025-04-30"]
["LSFAM11C3SA098521","Maxus_CH","T60 MAX","T60 MAX","AWD","a0pQC00000FBTso","20.08.2025","M9255029058","Diesel",{"$f":"IF(report1737987713132[[#This Row],[Erstzulassungsdatum]]=\"\",\"\",YEAR(report1737987713132[[#This Row],[Erstzulassungsdatum]]))","v":2025},"T60 Max","2025-04-30"]
["LSFAM11C9SA074255","Maxus_CH","T60 MAX","T60 MAX","AWD","a0pQC00000FBTso","20.06.2025","M9252007569","Diesel",{"$f":"IF(report1737987713132[[#This Row],[Erstzulassungsdatum]]=\"\",\"\",YEAR(report1737987713132[[#This Row],[Erstzulassungsdatum]]))","v":2025},"T60 Max","2025-01-31"]
["LSH14J7C9PA109009","Maxus_CH","(e)Deliver 9","Deliver 9 VAN L3H2 FWD","Comfort","a0pQC00000DMlx4","20.05.2025","M923B097281","Diesel",{"$f":"IF(report1737987713132[[#This Row],[Erstzulassungsdatum]]=\"\",\"\",YEAR(report1737987713132[[#This Row],[Erstzulassungsdatum]]))","v":2025},"Deliver 9",""]
["LSH14J4C1RA107682","Maxus_CH","(e)Deliver 9","eDeliver 9 VAN L3H2","FWD 88kWh","a0pQC00000DMtZj","20.05.2025","915046P03299R3230105","Electric",{"$f":"IF(report1737987713132[[#This Row],[Erstzulassungsdatum]]=\"\",\"\",YEAR(report1737987713132[[#This Row],[Erstzulassungsdatum]]))","v":2025},"eDeliver 9",""]
["LSH14J7C5RV125493","Maxus_CH","(e)Deliver 7","Deliver 7 VAN L2H1 FWD","-","a0pQC00000DMxYG","20.05.2025","M9249059194","Diesel",{"$f":"IF(report1737987713132[[#This Row],[Erstzulassungsdatum]]=\"\",\"\",YEAR(report1737987713132[[#This Row],[Erstzulassungsdatum]]))","v":2025},"Deliver 7",""]
["LSH15J5C4RV126134","Maxus_CH","(e)Deliver 7","eDeliver 7 VAN L1H1 AWD","88kWh","a0pQC00000DN1Ov","20.05.2025","918787P06014R8280012","Electric",{"$f":"IF(report1737987713132[[#This Row],[Erstzulassungsdatum]]=\"\",\"\",YEAR(report1737987713132[[#This Row],[Erstzulassungsdatum]]))","v":2025},"eDeliver 7",""]
["LSH14J4C8RD060763","Maxus_CH","eDeliver 5","eDeliver 5 VAN L1H1 FWD","64kWh","a0pQC00000DMtZm","20.05.2025","911693P03299R5090198","Electric",{"$f":"IF(report1737987713132[[#This Row],[Erstzulassungsdatum]]=\"\",\"\",YEAR(report1737987713132[[#This Row],[Erstzulassungsdatum]]))","v":2025},"eDeliver 5",""]
["LSH14J4C2KA097184","Maxus_CH","EV80 PV","OLDEV80 PV","VE8P","a0pQC00000DhYVe","20.05.2020","105855P01109KA260004","",{"$f":"IF(report1737987713132[[#This Row],[Erstzulassungsdatum]]=\"\",\"\",YEAR(report1737987713132[[#This Row],[Erstzulassungsdatum]]))","v":2020},"EV 80",""]
["LSH14C4C1LA080003","Maxus_CH","EV30 PV","OLDEV30 PV","VEV3P","a0pQC00000DhecN","20.04.2021","912832P00044L5196061","",{"$f":"IF(report1737987713132[[#This Row],[Erstzulassungsdatum]]=\"\",\"\",YEAR(report1737987713132[[#This Row],[Erstzulassungsdatum]]))","v":2021},"eDeliver 3",""]
["LSH14C4C1LA080017","Maxus_CH","EV30 PV","OLDEV30 PV","VEV3P","a0pQC00000DhecN","20.04.2021","912832P00044L5246029","",{"$f":"IF(report1737987713132[[#This Row],[Erstzulassungsdatum]]=\"\",\"\",YEAR(report1737987713132[[#This Row],[Erstzulassungsdatum]]))","v":2021},"eDeliver 3",""]
["LSH14C4CXLA080016","Maxus_CH","EV30 PV","OLDEV30 PV","VEV3P","a0pQC00000DhecN","20.04.2021","912832P00044L5196004","",{"$f":"IF(report1737987713132[[#This Row],[Erstzulassungsdatum]]=\"\",\"\",YEAR(report1737987713132[[#This Row],[Erstzulassungsdatum]]))","v":2021},"eDeliver 3",""]
["LSH14J7C4RV125498","Maxus_CH","(e)Deliver 7","Deliver 7 VAN L2H1 FWD","-","a0pQC00000DMxYG","20.03.2025","M924A059524","Diesel",{"$f":"IF(report1737987713132[[#This Row],[Erstzulassungsdatum]]=\"\",\"\",YEAR(report1737987713132[[#This Row],[Erstzulassungsdatum]]))","v":2025},"Deliver 7",""]
["LSFAM1201PA135920","Maxus_CH","T90 EV","T90 EV Pick Up RWD","89kWh","a0pQC00000DMoF4","20.03.2025","917939P04016NA160145","Electric",{"$f":"IF(report1737987713132[[#This Row],[Erstzulassungsdatum]]=\"\",\"\",YEAR(report1737987713132[[#This Row],[Erstzulassungsdatum]]))","v":2025},"T90 EV",""]
["LSH14C4C3MA122771","Maxus_CH","EV30 PV","OLDEV30 PV","VEV3P","a0pQC00000DhecN","20.03.2023","918674P00044MC166027","",{"$f":"IF(report1737987713132[[#This Row],[Erstzulassungsdatum]]=\"\",\"\",YEAR(report1737987713132[[#This Row],[Erstzulassungsdatum]]))","v":2023},"eDeliver 3",""]
["LSH14J7C4PA108916","Maxus_CH","(e)Deliver 9","Deliver 9 VAN L3H2 FWD","Luxury","a0pQC00000DMlx3","19.12.2024","M923A088849","Diesel",{"$f":"IF(report1737987713132[[#This Row],[Erstzulassungsdatum]]=\"\",\"\",YEAR(report1737987713132[[#This Row],[Erstzulassungsdatum]]))","v":2024},"Deliver 9",""]
["LSH14J4C2NA057529","Maxus_CH","(e)Deliver 9","eDeliver 9 VAN L2H2","FWD 72kWh Pack Plus","a0pQC00000DMtxk","19.12.2023","914600P00034N5230140","Electric",{"$f":"IF(report1737987713132[[#This Row],[Erstzulassungsdatum]]=\"\",\"\",YEAR(report1737987713132[[#This Row],[Erstzulassungsdatum]]))","v":2023},"eDeliver 9",""]
["LSH14C4C5MA122741","Maxus_CH","EV30 PV","OLDEV30 PV","VEV3P","a0pQC00000DhecN","19.12.2023","918674P00044MC266119","",{"$f":"IF(report1737987713132[[#This Row],[Erstzulassungsdatum]]=\"\",\"\",YEAR(report1737987713132[[#This Row],[Erstzulassungsdatum]]))","v":2023},"eDeliver 3",""]
["LSH14C4C4LA079914","Maxus_CH","EV30 PV","OLDEV30 PV","VEV3P","a0pQC00000DhecN","19.11.2020","912832P00044L6106094","",{"$f":"IF(report1737987713132[[#This Row],[Erstzulassungsdatum]]=\"\",\"\",YEAR(report1737987713132[[#This Row],[Erstzulassungsdatum]]))","v":2020},"eDeliver 3",""]
["LSH14C4C1LA080065","Maxus_CH","EV30 PV","OLDEV30 PV","VEV3P","a0pQC00000DhecN","19.11.2020","912832P00044L6196063","",{"$f":"IF(report1737987713132[[#This Row],[Erstzulassungsdatum]]=\"\",\"\",YEAR(report1737987713132[[#This Row],[Erstzulassungsdatum]]))","v":2020},"eDeliver 3",""]
["LSH14J7C1RA104003","Maxus_CH","(e)Deliver 9","Deliver 9 VAN L3H2 FWD","Comfort","a0pQC00000DMlx5","19.09.2025","M9244028891","Diesel",{"$f":"IF(report1737987713132[[#This Row],[Erstzulassungsdatum]]=\"\",\"\",YEAR(report1737987713132[[#This Row],[Erstzulassungsdatum]]))","v":2025},"Deliver 9",""]
["LSH14J7C8SV122058","Maxus_CH","(e)Deliver 7","Deliver 7 VAN L2H1 FWD","-","a0pQC00000DMxYG","19.09.2025","M9254022147","Diesel",{"$f":"IF(report1737987713132[[#This Row],[Erstzulassungsdatum]]=\"\",\"\",YEAR(report1737987713132[[#This Row],[Erstzulassungsdatum]]))","v":2025},"Deliver 7",""]
["LSH14C4C0NA137147","Maxus_CH","eDeliver 3","eDeliver 3 VAN L2H1 FWD","50kWh","a0pQC00000DMpio","19.09.2023","910851P00044N8186010","Electric",{"$f":"IF(report1737987713132[[#This Row],[Erstzulassungsdatum]]=\"\",\"\",YEAR(report1737987713132[[#This Row],[Erstzulassungsdatum]]))","v":2023},"eDeliver 3",""]
["LSFAM11C0SA092952","Maxus_CH","T60 MAX","T60 MAX","AWD","a0pQC00000FBTso","19.08.2025","M9254022743","Diesel",{"$f":"IF(report1737987713132[[#This Row],[Erstzulassungsdatum]]=\"\",\"\",YEAR(report1737987713132[[#This Row],[Erstzulassungsdatum]]))","v":2025},"T60 Max","2025-03-31"]
["LSKG48C19RD042818","Maxus_CH","MIFA 9","MIFA 9 Luxury","90kWh 8-Seater","a0pQC00000DN1aE","19.07.2024","A123C15A10137457","Electric",{"$f":"IF(report1737987713132[[#This Row],[Erstzulassungsdatum]]=\"\",\"\",YEAR(report1737987713132[[#This Row],[Erstzulassungsdatum]]))","v":2024},"Mifa 9",""]
["LSH14J4C0MA114003","Maxus_CH","(e)Deliver 9","eDeliver 9 VAN L2H2","FWD 52kWh","a0pQC00000DMtxh","19.07.2023","914600P00034N4200032","Electric",{"$f":"IF(report1737987713132[[#This Row],[Erstzulassungsdatum]]=\"\",\"\",YEAR(report1737987713132[[#This Row],[Erstzulassungsdatum]]))","v":2023},"eDeliver 9",""]
["LSFAM1208NA171455","Maxus_CH","T90 EV","T90 EV Pick Up RWD","89kWh","a0pQC00000DMoF4","19.05.2023","917939P04016NA280014","Electric",{"$f":"IF(report1737987713132[[#This Row],[Erstzulassungsdatum]]=\"\",\"\",YEAR(report1737987713132[[#This Row],[Erstzulassungsdatum]]))","v":2023},"T90 EV",""]
["LSFAM1101NA068475","Maxus_CH","eDeliver 3","eDeliver 3 Cabine L2 FWD","50kWh","a0pQC00000DMkMk","19.04.2024","918674P00044NA016044","Electric",{"$f":"IF(report1737987713132[[#This Row],[Erstzulassungsdatum]]=\"\",\"\",YEAR(report1737987713132[[#This Row],[Erstzulassungsdatum]]))","v":2024},"eDeliver 3",""]
["LSH14J7C4RV125484","Maxus_CH","(e)Deliver 7","Deliver 7 VAN L2H1 FWD","-","a0pQC00000DMxYG","19.03.2025","M9249058604","Diesel",{"$f":"IF(report1737987713132[[#This Row],[Erstzulassungsdatum]]=\"\",\"\",YEAR(report1737987713132[[#This Row],[Erstzulassungsdatum]]))","v":2025},"Deliver 7",""]
["LSH14J4C6RV121800","Maxus_CH","(e)Deliver 7","eDeliver 7 VAN L1H1 FWD","77kWh","a0pQC00000DMveU","19.02.2025","917164P03299R1040192","Electric",{"$f":"IF(report1737987713132[[#This Row],[Erstzulassungsdatum]]=\"\",\"\",YEAR(report1737987713132[[#This Row],[Erstzulassungsdatum]]))","v":2025},"eDeliver 7",""]
["LSH14J4C8NA068986","Maxus_CH","(e)Deliver 9","eDeliver 9 VAN L3H2","FWD 88kWh","a0pQC00000DMtZc","18.12.2023","914600P00034N5170195","Electric",{"$f":"IF(report1737987713132[[#This Row],[Erstzulassungsdatum]]=\"\",\"\",YEAR(report1737987713132[[#This Row],[Erstzulassungsdatum]]))","v":2023},"eDeliver 9",""]
["LSH14J4C0MA171446","Maxus_CH","(e)Deliver 9","eDeliver 9 VAN L3H2","FWD 72kWh","a0pQC00000DMtZb","18.11.2022","915536P00034MC270042","Electric",{"$f":"IF(report1737987713132[[#This Row],[Erstzulassungsdatum]]=\"\",\"\",YEAR(report1737987713132[[#This Row],[Erstzulassungsdatum]]))","v":2022},"eDeliver 9",""]
["LSH14J4C7MA121689","Maxus_CH","(e)Deliver 9","eDeliver 9 VAN L3H2","FWD 88kWh","a0pQC00000DMtZc","18.11.2022","914600P00034N5200116","Electric",{"$f":"IF(report1737987713132[[#This Row],[Erstzulassungsdatum]]=\"\",\"\",YEAR(report1737987713132[[#This Row],[Erstzulassungsdatum]]))","v":2022},"eDeliver 9",""]
["LSH14J4C4KA097171","Maxus_CH","EV80 PV","OLDEV80 PV","VE8P","a0pQC00000DhYVe","18.11.2020","105855P01109KA290024","",{"$f":"IF(report1737987713132[[#This Row],[Erstzulassungsdatum]]=\"\",\"\",YEAR(report1737987713132[[#This Row],[Erstzulassungsdatum]]))","v":2020},"EV 80",""]
["LSH14C4C0LA080221","Maxus_CH","EV30 PV","OLDEV30 PV","VEV3P","a0pQC00000DhecN","18.11.2020","912832P00044L5236018","",{"$f":"IF(report1737987713132[[#This Row],[Erstzulassungsdatum]]=\"\",\"\",YEAR(report1737987713132[[#This Row],[Erstzulassungsdatum]]))","v":2020},"eDeliver 3",""]
["LSH14C4C0LA080042","Maxus_CH","EV30 PV","OLDEV30 PV","VEV3P","a0pQC00000DhecN","18.11.2020","912832P00044L5196037","",{"$f":"IF(report1737987713132[[#This Row],[Erstzulassungsdatum]]=\"\",\"\",YEAR(report1737987713132[[#This Row],[Erstzulassungsdatum]]))","v":2020},"eDeliver 3",""]
["LSFAM1202PA091068","Maxus_CH","T90 EV","T90 EV Pick Up RWD","89kWh","a0pQC00000DMoF4","18.10.2023","917939P04016P1140032","Electric",{"$f":"IF(report1737987713132[[#This Row],[Erstzulassungsdatum]]=\"\",\"\",YEAR(report1737987713132[[#This Row],[Erstzulassungsdatum]]))","v":2023},"T90 EV",""]
["LSH14J4C7NA057543","Maxus_CH","(e)Deliver 9","eDeliver 9 VAN L3H2","FWD 72kWh","a0pQC00000DMtZb","18.10.2022","915536P00034N1120044","Electric",{"$f":"IF(report1737987713132[[#This Row],[Erstzulassungsdatum]]=\"\",\"\",YEAR(report1737987713132[[#This Row],[Erstzulassungsdatum]]))","v":2022},"eDeliver 9",""]
["LSFAM11C3SA109033","Maxus_CH","T60 MAX","T60 MAX","AWD","a0pQC00000FBTso","18.09.2025","M9256035201","Diesel",{"$f":"IF(report1737987713132[[#This Row],[Erstzulassungsdatum]]=\"\",\"\",YEAR(report1737987713132[[#This Row],[Erstzulassungsdatum]]))","v":2025},"T60 Max","2025-05-31"]
["LSH14J7C7PA106710","Maxus_CH","(e)Deliver 9","Deliver 9 VAN L3H2 RWD","Comfort","a0pQC00000DN0uI","18.09.2024","M9235046579","Diesel",{"$f":"IF(report1737987713132[[#This Row],[Erstzulassungsdatum]]=\"\",\"\",YEAR(report1737987713132[[#This Row],[Erstzulassungsdatum]]))","v":2024},"Deliver 9",""]
["LSH14J4C9RV122553","Maxus_CH","(e)Deliver 7","eDeliver 7 VAN L2H1 FWD","88kWh Dual Sliding Door","a0pQC00000DMo25","18.08.2025","917164P03299R3290198","Electric",{"$f":"IF(report1737987713132[[#This Row],[Erstzulassungsdatum]]=\"\",\"\",YEAR(report1737987713132[[#This Row],[Erstzulassungsdatum]]))","v":2025},"eDeliver 7",""]
["LSH14J4C7NA174264","Maxus_CH","(e)Deliver 9","eDeliver 9 VAN L3H2","FWD 72kWh","a0pQC00000DMtZb","18.08.2023","914600P00034NA230357","Electric",{"$f":"IF(report1737987713132[[#This Row],[Erstzulassungsdatum]]=\"\",\"\",YEAR(report1737987713132[[#This Row],[Erstzulassungsdatum]]))","v":2023},"eDeliver 9",""]
["LSH14C4CXLA080081","Maxus_CH","EV30 PV","OLDEV30 PV","VEV3P","a0pQC00000DhecN","18.08.2022","912832P00044L5246047","",{"$f":"IF(report1737987713132[[#This Row],[Erstzulassungsdatum]]=\"\",\"\",YEAR(report1737987713132[[#This Row],[Erstzulassungsdatum]]))","v":2022},"eDeliver 3",""]
["LSH14C4C0MA122680","Maxus_CH","EV30 PV","OLDEV30 PV","VEV3P","a0pQC00000DhecN","18.08.2022","918674P00044MC266142","",{"$f":"IF(report1737987713132[[#This Row],[Erstzulassungsdatum]]=\"\",\"\",YEAR(report1737987713132[[#This Row],[Erstzulassungsdatum]]))","v":2022},"eDeliver 3",""]
["LSH14C4C6MA122697","Maxus_CH","EV30 PV","OLDEV30 PV","VEV3P","a0pQC00000DhecN","18.08.2022","918674P00044MC266024","",{"$f":"IF(report1737987713132[[#This Row],[Erstzulassungsdatum]]=\"\",\"\",YEAR(report1737987713132[[#This Row],[Erstzulassungsdatum]]))","v":2022},"eDeliver 3",""]
["LSH14C4C1LA079904","Maxus_CH","EV30 PV","OLDEV30 PV","VEV3P","a0pQC00000DhecN","18.08.2021","912832P00044L5246039","",{"$f":"IF(report1737987713132[[#This Row],[Erstzulassungsdatum]]=\"\",\"\",YEAR(report1737987713132[[#This Row],[Erstzulassungsdatum]]))","v":2021},"eDeliver 3",""]
["LSH14J7C2SV121620","Maxus_CH","(e)Deliver 7","Deliver 7 VAN L2H1 FWD","-","a0pQC00000DMxYG","18.07.2025","M9251003965","Diesel",{"$f":"IF(report1737987713132[[#This Row],[Erstzulassungsdatum]]=\"\",\"\",YEAR(report1737987713132[[#This Row],[Erstzulassungsdatum]]))","v":2025},"Deliver 7",""]
["LSH14J7C7RV125494","Maxus_CH","(e)Deliver 7","Deliver 7 VAN L2H1 FWD","Dual Sliding Door","a0pQC00000DMxYH","18.07.2025","M9248052512","Diesel",{"$f":"IF(report1737987713132[[#This Row],[Erstzulassungsdatum]]=\"\",\"\",YEAR(report1737987713132[[#This Row],[Erstzulassungsdatum]]))","v":2025},"Deliver 7",""]
["LSH14J7C3SV121609","Maxus_CH","(e)Deliver 7","Deliver 7 VAN L2H1 FWD","Dual Sliding Door","a0pQC00000DMxYH","18.07.2025","M9253013716","Diesel",{"$f":"IF(report1737987713132[[#This Row],[Erstzulassungsdatum]]=\"\",\"\",YEAR(report1737987713132[[#This Row],[Erstzulassungsdatum]]))","v":2025},"Deliver 7",""]
["LSFAM11C6RA134552","Maxus_CH","T60 MAX","T60 MAX","AWD","a0pQC00000FBTso","18.07.2025","M924A063656","Diesel",{"$f":"IF(report1737987713132[[#This Row],[Erstzulassungsdatum]]=\"\",\"\",YEAR(report1737987713132[[#This Row],[Erstzulassungsdatum]]))","v":2025},"T60 Max","2024-09-30"]
["LSH14C4CXNA063073","Maxus_CH","9999","GREY IMPORTER DUMMIE","D90-OD","a0pQC00000ECYig","18.07.2023","","",{"$f":"IF(report1737987713132[[#This Row],[Erstzulassungsdatum]]=\"\",\"\",YEAR(report1737987713132[[#This Row],[Erstzulassungsdatum]]))","v":2023},null,""]
["LSH14C4C2LA079927","Maxus_CH","EV30 PV","OLDEV30 PV","VEV3P","a0pQC00000DhecN","18.06.2021","912832P00044L5206026","",{"$f":"IF(report1737987713132[[#This Row],[Erstzulassungsdatum]]=\"\",\"\",YEAR(report1737987713132[[#This Row],[Erstzulassungsdatum]]))","v":2021},"eDeliver 3",""]
["LSH14J4C1NA057277","Maxus_CH","(e)Deliver 9","eDeliver 9 VAN L3H3","FWD 88kWh","a0pQC00000DN1K6","18.04.2024","914600P00034N7280247","Electric",{"$f":"IF(report1737987713132[[#This Row],[Erstzulassungsdatum]]=\"\",\"\",YEAR(report1737987713132[[#This Row],[Erstzulassungsdatum]]))","v":2024},"eDeliver 9",""]
["LSH14C4C5NA137144","Maxus_CH","eDeliver 3","eDeliver 3 VAN L2H1 FWD","50kWh","a0pQC00000DMpio","18.04.2023","910851P00044N7276117","Electric",{"$f":"IF(report1737987713132[[#This Row],[Erstzulassungsdatum]]=\"\",\"\",YEAR(report1737987713132[[#This Row],[Erstzulassungsdatum]]))","v":2023},"eDeliver 3",""]
["LSH14C4C9MA122676","Maxus_CH","EV30 PV","OLDEV30 PV","VEV3P","a0pQC00000DhecN","18.03.2022","918674P00044M9036120","",{"$f":"IF(report1737987713132[[#This Row],[Erstzulassungsdatum]]=\"\",\"\",YEAR(report1737987713132[[#This Row],[Erstzulassungsdatum]]))","v":2022},"eDeliver 3",""]
["LSH14C4C1LA079966","Maxus_CH","EV30 PV","OLDEV30 PV","VEV3P","a0pQC00000DhecN","18.03.2021","912832P00044L6056059","",{"$f":"IF(report1737987713132[[#This Row],[Erstzulassungsdatum]]=\"\",\"\",YEAR(report1737987713132[[#This Row],[Erstzulassungsdatum]]))","v":2021},"eDeliver 3",""]
["LSFAL11A0PA107586","Maxus_CH","(e)Deliver 9","Deliver 9 Cabine L4 RWD","Luxury","a0pQC00000DMhQK","18.02.2025","M9241000302","Diesel",{"$f":"IF(report1737987713132[[#This Row],[Erstzulassungsdatum]]=\"\",\"\",YEAR(report1737987713132[[#This Row],[Erstzulassungsdatum]]))","v":2025},"Deliver 9",""]
["LSH14J7C1RV125460","Maxus_CH","(e)Deliver 7","Deliver 7 VAN L2H1 FWD","-","a0pQC00000DMxYG","18.02.2025","M9249058565","Diesel",{"$f":"IF(report1737987713132[[#This Row],[Erstzulassungsdatum]]=\"\",\"\",YEAR(report1737987713132[[#This Row],[Erstzulassungsdatum]]))","v":2025},"Deliver 7",""]
["LSH14J7C1RV125474","Maxus_CH","(e)Deliver 7","Deliver 7 VAN L2H1 FWD","-","a0pQC00000DMxYG","18.02.2025","M9249059185","Diesel",{"$f":"IF(report1737987713132[[#This Row],[Erstzulassungsdatum]]=\"\",\"\",YEAR(report1737987713132[[#This Row],[Erstzulassungsdatum]]))","v":2025},"Deliver 7",""]
["LSH14J7C1RV125507","Maxus_CH","(e)Deliver 7","Deliver 7 VAN L2H1 FWD","-","a0pQC00000DMxYG","18.02.2025","M9249058578","Diesel",{"$f":"IF(report1737987713132[[#This Row],[Erstzulassungsdatum]]=\"\",\"\",YEAR(report1737987713132[[#This Row],[Erstzulassungsdatum]]))","v":2025},"Deliver 7",""]
["LSH14J7C3RV125475","Maxus_CH","(e)Deliver 7","Deliver 7 VAN L2H1 FWD","-","a0pQC00000DMxYG","18.02.2025","M9249054313","Diesel",{"$f":"IF(report1737987713132[[#This Row],[Erstzulassungsdatum]]=\"\",\"\",YEAR(report1737987713132[[#This Row],[Erstzulassungsdatum]]))","v":2025},"Deliver 7",""]
["LSH14J7C4RV125503","Maxus_CH","(e)Deliver 7","Deliver 7 VAN L2H1 FWD","-","a0pQC00000DMxYG","18.02.2025","M924A059518","Diesel",{"$f":"IF(report1737987713132[[#This Row],[Erstzulassungsdatum]]=\"\",\"\",YEAR(report1737987713132[[#This Row],[Erstzulassungsdatum]]))","v":2025},"Deliver 7",""]
["LSH14J7C5RV125462","Maxus_CH","(e)Deliver 7","Deliver 7 VAN L2H1 FWD","-","a0pQC00000DMxYG","18.02.2025","M9248052524","Diesel",{"$f":"IF(report1737987713132[[#This Row],[Erstzulassungsdatum]]=\"\",\"\",YEAR(report1737987713132[[#This Row],[Erstzulassungsdatum]]))","v":2025},"Deliver 7",""]
["LSH14J4C1RV120795","Maxus_CH","(e)Deliver 7","eDeliver 7 VAN L1H1 FWD","77kWh","a0pQC00000DMveU","17.10.2024","917164P03299PC090114","Electric",{"$f":"IF(report1737987713132[[#This Row],[Erstzulassungsdatum]]=\"\",\"\",YEAR(report1737987713132[[#This Row],[Erstzulassungsdatum]]))","v":2024},"eDeliver 7",""]
["LSH14C4C0NA068377","Maxus_CH","eDeliver 3","eDeliver 3 VAN L1H1 FWD","50kWh","a0pQC00000DMhJv","17.10.2022","918674P00044MA246167","Electric",{"$f":"IF(report1737987713132[[#This Row],[Erstzulassungsdatum]]=\"\",\"\",YEAR(report1737987713132[[#This Row],[Erstzulassungsdatum]]))","v":2022},"eDeliver 3",""]
["LSH14J7C9SV122070","Maxus_CH","(e)Deliver 7","Deliver 7 VAN L2H1 FWD","-","a0pQC00000DMxYG","17.09.2025","M9254023033","Diesel",{"$f":"IF(report1737987713132[[#This Row],[Erstzulassungsdatum]]=\"\",\"\",YEAR(report1737987713132[[#This Row],[Erstzulassungsdatum]]))","v":2025},"Deliver 7",""]
["LSH14J7C3SV122291","Maxus_CH","(e)Deliver 7","Deliver 7 VAN L2H1 FWD","-","a0pQC00000DMxYG","17.09.2025","M9255029004","Diesel",{"$f":"IF(report1737987713132[[#This Row],[Erstzulassungsdatum]]=\"\",\"\",YEAR(report1737987713132[[#This Row],[Erstzulassungsdatum]]))","v":2025},"Deliver 7",""]
["LSFAL1603SA098472","Maxus_CH","eTerron 9","eTerron 9 Luxury","AWD 102kWh","a0pQC00000FQqlf","17.09.2025","A124C04A00277959","Electric",{"$f":"IF(report1737987713132[[#This Row],[Erstzulassungsdatum]]=\"\",\"\",YEAR(report1737987713132[[#This Row],[Erstzulassungsdatum]]))","v":2025},"eTerron 9",""]
["LSFAM11CXSA092943","Maxus_CH","T60 MAX","T60 MAX","AWD","a0pQC00000FBTso","17.09.2025","M9254022744","Diesel",{"$f":"IF(report1737987713132[[#This Row],[Erstzulassungsdatum]]=\"\",\"\",YEAR(report1737987713132[[#This Row],[Erstzulassungsdatum]]))","v":2025},"T60 Max","2025-03-31"]
["LSFAM11C9SA109019","Maxus_CH","T60 MAX","T60 MAX","AWD","a0pQC00000FBTso","17.09.2025","M9256034938","Diesel",{"$f":"IF(report1737987713132[[#This Row],[Erstzulassungsdatum]]=\"\",\"\",YEAR(report1737987713132[[#This Row],[Erstzulassungsdatum]]))","v":2025},"T60 Max","2025-05-31"]
["LSFAM11CXRA134537","Maxus_CH","T60 MAX","T60 MAX","AWD","a0pQC00000FBTso","17.07.2025","M924A064091","Diesel",{"$f":"IF(report1737987713132[[#This Row],[Erstzulassungsdatum]]=\"\",\"\",YEAR(report1737987713132[[#This Row],[Erstzulassungsdatum]]))","v":2025},"T60 Max","2024-09-30"]
["LSFAL11A1PA106270","Maxus_CH","(e)Deliver 9","Deliver 9 Cabine L3 RWD","Luxury","a0pQC00000DMnfX","17.06.2025","M9241000040","Diesel",{"$f":"IF(report1737987713132[[#This Row],[Erstzulassungsdatum]]=\"\",\"\",YEAR(report1737987713132[[#This Row],[Erstzulassungsdatum]]))","v":2025},"Deliver 9",""]
["LSFAL11A4PA106263","Maxus_CH","(e)Deliver 9","Deliver 9 Cabine L3 RWD","Luxury","a0pQC00000DMnfX","17.06.2025","M9241000032","Diesel",{"$f":"IF(report1737987713132[[#This Row],[Erstzulassungsdatum]]=\"\",\"\",YEAR(report1737987713132[[#This Row],[Erstzulassungsdatum]]))","v":2025},"Deliver 9",""]
["LSH15J5CXSV120926","Maxus_CH","(e)Deliver 7","eDeliver 7 VAN L2H1 AWD","88kWh Dual Sliding Door Swiss Post Los 49 #1","a0pQC00000HhTgA","17.06.2025","918787P06014RB060003","Electric",{"$f":"IF(report1737987713132[[#This Row],[Erstzulassungsdatum]]=\"\",\"\",YEAR(report1737987713132[[#This Row],[Erstzulassungsdatum]]))","v":2025},"eDeliver 7",""]
["LSFAL1107KA102918","Maxus_CH","EV80 CC","OLDEV80 CC","VE8C","a0pQC00000DhUIg","17.05.2023","105855P01109KB190032","",{"$f":"IF(report1737987713132[[#This Row],[Erstzulassungsdatum]]=\"\",\"\",YEAR(report1737987713132[[#This Row],[Erstzulassungsdatum]]))","v":2023},"EV 80",""]
["LSH14J7C8RV125486","Maxus_CH","(e)Deliver 7","Deliver 7 VAN L2H1 FWD","-","a0pQC00000DMxYG","17.04.2025","M9249058591","Diesel",{"$f":"IF(report1737987713132[[#This Row],[Erstzulassungsdatum]]=\"\",\"\",YEAR(report1737987713132[[#This Row],[Erstzulassungsdatum]]))","v":2025},"Deliver 7",""]
["LSH14J7C6RV125454","Maxus_CH","(e)Deliver 7","Deliver 7 VAN L2H1 FWD","Dual Sliding Door","a0pQC00000DMxYH","17.04.2025","M9249057986","Diesel",{"$f":"IF(report1737987713132[[#This Row],[Erstzulassungsdatum]]=\"\",\"\",YEAR(report1737987713132[[#This Row],[Erstzulassungsdatum]]))","v":2025},"Deliver 7",""]
["LSFAM11C8RA133905","Maxus_CH","T60 MAX","T60 MAX","AWD","a0pQC00000FBTso","17.04.2025","M924A064098","Diesel",{"$f":"IF(report1737987713132[[#This Row],[Erstzulassungsdatum]]=\"\",\"\",YEAR(report1737987713132[[#This Row],[Erstzulassungsdatum]]))","v":2025},"T60 Max","2024-09-30"]
["LSH14J7C2RV125466","Maxus_CH","(e)Deliver 7","Deliver 7 VAN L2H1 FWD","-","a0pQC00000DMxYG","17.02.2025","M9249059184","Diesel",{"$f":"IF(report1737987713132[[#This Row],[Erstzulassungsdatum]]=\"\",\"\",YEAR(report1737987713132[[#This Row],[Erstzulassungsdatum]]))","v":2025},"Deliver 7",""]
["LSH14J4C7RD055943","Maxus_CH","eDeliver 5","eDeliver 5 VAN L1H1 FWD","64kWh","a0pQC00000DMtZm","17.02.2025","911693P03299R4280011","Electric",{"$f":"IF(report1737987713132[[#This Row],[Erstzulassungsdatum]]=\"\",\"\",YEAR(report1737987713132[[#This Row],[Erstzulassungsdatum]]))","v":2025},"eDeliver 5",""]
["LSH14C4C0NA078018","Maxus_CH","eDeliver 3","eDeliver 3 VAN L2H1 FWD","50kWh","a0pQC00000DMpio","17.01.2023","910851P00044N7236026","Electric",{"$f":"IF(report1737987713132[[#This Row],[Erstzulassungsdatum]]=\"\",\"\",YEAR(report1737987713132[[#This Row],[Erstzulassungsdatum]]))","v":2023},"eDeliver 3",""]
["LSH14J4C4RV120645","Maxus_CH","(e)Deliver 7","eDeliver 7 VAN L2H1 FWD","88kWh Dual Sliding Door","a0pQC00000DMo25","16.12.2024","917164P03299PC070002","Electric",{"$f":"IF(report1737987713132[[#This Row],[Erstzulassungsdatum]]=\"\",\"\",YEAR(report1737987713132[[#This Row],[Erstzulassungsdatum]]))","v":2024},"eDeliver 7",""]
["LSH14J4C7RV122552","Maxus_CH","(e)Deliver 7","eDeliver 7 VAN L2H1 FWD","88kWh Dual Sliding Door","a0pQC00000DMo25","16.12.2024","917164P03299R3290161","Electric",{"$f":"IF(report1737987713132[[#This Row],[Erstzulassungsdatum]]=\"\",\"\",YEAR(report1737987713132[[#This Row],[Erstzulassungsdatum]]))","v":2024},"eDeliver 7",""]
["LSH14C4C1LA080230","Maxus_CH","EV30 PV","OLDEV30 PV","VEV3P","a0pQC00000DhecN","16.12.2020","912832P00044L6106046","",{"$f":"IF(report1737987713132[[#This Row],[Erstzulassungsdatum]]=\"\",\"\",YEAR(report1737987713132[[#This Row],[Erstzulassungsdatum]]))","v":2020},"eDeliver 3",""]
["LSFAL1103LA048079","Maxus_CH","EV80 CC","OLDEV80 CC","VE8C","a0pQC00000DhUIg","16.10.2020","104125P01109L3240001","",{"$f":"IF(report1737987713132[[#This Row],[Erstzulassungsdatum]]=\"\",\"\",YEAR(report1737987713132[[#This Row],[Erstzulassungsdatum]]))","v":2020},"EV 80",""]
["LSH14J4C8MA147962","Maxus_CH","(e)Deliver 9","eDeliver 9 VAN L3H2","FWD 88kWh","a0pQC00000DMtZc","16.09.2024","914600P00034N5170154","Electric",{"$f":"IF(report1737987713132[[#This Row],[Erstzulassungsdatum]]=\"\",\"\",YEAR(report1737987713132[[#This Row],[Erstzulassungsdatum]]))","v":2024},"eDeliver 9",""]
["LSH14J4C8NA057549","Maxus_CH","(e)Deliver 9","eDeliver 9 VAN L3H2","FWD 72kWh","a0pQC00000DMtZb","16.08.2022","917785P00034MB300108","Electric",{"$f":"IF(report1737987713132[[#This Row],[Erstzulassungsdatum]]=\"\",\"\",YEAR(report1737987713132[[#This Row],[Erstzulassungsdatum]]))","v":2022},"eDeliver 9",""]
["LSH14C4C6MA122750","Maxus_CH","EV30 PV","OLDEV30 PV","VEV3P","a0pQC00000DhecN","16.08.2022","918674P00044MC166016","",{"$f":"IF(report1737987713132[[#This Row],[Erstzulassungsdatum]]=\"\",\"\",YEAR(report1737987713132[[#This Row],[Erstzulassungsdatum]]))","v":2022},"eDeliver 3",""]
["LSFAL11A0PA107510","Maxus_CH","(e)Deliver 9","Deliver 9 Cabine L3 RWD","Luxury","a0pQC00000DMnfX","16.07.2025","M9241000311","Diesel",{"$f":"IF(report1737987713132[[#This Row],[Erstzulassungsdatum]]=\"\",\"\",YEAR(report1737987713132[[#This Row],[Erstzulassungsdatum]]))","v":2025},"Deliver 9",""]
["LSH14J7C8SV121623","Maxus_CH","(e)Deliver 7","Deliver 7 VAN L2H1 FWD","-","a0pQC00000DMxYG","16.07.2025","M9253013714","Diesel",{"$f":"IF(report1737987713132[[#This Row],[Erstzulassungsdatum]]=\"\",\"\",YEAR(report1737987713132[[#This Row],[Erstzulassungsdatum]]))","v":2025},"Deliver 7",""]
["LSH14J7C7SV121628","Maxus_CH","(e)Deliver 7","Deliver 7 VAN L2H1 FWD","-","a0pQC00000DMxYG","16.07.2025","M9253013710","Diesel",{"$f":"IF(report1737987713132[[#This Row],[Erstzulassungsdatum]]=\"\",\"\",YEAR(report1737987713132[[#This Row],[Erstzulassungsdatum]]))","v":2025},"Deliver 7",""]
["LSH14J7C6SV121622","Maxus_CH","(e)Deliver 7","Deliver 7 VAN L2H1 FWD","-","a0pQC00000DMxYG","16.07.2025","M9252007521","Diesel",{"$f":"IF(report1737987713132[[#This Row],[Erstzulassungsdatum]]=\"\",\"\",YEAR(report1737987713132[[#This Row],[Erstzulassungsdatum]]))","v":2025},"Deliver 7",""]
["LSH14J7C5SV121627","Maxus_CH","(e)Deliver 7","Deliver 7 VAN L2H1 FWD","-","a0pQC00000DMxYG","16.07.2025","M9253013079","Diesel",{"$f":"IF(report1737987713132[[#This Row],[Erstzulassungsdatum]]=\"\",\"\",YEAR(report1737987713132[[#This Row],[Erstzulassungsdatum]]))","v":2025},"Deliver 7",""]
["LSH14J7C3SV121626","Maxus_CH","(e)Deliver 7","Deliver 7 VAN L2H1 FWD","-","a0pQC00000DMxYG","16.07.2025","M9251004557","Diesel",{"$f":"IF(report1737987713132[[#This Row],[Erstzulassungsdatum]]=\"\",\"\",YEAR(report1737987713132[[#This Row],[Erstzulassungsdatum]]))","v":2025},"Deliver 7",""]
["LSH14J4C3RD060766","Maxus_CH","eDeliver 5","eDeliver 5 VAN L1H1 FWD","64kWh","a0pQC00000DMtZm","16.07.2025","911693P03299R5090182","Electric",{"$f":"IF(report1737987713132[[#This Row],[Erstzulassungsdatum]]=\"\",\"\",YEAR(report1737987713132[[#This Row],[Erstzulassungsdatum]]))","v":2025},"eDeliver 5",""]
["LSFAM11C5RA134543","Maxus_CH","T60 MAX","T60 MAX","AWD","a0pQC00000FBTso","16.07.2025","M924A064110","Diesel",{"$f":"IF(report1737987713132[[#This Row],[Erstzulassungsdatum]]=\"\",\"\",YEAR(report1737987713132[[#This Row],[Erstzulassungsdatum]]))","v":2025},"T60 Max","2024-09-30"]
["LSKG48C11ND066542","Maxus_CH","MIFA 9","MIFA 9 Premium","90kWh 7-Seater","a0pQC00000DMyan","16.06.2023","A122A15A10114204","Electric",{"$f":"IF(report1737987713132[[#This Row],[Erstzulassungsdatum]]=\"\",\"\",YEAR(report1737987713132[[#This Row],[Erstzulassungsdatum]]))","v":2023},"Mifa 9",""]
["LSH14C4C8LA080032","Maxus_CH","EV30 PV","OLDEV30 PV","VEV3P","a0pQC00000DhecN","16.06.2021","912832P00044L5246095","",{"$f":"IF(report1737987713132[[#This Row],[Erstzulassungsdatum]]=\"\",\"\",YEAR(report1737987713132[[#This Row],[Erstzulassungsdatum]]))","v":2021},"eDeliver 3",""]
["LSH14J7C7PA106772","Maxus_CH","(e)Deliver 9","Deliver 9 VAN L3H2 RWD","Comfort","a0pQC00000DN0uI","16.05.2024","M9235046928","Diesel",{"$f":"IF(report1737987713132[[#This Row],[Erstzulassungsdatum]]=\"\",\"\",YEAR(report1737987713132[[#This Row],[Erstzulassungsdatum]]))","v":2024},"Deliver 9",""]
["LSH14J7C2RV125502","Maxus_CH","(e)Deliver 7","Deliver 7 VAN L2H1 FWD","-","a0pQC00000DMxYG","16.04.2025","M924A059923","Diesel",{"$f":"IF(report1737987713132[[#This Row],[Erstzulassungsdatum]]=\"\",\"\",YEAR(report1737987713132[[#This Row],[Erstzulassungsdatum]]))","v":2025},"Deliver 7",""]
["LSFAM1101PD050043","Maxus_CH","eDeliver 3","eDeliver 3 Cabine L2 FWD","52kWh","a0pQC00000DMkMl","16.04.2024","916502P03299P2070050","Electric",{"$f":"IF(report1737987713132[[#This Row],[Erstzulassungsdatum]]=\"\",\"\",YEAR(report1737987713132[[#This Row],[Erstzulassungsdatum]]))","v":2024},"eDeliver 3",""]
["LSH14J4CXKA091892","Maxus_CH","EV80 PV","OLDEV80 PV","VE8P","a0pQC00000DhYVe","16.03.2020","105855P01109K1240017","",{"$f":"IF(report1737987713132[[#This Row],[Erstzulassungsdatum]]=\"\",\"\",YEAR(report1737987713132[[#This Row],[Erstzulassungsdatum]]))","v":2020},"EV 80",""]
["LSFAM1200PA091313","Maxus_CH","T90 EV","T90 EV Pick Up RWD","89kWh","a0pQC00000DMoF4","16.02.2024","917939P04016NC080071","Electric",{"$f":"IF(report1737987713132[[#This Row],[Erstzulassungsdatum]]=\"\",\"\",YEAR(report1737987713132[[#This Row],[Erstzulassungsdatum]]))","v":2024},"T90 EV",""]
["LSH14C4C7NA157993","Maxus_CH","eDeliver 3","eDeliver 3 VAN L1H1 FWD","50kWh","a0pQC00000DMhJv","16.01.2024","910851P00044N9256064","Electric",{"$f":"IF(report1737987713132[[#This Row],[Erstzulassungsdatum]]=\"\",\"\",YEAR(report1737987713132[[#This Row],[Erstzulassungsdatum]]))","v":2024},"eDeliver 3",""]
["LSH14J4C3MA147979","Maxus_CH","(e)Deliver 9","eDeliver 9 VAN L3H2","FWD 88kWh","a0pQC00000DMtZc","15.12.2022","914600P00034N5230077","Electric",{"$f":"IF(report1737987713132[[#This Row],[Erstzulassungsdatum]]=\"\",\"\",YEAR(report1737987713132[[#This Row],[Erstzulassungsdatum]]))","v":2022},"eDeliver 9",""]
["LSKG47C16PD043514","Maxus_CH","9999","GREY IMPORTER DUMMIE","EV80-OD","a0pQC00000ECYij","15.11.2024","","",{"$f":"IF(report1737987713132[[#This Row],[Erstzulassungsdatum]]=\"\",\"\",YEAR(report1737987713132[[#This Row],[Erstzulassungsdatum]]))","v":2024},null,""]
["LSKG47C16PD043576","Maxus_CH","9999","GREY IMPORTER DUMMIE","EV80-OD","a0pQC00000ECYij","15.11.2024","","",{"$f":"IF(report1737987713132[[#This Row],[Erstzulassungsdatum]]=\"\",\"\",YEAR(report1737987713132[[#This Row],[Erstzulassungsdatum]]))","v":2024},null,""]
["LSH14C4C2NA171798","Maxus_CH","9999","GREY IMPORTER DUMMIE","EV30-OD","a0pQC00000ECYih","15.10.2023","","",{"$f":"IF(report1737987713132[[#This Row],[Erstzulassungsdatum]]=\"\",\"\",YEAR(report1737987713132[[#This Row],[Erstzulassungsdatum]]))","v":2023},null,""]
["LSH14C4C3LA079905","Maxus_CH","EV30 PV","OLDEV30 PV","VEV3P","a0pQC00000DhecN","15.10.2020","912832P00044L5246041","",{"$f":"IF(report1737987713132[[#This Row],[Erstzulassungsdatum]]=\"\",\"\",YEAR(report1737987713132[[#This Row],[Erstzulassungsdatum]]))","v":2020},"eDeliver 3",""]
["LSH14C4C1LA079952","Maxus_CH","EV30 PV","OLDEV30 PV","VEV3P","a0pQC00000DhecN","15.10.2020","912832P00044L5246070","",{"$f":"IF(report1737987713132[[#This Row],[Erstzulassungsdatum]]=\"\",\"\",YEAR(report1737987713132[[#This Row],[Erstzulassungsdatum]]))","v":2020},"eDeliver 3",""]
["LSH14J7C9SV121615","Maxus_CH","(e)Deliver 7","Deliver 7 VAN L2H1 FWD","Dual Sliding Door","a0pQC00000DMxYH","15.09.2025","M9253013712","Diesel",{"$f":"IF(report1737987713132[[#This Row],[Erstzulassungsdatum]]=\"\",\"\",YEAR(report1737987713132[[#This Row],[Erstzulassungsdatum]]))","v":2025},"Deliver 7",""]
["LSH14J7C5RA073323","Maxus_CH","(e)Deliver 9","Deliver 9 VAN L3H2 FWD","Luxury","a0pQC00000DMlx3","15.08.2025","M9241008121","Diesel",{"$f":"IF(report1737987713132[[#This Row],[Erstzulassungsdatum]]=\"\",\"\",YEAR(report1737987713132[[#This Row],[Erstzulassungsdatum]]))","v":2025},"Deliver 9",""]
["LSH14J7C6SV122074","Maxus_CH","(e)Deliver 7","Deliver 7 VAN L2H1 FWD","-","a0pQC00000DMxYG","15.08.2025","M9253014531","Diesel",{"$f":"IF(report1737987713132[[#This Row],[Erstzulassungsdatum]]=\"\",\"\",YEAR(report1737987713132[[#This Row],[Erstzulassungsdatum]]))","v":2025},"Deliver 7",""]
["LSH14J7C6SV122057","Maxus_CH","(e)Deliver 7","Deliver 7 VAN L2H1 FWD","Dual Sliding Door","a0pQC00000DMxYH","15.08.2025","M9254022144","Diesel",{"$f":"IF(report1737987713132[[#This Row],[Erstzulassungsdatum]]=\"\",\"\",YEAR(report1737987713132[[#This Row],[Erstzulassungsdatum]]))","v":2025},"Deliver 7",""]
["LSFAL1604RA138701","Maxus_CH","eTerron 9","eTerron 9 Premium","AWD 102kWh Black Met (Black&White Interior)","a0pQC00000FQlNo","15.08.2025","","Electric",{"$f":"IF(report1737987713132[[#This Row],[Erstzulassungsdatum]]=\"\",\"\",YEAR(report1737987713132[[#This Row],[Erstzulassungsdatum]]))","v":2025},"eTerron 9",""]
["LSFAM11C9SA074269","Maxus_CH","T60 MAX","T60 MAX","AWD","a0pQC00000FBTso","15.08.2025","M9252007566","Diesel",{"$f":"IF(report1737987713132[[#This Row],[Erstzulassungsdatum]]=\"\",\"\",YEAR(report1737987713132[[#This Row],[Erstzulassungsdatum]]))","v":2025},"T60 Max","2025-01-31"]
["LSFAM11CXSA082056","Maxus_CH","T60 MAX","T60 MAX","AWD","a0pQC00000FBTso","15.08.2025","M9253017483","Diesel",{"$f":"IF(report1737987713132[[#This Row],[Erstzulassungsdatum]]=\"\",\"\",YEAR(report1737987713132[[#This Row],[Erstzulassungsdatum]]))","v":2025},"T60 Max","2025-02-28"]
["LSFAM11C5SA074267","Maxus_CH","T60 MAX","T60 MAX","AWD","a0pQC00000FBTso","15.07.2025","M9252007570","Diesel",{"$f":"IF(report1737987713132[[#This Row],[Erstzulassungsdatum]]=\"\",\"\",YEAR(report1737987713132[[#This Row],[Erstzulassungsdatum]]))","v":2025},"T60 Max","2025-01-31"]
["LSH14J7C3RV125458","Maxus_CH","(e)Deliver 7","Deliver 7 VAN L2H1 FWD","Dual Sliding Door","a0pQC00000DMxYH","15.05.2025","M9249057990","Diesel",{"$f":"IF(report1737987713132[[#This Row],[Erstzulassungsdatum]]=\"\",\"\",YEAR(report1737987713132[[#This Row],[Erstzulassungsdatum]]))","v":2025},"Deliver 7",""]
["LSFAM11C1RA134555","Maxus_CH","T60 MAX","T60 MAX","AWD","a0pQC00000FBTso","15.05.2025","M924A063654","Diesel",{"$f":"IF(report1737987713132[[#This Row],[Erstzulassungsdatum]]=\"\",\"\",YEAR(report1737987713132[[#This Row],[Erstzulassungsdatum]]))","v":2025},"T60 Max","2024-09-30"]
["LSFAM1109PD050047","Maxus_CH","eDeliver 3","eDeliver 3 Cabine L2 FWD","52kWh","a0pQC00000DMkMl","15.04.2024","916502P03299P2150126","Electric",{"$f":"IF(report1737987713132[[#This Row],[Erstzulassungsdatum]]=\"\",\"\",YEAR(report1737987713132[[#This Row],[Erstzulassungsdatum]]))","v":2024},"eDeliver 3",""]
["LSH14J7C7PA107372","Maxus_CH","(e)Deliver 9","Deliver 9 VAN L3H2 RWD","Luxury","a0pQC00000DN0uH","15.04.2024","M9235045657","Diesel",{"$f":"IF(report1737987713132[[#This Row],[Erstzulassungsdatum]]=\"\",\"\",YEAR(report1737987713132[[#This Row],[Erstzulassungsdatum]]))","v":2024},"Deliver 9",""]
["LSH14J7C6PA189451","Maxus_CH","(e)Deliver 9","Deliver 9 VAN L3H2 FWD","Comfort","a0pQC00000DMlx4","15.01.2025","M923B099972","Diesel",{"$f":"IF(report1737987713132[[#This Row],[Erstzulassungsdatum]]=\"\",\"\",YEAR(report1737987713132[[#This Row],[Erstzulassungsdatum]]))","v":2025},"Deliver 9",""]
["LSH14J4C2RV121793","Maxus_CH","(e)Deliver 7","eDeliver 7 VAN L1H1 FWD","77kWh","a0pQC00000DMveU","15.01.2025","917164P03299R1040045","Electric",{"$f":"IF(report1737987713132[[#This Row],[Erstzulassungsdatum]]=\"\",\"\",YEAR(report1737987713132[[#This Row],[Erstzulassungsdatum]]))","v":2025},"eDeliver 7",""]
["LSH14J7C7PA106870","Maxus_CH","(e)Deliver 9","Deliver 9 VAN L3H2 RWD","Luxury","a0pQC00000DN0uH","15.01.2024","","Diesel",{"$f":"IF(report1737987713132[[#This Row],[Erstzulassungsdatum]]=\"\",\"\",YEAR(report1737987713132[[#This Row],[Erstzulassungsdatum]]))","v":2024},"Deliver 9",""]
["LSH14J7C4PA108883","Maxus_CH","(e)Deliver 9","Deliver 9 VAN L3H2 FWD","Luxury","a0pQC00000DMlx3","14.11.2024","M923A091189","Diesel",{"$f":"IF(report1737987713132[[#This Row],[Erstzulassungsdatum]]=\"\",\"\",YEAR(report1737987713132[[#This Row],[Erstzulassungsdatum]]))","v":2024},"Deliver 9",""]
["LSFAL1101MA147887","Maxus_CH","(e)Deliver 9","eDeliver 9 Cabine L4","FWD 65kWh","a0pQC00000DMvQ1","14.08.2025","914600P00034NB070076","Electric",{"$f":"IF(report1737987713132[[#This Row],[Erstzulassungsdatum]]=\"\",\"\",YEAR(report1737987713132[[#This Row],[Erstzulassungsdatum]]))","v":2025},"eDeliver 9",""]
["LSH15J5C6SV120924","Maxus_CH","(e)Deliver 7","eDeliver 7 VAN L2H1 AWD","88kWh Dual Sliding Door Swiss Post Los 49 #1","a0pQC00000HhTgA","14.08.2025","918787P06014RA250021","Electric",{"$f":"IF(report1737987713132[[#This Row],[Erstzulassungsdatum]]=\"\",\"\",YEAR(report1737987713132[[#This Row],[Erstzulassungsdatum]]))","v":2025},"eDeliver 7",""]
["LSFAM11C9SA082050","Maxus_CH","T60 MAX","T60 MAX","AWD","a0pQC00000FBTso","14.08.2025","M9253017081","Diesel",{"$f":"IF(report1737987713132[[#This Row],[Erstzulassungsdatum]]=\"\",\"\",YEAR(report1737987713132[[#This Row],[Erstzulassungsdatum]]))","v":2025},"T60 Max","2025-02-28"]
["LSH14C4C3NA157974","Maxus_CH","eDeliver 3","eDeliver 3 VAN L1H1 FWD","50kWh","a0pQC00000DMhJv","14.08.2023","910851P00044N9216073","Electric",{"$f":"IF(report1737987713132[[#This Row],[Erstzulassungsdatum]]=\"\",\"\",YEAR(report1737987713132[[#This Row],[Erstzulassungsdatum]]))","v":2023},"eDeliver 3",""]
["LSH14C4CXNA077992","Maxus_CH","eDeliver 3","eDeliver 3 VAN L2H1 FWD","50kWh","a0pQC00000DMpio","14.08.2023","910851P00044N7226024","Electric",{"$f":"IF(report1737987713132[[#This Row],[Erstzulassungsdatum]]=\"\",\"\",YEAR(report1737987713132[[#This Row],[Erstzulassungsdatum]]))","v":2023},"eDeliver 3",""]
["LSFAL11A3PA106268","Maxus_CH","(e)Deliver 9","Deliver 9 Cabine L3 RWD","Luxury","a0pQC00000DMnfX","14.07.2025","M921B087298","Diesel",{"$f":"IF(report1737987713132[[#This Row],[Erstzulassungsdatum]]=\"\",\"\",YEAR(report1737987713132[[#This Row],[Erstzulassungsdatum]]))","v":2025},"Deliver 9",""]
["LSH14J4C7PA191326","Maxus_CH","(e)Deliver 9","eDeliver 9 VAN L2H2","72kWh Plus Pack","a0pQC00000DMtxl","14.06.2024","E10119P03125PA070003","Electric",{"$f":"IF(report1737987713132[[#This Row],[Erstzulassungsdatum]]=\"\",\"\",YEAR(report1737987713132[[#This Row],[Erstzulassungsdatum]]))","v":2024},"eDeliver 9",""]
["LSH14J4C8RD059483","Maxus_CH","eDeliver 5","eDeliver 5 VAN L1H1 FWD","64kWh","a0pQC00000DMtZm","14.05.2025","911693P03299R4280160","Electric",{"$f":"IF(report1737987713132[[#This Row],[Erstzulassungsdatum]]=\"\",\"\",YEAR(report1737987713132[[#This Row],[Erstzulassungsdatum]]))","v":2025},"eDeliver 5",""]
["LSH14J4CXKA091889","Maxus_CH","EV80 PV","OLDEV80 PV","VE8P","a0pQC00000DhYVe","14.04.2022","105855P01109K8280003","",{"$f":"IF(report1737987713132[[#This Row],[Erstzulassungsdatum]]=\"\",\"\",YEAR(report1737987713132[[#This Row],[Erstzulassungsdatum]]))","v":2022},"EV 80",""]
["LSH14C4CXLA080064","Maxus_CH","EV30 PV","OLDEV30 PV","VEV3P","a0pQC00000DhecN","14.04.2021","912832P00044L6196049","",{"$f":"IF(report1737987713132[[#This Row],[Erstzulassungsdatum]]=\"\",\"\",YEAR(report1737987713132[[#This Row],[Erstzulassungsdatum]]))","v":2021},"eDeliver 3",""]
["LSH14J4C5PA100912","Maxus_CH","(e)Deliver 9","eDeliver 9 VAN L3H2","72kWh","a0pQC00000DMtZe","14.03.2025","919181P00034P5170471","Electric",{"$f":"IF(report1737987713132[[#This Row],[Erstzulassungsdatum]]=\"\",\"\",YEAR(report1737987713132[[#This Row],[Erstzulassungsdatum]]))","v":2025},"eDeliver 9",""]
["LSH14J7C9RV125481","Maxus_CH","(e)Deliver 7","Deliver 7 VAN L2H1 FWD","-","a0pQC00000DMxYG","14.03.2025","M9249054318","Diesel",{"$f":"IF(report1737987713132[[#This Row],[Erstzulassungsdatum]]=\"\",\"\",YEAR(report1737987713132[[#This Row],[Erstzulassungsdatum]]))","v":2025},"Deliver 7",""]
["LSH14J7C3RV125489","Maxus_CH","(e)Deliver 7","Deliver 7 VAN L2H1 FWD","Dual Sliding Door","a0pQC00000DMxYH","14.03.2025","M9249058002","Diesel",{"$f":"IF(report1737987713132[[#This Row],[Erstzulassungsdatum]]=\"\",\"\",YEAR(report1737987713132[[#This Row],[Erstzulassungsdatum]]))","v":2025},"Deliver 7",""]
["LSH14J7C0RV125501","Maxus_CH","(e)Deliver 7","Deliver 7 VAN L2H1 FWD","-","a0pQC00000DMxYG","14.02.2025","M9248052511","Diesel",{"$f":"IF(report1737987713132[[#This Row],[Erstzulassungsdatum]]=\"\",\"\",YEAR(report1737987713132[[#This Row],[Erstzulassungsdatum]]))","v":2025},"Deliver 7",""]
["LSH14J4C5RD059490","Maxus_CH","eDeliver 5","eDeliver 5 VAN L1H1 FWD","64kWh","a0pQC00000DMtZm","14.02.2025","911693P03299R5160102","Electric",{"$f":"IF(report1737987713132[[#This Row],[Erstzulassungsdatum]]=\"\",\"\",YEAR(report1737987713132[[#This Row],[Erstzulassungsdatum]]))","v":2025},"eDeliver 5",""]
["LSH14J4C2RV121759","Maxus_CH","(e)Deliver 7","eDeliver 7 VAN L1H1 FWD","77kWh","a0pQC00000DMveU","14.01.2025","917164P03299R1040103","Electric",{"$f":"IF(report1737987713132[[#This Row],[Erstzulassungsdatum]]=\"\",\"\",YEAR(report1737987713132[[#This Row],[Erstzulassungsdatum]]))","v":2025},"eDeliver 7",""]
["LSH14J7C6PA189420","Maxus_CH","(e)Deliver 9","Deliver 9 VAN L3H2 FWD","Comfort","a0pQC00000DMlx4","13.12.2024","M923B100281","Diesel",{"$f":"IF(report1737987713132[[#This Row],[Erstzulassungsdatum]]=\"\",\"\",YEAR(report1737987713132[[#This Row],[Erstzulassungsdatum]]))","v":2024},"Deliver 9",""]
["LSH14C4C1NA157973","Maxus_CH","eDeliver 3","eDeliver 3 VAN L1H1 FWD","50kWh","a0pQC00000DMhJv","13.12.2023","910851P00044N9186013","Electric",{"$f":"IF(report1737987713132[[#This Row],[Erstzulassungsdatum]]=\"\",\"\",YEAR(report1737987713132[[#This Row],[Erstzulassungsdatum]]))","v":2023},"eDeliver 3",""]
["LSH14J4C6NA105551","Maxus_CH","(e)Deliver 9","eDeliver 9 VAN L3H2","FWD 72kWh","a0pQC00000DMtZb","13.12.2022","914600P00034N3280025","Electric",{"$f":"IF(report1737987713132[[#This Row],[Erstzulassungsdatum]]=\"\",\"\",YEAR(report1737987713132[[#This Row],[Erstzulassungsdatum]]))","v":2022},"eDeliver 9",""]
["LSH14J7C6PA189448","Maxus_CH","(e)Deliver 9","Deliver 9 VAN L3H2 FWD","Comfort","a0pQC00000DMlx4","13.11.2024","M923B099983","Diesel",{"$f":"IF(report1737987713132[[#This Row],[Erstzulassungsdatum]]=\"\",\"\",YEAR(report1737987713132[[#This Row],[Erstzulassungsdatum]]))","v":2024},"Deliver 9",""]
["LSH14J4C5NA177082","Maxus_CH","(e)Deliver 9","eDeliver 9 VAN L3H2","FWD 52kWh","a0pQC00000DMtZa","13.09.2024","914600P00034NB260017","Electric",{"$f":"IF(report1737987713132[[#This Row],[Erstzulassungsdatum]]=\"\",\"\",YEAR(report1737987713132[[#This Row],[Erstzulassungsdatum]]))","v":2024},"eDeliver 9",""]
["LSH14J4C3NA180255","Maxus_CH","(e)Deliver 9","eDeliver 9 VAN L3H2","FWD 72kWh Double Sliding Door","a0pQC00000DMtZd","13.09.2024","914600P00034NC290073","Electric",{"$f":"IF(report1737987713132[[#This Row],[Erstzulassungsdatum]]=\"\",\"\",YEAR(report1737987713132[[#This Row],[Erstzulassungsdatum]]))","v":2024},"eDeliver 9",""]
["LSH14J4C6NA057551","Maxus_CH","(e)Deliver 9","eDeliver 9 VAN L3H2","FWD 72kWh","a0pQC00000DMtZb","13.09.2022","915536P00034N1220060","Electric",{"$f":"IF(report1737987713132[[#This Row],[Erstzulassungsdatum]]=\"\",\"\",YEAR(report1737987713132[[#This Row],[Erstzulassungsdatum]]))","v":2022},"eDeliver 9",""]
["LSH15J5C0SV120921","Maxus_CH","(e)Deliver 7","eDeliver 7 VAN L2H1 AWD","88kWh Dual Sliding Door Swiss Post Los 49 #1","a0pQC00000HhTgA","13.08.2025","918787P06014R8240003","Electric",{"$f":"IF(report1737987713132[[#This Row],[Erstzulassungsdatum]]=\"\",\"\",YEAR(report1737987713132[[#This Row],[Erstzulassungsdatum]]))","v":2025},"eDeliver 7",""]
["LSFAM11C0SA082051","Maxus_CH","T60 MAX","T60 MAX","AWD","a0pQC00000FBTso","13.08.2025","M9253017487","Diesel",{"$f":"IF(report1737987713132[[#This Row],[Erstzulassungsdatum]]=\"\",\"\",YEAR(report1737987713132[[#This Row],[Erstzulassungsdatum]]))","v":2025},"T60 Max","2025-02-28"]
["LSH14J7C4PA108947","Maxus_CH","(e)Deliver 9","Deliver 9 VAN L3H2 FWD","Luxury","a0pQC00000DMlx3","13.06.2025","M923A089500","Diesel",{"$f":"IF(report1737987713132[[#This Row],[Erstzulassungsdatum]]=\"\",\"\",YEAR(report1737987713132[[#This Row],[Erstzulassungsdatum]]))","v":2025},"Deliver 9",""]
["LSH14J4C9PA100993","Maxus_CH","(e)Deliver 9","eDeliver 9 VAN L3H2","72kWh","a0pQC00000DMtZe","13.06.2025","919181P00034P5170291","Electric",{"$f":"IF(report1737987713132[[#This Row],[Erstzulassungsdatum]]=\"\",\"\",YEAR(report1737987713132[[#This Row],[Erstzulassungsdatum]]))","v":2025},"eDeliver 9",""]
["LSH14C4C0LA080011","Maxus_CH","EV30 PV","OLDEV30 PV","VEV3P","a0pQC00000DhecN","13.04.2021","912832P00044L5246042","",{"$f":"IF(report1737987713132[[#This Row],[Erstzulassungsdatum]]=\"\",\"\",YEAR(report1737987713132[[#This Row],[Erstzulassungsdatum]]))","v":2021},"eDeliver 3",""]
["LSH15J5C3RV126125","Maxus_CH","(e)Deliver 7","eDeliver 7 VAN L2H1 AWD","88kWh","a0pQC00000DMnfa","13.03.2025","","Electric",{"$f":"IF(report1737987713132[[#This Row],[Erstzulassungsdatum]]=\"\",\"\",YEAR(report1737987713132[[#This Row],[Erstzulassungsdatum]]))","v":2025},"eDeliver 7",""]
["LSH14J7C1RV125491","Maxus_CH","(e)Deliver 7","Deliver 7 VAN L2H1 FWD","-","a0pQC00000DMxYG","13.03.2025","M9249057997","Diesel",{"$f":"IF(report1737987713132[[#This Row],[Erstzulassungsdatum]]=\"\",\"\",YEAR(report1737987713132[[#This Row],[Erstzulassungsdatum]]))","v":2025},"Deliver 7",""]
["LSH14J7C4PA189447","Maxus_CH","(e)Deliver 9","Deliver 9 VAN L3H2 FWD","Comfort","a0pQC00000DMlx4","13.01.2025","M923B099975","Diesel",{"$f":"IF(report1737987713132[[#This Row],[Erstzulassungsdatum]]=\"\",\"\",YEAR(report1737987713132[[#This Row],[Erstzulassungsdatum]]))","v":2025},"Deliver 9",""]
["LSH14J4C7RD059488","Maxus_CH","eDeliver 5","eDeliver 5 VAN L1H1 FWD","64kWh","a0pQC00000DMtZm","13.01.2025","911693P03299R5160050","Electric",{"$f":"IF(report1737987713132[[#This Row],[Erstzulassungsdatum]]=\"\",\"\",YEAR(report1737987713132[[#This Row],[Erstzulassungsdatum]]))","v":2025},"eDeliver 5",""]
["LSH14C4C5NA078015","Maxus_CH","eDeliver 3","eDeliver 3 VAN L2H1 FWD","50kWh","a0pQC00000DMpio","13.01.2023","910851P00044N7046083","Electric",{"$f":"IF(report1737987713132[[#This Row],[Erstzulassungsdatum]]=\"\",\"\",YEAR(report1737987713132[[#This Row],[Erstzulassungsdatum]]))","v":2023},"eDeliver 3",""]
["LSH14C4C4NA158003","Maxus_CH","eDeliver 3","eDeliver 3 VAN L1H1 FWD","50kWh","a0pQC00000DMhJv","12.12.2023","910851P00044N9216036","Electric",{"$f":"IF(report1737987713132[[#This Row],[Erstzulassungsdatum]]=\"\",\"\",YEAR(report1737987713132[[#This Row],[Erstzulassungsdatum]]))","v":2023},"eDeliver 3",""]
["LSH14J7C5PA096968","Maxus_CH","9999","GREY IMPORTER DUMMIE","EV30-OD","a0pQC00000ECYih","12.10.2023","","",{"$f":"IF(report1737987713132[[#This Row],[Erstzulassungsdatum]]=\"\",\"\",YEAR(report1737987713132[[#This Row],[Erstzulassungsdatum]]))","v":2023},null,""]
["LSH14J7C0SV122071","Maxus_CH","(e)Deliver 7","Deliver 7 VAN L2H1 FWD","-","a0pQC00000DMxYG","12.09.2025","M9254022127","Diesel",{"$f":"IF(report1737987713132[[#This Row],[Erstzulassungsdatum]]=\"\",\"\",YEAR(report1737987713132[[#This Row],[Erstzulassungsdatum]]))","v":2025},"Deliver 7",""]
["LSH14J7C2SV122055","Maxus_CH","(e)Deliver 7","Deliver 7 VAN L2H1 FWD","-","a0pQC00000DMxYG","12.09.2025","M9254022131","Diesel",{"$f":"IF(report1737987713132[[#This Row],[Erstzulassungsdatum]]=\"\",\"\",YEAR(report1737987713132[[#This Row],[Erstzulassungsdatum]]))","v":2025},"Deliver 7",""]
["LSH14J7C7SV122052","Maxus_CH","(e)Deliver 7","Deliver 7 VAN L2H1 FWD","-","a0pQC00000DMxYG","12.09.2025","M9254023027","Diesel",{"$f":"IF(report1737987713132[[#This Row],[Erstzulassungsdatum]]=\"\",\"\",YEAR(report1737987713132[[#This Row],[Erstzulassungsdatum]]))","v":2025},"Deliver 7",""]
["LSH14J7C5SV122292","Maxus_CH","(e)Deliver 7","Deliver 7 VAN L2H1 FWD","-","a0pQC00000DMxYG","12.09.2025","M9255027495","Diesel",{"$f":"IF(report1737987713132[[#This Row],[Erstzulassungsdatum]]=\"\",\"\",YEAR(report1737987713132[[#This Row],[Erstzulassungsdatum]]))","v":2025},"Deliver 7",""]
["LSH14J7CXSV122272","Maxus_CH","(e)Deliver 7","Deliver 7 VAN L2H1 FWD","-","a0pQC00000DMxYG","12.09.2025","M9255027312","Diesel",{"$f":"IF(report1737987713132[[#This Row],[Erstzulassungsdatum]]=\"\",\"\",YEAR(report1737987713132[[#This Row],[Erstzulassungsdatum]]))","v":2025},"Deliver 7",""]
["LSFAM11C1SA092958","Maxus_CH","T60 MAX","T60 MAX","AWD","a0pQC00000FBTso","12.09.2025","M9254022739","Diesel",{"$f":"IF(report1737987713132[[#This Row],[Erstzulassungsdatum]]=\"\",\"\",YEAR(report1737987713132[[#This Row],[Erstzulassungsdatum]]))","v":2025},"T60 Max","2025-03-31"]
["LSFAM11C7SA092950","Maxus_CH","T60 MAX","T60 MAX","AWD","a0pQC00000FBTso","12.09.2025","M9254022752","Diesel",{"$f":"IF(report1737987713132[[#This Row],[Erstzulassungsdatum]]=\"\",\"\",YEAR(report1737987713132[[#This Row],[Erstzulassungsdatum]]))","v":2025},"T60 Max","2025-03-31"]
["LSH14J4C9RV120608","Maxus_CH","(e)Deliver 7","eDeliver 7 VAN L2H1 FWD","88kWh Dual Sliding Door","a0pQC00000DMo25","12.09.2024","917164P03299PC250110","Electric",{"$f":"IF(report1737987713132[[#This Row],[Erstzulassungsdatum]]=\"\",\"\",YEAR(report1737987713132[[#This Row],[Erstzulassungsdatum]]))","v":2024},"eDeliver 7",""]
["LSH15J5C1SV120927","Maxus_CH","(e)Deliver 7","eDeliver 7 VAN L2H1 AWD","88kWh Dual Sliding Door Swiss Post Los 49 #1","a0pQC00000HhTgA","12.08.2025","918787P06014R4210010","Electric",{"$f":"IF(report1737987713132[[#This Row],[Erstzulassungsdatum]]=\"\",\"\",YEAR(report1737987713132[[#This Row],[Erstzulassungsdatum]]))","v":2025},"eDeliver 7",""]
["LSH14J7C2SV122072","Maxus_CH","(e)Deliver 7","Deliver 7 VAN L2H1 FWD","Dual Sliding Door","a0pQC00000DMxYH","12.08.2025","M9254022477","Diesel",{"$f":"IF(report1737987713132[[#This Row],[Erstzulassungsdatum]]=\"\",\"\",YEAR(report1737987713132[[#This Row],[Erstzulassungsdatum]]))","v":2025},"Deliver 7",""]
["LSH14J4CXLA108658","Maxus_CH","EV90 PV","OLDEV90 PV","VE9P","a0pQC00000DhXKv","12.08.2021","916703P00034L8280008","",{"$f":"IF(report1737987713132[[#This Row],[Erstzulassungsdatum]]=\"\",\"\",YEAR(report1737987713132[[#This Row],[Erstzulassungsdatum]]))","v":2021},"eDeliver 9",""]
["LSH14J4C0RV120772","Maxus_CH","(e)Deliver 7","eDeliver 7 VAN L1H1 FWD","77kWh","a0pQC00000DMveU","12.07.2024","917164P03299PC070011","Electric",{"$f":"IF(report1737987713132[[#This Row],[Erstzulassungsdatum]]=\"\",\"\",YEAR(report1737987713132[[#This Row],[Erstzulassungsdatum]]))","v":2024},"eDeliver 7",""]
["LSH14J7CXPA096898","Maxus_CH","9999","GREY IMPORTER DUMMIE","EV30-OD","a0pQC00000ECYih","12.07.2023","","",{"$f":"IF(report1737987713132[[#This Row],[Erstzulassungsdatum]]=\"\",\"\",YEAR(report1737987713132[[#This Row],[Erstzulassungsdatum]]))","v":2023},null,""]
["LSH14J7C1SV121527","Maxus_CH","(e)Deliver 7","Deliver 7 VAN L2H1 FWD","-","a0pQC00000DMxYG","12.06.2025","M9251006625","Diesel",{"$f":"IF(report1737987713132[[#This Row],[Erstzulassungsdatum]]=\"\",\"\",YEAR(report1737987713132[[#This Row],[Erstzulassungsdatum]]))","v":2025},"Deliver 7",""]
["LSH14J4C9RD056009","Maxus_CH","eDeliver 5","eDeliver 5 VAN L1H1 FWD","64kWh","a0pQC00000DMtZm","11.12.2024","911693P03299R1230012","Electric",{"$f":"IF(report1737987713132[[#This Row],[Erstzulassungsdatum]]=\"\",\"\",YEAR(report1737987713132[[#This Row],[Erstzulassungsdatum]]))","v":2024},"eDeliver 5",""]
["LSFAL1103NA057562","Maxus_CH","(e)Deliver 9","eDeliver 9 Cabine L3","FWD 65kWh","a0pQC00000DMoJk","11.12.2023","914600P00034NA180077","Electric",{"$f":"IF(report1737987713132[[#This Row],[Erstzulassungsdatum]]=\"\",\"\",YEAR(report1737987713132[[#This Row],[Erstzulassungsdatum]]))","v":2023},"eDeliver 9",""]
["LSH14C4C1LA079935","Maxus_CH","EV30 PV","OLDEV30 PV","VEV3P","a0pQC00000DhecN","11.12.2020","912832P00044L6056057","",{"$f":"IF(report1737987713132[[#This Row],[Erstzulassungsdatum]]=\"\",\"\",YEAR(report1737987713132[[#This Row],[Erstzulassungsdatum]]))","v":2020},"eDeliver 3",""]
["LSH14C4C4LA079900","Maxus_CH","EV30 PV","OLDEV30 PV","VEV3P","a0pQC00000DhecN","11.12.2020","912832P00044L6106082","",{"$f":"IF(report1737987713132[[#This Row],[Erstzulassungsdatum]]=\"\",\"\",YEAR(report1737987713132[[#This Row],[Erstzulassungsdatum]]))","v":2020},"eDeliver 3",""]
["LSH14J7C5SV122275","Maxus_CH","(e)Deliver 7","Deliver 7 VAN L2H1 FWD","-","a0pQC00000DMxYG","11.09.2025","M9255027498","Diesel",{"$f":"IF(report1737987713132[[#This Row],[Erstzulassungsdatum]]=\"\",\"\",YEAR(report1737987713132[[#This Row],[Erstzulassungsdatum]]))","v":2025},"Deliver 7",""]
["LSH14J7C7SV122276","Maxus_CH","(e)Deliver 7","Deliver 7 VAN L2H1 FWD","-","a0pQC00000DMxYG","11.09.2025","M9255027506","Diesel",{"$f":"IF(report1737987713132[[#This Row],[Erstzulassungsdatum]]=\"\",\"\",YEAR(report1737987713132[[#This Row],[Erstzulassungsdatum]]))","v":2025},"Deliver 7",""]
["LSH14J7C7SV122293","Maxus_CH","(e)Deliver 7","Deliver 7 VAN L2H1 FWD","-","a0pQC00000DMxYG","11.09.2025","M9255027307","Diesel",{"$f":"IF(report1737987713132[[#This Row],[Erstzulassungsdatum]]=\"\",\"\",YEAR(report1737987713132[[#This Row],[Erstzulassungsdatum]]))","v":2025},"Deliver 7",""]
["LSH14J7C0SV122247","Maxus_CH","(e)Deliver 7","Deliver 7 VAN L2H1 FWD","Dual Sliding Door","a0pQC00000DMxYH","11.09.2025","M9254026505","Diesel",{"$f":"IF(report1737987713132[[#This Row],[Erstzulassungsdatum]]=\"\",\"\",YEAR(report1737987713132[[#This Row],[Erstzulassungsdatum]]))","v":2025},"Deliver 7",""]
["LSFAL1608RA138667","Maxus_CH","eTerron 9","eTerron 9 Luxury","AWD 102kWh Black Met","a0pQC00000FQqle","11.08.2025","","Electric",{"$f":"IF(report1737987713132[[#This Row],[Erstzulassungsdatum]]=\"\",\"\",YEAR(report1737987713132[[#This Row],[Erstzulassungsdatum]]))","v":2025},"eTerron 9",""]
["LSFAM11C4SA092954","Maxus_CH","T60 MAX","T60 MAX","AWD","a0pQC00000FBTso","11.08.2025","M9254022747","Diesel",{"$f":"IF(report1737987713132[[#This Row],[Erstzulassungsdatum]]=\"\",\"\",YEAR(report1737987713132[[#This Row],[Erstzulassungsdatum]]))","v":2025},"T60 Max","2025-03-31"]
["LSH14C4C1NA058604","Maxus_CH","eDeliver 3","eDeliver 3 VAN L2H1 FWD","50kWh","a0pQC00000DMpio","11.08.2023","910851P00044N7216127","Electric",{"$f":"IF(report1737987713132[[#This Row],[Erstzulassungsdatum]]=\"\",\"\",YEAR(report1737987713132[[#This Row],[Erstzulassungsdatum]]))","v":2023},"eDeliver 3",""]
["LSH14J7C2RA104009","Maxus_CH","(e)Deliver 9","Deliver 9 VAN L3H2 FWD","Comfort","a0pQC00000DMlx5","11.07.2025","M9244028904","Diesel",{"$f":"IF(report1737987713132[[#This Row],[Erstzulassungsdatum]]=\"\",\"\",YEAR(report1737987713132[[#This Row],[Erstzulassungsdatum]]))","v":2025},"Deliver 9",""]
["LSH14J7C1RA073335","Maxus_CH","(e)Deliver 9","Deliver 9 VAN L3H2 RWD","Luxury","a0pQC00000DN0uH","11.07.2025","M9241006417","Diesel",{"$f":"IF(report1737987713132[[#This Row],[Erstzulassungsdatum]]=\"\",\"\",YEAR(report1737987713132[[#This Row],[Erstzulassungsdatum]]))","v":2025},"Deliver 9",""]
["LSFAM11C7SA074268","Maxus_CH","T60 MAX","T60 MAX","AWD","a0pQC00000FBTso","11.07.2025","M9252007575","Diesel",{"$f":"IF(report1737987713132[[#This Row],[Erstzulassungsdatum]]=\"\",\"\",YEAR(report1737987713132[[#This Row],[Erstzulassungsdatum]]))","v":2025},"T60 Max","2025-01-31"]
["LSH14J7C7PA107386","Maxus_CH","(e)Deliver 9","Deliver 9 VAN L3H2 RWD","Luxury","a0pQC00000DN0uH","11.07.2024","M9235045629","Diesel",{"$f":"IF(report1737987713132[[#This Row],[Erstzulassungsdatum]]=\"\",\"\",YEAR(report1737987713132[[#This Row],[Erstzulassungsdatum]]))","v":2024},"Deliver 9",""]
["LSH15J5C3RV126142","Maxus_CH","(e)Deliver 7","eDeliver 7 VAN L2H1 AWD","88kWh Dual Sliding Door","a0pQC00000DMnfb","11.06.2025","","Electric",{"$f":"IF(report1737987713132[[#This Row],[Erstzulassungsdatum]]=\"\",\"\",YEAR(report1737987713132[[#This Row],[Erstzulassungsdatum]]))","v":2025},"eDeliver 7",""]
["LSH14J7C8SV121525","Maxus_CH","(e)Deliver 7","Deliver 7 VAN L2H1 FWD","-","a0pQC00000DMxYG","11.06.2025","M9252007883","Diesel",{"$f":"IF(report1737987713132[[#This Row],[Erstzulassungsdatum]]=\"\",\"\",YEAR(report1737987713132[[#This Row],[Erstzulassungsdatum]]))","v":2025},"Deliver 7",""]
["LSH14J7C2RV125483","Maxus_CH","(e)Deliver 7","Deliver 7 VAN L2H1 FWD","Dual Sliding Door","a0pQC00000DMxYH","11.06.2025","M9249058563","Diesel",{"$f":"IF(report1737987713132[[#This Row],[Erstzulassungsdatum]]=\"\",\"\",YEAR(report1737987713132[[#This Row],[Erstzulassungsdatum]]))","v":2025},"Deliver 7",""]
["LSFAM1106NA068472","Maxus_CH","eDeliver 3","eDeliver 3 Cabine L2 FWD","50kWh","a0pQC00000DMkMk","11.05.2021","918674P00044NA276082","Electric",{"$f":"IF(report1737987713132[[#This Row],[Erstzulassungsdatum]]=\"\",\"\",YEAR(report1737987713132[[#This Row],[Erstzulassungsdatum]]))","v":2021},"eDeliver 3",""]
["LSH14J4C4LA108655","Maxus_CH","EV90 PV","OLDEV90 PV","VE9P","a0pQC00000DhXKv","11.05.2021","916703P00034L8280011","",{"$f":"IF(report1737987713132[[#This Row],[Erstzulassungsdatum]]=\"\",\"\",YEAR(report1737987713132[[#This Row],[Erstzulassungsdatum]]))","v":2021},"eDeliver 9",""]
["LSKG48C1XRD041743","Maxus_CH","MIFA 9","MIFA 9 Luxury","90kWh 8-Seater","a0pQC00000DN1aE","11.04.2025","","Electric",{"$f":"IF(report1737987713132[[#This Row],[Erstzulassungsdatum]]=\"\",\"\",YEAR(report1737987713132[[#This Row],[Erstzulassungsdatum]]))","v":2025},"Mifa 9",""]
["LSH14C4C0PA071167","Maxus_CH","eDeliver 3","eDeliver 3 VAN L1H1 FWD","50kWh","a0pQC00000DJbxP","11.04.2024","916502P03299NB280004","Electric",{"$f":"IF(report1737987713132[[#This Row],[Erstzulassungsdatum]]=\"\",\"\",YEAR(report1737987713132[[#This Row],[Erstzulassungsdatum]]))","v":2024},"eDeliver 3",""]
["LSH14J7C7PA106755","Maxus_CH","(e)Deliver 9","Deliver 9 VAN L3H2 RWD","Comfort","a0pQC00000DN0uI","11.04.2024","M9235046060","Diesel",{"$f":"IF(report1737987713132[[#This Row],[Erstzulassungsdatum]]=\"\",\"\",YEAR(report1737987713132[[#This Row],[Erstzulassungsdatum]]))","v":2024},"Deliver 9",""]
["LSH14J7C8RA073333","Maxus_CH","(e)Deliver 9","Deliver 9 VAN L3H2 RWD","Luxury","a0pQC00000DN0uH","11.03.2025","M9241006415","Diesel",{"$f":"IF(report1737987713132[[#This Row],[Erstzulassungsdatum]]=\"\",\"\",YEAR(report1737987713132[[#This Row],[Erstzulassungsdatum]]))","v":2025},"Deliver 9",""]
["LSH14J7C9RV125478","Maxus_CH","(e)Deliver 7","Deliver 7 VAN L2H1 FWD","-","a0pQC00000DMxYG","11.03.2025","M9249054317","Diesel",{"$f":"IF(report1737987713132[[#This Row],[Erstzulassungsdatum]]=\"\",\"\",YEAR(report1737987713132[[#This Row],[Erstzulassungsdatum]]))","v":2025},"Deliver 7",""]
["LSH14J7C1RV125457","Maxus_CH","(e)Deliver 7","Deliver 7 VAN L2H1 FWD","-","a0pQC00000DMxYG","11.02.2025","M9248051996","Diesel",{"$f":"IF(report1737987713132[[#This Row],[Erstzulassungsdatum]]=\"\",\"\",YEAR(report1737987713132[[#This Row],[Erstzulassungsdatum]]))","v":2025},"Deliver 7",""]
["LSFAL1100MA147881","Maxus_CH","(e)Deliver 9","eDeliver 9 Cabine L4","FWD 65kWh","a0pQC00000DMvQ1","11.01.2024","914600P00034NA230285","Electric",{"$f":"IF(report1737987713132[[#This Row],[Erstzulassungsdatum]]=\"\",\"\",YEAR(report1737987713132[[#This Row],[Erstzulassungsdatum]]))","v":2024},"eDeliver 9",""]
["LSH14J4C1JA079757","Maxus_CH","9999","GREY IMPORTER DUMMIE","EV80-OD","a0pQC00000ECYij","11.01.2021","","",{"$f":"IF(report1737987713132[[#This Row],[Erstzulassungsdatum]]=\"\",\"\",YEAR(report1737987713132[[#This Row],[Erstzulassungsdatum]]))","v":2021},null,""]
["LSH14C4C1LA080048","Maxus_CH","EV30 PV","OLDEV30 PV","VEV3P","a0pQC00000DhecN","10.12.2020","912832P00044L5246091","",{"$f":"IF(report1737987713132[[#This Row],[Erstzulassungsdatum]]=\"\",\"\",YEAR(report1737987713132[[#This Row],[Erstzulassungsdatum]]))","v":2020},"eDeliver 3",""]
["LSH15J5C5SV120915","Maxus_CH","(e)Deliver 7","eDeliver 7 VAN L2H1 AWD","88kWh Dual Sliding Door Swiss Post Los 49 #1","a0pQC00000HhTgA","10.09.2025","918787P06014R9020019","Electric",{"$f":"IF(report1737987713132[[#This Row],[Erstzulassungsdatum]]=\"\",\"\",YEAR(report1737987713132[[#This Row],[Erstzulassungsdatum]]))","v":2025},"eDeliver 7",""]
["LSH15J5C5SV120929","Maxus_CH","(e)Deliver 7","eDeliver 7 VAN L2H1 AWD","88kWh Dual Sliding Door Swiss Post Los 49 #1","a0pQC00000HhTgA","10.09.2025","918787P06014RA220009","Electric",{"$f":"IF(report1737987713132[[#This Row],[Erstzulassungsdatum]]=\"\",\"\",YEAR(report1737987713132[[#This Row],[Erstzulassungsdatum]]))","v":2025},"eDeliver 7",""]
["LSH14J7C8SV122075","Maxus_CH","(e)Deliver 7","Deliver 7 VAN L2H1 FWD","-","a0pQC00000DMxYG","10.09.2025","M9254023034","Diesel",{"$f":"IF(report1737987713132[[#This Row],[Erstzulassungsdatum]]=\"\",\"\",YEAR(report1737987713132[[#This Row],[Erstzulassungsdatum]]))","v":2025},"Deliver 7",""]
["LSFAM11C8SA092942","Maxus_CH","T60 MAX","T60 MAX","AWD","a0pQC00000FBTso","10.09.2025","M9254021325","Diesel",{"$f":"IF(report1737987713132[[#This Row],[Erstzulassungsdatum]]=\"\",\"\",YEAR(report1737987713132[[#This Row],[Erstzulassungsdatum]]))","v":2025},"T60 Max","2025-03-31"]
["LSFAL1109KA102919","Maxus_CH","EV80 CC","OLDEV80 CC","VE8C","a0pQC00000DhUIg","10.08.2022","105855P01109KB190027","",{"$f":"IF(report1737987713132[[#This Row],[Erstzulassungsdatum]]=\"\",\"\",YEAR(report1737987713132[[#This Row],[Erstzulassungsdatum]]))","v":2022},"EV 80",""]
["LSFAM11C7RA134544","Maxus_CH","T60 MAX","T60 MAX","AWD","a0pQC00000FBTso","10.07.2025","M924A064112","Diesel",{"$f":"IF(report1737987713132[[#This Row],[Erstzulassungsdatum]]=\"\",\"\",YEAR(report1737987713132[[#This Row],[Erstzulassungsdatum]]))","v":2025},"T60 Max","2024-09-30"]
["LSH14J4C7RV120770","Maxus_CH","(e)Deliver 7","eDeliver 7 VAN L1H1 FWD","88kWh","a0pQC00000DMveV","10.07.2024","917164P03299PC250012","Electric",{"$f":"IF(report1737987713132[[#This Row],[Erstzulassungsdatum]]=\"\",\"\",YEAR(report1737987713132[[#This Row],[Erstzulassungsdatum]]))","v":2024},"eDeliver 7",""]
["LSH14C4C7LA080071","Maxus_CH","EV30 PV","OLDEV30 PV","VEV3P","a0pQC00000DhecN","10.06.2021","912832P00044L6056077","",{"$f":"IF(report1737987713132[[#This Row],[Erstzulassungsdatum]]=\"\",\"\",YEAR(report1737987713132[[#This Row],[Erstzulassungsdatum]]))","v":2021},"eDeliver 3",""]
["LSH15J5C0RV126146","Maxus_CH","(e)Deliver 7","eDeliver 7 VAN L2H1 AWD","88kWh Dual Sliding Door","a0pQC00000DMnfb","10.05.2025","","Electric",{"$f":"IF(report1737987713132[[#This Row],[Erstzulassungsdatum]]=\"\",\"\",YEAR(report1737987713132[[#This Row],[Erstzulassungsdatum]]))","v":2025},"eDeliver 7",""]
["LSH14J4C2RD060757","Maxus_CH","eDeliver 5","eDeliver 5 VAN L1H1 FWD","64kWh","a0pQC00000DMtZm","10.03.2025","911693P03299R5160041","Electric",{"$f":"IF(report1737987713132[[#This Row],[Erstzulassungsdatum]]=\"\",\"\",YEAR(report1737987713132[[#This Row],[Erstzulassungsdatum]]))","v":2025},"eDeliver 5",""]
["LSH14J4C4KA097168","Maxus_CH","EV80 PV","OLDEV80 PV","VE8P","a0pQC00000DhYVe","10.03.2021","105855P01109KA290004","",{"$f":"IF(report1737987713132[[#This Row],[Erstzulassungsdatum]]=\"\",\"\",YEAR(report1737987713132[[#This Row],[Erstzulassungsdatum]]))","v":2021},"EV 80",""]
["LSH14J7C5PA189425","Maxus_CH","(e)Deliver 9","Deliver 9 VAN L3H2 FWD","Comfort","a0pQC00000DMlx4","10.02.2025","M923B099923","Diesel",{"$f":"IF(report1737987713132[[#This Row],[Erstzulassungsdatum]]=\"\",\"\",YEAR(report1737987713132[[#This Row],[Erstzulassungsdatum]]))","v":2025},"Deliver 9",""]
["LSFAL11A0PA106261","Maxus_CH","(e)Deliver 9","Deliver 9 Cabine L3 RWD","Luxury","a0pQC00000DMnfX","09.12.2024","M9241000857","Diesel",{"$f":"IF(report1737987713132[[#This Row],[Erstzulassungsdatum]]=\"\",\"\",YEAR(report1737987713132[[#This Row],[Erstzulassungsdatum]]))","v":2024},"Deliver 9",""]
["LSH14J4C5RV122551","Maxus_CH","(e)Deliver 7","eDeliver 7 VAN L2H1 FWD","88kWh Dual Sliding Door","a0pQC00000DMo25","09.12.2024","917164P03299R4010183","Electric",{"$f":"IF(report1737987713132[[#This Row],[Erstzulassungsdatum]]=\"\",\"\",YEAR(report1737987713132[[#This Row],[Erstzulassungsdatum]]))","v":2024},"eDeliver 7",""]
["LSH14C4C1LA080213","Maxus_CH","EV30 PV","OLDEV30 PV","VEV3P","a0pQC00000DhecN","09.12.2021","912832P00044L6056087","",{"$f":"IF(report1737987713132[[#This Row],[Erstzulassungsdatum]]=\"\",\"\",YEAR(report1737987713132[[#This Row],[Erstzulassungsdatum]]))","v":2021},"eDeliver 3",""]
["LSH14J4C2KA045327","Maxus_CH","9999","GREY IMPORTER DUMMIE","EV80-OD","a0pQC00000ECYij","09.10.2019","","",{"$f":"IF(report1737987713132[[#This Row],[Erstzulassungsdatum]]=\"\",\"\",YEAR(report1737987713132[[#This Row],[Erstzulassungsdatum]]))","v":2019},null,""]
["LSH14J4C9KA045311","Maxus_CH","9999","GREY IMPORTER DUMMIE","EV80-OD","a0pQC00000ECYij","09.10.2019","","",{"$f":"IF(report1737987713132[[#This Row],[Erstzulassungsdatum]]=\"\",\"\",YEAR(report1737987713132[[#This Row],[Erstzulassungsdatum]]))","v":2019},null,""]
["LSH14J4C7KA045307","Maxus_CH","9999","GREY IMPORTER DUMMIE","EV80-OD","a0pQC00000ECYij","09.10.2019","","",{"$f":"IF(report1737987713132[[#This Row],[Erstzulassungsdatum]]=\"\",\"\",YEAR(report1737987713132[[#This Row],[Erstzulassungsdatum]]))","v":2019},null,""]
["LSH14J4C2KA045313","Maxus_CH","9999","GREY IMPORTER DUMMIE","EV80-OD","a0pQC00000ECYij","09.10.2019","","",{"$f":"IF(report1737987713132[[#This Row],[Erstzulassungsdatum]]=\"\",\"\",YEAR(report1737987713132[[#This Row],[Erstzulassungsdatum]]))","v":2019},null,""]
["LSH14J4C1KA045299","Maxus_CH","9999","GREY IMPORTER DUMMIE","EV80-OD","a0pQC00000ECYij","09.10.2019","","",{"$f":"IF(report1737987713132[[#This Row],[Erstzulassungsdatum]]=\"\",\"\",YEAR(report1737987713132[[#This Row],[Erstzulassungsdatum]]))","v":2019},null,""]
["LSH14J4C7KA045310","Maxus_CH","9999","GREY IMPORTER DUMMIE","EV80-OD","a0pQC00000ECYij","09.10.2019","","",{"$f":"IF(report1737987713132[[#This Row],[Erstzulassungsdatum]]=\"\",\"\",YEAR(report1737987713132[[#This Row],[Erstzulassungsdatum]]))","v":2019},null,""]
["LSH14J7CXSV122059","Maxus_CH","(e)Deliver 7","Deliver 7 VAN L2H1 FWD","-","a0pQC00000DMxYG","09.09.2025","M9254021829","Diesel",{"$f":"IF(report1737987713132[[#This Row],[Erstzulassungsdatum]]=\"\",\"\",YEAR(report1737987713132[[#This Row],[Erstzulassungsdatum]]))","v":2025},"Deliver 7",""]
["LSH14J7C3SV122274","Maxus_CH","(e)Deliver 7","Deliver 7 VAN L2H1 FWD","-","a0pQC00000DMxYG","09.09.2025","M9255027306","Diesel",{"$f":"IF(report1737987713132[[#This Row],[Erstzulassungsdatum]]=\"\",\"\",YEAR(report1737987713132[[#This Row],[Erstzulassungsdatum]]))","v":2025},"Deliver 7",""]
["LSFAM11CXSA098497","Maxus_CH","T60 MAX","T60 MAX","AWD","a0pQC00000FBTso","09.09.2025","M9255028776","Diesel",{"$f":"IF(report1737987713132[[#This Row],[Erstzulassungsdatum]]=\"\",\"\",YEAR(report1737987713132[[#This Row],[Erstzulassungsdatum]]))","v":2025},"T60 Max","2025-04-30"]
["LSH14C4C8NA157968","Maxus_CH","eDeliver 3","eDeliver 3 VAN L1H1 FWD","50kWh","a0pQC00000DMhJv","09.08.2023","910851P00044N9256111","Electric",{"$f":"IF(report1737987713132[[#This Row],[Erstzulassungsdatum]]=\"\",\"\",YEAR(report1737987713132[[#This Row],[Erstzulassungsdatum]]))","v":2023},"eDeliver 3",""]
["LSH14J4C1MA171438","Maxus_CH","(e)Deliver 9","eDeliver 9 VAN L3H2","FWD 72kWh","a0pQC00000DMtZb","09.08.2022","917785P00034MB300118","Electric",{"$f":"IF(report1737987713132[[#This Row],[Erstzulassungsdatum]]=\"\",\"\",YEAR(report1737987713132[[#This Row],[Erstzulassungsdatum]]))","v":2022},"eDeliver 9",""]
["LSH14J4C8NA057258","Maxus_CH","(e)Deliver 9","eDeliver 9 VAN L3H3","FWD 72kWh","a0pQC00000DN1K5","09.06.2023","914600P00034N8150068","Electric",{"$f":"IF(report1737987713132[[#This Row],[Erstzulassungsdatum]]=\"\",\"\",YEAR(report1737987713132[[#This Row],[Erstzulassungsdatum]]))","v":2023},"eDeliver 9",""]
["LSFAL1101KA102929","Maxus_CH","EV80 CC","OLDEV80 CC","VE8C","a0pQC00000DhUIg","09.06.2020","105855P01109KB280008","",{"$f":"IF(report1737987713132[[#This Row],[Erstzulassungsdatum]]=\"\",\"\",YEAR(report1737987713132[[#This Row],[Erstzulassungsdatum]]))","v":2020},"EV 80",""]
["LSH14J4CXRV123047","Maxus_CH","(e)Deliver 7","eDeliver 7 VAN L1H1 FWD","88kWh","a0pQC00000DMveV","09.05.2025","917164P03299R4030034","Electric",{"$f":"IF(report1737987713132[[#This Row],[Erstzulassungsdatum]]=\"\",\"\",YEAR(report1737987713132[[#This Row],[Erstzulassungsdatum]]))","v":2025},"eDeliver 7",""]
["LSFAM11C2RA134547","Maxus_CH","T60 MAX","T60 MAX","AWD","a0pQC00000FBTso","09.05.2025","M924A064118","Diesel",{"$f":"IF(report1737987713132[[#This Row],[Erstzulassungsdatum]]=\"\",\"\",YEAR(report1737987713132[[#This Row],[Erstzulassungsdatum]]))","v":2025},"T60 Max","2024-09-30"]
["LSH14J7C7RA073324","Maxus_CH","(e)Deliver 9","Deliver 9 VAN L3H2 FWD","Luxury","a0pQC00000DMlx3","09.04.2025","M9241007701","Diesel",{"$f":"IF(report1737987713132[[#This Row],[Erstzulassungsdatum]]=\"\",\"\",YEAR(report1737987713132[[#This Row],[Erstzulassungsdatum]]))","v":2025},"Deliver 9",""]
["LSH15J5C5RV126143","Maxus_CH","(e)Deliver 7","eDeliver 7 VAN L1H1 AWD","88kWh","a0pQC00000DN1Ov","09.04.2025","918787P06014R8270022","Electric",{"$f":"IF(report1737987713132[[#This Row],[Erstzulassungsdatum]]=\"\",\"\",YEAR(report1737987713132[[#This Row],[Erstzulassungsdatum]]))","v":2025},"eDeliver 7",""]
["LSH14J4C1PV920090","Maxus_CH","(e)Deliver 7","eDeliver 7 VAN L1H1 FWD","77kWh","a0pQC00000DMveU","09.04.2024","","Electric",{"$f":"IF(report1737987713132[[#This Row],[Erstzulassungsdatum]]=\"\",\"\",YEAR(report1737987713132[[#This Row],[Erstzulassungsdatum]]))","v":2024},"eDeliver 7",""]
["LSFAM1105NA068446","Maxus_CH","eDeliver 3","eDeliver 3 Cabine L2 FWD","50kWh","a0pQC00000DMkMk","08.12.2023","918674P00044NA016163","Electric",{"$f":"IF(report1737987713132[[#This Row],[Erstzulassungsdatum]]=\"\",\"\",YEAR(report1737987713132[[#This Row],[Erstzulassungsdatum]]))","v":2023},"eDeliver 3",""]
["LSH14J4C7MA114001","Maxus_CH","(e)Deliver 9","eDeliver 9 VAN L2H2","FWD 52kWh","a0pQC00000DMtxh","08.12.2023","914600P00034N4200033","Electric",{"$f":"IF(report1737987713132[[#This Row],[Erstzulassungsdatum]]=\"\",\"\",YEAR(report1737987713132[[#This Row],[Erstzulassungsdatum]]))","v":2023},"eDeliver 9",""]
["LSH14J4C2MA114018","Maxus_CH","(e)Deliver 9","eDeliver 9 VAN L3H2","FWD 72kWh","a0pQC00000DMtZb","08.12.2021","917785P00034M6090521","Electric",{"$f":"IF(report1737987713132[[#This Row],[Erstzulassungsdatum]]=\"\",\"\",YEAR(report1737987713132[[#This Row],[Erstzulassungsdatum]]))","v":2021},"eDeliver 9",""]
["LSH14J7C7PA106884","Maxus_CH","(e)Deliver 9","Deliver 9 VAN L3H2 RWD","Luxury","a0pQC00000DN0uH","08.11.2024","M9235045285","Diesel",{"$f":"IF(report1737987713132[[#This Row],[Erstzulassungsdatum]]=\"\",\"\",YEAR(report1737987713132[[#This Row],[Erstzulassungsdatum]]))","v":2024},"Deliver 9",""]
["LSH14J4C7RV121773","Maxus_CH","(e)Deliver 7","eDeliver 7 VAN L1H1 FWD","77kWh","a0pQC00000DMveU","08.11.2024","917164P03299PC250167","Electric",{"$f":"IF(report1737987713132[[#This Row],[Erstzulassungsdatum]]=\"\",\"\",YEAR(report1737987713132[[#This Row],[Erstzulassungsdatum]]))","v":2024},"eDeliver 7",""]
["LSH14C4C8LA080046","Maxus_CH","EV30 PV","OLDEV30 PV","VEV3P","a0pQC00000DhecN","08.11.2021","912832P00044L5196022","",{"$f":"IF(report1737987713132[[#This Row],[Erstzulassungsdatum]]=\"\",\"\",YEAR(report1737987713132[[#This Row],[Erstzulassungsdatum]]))","v":2021},"eDeliver 3",""]
["LSFAM11C8SA098496","Maxus_CH","T60 MAX","T60 MAX","AWD","a0pQC00000FBTso","08.10.2025","M9255028778","Diesel",{"$f":"IF(report1737987713132[[#This Row],[Erstzulassungsdatum]]=\"\",\"\",YEAR(report1737987713132[[#This Row],[Erstzulassungsdatum]]))","v":2025},"T60 Max","2025-04-30"]
["LSH14J7C5PA189408","Maxus_CH","(e)Deliver 9","Deliver 9 VAN L3H2 FWD","Comfort","a0pQC00000DMlx4","08.10.2024","M923B100324","Diesel",{"$f":"IF(report1737987713132[[#This Row],[Erstzulassungsdatum]]=\"\",\"\",YEAR(report1737987713132[[#This Row],[Erstzulassungsdatum]]))","v":2024},"Deliver 9",""]
["LSH14J7C1SV122290","Maxus_CH","(e)Deliver 7","Deliver 7 VAN L2H1 FWD","-","a0pQC00000DMxYG","08.09.2025","M9254023868","",{"$f":"IF(report1737987713132[[#This Row],[Erstzulassungsdatum]]=\"\",\"\",YEAR(report1737987713132[[#This Row],[Erstzulassungsdatum]]))","v":2025},"Deliver 7",""]
["LSH14J7C9SV122280","Maxus_CH","(e)Deliver 7","Deliver 7 VAN L2H1 FWD","-","a0pQC00000DMxYG","08.09.2025","M9254023867","Diesel",{"$f":"IF(report1737987713132[[#This Row],[Erstzulassungsdatum]]=\"\",\"\",YEAR(report1737987713132[[#This Row],[Erstzulassungsdatum]]))","v":2025},"Deliver 7",""]
["LSH14J4C0RD060756","Maxus_CH","eDeliver 5","eDeliver 5 VAN L1H1 FWD","64kWh","a0pQC00000DMtZm","08.09.2025","911693P03299R5090193","Electric",{"$f":"IF(report1737987713132[[#This Row],[Erstzulassungsdatum]]=\"\",\"\",YEAR(report1737987713132[[#This Row],[Erstzulassungsdatum]]))","v":2025},"eDeliver 5",""]
["LSFAM11C6SA098495","Maxus_CH","T60 MAX","T60 MAX","AWD","a0pQC00000FBTso","08.09.2025","M9255028787","Diesel",{"$f":"IF(report1737987713132[[#This Row],[Erstzulassungsdatum]]=\"\",\"\",YEAR(report1737987713132[[#This Row],[Erstzulassungsdatum]]))","v":2025},"T60 Max","2025-04-30"]
["LSH14J7C0RA073326","Maxus_CH","(e)Deliver 9","Deliver 9 VAN L3H2 FWD","Luxury","a0pQC00000DMlx3","08.08.2025","M9241007695","Diesel",{"$f":"IF(report1737987713132[[#This Row],[Erstzulassungsdatum]]=\"\",\"\",YEAR(report1737987713132[[#This Row],[Erstzulassungsdatum]]))","v":2025},"Deliver 9",""]
["LSFAM11C0SA092949","Maxus_CH","T60 MAX","T60 MAX","AWD","a0pQC00000FBTso","08.08.2025","M9254022751","Diesel",{"$f":"IF(report1737987713132[[#This Row],[Erstzulassungsdatum]]=\"\",\"\",YEAR(report1737987713132[[#This Row],[Erstzulassungsdatum]]))","v":2025},"T60 Max","2025-03-31"]
["LSH14J4C2RV120773","Maxus_CH","(e)Deliver 7","eDeliver 7 VAN L1H1 FWD","88kWh","a0pQC00000DMveV","08.08.2024","917164P03299PC250100","Electric",{"$f":"IF(report1737987713132[[#This Row],[Erstzulassungsdatum]]=\"\",\"\",YEAR(report1737987713132[[#This Row],[Erstzulassungsdatum]]))","v":2024},"eDeliver 7",""]
["LSFAM1105NA068480","Maxus_CH","eDeliver 3","eDeliver 3 Cabine L2 FWD","50kWh","a0pQC00000DMkMk","08.08.2022","918674P00044NA016077","Electric",{"$f":"IF(report1737987713132[[#This Row],[Erstzulassungsdatum]]=\"\",\"\",YEAR(report1737987713132[[#This Row],[Erstzulassungsdatum]]))","v":2022},"eDeliver 3",""]
["LSFAL1103MA114048","Maxus_CH","(e)Deliver 9","eDeliver 9 Cabine L3","FWD 65kWh","a0pQC00000DMoJk","08.08.2022","914600P00034N8150191","Electric",{"$f":"IF(report1737987713132[[#This Row],[Erstzulassungsdatum]]=\"\",\"\",YEAR(report1737987713132[[#This Row],[Erstzulassungsdatum]]))","v":2022},"eDeliver 9",""]
["LSFAL1103MA114051","Maxus_CH","(e)Deliver 9","eDeliver 9 Cabine L3","FWD 65kWh","a0pQC00000DMoJk","08.08.2022","914600P00034N8150178","Electric",{"$f":"IF(report1737987713132[[#This Row],[Erstzulassungsdatum]]=\"\",\"\",YEAR(report1737987713132[[#This Row],[Erstzulassungsdatum]]))","v":2022},"eDeliver 9",""]
["LSH14C4C0MA122761","Maxus_CH","EV30 PV","OLDEV30 PV","VEV3P","a0pQC00000DhecN","08.08.2022","918674P00044MC156002","",{"$f":"IF(report1737987713132[[#This Row],[Erstzulassungsdatum]]=\"\",\"\",YEAR(report1737987713132[[#This Row],[Erstzulassungsdatum]]))","v":2022},"eDeliver 3",""]
["LSH14J7C4RV125470","Maxus_CH","(e)Deliver 7","Deliver 7 VAN L2H1 FWD","Dual Sliding Door","a0pQC00000DMxYH","08.07.2025","M9249057993","Diesel",{"$f":"IF(report1737987713132[[#This Row],[Erstzulassungsdatum]]=\"\",\"\",YEAR(report1737987713132[[#This Row],[Erstzulassungsdatum]]))","v":2025},"Deliver 7",""]
["LSH14J4C5NA069108","Maxus_CH","9999","GREY IMPORTER DUMMIE","EV90-OD","a0pQC00000ECYik","08.07.2023","","",{"$f":"IF(report1737987713132[[#This Row],[Erstzulassungsdatum]]=\"\",\"\",YEAR(report1737987713132[[#This Row],[Erstzulassungsdatum]]))","v":2023},null,""]
["LSH14J4C5KA097180","Maxus_CH","EV80 PV","OLDEV80 PV","VE8P","a0pQC00000DhYVe","08.07.2020","105855P01109KA260007","",{"$f":"IF(report1737987713132[[#This Row],[Erstzulassungsdatum]]=\"\",\"\",YEAR(report1737987713132[[#This Row],[Erstzulassungsdatum]]))","v":2020},"EV 80",""]
["LSH14J4C1NA057280","Maxus_CH","(e)Deliver 9","eDeliver 9 VAN L3H3","FWD 88kWh","a0pQC00000DN1K6","08.06.2023","914600P00034N8140437","Electric",{"$f":"IF(report1737987713132[[#This Row],[Erstzulassungsdatum]]=\"\",\"\",YEAR(report1737987713132[[#This Row],[Erstzulassungsdatum]]))","v":2023},"eDeliver 9",""]
["LSH14J4C5NA057265","Maxus_CH","(e)Deliver 9","eDeliver 9 VAN L3H3","FWD 88kWh","a0pQC00000DN1K6","08.06.2023","914600P00034N8150025","Electric",{"$f":"IF(report1737987713132[[#This Row],[Erstzulassungsdatum]]=\"\",\"\",YEAR(report1737987713132[[#This Row],[Erstzulassungsdatum]]))","v":2023},"eDeliver 9",""]
["LSH14J7C9RV125495","Maxus_CH","(e)Deliver 7","Deliver 7 VAN L2H1 FWD","Dual Sliding Door","a0pQC00000DMxYH","08.05.2025","M9248052523","Diesel",{"$f":"IF(report1737987713132[[#This Row],[Erstzulassungsdatum]]=\"\",\"\",YEAR(report1737987713132[[#This Row],[Erstzulassungsdatum]]))","v":2025},"Deliver 7",""]
["LSH14J7C2RV125452","Maxus_CH","(e)Deliver 7","Deliver 7 VAN L2H1 FWD","Dual Sliding Door","a0pQC00000DMxYH","08.05.2025","M9249058589","Diesel",{"$f":"IF(report1737987713132[[#This Row],[Erstzulassungsdatum]]=\"\",\"\",YEAR(report1737987713132[[#This Row],[Erstzulassungsdatum]]))","v":2025},"Deliver 7",""]
["LSH14J7C1PA189342","Maxus_CH","(e)Deliver 9","Deliver 9 VAN L3H2 FWD","Luxury","a0pQC00000DMlx3","08.05.2024","M923B099604","Diesel",{"$f":"IF(report1737987713132[[#This Row],[Erstzulassungsdatum]]=\"\",\"\",YEAR(report1737987713132[[#This Row],[Erstzulassungsdatum]]))","v":2024},"Deliver 9",""]
["LSH14J7C4PA108995","Maxus_CH","(e)Deliver 9","Deliver 9 VAN L3H2 FWD","Comfort","a0pQC00000DMlx4","08.05.2024","M923B097267","Diesel",{"$f":"IF(report1737987713132[[#This Row],[Erstzulassungsdatum]]=\"\",\"\",YEAR(report1737987713132[[#This Row],[Erstzulassungsdatum]]))","v":2024},"Deliver 9",""]
["LSH14J4C8KA097173","Maxus_CH","EV80 PV","OLDEV80 PV","VE8P","a0pQC00000DhYVe","08.05.2020","105855P01109KA260008","",{"$f":"IF(report1737987713132[[#This Row],[Erstzulassungsdatum]]=\"\",\"\",YEAR(report1737987713132[[#This Row],[Erstzulassungsdatum]]))","v":2020},"EV 80",""]
["LSH14J7C3RV125461","Maxus_CH","(e)Deliver 7","Deliver 7 VAN L2H1 FWD","-","a0pQC00000DMxYG","08.04.2025","M9248052519","Diesel",{"$f":"IF(report1737987713132[[#This Row],[Erstzulassungsdatum]]=\"\",\"\",YEAR(report1737987713132[[#This Row],[Erstzulassungsdatum]]))","v":2025},"Deliver 7",""]
["LSFAL1104KA102939","Maxus_CH","EV80 CC","OLDEV80 CC","VE8C","a0pQC00000DhUIg","08.04.2021","105855P01109KB280007","",{"$f":"IF(report1737987713132[[#This Row],[Erstzulassungsdatum]]=\"\",\"\",YEAR(report1737987713132[[#This Row],[Erstzulassungsdatum]]))","v":2021},"EV 80",""]
["LSH14J7C7PA106805","Maxus_CH","(e)Deliver 9","Deliver 9 VAN L3H2 RWD","Comfort","a0pQC00000DN0uI","08.03.2024","M9235046077","Diesel",{"$f":"IF(report1737987713132[[#This Row],[Erstzulassungsdatum]]=\"\",\"\",YEAR(report1737987713132[[#This Row],[Erstzulassungsdatum]]))","v":2024},"Deliver 9",""]
["LSH14J7C9PA096360","Maxus_CH","9999","GREY IMPORTER DUMMIE","D90-OD","a0pQC00000ECYig","08.03.2023","","",{"$f":"IF(report1737987713132[[#This Row],[Erstzulassungsdatum]]=\"\",\"\",YEAR(report1737987713132[[#This Row],[Erstzulassungsdatum]]))","v":2023},null,""]
["LSH14C4C1NA137142","Maxus_CH","eDeliver 3","eDeliver 3 VAN L2H1 FWD","50kWh","a0pQC00000DMpio","08.02.2023","910851P00044N8186056","Electric",{"$f":"IF(report1737987713132[[#This Row],[Erstzulassungsdatum]]=\"\",\"\",YEAR(report1737987713132[[#This Row],[Erstzulassungsdatum]]))","v":2023},"eDeliver 3",""]
["LSH14J4C0NA105559","Maxus_CH","(e)Deliver 9","eDeliver 9 VAN L3H2","FWD 72kWh","a0pQC00000DMtZb","08.01.2024","914600P00034N3280024","Electric",{"$f":"IF(report1737987713132[[#This Row],[Erstzulassungsdatum]]=\"\",\"\",YEAR(report1737987713132[[#This Row],[Erstzulassungsdatum]]))","v":2024},"eDeliver 9",""]
["LSH14J4C3MA171439","Maxus_CH","(e)Deliver 9","eDeliver 9 VAN L3H2","FWD 72kWh","a0pQC00000DMtZb","08.01.2024","915536P00034N1150069","Electric",{"$f":"IF(report1737987713132[[#This Row],[Erstzulassungsdatum]]=\"\",\"\",YEAR(report1737987713132[[#This Row],[Erstzulassungsdatum]]))","v":2024},"eDeliver 9",""]
["LSH14J4C7NA057557","Maxus_CH","(e)Deliver 9","eDeliver 9 VAN L3H2","FWD 72kWh","a0pQC00000DMtZb","08.01.2024","915536P00034MC270044","Electric",{"$f":"IF(report1737987713132[[#This Row],[Erstzulassungsdatum]]=\"\",\"\",YEAR(report1737987713132[[#This Row],[Erstzulassungsdatum]]))","v":2024},"eDeliver 9",""]
["LSH14C4C1LA080051","Maxus_CH","EV30 PV","OLDEV30 PV","VEV3P","a0pQC00000DhecN","08.01.2021","912832P00044L5246096","",{"$f":"IF(report1737987713132[[#This Row],[Erstzulassungsdatum]]=\"\",\"\",YEAR(report1737987713132[[#This Row],[Erstzulassungsdatum]]))","v":2021},"eDeliver 3",""]
["LSH14C4C6NA058646","Maxus_CH","eDeliver 3","eDeliver 3 VAN L2H1 FWD","50kWh","a0pQC00000DMpio","07.12.2023","910851P00044N7246019","Electric",{"$f":"IF(report1737987713132[[#This Row],[Erstzulassungsdatum]]=\"\",\"\",YEAR(report1737987713132[[#This Row],[Erstzulassungsdatum]]))","v":2023},"eDeliver 3",""]
["LSH14J4C3MA147836","Maxus_CH","(e)Deliver 9","eDeliver 9 VAN L2H2","FWD 52kWh Pack Plus","a0pQC00000DMtxj","07.12.2023","914600P00034N3240079","Electric",{"$f":"IF(report1737987713132[[#This Row],[Erstzulassungsdatum]]=\"\",\"\",YEAR(report1737987713132[[#This Row],[Erstzulassungsdatum]]))","v":2023},"eDeliver 9",""]
["LSH14J4C8LA050372","Maxus_CH","EV80 PV","OLDEV80 PV","VE8P","a0pQC00000DhYVe","07.12.2020","104125P01109L3070009","",{"$f":"IF(report1737987713132[[#This Row],[Erstzulassungsdatum]]=\"\",\"\",YEAR(report1737987713132[[#This Row],[Erstzulassungsdatum]]))","v":2020},"EV 80",""]
["LSKG47C1XPD041782","Maxus_CH","9999","GREY IMPORTER DUMMIE","D90-OD","a0pQC00000ECYig","07.11.2024","","",{"$f":"IF(report1737987713132[[#This Row],[Erstzulassungsdatum]]=\"\",\"\",YEAR(report1737987713132[[#This Row],[Erstzulassungsdatum]]))","v":2024},null,""]
["LSKG47C11PD043548","Maxus_CH","9999","GREY IMPORTER DUMMIE","D90-OD","a0pQC00000ECYig","07.11.2024","","",{"$f":"IF(report1737987713132[[#This Row],[Erstzulassungsdatum]]=\"\",\"\",YEAR(report1737987713132[[#This Row],[Erstzulassungsdatum]]))","v":2024},null,""]
["LSKG47C1XPD041765","Maxus_CH","9999","GREY IMPORTER DUMMIE","EV30-OD","a0pQC00000ECYih","07.11.2024","","",{"$f":"IF(report1737987713132[[#This Row],[Erstzulassungsdatum]]=\"\",\"\",YEAR(report1737987713132[[#This Row],[Erstzulassungsdatum]]))","v":2024},null,""]
["LSKG47C1XPD041779","Maxus_CH","9999","GREY IMPORTER DUMMIE","MIFA 9-OD","a0pQC00000ECYim","07.11.2024","","",{"$f":"IF(report1737987713132[[#This Row],[Erstzulassungsdatum]]=\"\",\"\",YEAR(report1737987713132[[#This Row],[Erstzulassungsdatum]]))","v":2024},null,""]
["LSH14J4C5KA045340","Maxus_CH","9999","GREY IMPORTER DUMMIE","EV80-OD","a0pQC00000ECYij","07.10.2019","","",{"$f":"IF(report1737987713132[[#This Row],[Erstzulassungsdatum]]=\"\",\"\",YEAR(report1737987713132[[#This Row],[Erstzulassungsdatum]]))","v":2019},null,""]
["LSFAL1102KA102924","Maxus_CH","EV80 CC","OLDEV80 CC","VE8C","a0pQC00000DhUIg","07.09.2021","105855P01109KB270022","",{"$f":"IF(report1737987713132[[#This Row],[Erstzulassungsdatum]]=\"\",\"\",YEAR(report1737987713132[[#This Row],[Erstzulassungsdatum]]))","v":2021},"EV 80",""]
["LSH15J5C9SV120917","Maxus_CH","(e)Deliver 7","eDeliver 7 VAN L2H1 AWD","88kWh Dual Sliding Door Swiss Post Los 49 #1","a0pQC00000HhTgA","07.08.2025","918787P06014RA220017","Electric",{"$f":"IF(report1737987713132[[#This Row],[Erstzulassungsdatum]]=\"\",\"\",YEAR(report1737987713132[[#This Row],[Erstzulassungsdatum]]))","v":2025},"eDeliver 7",""]
["LSH15J5C9SV120920","Maxus_CH","(e)Deliver 7","eDeliver 7 VAN L2H1 AWD","88kWh Dual Sliding Door Swiss Post Los 49 #1","a0pQC00000HhTgA","07.08.2025","918787P06014R9020020","Electric",{"$f":"IF(report1737987713132[[#This Row],[Erstzulassungsdatum]]=\"\",\"\",YEAR(report1737987713132[[#This Row],[Erstzulassungsdatum]]))","v":2025},"eDeliver 7",""]
["LSH14J7C0SV121616","Maxus_CH","(e)Deliver 7","Deliver 7 VAN L2H1 FWD","-","a0pQC00000DMxYG","07.08.2025","M9253013077","Diesel",{"$f":"IF(report1737987713132[[#This Row],[Erstzulassungsdatum]]=\"\",\"\",YEAR(report1737987713132[[#This Row],[Erstzulassungsdatum]]))","v":2025},"Deliver 7",""]
["LSFAL1608RA138703","Maxus_CH","eTerron 9","eTerron 9 Premium","AWD 102kWh Black Met (Black&White Interior)","a0pQC00000FQlNo","07.08.2025","","Electric",{"$f":"IF(report1737987713132[[#This Row],[Erstzulassungsdatum]]=\"\",\"\",YEAR(report1737987713132[[#This Row],[Erstzulassungsdatum]]))","v":2025},"eTerron 9",""]
["LSH14J4C2LA050383","Maxus_CH","EV80 PV","OLDEV80 PV","VE8P","a0pQC00000DhYVe","07.07.2021","104125P01109L3160038","",{"$f":"IF(report1737987713132[[#This Row],[Erstzulassungsdatum]]=\"\",\"\",YEAR(report1737987713132[[#This Row],[Erstzulassungsdatum]]))","v":2021},"EV 80",""]
["LSH14C4C0NA137178","Maxus_CH","eDeliver 3","eDeliver 3 VAN L2H1 FWD","50kWh","a0pQC00000DMpio","07.06.2024","910851P00044N7266054","Electric",{"$f":"IF(report1737987713132[[#This Row],[Erstzulassungsdatum]]=\"\",\"\",YEAR(report1737987713132[[#This Row],[Erstzulassungsdatum]]))","v":2024},"eDeliver 3",""]
["LSFAL11A0PA171319","Maxus_CH","9999","GREY IMPORTER DUMMIE","D90-OD","a0pQC00000ECYig","07.06.2024","","",{"$f":"IF(report1737987713132[[#This Row],[Erstzulassungsdatum]]=\"\",\"\",YEAR(report1737987713132[[#This Row],[Erstzulassungsdatum]]))","v":2024},null,""]
["LSH14C4C3NA157960","Maxus_CH","eDeliver 3","eDeliver 3 VAN L1H1 FWD","50kWh","a0pQC00000DMhJv","07.06.2023","910851P00044N9186044","Electric",{"$f":"IF(report1737987713132[[#This Row],[Erstzulassungsdatum]]=\"\",\"\",YEAR(report1737987713132[[#This Row],[Erstzulassungsdatum]]))","v":2023},"eDeliver 3",""]
["LSH14J4C0NA057285","Maxus_CH","(e)Deliver 9","eDeliver 9 VAN L3H3","FWD 88kWh","a0pQC00000DN1K6","07.06.2023","914600P00034N8150020","Electric",{"$f":"IF(report1737987713132[[#This Row],[Erstzulassungsdatum]]=\"\",\"\",YEAR(report1737987713132[[#This Row],[Erstzulassungsdatum]]))","v":2023},"eDeliver 9",""]
["LSH14C4C6LA080062","Maxus_CH","EV30 PV","OLDEV30 PV","VEV3P","a0pQC00000DhecN","07.05.2021","912832P00044L6106022","",{"$f":"IF(report1737987713132[[#This Row],[Erstzulassungsdatum]]=\"\",\"\",YEAR(report1737987713132[[#This Row],[Erstzulassungsdatum]]))","v":2021},"eDeliver 3",""]
["LSH14J7CXRV125473","Maxus_CH","(e)Deliver 7","Deliver 7 VAN L2H1 FWD","-","a0pQC00000DMxYG","07.03.2025","M9249058603","Diesel",{"$f":"IF(report1737987713132[[#This Row],[Erstzulassungsdatum]]=\"\",\"\",YEAR(report1737987713132[[#This Row],[Erstzulassungsdatum]]))","v":2025},"Deliver 7",""]
["LSH14J7C7RV125463","Maxus_CH","(e)Deliver 7","Deliver 7 VAN L2H1 FWD","-","a0pQC00000DMxYG","07.03.2025","M9249058566","Diesel",{"$f":"IF(report1737987713132[[#This Row],[Erstzulassungsdatum]]=\"\",\"\",YEAR(report1737987713132[[#This Row],[Erstzulassungsdatum]]))","v":2025},"Deliver 7",""]
["LSH14J7C0RV125479","Maxus_CH","(e)Deliver 7","Deliver 7 VAN L2H1 FWD","-","a0pQC00000DMxYG","07.03.2025","M9249059179","Diesel",{"$f":"IF(report1737987713132[[#This Row],[Erstzulassungsdatum]]=\"\",\"\",YEAR(report1737987713132[[#This Row],[Erstzulassungsdatum]]))","v":2025},"Deliver 7",""]
["LSH14J7C7RV125480","Maxus_CH","(e)Deliver 7","Deliver 7 VAN L2H1 FWD","-","a0pQC00000DMxYG","07.03.2025","M9249058598","Diesel",{"$f":"IF(report1737987713132[[#This Row],[Erstzulassungsdatum]]=\"\",\"\",YEAR(report1737987713132[[#This Row],[Erstzulassungsdatum]]))","v":2025},"Deliver 7",""]
["LSH14J4C8MA171436","Maxus_CH","(e)Deliver 9","eDeliver 9 VAN L2H2","FWD 72kWh","a0pQC00000DMtxi","07.03.2023","914600P00034N5230111","Electric",{"$f":"IF(report1737987713132[[#This Row],[Erstzulassungsdatum]]=\"\",\"\",YEAR(report1737987713132[[#This Row],[Erstzulassungsdatum]]))","v":2023},"eDeliver 9",""]
["LSH14C4C3MA122737","Maxus_CH","EV30 PV","OLDEV30 PV","VEV3P","a0pQC00000DhecN","07.03.2022","918674P00044M9036015","",{"$f":"IF(report1737987713132[[#This Row],[Erstzulassungsdatum]]=\"\",\"\",YEAR(report1737987713132[[#This Row],[Erstzulassungsdatum]]))","v":2022},"eDeliver 3",""]
["LSH14J7C7PA106741","Maxus_CH","(e)Deliver 9","Deliver 9 VAN L3H2 RWD","Comfort","a0pQC00000DN0uI","07.02.2024","M9235047349","Diesel",{"$f":"IF(report1737987713132[[#This Row],[Erstzulassungsdatum]]=\"\",\"\",YEAR(report1737987713132[[#This Row],[Erstzulassungsdatum]]))","v":2024},"Deliver 9",""]
["LSH14J4C2MA069646","Maxus_CH","(e)Deliver 9","eDeliver 9 VAN L3H2","FWD 72kWh","a0pQC00000DMtZb","07.02.2022","917785P00034M2160007","Electric",{"$f":"IF(report1737987713132[[#This Row],[Erstzulassungsdatum]]=\"\",\"\",YEAR(report1737987713132[[#This Row],[Erstzulassungsdatum]]))","v":2022},"eDeliver 9",""]
["LSH14J4C2RV120644","Maxus_CH","(e)Deliver 7","eDeliver 7 VAN L2H1 FWD","88kWh Dual Sliding Door","a0pQC00000DMo25","06.12.2024","917164P03299PC070148","Electric",{"$f":"IF(report1737987713132[[#This Row],[Erstzulassungsdatum]]=\"\",\"\",YEAR(report1737987713132[[#This Row],[Erstzulassungsdatum]]))","v":2024},"eDeliver 7",""]
["LSH14J4C3RD056006","Maxus_CH","eDeliver 5","eDeliver 5 VAN L1H1 FWD","64kWh","a0pQC00000DMtZm","06.12.2024","911693P03299R4280012","Electric",{"$f":"IF(report1737987713132[[#This Row],[Erstzulassungsdatum]]=\"\",\"\",YEAR(report1737987713132[[#This Row],[Erstzulassungsdatum]]))","v":2024},"eDeliver 5",""]
["LSH14C4C2LA080236","Maxus_CH","EV30 PV","OLDEV30 PV","VEV3P","a0pQC00000DhecN","06.11.2020","912832P00044L6106048","",{"$f":"IF(report1737987713132[[#This Row],[Erstzulassungsdatum]]=\"\",\"\",YEAR(report1737987713132[[#This Row],[Erstzulassungsdatum]]))","v":2020},"eDeliver 3",""]
["LSH14J7C3SV122646","Maxus_CH","(e)Deliver 7","Deliver 7 VAN L2H1 FWD","-","a0pQC00000DMxYG","06.10.2025","M9256035441","Diesel",{"$f":"IF(report1737987713132[[#This Row],[Erstzulassungsdatum]]=\"\",\"\",YEAR(report1737987713132[[#This Row],[Erstzulassungsdatum]]))","v":2025},"Deliver 7",""]
["LSH14J7C9SV122666","Maxus_CH","(e)Deliver 7","Deliver 7 VAN L2H1 FWD","-","a0pQC00000DMxYG","06.10.2025","M9256037071","Diesel",{"$f":"IF(report1737987713132[[#This Row],[Erstzulassungsdatum]]=\"\",\"\",YEAR(report1737987713132[[#This Row],[Erstzulassungsdatum]]))","v":2025},"Deliver 7",""]
["LSH14C4C4NA057964","Maxus_CH","eDeliver 3","eDeliver 3 VAN L1H1 FWD","50kWh","a0pQC00000DMhJv","06.09.2022","918674P00044MA096128","Electric",{"$f":"IF(report1737987713132[[#This Row],[Erstzulassungsdatum]]=\"\",\"\",YEAR(report1737987713132[[#This Row],[Erstzulassungsdatum]]))","v":2022},"eDeliver 3",""]
["LSH14J7C0SV122054","Maxus_CH","(e)Deliver 7","Deliver 7 VAN L2H1 FWD","Dual Sliding Door","a0pQC00000DMxYH","06.08.2025","M9254022142","Diesel",{"$f":"IF(report1737987713132[[#This Row],[Erstzulassungsdatum]]=\"\",\"\",YEAR(report1737987713132[[#This Row],[Erstzulassungsdatum]]))","v":2025},"Deliver 7",""]
["LSH14J7C7PA107405","Maxus_CH","(e)Deliver 9","Deliver 9 VAN L3H2 RWD","Luxury","a0pQC00000DN0uH","06.08.2024","M9235044565","Diesel",{"$f":"IF(report1737987713132[[#This Row],[Erstzulassungsdatum]]=\"\",\"\",YEAR(report1737987713132[[#This Row],[Erstzulassungsdatum]]))","v":2024},"Deliver 9",""]
["LSH14C4C8LA080063","Maxus_CH","EV30 PV","OLDEV30 PV","VEV3P","a0pQC00000DhecN","06.08.2021","912832P00044L6106025","",{"$f":"IF(report1737987713132[[#This Row],[Erstzulassungsdatum]]=\"\",\"\",YEAR(report1737987713132[[#This Row],[Erstzulassungsdatum]]))","v":2021},"eDeliver 3",""]
["LSFAL1101KA102946","Maxus_CH","EV80 CC","OLDEV80 CC","VE8C","a0pQC00000DhUIg","06.07.2022","105855P01109KB260025","",{"$f":"IF(report1737987713132[[#This Row],[Erstzulassungsdatum]]=\"\",\"\",YEAR(report1737987713132[[#This Row],[Erstzulassungsdatum]]))","v":2022},"EV 80",""]
["LSH14J4C4KA097185","Maxus_CH","EV80 PV","OLDEV80 PV","VE8P","a0pQC00000DhYVe","06.07.2021","105855P01109KA290017","",{"$f":"IF(report1737987713132[[#This Row],[Erstzulassungsdatum]]=\"\",\"\",YEAR(report1737987713132[[#This Row],[Erstzulassungsdatum]]))","v":2021},"EV 80",""]
["LSH14C4CXLA080033","Maxus_CH","EV30 PV","OLDEV30 PV","VEV3P","a0pQC00000DhecN","06.07.2021","912832P00044L6016028","",{"$f":"IF(report1737987713132[[#This Row],[Erstzulassungsdatum]]=\"\",\"\",YEAR(report1737987713132[[#This Row],[Erstzulassungsdatum]]))","v":2021},"eDeliver 3",""]
["LSH14C4CXLA080047","Maxus_CH","EV30 PV","OLDEV30 PV","VEV3P","a0pQC00000DhecN","06.07.2021","912832P00044L5166044","",{"$f":"IF(report1737987713132[[#This Row],[Erstzulassungsdatum]]=\"\",\"\",YEAR(report1737987713132[[#This Row],[Erstzulassungsdatum]]))","v":2021},"eDeliver 3",""]
["LSH14C4CXLA080050","Maxus_CH","EV30 PV","OLDEV30 PV","VEV3P","a0pQC00000DhecN","06.07.2021","912832P00044L5196091","",{"$f":"IF(report1737987713132[[#This Row],[Erstzulassungsdatum]]=\"\",\"\",YEAR(report1737987713132[[#This Row],[Erstzulassungsdatum]]))","v":2021},"eDeliver 3",""]
["LSH14J4C5RD055987","Maxus_CH","eDeliver 5","eDeliver 5 VAN L1H1 FWD","64kWh","a0pQC00000DMtZm","06.06.2025","911693P03299R4280014","Electric",{"$f":"IF(report1737987713132[[#This Row],[Erstzulassungsdatum]]=\"\",\"\",YEAR(report1737987713132[[#This Row],[Erstzulassungsdatum]]))","v":2025},"eDeliver 5",""]
["LSFAL1605RA138674","Maxus_CH","eTerron 9","eTerron 9 Luxury","AWD 102kWh","a0pQC00000FQqlf","06.06.2025","","Electric",{"$f":"IF(report1737987713132[[#This Row],[Erstzulassungsdatum]]=\"\",\"\",YEAR(report1737987713132[[#This Row],[Erstzulassungsdatum]]))","v":2025},"eTerron 9",""]
["LSFAM1102NA068467","Maxus_CH","eDeliver 3","eDeliver 3 Cabine L2 FWD","50kWh","a0pQC00000DMkMk","06.06.2024","918674P00044NA016078","Electric",{"$f":"IF(report1737987713132[[#This Row],[Erstzulassungsdatum]]=\"\",\"\",YEAR(report1737987713132[[#This Row],[Erstzulassungsdatum]]))","v":2024},"eDeliver 3",""]
["LSH14C4C0NA137150","Maxus_CH","eDeliver 3","eDeliver 3 VAN L2H1 FWD","50kWh","a0pQC00000DMpio","06.04.2023","910851P00044N8166109","Electric",{"$f":"IF(report1737987713132[[#This Row],[Erstzulassungsdatum]]=\"\",\"\",YEAR(report1737987713132[[#This Row],[Erstzulassungsdatum]]))","v":2023},"eDeliver 3",""]
["LSH14C4C2NA077999","Maxus_CH","eDeliver 3","eDeliver 3 VAN L2H1 FWD","50kWh","a0pQC00000DMpio","06.04.2023","910851P00044N7256042","Electric",{"$f":"IF(report1737987713132[[#This Row],[Erstzulassungsdatum]]=\"\",\"\",YEAR(report1737987713132[[#This Row],[Erstzulassungsdatum]]))","v":2023},"eDeliver 3",""]
["LSH14C4C3NA137174","Maxus_CH","eDeliver 3","eDeliver 3 VAN L2H1 FWD","50kWh","a0pQC00000DMpio","06.04.2023","910851P00044N7266058","Electric",{"$f":"IF(report1737987713132[[#This Row],[Erstzulassungsdatum]]=\"\",\"\",YEAR(report1737987713132[[#This Row],[Erstzulassungsdatum]]))","v":2023},"eDeliver 3",""]
["LSH14C4C0LA079957","Maxus_CH","EV30 PV","OLDEV30 PV","VEV3P","a0pQC00000DhecN","06.04.2021","912832P00044L5196039","",{"$f":"IF(report1737987713132[[#This Row],[Erstzulassungsdatum]]=\"\",\"\",YEAR(report1737987713132[[#This Row],[Erstzulassungsdatum]]))","v":2021},"eDeliver 3",""]
["LSH14J7C6RV125499","Maxus_CH","(e)Deliver 7","Deliver 7 VAN L2H1 FWD","-","a0pQC00000DMxYG","06.03.2025","M9249058577","Diesel",{"$f":"IF(report1737987713132[[#This Row],[Erstzulassungsdatum]]=\"\",\"\",YEAR(report1737987713132[[#This Row],[Erstzulassungsdatum]]))","v":2025},"Deliver 7",""]
["LSH14J4C5NA105542","Maxus_CH","(e)Deliver 9","eDeliver 9 VAN L3H2","FWD 72kWh","a0pQC00000DMtZb","06.03.2023","914600P00034N5180037","Electric",{"$f":"IF(report1737987713132[[#This Row],[Erstzulassungsdatum]]=\"\",\"\",YEAR(report1737987713132[[#This Row],[Erstzulassungsdatum]]))","v":2023},"eDeliver 9",""]
["LSKG47C1XPD041832","Maxus_CH","9999","GREY IMPORTER DUMMIE","D90-OD","a0pQC00000ECYig","06.02.2024","","",{"$f":"IF(report1737987713132[[#This Row],[Erstzulassungsdatum]]=\"\",\"\",YEAR(report1737987713132[[#This Row],[Erstzulassungsdatum]]))","v":2024},null,""]
["LSH14C4C0NA058626","Maxus_CH","eDeliver 3","eDeliver 3 VAN L2H1 FWD","50kWh","a0pQC00000DMpio","06.02.2023","910851P00044N7226083","Electric",{"$f":"IF(report1737987713132[[#This Row],[Erstzulassungsdatum]]=\"\",\"\",YEAR(report1737987713132[[#This Row],[Erstzulassungsdatum]]))","v":2023},"eDeliver 3",""]
["LSH14J7C5PA189439","Maxus_CH","(e)Deliver 9","Deliver 9 VAN L3H2 FWD","Comfort","a0pQC00000DMlx4","05.12.2024","M923B099949","Diesel",{"$f":"IF(report1737987713132[[#This Row],[Erstzulassungsdatum]]=\"\",\"\",YEAR(report1737987713132[[#This Row],[Erstzulassungsdatum]]))","v":2024},"Deliver 9",""]
["LSH14J7C3PA109023","Maxus_CH","(e)Deliver 9","Deliver 9 VAN L3H2 FWD","Comfort","a0pQC00000DMlx4","05.12.2024","M923B097741","Diesel",{"$f":"IF(report1737987713132[[#This Row],[Erstzulassungsdatum]]=\"\",\"\",YEAR(report1737987713132[[#This Row],[Erstzulassungsdatum]]))","v":2024},"Deliver 9",""]
["LSH14J4C0RV120643","Maxus_CH","(e)Deliver 7","eDeliver 7 VAN L2H1 FWD","88kWh Dual Sliding Door","a0pQC00000DMo25","05.12.2024","917164P03299PC250053","Electric",{"$f":"IF(report1737987713132[[#This Row],[Erstzulassungsdatum]]=\"\",\"\",YEAR(report1737987713132[[#This Row],[Erstzulassungsdatum]]))","v":2024},"eDeliver 7",""]
["LSFAM1201PA066307","Maxus_CH","T90 EV","T90 EV Pick Up RWD","89kWh","a0pQC00000DMoF4","05.12.2024","917939P04016NA250217","Electric",{"$f":"IF(report1737987713132[[#This Row],[Erstzulassungsdatum]]=\"\",\"\",YEAR(report1737987713132[[#This Row],[Erstzulassungsdatum]]))","v":2024},"T90 EV",""]
["LSH14J4C3NA104910","Maxus_CH","(e)Deliver 9","eDeliver 9 VAN L3H2","FWD 72kWh","a0pQC00000DMtZb","05.12.2022","914600P00034N3230075","Electric",{"$f":"IF(report1737987713132[[#This Row],[Erstzulassungsdatum]]=\"\",\"\",YEAR(report1737987713132[[#This Row],[Erstzulassungsdatum]]))","v":2022},"eDeliver 9",""]
["LSH14J7C3PA189357","Maxus_CH","(e)Deliver 9","Deliver 9 VAN L3H2 FWD","Luxury","a0pQC00000DMlx3","05.11.2024","M923B099599","Diesel",{"$f":"IF(report1737987713132[[#This Row],[Erstzulassungsdatum]]=\"\",\"\",YEAR(report1737987713132[[#This Row],[Erstzulassungsdatum]]))","v":2024},"Deliver 9",""]
["LSH14J4C5NA057556","Maxus_CH","(e)Deliver 9","eDeliver 9 VAN L3H2","FWD 72kWh","a0pQC00000DMtZb","05.10.2022","915536P00034N1150004","Electric",{"$f":"IF(report1737987713132[[#This Row],[Erstzulassungsdatum]]=\"\",\"\",YEAR(report1737987713132[[#This Row],[Erstzulassungsdatum]]))","v":2022},"eDeliver 9",""]
["LSH14J7C7SV122049","Maxus_CH","(e)Deliver 7","Deliver 7 VAN L2H1 FWD","-","a0pQC00000DMxYG","05.09.2025","M9254021822","Diesel",{"$f":"IF(report1737987713132[[#This Row],[Erstzulassungsdatum]]=\"\",\"\",YEAR(report1737987713132[[#This Row],[Erstzulassungsdatum]]))","v":2025},"Deliver 7",""]
["LSFAM11C3SA092945","Maxus_CH","T60 MAX","T60 MAX","AWD","a0pQC00000FBTso","05.09.2025","M9254022740","Diesel",{"$f":"IF(report1737987713132[[#This Row],[Erstzulassungsdatum]]=\"\",\"\",YEAR(report1737987713132[[#This Row],[Erstzulassungsdatum]]))","v":2025},"T60 Max","2025-03-31"]
["LSFAM11C9SA098507","Maxus_CH","T60 MAX","T60 MAX","AWD","a0pQC00000FBTso","05.09.2025","M9255028780","Diesel",{"$f":"IF(report1737987713132[[#This Row],[Erstzulassungsdatum]]=\"\",\"\",YEAR(report1737987713132[[#This Row],[Erstzulassungsdatum]]))","v":2025},"T60 Max","2025-04-30"]
["LSH14J4C4MA113999","Maxus_CH","(e)Deliver 9","eDeliver 9 VAN L2H2","FWD 52kWh","a0pQC00000DMtxh","05.09.2023","914600P00034N4190024","Electric",{"$f":"IF(report1737987713132[[#This Row],[Erstzulassungsdatum]]=\"\",\"\",YEAR(report1737987713132[[#This Row],[Erstzulassungsdatum]]))","v":2023},"eDeliver 9",""]
["LSH14C4C4MA122763","Maxus_CH","EV30 PV","OLDEV30 PV","VEV3P","a0pQC00000DhecN","05.08.2022","918674P00044MC166056","",{"$f":"IF(report1737987713132[[#This Row],[Erstzulassungsdatum]]=\"\",\"\",YEAR(report1737987713132[[#This Row],[Erstzulassungsdatum]]))","v":2022},"eDeliver 3",""]
["LSH14J7CXSV121526","Maxus_CH","(e)Deliver 7","Deliver 7 VAN L2H1 FWD","-","a0pQC00000DMxYG","05.06.2025","M9251003989","Diesel",{"$f":"IF(report1737987713132[[#This Row],[Erstzulassungsdatum]]=\"\",\"\",YEAR(report1737987713132[[#This Row],[Erstzulassungsdatum]]))","v":2025},"Deliver 7",""]
["LSH14J7C0RV125496","Maxus_CH","(e)Deliver 7","Deliver 7 VAN L2H1 FWD","Dual Sliding Door","a0pQC00000DMxYH","05.06.2025","M9248052510","Diesel",{"$f":"IF(report1737987713132[[#This Row],[Erstzulassungsdatum]]=\"\",\"\",YEAR(report1737987713132[[#This Row],[Erstzulassungsdatum]]))","v":2025},"Deliver 7",""]
["LSFAL1607RA138675","Maxus_CH","eTerron 9","eTerron 9 Luxury","AWD 102kWh","a0pQC00000FQqlf","05.05.2025","","Electric",{"$f":"IF(report1737987713132[[#This Row],[Erstzulassungsdatum]]=\"\",\"\",YEAR(report1737987713132[[#This Row],[Erstzulassungsdatum]]))","v":2025},"eTerron 9",""]
["LSH14J4C5MA147837","Maxus_CH","(e)Deliver 9","eDeliver 9 VAN L2H2","FWD 72kWh Pack Plus","a0pQC00000DMtxk","05.05.2022","917785P00034M8130526","Electric",{"$f":"IF(report1737987713132[[#This Row],[Erstzulassungsdatum]]=\"\",\"\",YEAR(report1737987713132[[#This Row],[Erstzulassungsdatum]]))","v":2022},"eDeliver 9",""]
["LSH14C4C0PA093329","Maxus_CH","eDeliver 3","eDeliver 3 VAN L2H1 FWD","50kWh","a0pQC00000DMpip","05.04.2024","916502P03299NC290097","Electric",{"$f":"IF(report1737987713132[[#This Row],[Erstzulassungsdatum]]=\"\",\"\",YEAR(report1737987713132[[#This Row],[Erstzulassungsdatum]]))","v":2024},"eDeliver 3",""]
["LSH14J7C6RV125485","Maxus_CH","(e)Deliver 7","Deliver 7 VAN L2H1 FWD","-","a0pQC00000DMxYG","05.03.2025","M9249059186","Diesel",{"$f":"IF(report1737987713132[[#This Row],[Erstzulassungsdatum]]=\"\",\"\",YEAR(report1737987713132[[#This Row],[Erstzulassungsdatum]]))","v":2025},"Deliver 7",""]
["LSH14J7CXRV125506","Maxus_CH","(e)Deliver 7","Deliver 7 VAN L2H1 FWD","-","a0pQC00000DMxYG","05.03.2025","M9249058576","Diesel",{"$f":"IF(report1737987713132[[#This Row],[Erstzulassungsdatum]]=\"\",\"\",YEAR(report1737987713132[[#This Row],[Erstzulassungsdatum]]))","v":2025},"Deliver 7",""]
["LSFAL110XLA048077","Maxus_CH","EV80 CC","OLDEV80 CC","VE8C","a0pQC00000DhUIg","05.03.2021","104125P01109L3210022","",{"$f":"IF(report1737987713132[[#This Row],[Erstzulassungsdatum]]=\"\",\"\",YEAR(report1737987713132[[#This Row],[Erstzulassungsdatum]]))","v":2021},"EV 80",""]
["LSH14J4C3KA071161","Maxus_CH","EV80 PV","OLDEV80 PV","VE8P","a0pQC00000DhYVd","05.02.2020","106665P01109K5280057","",{"$f":"IF(report1737987713132[[#This Row],[Erstzulassungsdatum]]=\"\",\"\",YEAR(report1737987713132[[#This Row],[Erstzulassungsdatum]]))","v":2020},"EV 80",""]
["LSH14J4C4MA171434","Maxus_CH","(e)Deliver 9","eDeliver 9 VAN L2H2","FWD 52kWh","a0pQC00000DMtxh","05.01.2023","914600P00034N6050053","Electric",{"$f":"IF(report1737987713132[[#This Row],[Erstzulassungsdatum]]=\"\",\"\",YEAR(report1737987713132[[#This Row],[Erstzulassungsdatum]]))","v":2023},"eDeliver 9",""]
["LSH14J4C6RD054539","Maxus_CH","eDeliver 5","eDeliver 5 VAN L1H1 FWD","64kWh","a0pQC00000DMtZm","04.12.2024","911693P03299R4150020","Electric",{"$f":"IF(report1737987713132[[#This Row],[Erstzulassungsdatum]]=\"\",\"\",YEAR(report1737987713132[[#This Row],[Erstzulassungsdatum]]))","v":2024},"eDeliver 5",""]
["LSH14J4C8JA071574","Maxus_CH","9999","GREY IMPORTER DUMMIE","EV80-OD","a0pQC00000ECYij","04.12.2024","","",{"$f":"IF(report1737987713132[[#This Row],[Erstzulassungsdatum]]=\"\",\"\",YEAR(report1737987713132[[#This Row],[Erstzulassungsdatum]]))","v":2024},null,""]
["LSH14C4C3LA079936","Maxus_CH","EV30 PV","OLDEV30 PV","VEV3P","a0pQC00000DhecN","04.12.2020","912832P00044L6056069","",{"$f":"IF(report1737987713132[[#This Row],[Erstzulassungsdatum]]=\"\",\"\",YEAR(report1737987713132[[#This Row],[Erstzulassungsdatum]]))","v":2020},"eDeliver 3",""]
["LSH14C4C7LA079518","Maxus_CH","EV30 PV","OLDEV30 PV","VEV3P","a0pQC00000DhecN","04.11.2020","912832P00044L5166065","",{"$f":"IF(report1737987713132[[#This Row],[Erstzulassungsdatum]]=\"\",\"\",YEAR(report1737987713132[[#This Row],[Erstzulassungsdatum]]))","v":2020},"eDeliver 3",""]
["LSH14C4C5LA079520","Maxus_CH","EV30 PV","OLDEV30 PV","VEV3P","a0pQC00000DhecN","04.11.2020","912832P00044L5196049","",{"$f":"IF(report1737987713132[[#This Row],[Erstzulassungsdatum]]=\"\",\"\",YEAR(report1737987713132[[#This Row],[Erstzulassungsdatum]]))","v":2020},"eDeliver 3",""]
["LSH14J4C3NA174276","Maxus_CH","(e)Deliver 9","eDeliver 9 VAN L3H2","FWD 72kWh","a0pQC00000DMtZb","04.10.2023","914600P00034NA180130","Electric",{"$f":"IF(report1737987713132[[#This Row],[Erstzulassungsdatum]]=\"\",\"\",YEAR(report1737987713132[[#This Row],[Erstzulassungsdatum]]))","v":2023},"eDeliver 9",""]
["LSH14J4C3NA174293","Maxus_CH","(e)Deliver 9","eDeliver 9 VAN L3H2","FWD 72kWh","a0pQC00000DMtZb","04.10.2023","914600P00034NB040120","Electric",{"$f":"IF(report1737987713132[[#This Row],[Erstzulassungsdatum]]=\"\",\"\",YEAR(report1737987713132[[#This Row],[Erstzulassungsdatum]]))","v":2023},"eDeliver 9",""]
["LSH14J4C4NA174299","Maxus_CH","(e)Deliver 9","eDeliver 9 VAN L3H2","FWD 72kWh","a0pQC00000DMtZb","04.10.2023","914600P00034NA180202","Electric",{"$f":"IF(report1737987713132[[#This Row],[Erstzulassungsdatum]]=\"\",\"\",YEAR(report1737987713132[[#This Row],[Erstzulassungsdatum]]))","v":2023},"eDeliver 9",""]
["LSH14J4C6KA070635","Maxus_CH","EV80 PV","OLDEV80 PV","VE8P","a0pQC00000DhYVd","04.10.2019","106665P01109K3290020","",{"$f":"IF(report1737987713132[[#This Row],[Erstzulassungsdatum]]=\"\",\"\",YEAR(report1737987713132[[#This Row],[Erstzulassungsdatum]]))","v":2019},"EV 80",""]
["LSH14J7C4SV122249","Maxus_CH","(e)Deliver 7","Deliver 7 VAN L2H1 FWD","Dual Sliding Door","a0pQC00000DMxYH","04.09.2025","M9254023029","Diesel",{"$f":"IF(report1737987713132[[#This Row],[Erstzulassungsdatum]]=\"\",\"\",YEAR(report1737987713132[[#This Row],[Erstzulassungsdatum]]))","v":2025},"Deliver 7",""]
["LSFAM11C9SA092948","Maxus_CH","T60 MAX","T60 MAX","AWD","a0pQC00000FBTso","04.09.2025","M9254022741","Diesel",{"$f":"IF(report1737987713132[[#This Row],[Erstzulassungsdatum]]=\"\",\"\",YEAR(report1737987713132[[#This Row],[Erstzulassungsdatum]]))","v":2025},"T60 Max","2025-03-31"]
["LSFAM11C7SA098487","Maxus_CH","T60 MAX","T60 MAX","AWD","a0pQC00000FBTso","04.09.2025","M9255028785","Diesel",{"$f":"IF(report1737987713132[[#This Row],[Erstzulassungsdatum]]=\"\",\"\",YEAR(report1737987713132[[#This Row],[Erstzulassungsdatum]]))","v":2025},"T60 Max","2025-04-30"]
["LSH15J5C3SV120928","Maxus_CH","(e)Deliver 7","eDeliver 7 VAN L2H1 AWD","88kWh Dual Sliding Door Swiss Post Los 49 #1","a0pQC00000HhTgA","04.08.2025","918787P06014RA240018","Electric",{"$f":"IF(report1737987713132[[#This Row],[Erstzulassungsdatum]]=\"\",\"\",YEAR(report1737987713132[[#This Row],[Erstzulassungsdatum]]))","v":2025},"eDeliver 7",""]
["LSH15J5C4SV120923","Maxus_CH","(e)Deliver 7","eDeliver 7 VAN L2H1 AWD","88kWh Dual Sliding Door Swiss Post Los 49 #1","a0pQC00000HhTgA","04.08.2025","918787P06014R4210003","Electric",{"$f":"IF(report1737987713132[[#This Row],[Erstzulassungsdatum]]=\"\",\"\",YEAR(report1737987713132[[#This Row],[Erstzulassungsdatum]]))","v":2025},"eDeliver 7",""]
["LSH14J7C1RV125510","Maxus_CH","(e)Deliver 7","Deliver 7 VAN L2H1 FWD","-","a0pQC00000DMxYG","04.08.2025","M924A059520","Diesel",{"$f":"IF(report1737987713132[[#This Row],[Erstzulassungsdatum]]=\"\",\"\",YEAR(report1737987713132[[#This Row],[Erstzulassungsdatum]]))","v":2025},"Deliver 7",""]
["LSH14C4C8NA167559","Maxus_CH","9999","GREY IMPORTER DUMMIE","EV30-OD","a0pQC00000ECYih","04.08.2023","","",{"$f":"IF(report1737987713132[[#This Row],[Erstzulassungsdatum]]=\"\",\"\",YEAR(report1737987713132[[#This Row],[Erstzulassungsdatum]]))","v":2023},null,""]
["LSH14C4C3NA139717","Maxus_CH","9999","GREY IMPORTER DUMMIE","EV30-OD","a0pQC00000ECYih","04.08.2023","","",{"$f":"IF(report1737987713132[[#This Row],[Erstzulassungsdatum]]=\"\",\"\",YEAR(report1737987713132[[#This Row],[Erstzulassungsdatum]]))","v":2023},null,""]
["LSH14C4CXNA167580","Maxus_CH","9999","GREY IMPORTER DUMMIE","EV30-OD","a0pQC00000ECYih","04.08.2023","","",{"$f":"IF(report1737987713132[[#This Row],[Erstzulassungsdatum]]=\"\",\"\",YEAR(report1737987713132[[#This Row],[Erstzulassungsdatum]]))","v":2023},null,""]
["LSH14C4C3NA139734","Maxus_CH","9999","GREY IMPORTER DUMMIE","EV30-OD","a0pQC00000ECYih","04.08.2023","","",{"$f":"IF(report1737987713132[[#This Row],[Erstzulassungsdatum]]=\"\",\"\",YEAR(report1737987713132[[#This Row],[Erstzulassungsdatum]]))","v":2023},null,""]
["LSH14J4C3NA069088","Maxus_CH","9999","GREY IMPORTER DUMMIE","EV30-OD","a0pQC00000ECYih","04.08.2023","","",{"$f":"IF(report1737987713132[[#This Row],[Erstzulassungsdatum]]=\"\",\"\",YEAR(report1737987713132[[#This Row],[Erstzulassungsdatum]]))","v":2023},null,""]
["LSFAL1100KA102940","Maxus_CH","EV80 CC","OLDEV80 CC","VE8C","a0pQC00000DhUIg","04.08.2020","105855P01109KB190008","",{"$f":"IF(report1737987713132[[#This Row],[Erstzulassungsdatum]]=\"\",\"\",YEAR(report1737987713132[[#This Row],[Erstzulassungsdatum]]))","v":2020},"EV 80",""]
["LSFAM11C1RA134541","Maxus_CH","T60 MAX","T60 MAX","AWD","a0pQC00000FBTso","04.07.2025","M924A064093","Diesel",{"$f":"IF(report1737987713132[[#This Row],[Erstzulassungsdatum]]=\"\",\"\",YEAR(report1737987713132[[#This Row],[Erstzulassungsdatum]]))","v":2025},"T60 Max","2024-09-30"]
["LSH14C4C3PA093339","Maxus_CH","eDeliver 3","eDeliver 3 VAN L2H1 FWD","50kWh","a0pQC00000DMpip","04.06.2025","916502P03299P1060019","Electric",{"$f":"IF(report1737987713132[[#This Row],[Erstzulassungsdatum]]=\"\",\"\",YEAR(report1737987713132[[#This Row],[Erstzulassungsdatum]]))","v":2025},"eDeliver 3",""]
["LSH14J7C5PA108844","Maxus_CH","(e)Deliver 9","Deliver 9 VAN L3H2 FWD","Luxury","a0pQC00000DMlx3","04.06.2025","M923A091399","Diesel",{"$f":"IF(report1737987713132[[#This Row],[Erstzulassungsdatum]]=\"\",\"\",YEAR(report1737987713132[[#This Row],[Erstzulassungsdatum]]))","v":2025},"Deliver 9",""]
["LSFAL1106PA100939","Maxus_CH","(e)Deliver 9","eDeliver 9 Cabine L3","65kWh","a0pQC00000DMoJl","04.06.2025","919181P00034P6260161","Electric",{"$f":"IF(report1737987713132[[#This Row],[Erstzulassungsdatum]]=\"\",\"\",YEAR(report1737987713132[[#This Row],[Erstzulassungsdatum]]))","v":2025},"eDeliver 9",""]
["LSH14J7C8RV125505","Maxus_CH","(e)Deliver 7","Deliver 7 VAN L2H1 FWD","-","a0pQC00000DMxYG","04.06.2025","M924A059523","Diesel",{"$f":"IF(report1737987713132[[#This Row],[Erstzulassungsdatum]]=\"\",\"\",YEAR(report1737987713132[[#This Row],[Erstzulassungsdatum]]))","v":2025},"Deliver 7",""]
["LSH14J4C7RV120798","Maxus_CH","(e)Deliver 7","eDeliver 7 VAN L1H1 FWD","77kWh","a0pQC00000DMveU","04.06.2025","917164P03299PC070001","Electric",{"$f":"IF(report1737987713132[[#This Row],[Erstzulassungsdatum]]=\"\",\"\",YEAR(report1737987713132[[#This Row],[Erstzulassungsdatum]]))","v":2025},"eDeliver 7",""]
["LSH14J7C4PA109015","Maxus_CH","(e)Deliver 9","Deliver 9 VAN L3H2 FWD","Comfort","a0pQC00000DMlx4","04.06.2024","M923B097304","Diesel",{"$f":"IF(report1737987713132[[#This Row],[Erstzulassungsdatum]]=\"\",\"\",YEAR(report1737987713132[[#This Row],[Erstzulassungsdatum]]))","v":2024},"Deliver 9",""]
["LSH14J4C7KA097181","Maxus_CH","EV80 PV","OLDEV80 PV","VE8P","a0pQC00000DhYVe","04.06.2020","105855P01109KA290022","",{"$f":"IF(report1737987713132[[#This Row],[Erstzulassungsdatum]]=\"\",\"\",YEAR(report1737987713132[[#This Row],[Erstzulassungsdatum]]))","v":2020},"EV 80",""]
["LSH14J7C6PA108772","Maxus_CH","(e)Deliver 9","Deliver 9 VAN L3H2 FWD","Luxury","a0pQC00000DMlx3","04.04.2025","M923A090865","Diesel",{"$f":"IF(report1737987713132[[#This Row],[Erstzulassungsdatum]]=\"\",\"\",YEAR(report1737987713132[[#This Row],[Erstzulassungsdatum]]))","v":2025},"Deliver 9",""]
["LSH14J7C6PA108741","Maxus_CH","(e)Deliver 9","Deliver 9 VAN L3H2 FWD","Luxury","a0pQC00000DMlx3","04.04.2025","M923A091211","Diesel",{"$f":"IF(report1737987713132[[#This Row],[Erstzulassungsdatum]]=\"\",\"\",YEAR(report1737987713132[[#This Row],[Erstzulassungsdatum]]))","v":2025},"Deliver 9",""]
["LSFAM11C1RA134538","Maxus_CH","T60 MAX","T60 MAX","AWD","a0pQC00000FBTso","04.03.2025","M924A064089","Diesel",{"$f":"IF(report1737987713132[[#This Row],[Erstzulassungsdatum]]=\"\",\"\",YEAR(report1737987713132[[#This Row],[Erstzulassungsdatum]]))","v":2025},"T60 Max","2024-09-30"]
["LSFAM11C3RA134542","Maxus_CH","T60 MAX","T60 MAX","AWD","a0pQC00000FBTso","04.03.2025","M924A064090","Diesel",{"$f":"IF(report1737987713132[[#This Row],[Erstzulassungsdatum]]=\"\",\"\",YEAR(report1737987713132[[#This Row],[Erstzulassungsdatum]]))","v":2025},"T60 Max","2024-09-30"]
["LSH14C4C5MA122738","Maxus_CH","EV30 PV","OLDEV30 PV","VEV3P","a0pQC00000DhecN","04.03.2022","918674P00044M9036119","",{"$f":"IF(report1737987713132[[#This Row],[Erstzulassungsdatum]]=\"\",\"\",YEAR(report1737987713132[[#This Row],[Erstzulassungsdatum]]))","v":2022},"eDeliver 3",""]
["LSH14J7C4PA108950","Maxus_CH","(e)Deliver 9","Deliver 9 VAN L3H2 FWD","Luxury","a0pQC00000DMlx3","04.02.2025","M923A090876","Diesel",{"$f":"IF(report1737987713132[[#This Row],[Erstzulassungsdatum]]=\"\",\"\",YEAR(report1737987713132[[#This Row],[Erstzulassungsdatum]]))","v":2025},"Deliver 9",""]
["LSH14J4CXLA050373","Maxus_CH","9999","GREY IMPORTER DUMMIE","EV80-OD","a0pQC00000ECYij","03.12.2021","","",{"$f":"IF(report1737987713132[[#This Row],[Erstzulassungsdatum]]=\"\",\"\",YEAR(report1737987713132[[#This Row],[Erstzulassungsdatum]]))","v":2021},null,""]
["LSH14J4C4LA057092","Maxus_CH","9999","GREY IMPORTER DUMMIE","EV80-OD","a0pQC00000ECYij","03.12.2021","","",{"$f":"IF(report1737987713132[[#This Row],[Erstzulassungsdatum]]=\"\",\"\",YEAR(report1737987713132[[#This Row],[Erstzulassungsdatum]]))","v":2021},null,""]
["LSH14C4C1LA079918","Maxus_CH","EV30 PV","OLDEV30 PV","VEV3P","a0pQC00000DhecN","03.12.2020","912832P00044L6106081","",{"$f":"IF(report1737987713132[[#This Row],[Erstzulassungsdatum]]=\"\",\"\",YEAR(report1737987713132[[#This Row],[Erstzulassungsdatum]]))","v":2020},"eDeliver 3",""]
["LSH14J4C6LA057109","Maxus_CH","9999","GREY IMPORTER DUMMIE","EV80-OD","a0pQC00000ECYij","03.11.2021","","",{"$f":"IF(report1737987713132[[#This Row],[Erstzulassungsdatum]]=\"\",\"\",YEAR(report1737987713132[[#This Row],[Erstzulassungsdatum]]))","v":2021},null,""]
["LSH14J4C1LA057132","Maxus_CH","9999","GREY IMPORTER DUMMIE","EV80-OD","a0pQC00000ECYij","03.11.2021","","",{"$f":"IF(report1737987713132[[#This Row],[Erstzulassungsdatum]]=\"\",\"\",YEAR(report1737987713132[[#This Row],[Erstzulassungsdatum]]))","v":2021},null,""]
["LSH14J4C0LA057140","Maxus_CH","9999","GREY IMPORTER DUMMIE","EV80-OD","a0pQC00000ECYij","03.11.2021","","",{"$f":"IF(report1737987713132[[#This Row],[Erstzulassungsdatum]]=\"\",\"\",YEAR(report1737987713132[[#This Row],[Erstzulassungsdatum]]))","v":2021},null,""]
["LSH14J4C2LA057124","Maxus_CH","9999","GREY IMPORTER DUMMIE","EV80-OD","a0pQC00000ECYij","03.11.2021","","",{"$f":"IF(report1737987713132[[#This Row],[Erstzulassungsdatum]]=\"\",\"\",YEAR(report1737987713132[[#This Row],[Erstzulassungsdatum]]))","v":2021},null,""]
["LSH14J7C4SV122283","Maxus_CH","(e)Deliver 7","Deliver 7 VAN L2H1 FWD","-","a0pQC00000DMxYG","03.10.2025","M9255027309","Diesel",{"$f":"IF(report1737987713132[[#This Row],[Erstzulassungsdatum]]=\"\",\"\",YEAR(report1737987713132[[#This Row],[Erstzulassungsdatum]]))","v":2025},"Deliver 7",""]
["LSH14J7C9SV122683","Maxus_CH","(e)Deliver 7","Deliver 7 VAN L2H1 FWD","-","a0pQC00000DMxYG","03.10.2025","M9256036331","Diesel",{"$f":"IF(report1737987713132[[#This Row],[Erstzulassungsdatum]]=\"\",\"\",YEAR(report1737987713132[[#This Row],[Erstzulassungsdatum]]))","v":2025},"Deliver 7",""]
["LSH14J4CXRV121816","Maxus_CH","(e)Deliver 7","eDeliver 7 VAN L2H1 FWD","88kWh","a0pQC00000DMo24","03.10.2025","917164P03299R1040019","Electric",{"$f":"IF(report1737987713132[[#This Row],[Erstzulassungsdatum]]=\"\",\"\",YEAR(report1737987713132[[#This Row],[Erstzulassungsdatum]]))","v":2025},"eDeliver 7",""]
["LSFAM11C2SA092953","Maxus_CH","T60 MAX","T60 MAX","AWD","a0pQC00000FBTso","03.10.2025","M9254022737","Diesel",{"$f":"IF(report1737987713132[[#This Row],[Erstzulassungsdatum]]=\"\",\"\",YEAR(report1737987713132[[#This Row],[Erstzulassungsdatum]]))","v":2025},"T60 Max","2025-03-31"]
["LSH14J4C5RV122615","Maxus_CH","(e)Deliver 7","eDeliver 7 VAN L1H1 FWD","88kWh","a0pQC00000DMveV","03.10.2024","917164P03299R4010041","Electric",{"$f":"IF(report1737987713132[[#This Row],[Erstzulassungsdatum]]=\"\",\"\",YEAR(report1737987713132[[#This Row],[Erstzulassungsdatum]]))","v":2024},"eDeliver 7",""]
["LSH14J7C8SV122285","Maxus_CH","(e)Deliver 7","Deliver 7 VAN L2H1 FWD","-","a0pQC00000DMxYG","03.09.2025","M9254023864","Diesel",{"$f":"IF(report1737987713132[[#This Row],[Erstzulassungsdatum]]=\"\",\"\",YEAR(report1737987713132[[#This Row],[Erstzulassungsdatum]]))","v":2025},"Deliver 7",""]
["LSH14J4C2MA069632","Maxus_CH","(e)Deliver 9","eDeliver 9 VAN L3H2","FWD 72kWh","a0pQC00000DMtZb","03.09.2021","917785P00034M3020011","Electric",{"$f":"IF(report1737987713132[[#This Row],[Erstzulassungsdatum]]=\"\",\"\",YEAR(report1737987713132[[#This Row],[Erstzulassungsdatum]]))","v":2021},"eDeliver 9",""]
["LSH14J4C0LA050379","Maxus_CH","EV80 PV","OLDEV80 PV","VE8P","a0pQC00000DhYVe","03.08.2020","104125P01109L3130032","",{"$f":"IF(report1737987713132[[#This Row],[Erstzulassungsdatum]]=\"\",\"\",YEAR(report1737987713132[[#This Row],[Erstzulassungsdatum]]))","v":2020},"EV 80",""]
["LSH14J7C6RV125468","Maxus_CH","(e)Deliver 7","Deliver 7 VAN L2H1 FWD","-","a0pQC00000DMxYG","03.07.2025","M9249058599","Diesel",{"$f":"IF(report1737987713132[[#This Row],[Erstzulassungsdatum]]=\"\",\"\",YEAR(report1737987713132[[#This Row],[Erstzulassungsdatum]]))","v":2025},"Deliver 7",""]
["LSH14J4C6MA147829","Maxus_CH","(e)Deliver 9","eDeliver 9 VAN L2H2","FWD 52kWh","a0pQC00000DMtxh","03.07.2023","914600P00034N4190008","Electric",{"$f":"IF(report1737987713132[[#This Row],[Erstzulassungsdatum]]=\"\",\"\",YEAR(report1737987713132[[#This Row],[Erstzulassungsdatum]]))","v":2023},"eDeliver 9",""]
["LSH14J4CXNA177076","Maxus_CH","(e)Deliver 9","eDeliver 9 VAN L2H2","FWD 52kWh Pack Plus","a0pQC00000DMtxj","03.07.2023","914600P00034NB220095","Electric",{"$f":"IF(report1737987713132[[#This Row],[Erstzulassungsdatum]]=\"\",\"\",YEAR(report1737987713132[[#This Row],[Erstzulassungsdatum]]))","v":2023},"eDeliver 9",""]
["LSH14J4C8NA177075","Maxus_CH","(e)Deliver 9","eDeliver 9 VAN L2H2","FWD 52kWh Pack Plus","a0pQC00000DMtxj","03.07.2023","914600P00034NB260009","Electric",{"$f":"IF(report1737987713132[[#This Row],[Erstzulassungsdatum]]=\"\",\"\",YEAR(report1737987713132[[#This Row],[Erstzulassungsdatum]]))","v":2023},"eDeliver 9",""]
["LSFAM1101RD061109","Maxus_CH","eDeliver 3","eDeliver 3 Cabine L2 FWD","50kWh","a0pQC00000DHy3W","03.06.2025","916145P03299R5260019","Electric",{"$f":"IF(report1737987713132[[#This Row],[Erstzulassungsdatum]]=\"\",\"\",YEAR(report1737987713132[[#This Row],[Erstzulassungsdatum]]))","v":2025},"eDeliver 3",""]
["LSH14J4C5KA097177","Maxus_CH","EV80 PV","OLDEV80 PV","VE8P","a0pQC00000DhYVe","03.06.2020","105855P01109KA290013","",{"$f":"IF(report1737987713132[[#This Row],[Erstzulassungsdatum]]=\"\",\"\",YEAR(report1737987713132[[#This Row],[Erstzulassungsdatum]]))","v":2020},"EV 80",""]
["LSH14J4C3RV120622","Maxus_CH","(e)Deliver 7","eDeliver 7 VAN L1H1 FWD","77kWh","a0pQC00000DMveU","03.04.2025","917164P03299PC090059","Electric",{"$f":"IF(report1737987713132[[#This Row],[Erstzulassungsdatum]]=\"\",\"\",YEAR(report1737987713132[[#This Row],[Erstzulassungsdatum]]))","v":2025},"eDeliver 7",""]
["LSFAL160XRA138704","Maxus_CH","eTerron 9","eTerron 9 Premium","AWD 102kWh (Black&White Interior)","a0pQC00000FQlNp","03.04.2025","","Electric",{"$f":"IF(report1737987713132[[#This Row],[Erstzulassungsdatum]]=\"\",\"\",YEAR(report1737987713132[[#This Row],[Erstzulassungsdatum]]))","v":2025},"eTerron 9",""]
["LSH14C4C7NA139705","Maxus_CH","9999","GREY IMPORTER DUMMIE","EV30-OD","a0pQC00000ECYih","03.04.2024","","",{"$f":"IF(report1737987713132[[#This Row],[Erstzulassungsdatum]]=\"\",\"\",YEAR(report1737987713132[[#This Row],[Erstzulassungsdatum]]))","v":2024},null,""]
["LSFAM120XPA090699","Maxus_CH","9999","GREY IMPORTER DUMMIE","EV30-OD","a0pQC00000ECYih","03.03.2024","","",{"$f":"IF(report1737987713132[[#This Row],[Erstzulassungsdatum]]=\"\",\"\",YEAR(report1737987713132[[#This Row],[Erstzulassungsdatum]]))","v":2024},null,""]
["LSFAM1206PA091316","Maxus_CH","9999","GREY IMPORTER DUMMIE","EV30-OD","a0pQC00000ECYih","03.03.2024","","",{"$f":"IF(report1737987713132[[#This Row],[Erstzulassungsdatum]]=\"\",\"\",YEAR(report1737987713132[[#This Row],[Erstzulassungsdatum]]))","v":2024},null,""]
["LSFAM1200PA091666","Maxus_CH","9999","GREY IMPORTER DUMMIE","EV80-OD","a0pQC00000ECYij","03.03.2024","","",{"$f":"IF(report1737987713132[[#This Row],[Erstzulassungsdatum]]=\"\",\"\",YEAR(report1737987713132[[#This Row],[Erstzulassungsdatum]]))","v":2024},null,""]
["LSFAM1207PA091082","Maxus_CH","9999","GREY IMPORTER DUMMIE","T90-EV-OD","a0pQC00000ECYio","03.03.2024","","",{"$f":"IF(report1737987713132[[#This Row],[Erstzulassungsdatum]]=\"\",\"\",YEAR(report1737987713132[[#This Row],[Erstzulassungsdatum]]))","v":2024},null,""]
["LSH14J4C2LA050366","Maxus_CH","EV80 PV","OLDEV80 PV","VE8P","a0pQC00000DhYVe","03.01.2022","104125P01109L3070013","",{"$f":"IF(report1737987713132[[#This Row],[Erstzulassungsdatum]]=\"\",\"\",YEAR(report1737987713132[[#This Row],[Erstzulassungsdatum]]))","v":2022},"EV 80",""]
["LSH14J4C1MA147835","Maxus_CH","(e)Deliver 9","eDeliver 9 VAN L2H2","FWD 52kWh Pack Plus","a0pQC00000DMtxj","02.12.2022","914600P00034N4190079","Electric",{"$f":"IF(report1737987713132[[#This Row],[Erstzulassungsdatum]]=\"\",\"\",YEAR(report1737987713132[[#This Row],[Erstzulassungsdatum]]))","v":2022},"eDeliver 9",""]
["LSH14J4C9NA104913","Maxus_CH","(e)Deliver 9","eDeliver 9 VAN L3H2","FWD 72kWh","a0pQC00000DMtZb","02.12.2022","914600P00034N3230073","Electric",{"$f":"IF(report1737987713132[[#This Row],[Erstzulassungsdatum]]=\"\",\"\",YEAR(report1737987713132[[#This Row],[Erstzulassungsdatum]]))","v":2022},"eDeliver 9",""]
["LSH14C4C1LA079949","Maxus_CH","EV30 PV","OLDEV30 PV","VEV3P","a0pQC00000DhecN","02.12.2021","912832P00044L5246067","",{"$f":"IF(report1737987713132[[#This Row],[Erstzulassungsdatum]]=\"\",\"\",YEAR(report1737987713132[[#This Row],[Erstzulassungsdatum]]))","v":2021},"eDeliver 3",""]
["LSH14C4C0LA080056","Maxus_CH","EV30 PV","OLDEV30 PV","VEV3P","a0pQC00000DhecN","02.11.2021","912832P00044L5246040","",{"$f":"IF(report1737987713132[[#This Row],[Erstzulassungsdatum]]=\"\",\"\",YEAR(report1737987713132[[#This Row],[Erstzulassungsdatum]]))","v":2021},"eDeliver 3",""]
["LSH14J7C1SV122242","Maxus_CH","(e)Deliver 7","Deliver 7 VAN L2H1 FWD","Dual Sliding Door","a0pQC00000DMxYH","02.10.2025","M9254026518","Diesel",{"$f":"IF(report1737987713132[[#This Row],[Erstzulassungsdatum]]=\"\",\"\",YEAR(report1737987713132[[#This Row],[Erstzulassungsdatum]]))","v":2025},"Deliver 7",""]
["LSH14J7C0SV122653","Maxus_CH","(e)Deliver 7","Deliver 7 VAN L2H1 FWD","Dual Sliding Door","a0pQC00000DMxYH","02.10.2025","M9256034879","Diesel",{"$f":"IF(report1737987713132[[#This Row],[Erstzulassungsdatum]]=\"\",\"\",YEAR(report1737987713132[[#This Row],[Erstzulassungsdatum]]))","v":2025},"Deliver 7",""]
["LSH14J7C2SV122671","Maxus_CH","(e)Deliver 7","Deliver 7 VAN L2H1 FWD","Dual Sliding Door","a0pQC00000DMxYH","02.10.2025","M9256035453","Diesel",{"$f":"IF(report1737987713132[[#This Row],[Erstzulassungsdatum]]=\"\",\"\",YEAR(report1737987713132[[#This Row],[Erstzulassungsdatum]]))","v":2025},"Deliver 7",""]
["LSFAM11C9SA098510","Maxus_CH","T60 MAX","T60 MAX","AWD","a0pQC00000FBTso","02.10.2025","M9255028782","Diesel",{"$f":"IF(report1737987713132[[#This Row],[Erstzulassungsdatum]]=\"\",\"\",YEAR(report1737987713132[[#This Row],[Erstzulassungsdatum]]))","v":2025},"T60 Max","2025-04-30"]
["LSFAM11C5SA098519","Maxus_CH","T60 MAX","T60 MAX","AWD","a0pQC00000FBTso","02.10.2025","M9255027410","Diesel",{"$f":"IF(report1737987713132[[#This Row],[Erstzulassungsdatum]]=\"\",\"\",YEAR(report1737987713132[[#This Row],[Erstzulassungsdatum]]))","v":2025},"T60 Max","2025-04-30"]
["LSH14J7C0SV121521","Maxus_CH","(e)Deliver 7","Deliver 7 VAN L2H1 FWD","-","a0pQC00000DMxYG","02.09.2025","M9251006624","Diesel",{"$f":"IF(report1737987713132[[#This Row],[Erstzulassungsdatum]]=\"\",\"\",YEAR(report1737987713132[[#This Row],[Erstzulassungsdatum]]))","v":2025},"Deliver 7",""]
["LSFAL1105KA102917","Maxus_CH","EV80 CC","OLDEV80 CC","VE8C","a0pQC00000DhUIg","02.09.2020","105855P01109KB190014","",{"$f":"IF(report1737987713132[[#This Row],[Erstzulassungsdatum]]=\"\",\"\",YEAR(report1737987713132[[#This Row],[Erstzulassungsdatum]]))","v":2020},"EV 80",""]
["LSH14J7CXRA073334","Maxus_CH","(e)Deliver 9","Deliver 9 VAN L3H2 RWD","Luxury","a0pQC00000DN0uH","02.07.2025","M9241006416","Diesel",{"$f":"IF(report1737987713132[[#This Row],[Erstzulassungsdatum]]=\"\",\"\",YEAR(report1737987713132[[#This Row],[Erstzulassungsdatum]]))","v":2025},"Deliver 9",""]
["LSH14J7C8RV125469","Maxus_CH","(e)Deliver 7","Deliver 7 VAN L2H1 FWD","-","a0pQC00000DMxYG","02.07.2025","M9249058584","Diesel",{"$f":"IF(report1737987713132[[#This Row],[Erstzulassungsdatum]]=\"\",\"\",YEAR(report1737987713132[[#This Row],[Erstzulassungsdatum]]))","v":2025},"Deliver 7",""]
["LSFAM1200PA088248","Maxus_CH","T90 EV","T90 EV Pick Up RWD","89kWh","a0pQC00000DMoF4","02.07.2024","917939P04016P1140026","Electric",{"$f":"IF(report1737987713132[[#This Row],[Erstzulassungsdatum]]=\"\",\"\",YEAR(report1737987713132[[#This Row],[Erstzulassungsdatum]]))","v":2024},"T90 EV",""]
["LSH14C4C3NA068437","Maxus_CH","9999","GREY IMPORTER DUMMIE","EV30-OD","a0pQC00000ECYih","02.06.2023","","",{"$f":"IF(report1737987713132[[#This Row],[Erstzulassungsdatum]]=\"\",\"\",YEAR(report1737987713132[[#This Row],[Erstzulassungsdatum]]))","v":2023},null,""]
["LSH14J7C1RA073321","Maxus_CH","(e)Deliver 9","Deliver 9 VAN L3H2 FWD","Luxury","a0pQC00000DMlx3","02.05.2025","M9241007636","Diesel",{"$f":"IF(report1737987713132[[#This Row],[Erstzulassungsdatum]]=\"\",\"\",YEAR(report1737987713132[[#This Row],[Erstzulassungsdatum]]))","v":2025},"Deliver 9",""]
["LSH14J7C9RV125500","Maxus_CH","(e)Deliver 7","Deliver 7 VAN L2H1 FWD","Dual Sliding Door","a0pQC00000DMxYH","02.04.2025","M9249054316","Diesel",{"$f":"IF(report1737987713132[[#This Row],[Erstzulassungsdatum]]=\"\",\"\",YEAR(report1737987713132[[#This Row],[Erstzulassungsdatum]]))","v":2025},"Deliver 7",""]
["LSH14C4C9NA157977","Maxus_CH","eDeliver 3","eDeliver 3 VAN L1H1 FWD","50kWh","a0pQC00000DMhJv","02.03.2023","910851P00044N9256068","Electric",{"$f":"IF(report1737987713132[[#This Row],[Erstzulassungsdatum]]=\"\",\"\",YEAR(report1737987713132[[#This Row],[Erstzulassungsdatum]]))","v":2023},"eDeliver 3",""]
["LSH14C4C4NA077969","Maxus_CH","eDeliver 3","eDeliver 3 VAN L2H1 FWD","50kWh","a0pQC00000DMpio","02.02.2023","910851P00044N7246039","Electric",{"$f":"IF(report1737987713132[[#This Row],[Erstzulassungsdatum]]=\"\",\"\",YEAR(report1737987713132[[#This Row],[Erstzulassungsdatum]]))","v":2023},"eDeliver 3",""]
["LSH14J4C2JA071229","Maxus_CH","9999","GREY IMPORTER DUMMIE","EV30-OD","a0pQC00000ECYih","02.02.2021","","",{"$f":"IF(report1737987713132[[#This Row],[Erstzulassungsdatum]]=\"\",\"\",YEAR(report1737987713132[[#This Row],[Erstzulassungsdatum]]))","v":2021},null,""]
["LSH14J7C7PA106738","Maxus_CH","(e)Deliver 9","Deliver 9 VAN L3H2 RWD","Comfort","a0pQC00000DN0uI","01.11.2024","M9235047690","Diesel",{"$f":"IF(report1737987713132[[#This Row],[Erstzulassungsdatum]]=\"\",\"\",YEAR(report1737987713132[[#This Row],[Erstzulassungsdatum]]))","v":2024},"Deliver 9",""]
["LSH14J4C3MA069624","Maxus_CH","(e)Deliver 9","eDeliver 9 VAN L3H2","FWD 72kWh","a0pQC00000DMtZb","01.10.2021","917785P00034M2180005","Electric",{"$f":"IF(report1737987713132[[#This Row],[Erstzulassungsdatum]]=\"\",\"\",YEAR(report1737987713132[[#This Row],[Erstzulassungsdatum]]))","v":2021},"eDeliver 9",""]
["LSFAM1106PA097215","Maxus_CH","eDeliver 3","eDeliver 3 Cabine L2 FWD","50kWh","a0pQC00000DMkMk","01.09.2025","918674P00044P1126075","Electric",{"$f":"IF(report1737987713132[[#This Row],[Erstzulassungsdatum]]=\"\",\"\",YEAR(report1737987713132[[#This Row],[Erstzulassungsdatum]]))","v":2025},"eDeliver 3",""]
["LSFAM11C3SA098518","Maxus_CH","T60 MAX","T60 MAX","AWD","a0pQC00000FBTso","01.09.2025","M9255027402","Diesel",{"$f":"IF(report1737987713132[[#This Row],[Erstzulassungsdatum]]=\"\",\"\",YEAR(report1737987713132[[#This Row],[Erstzulassungsdatum]]))","v":2025},"T60 Max","2025-04-30"]
["LSH14J4C6RD060759","Maxus_CH","eDeliver 5","eDeliver 5 VAN L1H1 FWD","64kWh","a0pQC00000DMtZm","01.07.2025","911693P03299R5160129","Electric",{"$f":"IF(report1737987713132[[#This Row],[Erstzulassungsdatum]]=\"\",\"\",YEAR(report1737987713132[[#This Row],[Erstzulassungsdatum]]))","v":2025},"eDeliver 5",""]
["LSH14C4C2PA096023","Maxus_CH","eDeliver 3","eDeliver 3 VAN L1H1 FWD","50kWh","a0pQC00000DJbxP","01.07.2024","916502P03299P2030113","Electric",{"$f":"IF(report1737987713132[[#This Row],[Erstzulassungsdatum]]=\"\",\"\",YEAR(report1737987713132[[#This Row],[Erstzulassungsdatum]]))","v":2024},"eDeliver 3",""]
["LSH14C4C1LA080034","Maxus_CH","EV30 PV","OLDEV30 PV","VEV3P","a0pQC00000DhecN","01.07.2022","912832P00044L5236006","",{"$f":"IF(report1737987713132[[#This Row],[Erstzulassungsdatum]]=\"\",\"\",YEAR(report1737987713132[[#This Row],[Erstzulassungsdatum]]))","v":2022},"eDeliver 3",""]
["LSH14C4C6NA168614","Maxus_CH","9999","GREY IMPORTER DUMMIE","EV30-OD","a0pQC00000ECYih","01.06.2023","","",{"$f":"IF(report1737987713132[[#This Row],[Erstzulassungsdatum]]=\"\",\"\",YEAR(report1737987713132[[#This Row],[Erstzulassungsdatum]]))","v":2023},null,""]
["LSH14J7C5RV125476","Maxus_CH","(e)Deliver 7","Deliver 7 VAN L2H1 FWD","Dual Sliding Door","a0pQC00000DMxYH","01.04.2025","M9249058605","Diesel",{"$f":"IF(report1737987713132[[#This Row],[Erstzulassungsdatum]]=\"\",\"\",YEAR(report1737987713132[[#This Row],[Erstzulassungsdatum]]))","v":2025},"Deliver 7",""]
["LSH14C4C1MA122672","Maxus_CH","EV30 PV","OLDEV30 PV","VEV3P","a0pQC00000DhecN","01.02.2022","912832P00044M4126059","",{"$f":"IF(report1737987713132[[#This Row],[Erstzulassungsdatum]]=\"\",\"\",YEAR(report1737987713132[[#This Row],[Erstzulassungsdatum]]))","v":2022},"eDeliver 3",""]
["LSFAM1108RD061110","Maxus_CH","eDeliver 3","eDeliver 3 Cabine L2 FWD","50kWh","a0pQC00000DHy3W","","916145P03299R5260165","Electric",{"$f":"IF(report1737987713132[[#This Row],[Erstzulassungsdatum]]=\"\",\"\",YEAR(report1737987713132[[#This Row],[Erstzulassungsdatum]]))","v":""},"eDeliver 3",""]
["LSFAM110XRD061111","Maxus_CH","eDeliver 3","eDeliver 3 Cabine L2 FWD","50kWh","a0pQC00000DHy3W","","916145P03299R5260164","Electric",{"$f":"IF(report1737987713132[[#This Row],[Erstzulassungsdatum]]=\"\",\"\",YEAR(report1737987713132[[#This Row],[Erstzulassungsdatum]]))","v":""},"eDeliver 3",""]
["LSFAM1101RD061112","Maxus_CH","eDeliver 3","eDeliver 3 Cabine L2 FWD","50kWh","a0pQC00000DHy3W","","916145P03299R5260153","Electric",{"$f":"IF(report1737987713132[[#This Row],[Erstzulassungsdatum]]=\"\",\"\",YEAR(report1737987713132[[#This Row],[Erstzulassungsdatum]]))","v":""},"eDeliver 3",""]
["LSFAM110XNA068457","Maxus_CH","eDeliver 3","eDeliver 3 Cabine L2 FWD","50kWh","a0pQC00000DMkMk","","918674P00044NA016177","Electric",{"$f":"IF(report1737987713132[[#This Row],[Erstzulassungsdatum]]=\"\",\"\",YEAR(report1737987713132[[#This Row],[Erstzulassungsdatum]]))","v":""},"eDeliver 3",""]
["LSFAM1107NA068481","Maxus_CH","eDeliver 3","eDeliver 3 Cabine L2 FWD","50kWh","a0pQC00000DMkMk","","918674P00044NA276106","Electric",{"$f":"IF(report1737987713132[[#This Row],[Erstzulassungsdatum]]=\"\",\"\",YEAR(report1737987713132[[#This Row],[Erstzulassungsdatum]]))","v":""},"eDeliver 3",""]
["LSH14C4C1NA153163","Maxus_CH","eDeliver 3","eDeliver 3 VAN L1H1 FWD","50kWh","a0pQC00000DMhJv","","910851P00044N9186089","Electric",{"$f":"IF(report1737987713132[[#This Row],[Erstzulassungsdatum]]=\"\",\"\",YEAR(report1737987713132[[#This Row],[Erstzulassungsdatum]]))","v":""},"eDeliver 3",""]
["LSH14C4C2RD056445","Maxus_CH","eDeliver 3","eDeliver 3 VAN L1H1 FWD","50kWh","a0pQC00000DMhJw","","916145P03299R4090046","Electric",{"$f":"IF(report1737987713132[[#This Row],[Erstzulassungsdatum]]=\"\",\"\",YEAR(report1737987713132[[#This Row],[Erstzulassungsdatum]]))","v":""},"eDeliver 3",""]
["LSH14C4C9RD056474","Maxus_CH","eDeliver 3","eDeliver 3 VAN L1H1 FWD","50kWh","a0pQC00000DMhJw","","916145P03299R4090022","Electric",{"$f":"IF(report1737987713132[[#This Row],[Erstzulassungsdatum]]=\"\",\"\",YEAR(report1737987713132[[#This Row],[Erstzulassungsdatum]]))","v":""},"eDeliver 3",""]
["LSH14C4C4RD056432","Maxus_CH","eDeliver 3","eDeliver 3 VAN L1H1 FWD","50kWh","a0pQC00000DMhJw","","916145P03299R4090001","Electric",{"$f":"IF(report1737987713132[[#This Row],[Erstzulassungsdatum]]=\"\",\"\",YEAR(report1737987713132[[#This Row],[Erstzulassungsdatum]]))","v":""},"eDeliver 3",""]
["LSH14C4C1RD056453","Maxus_CH","eDeliver 3","eDeliver 3 VAN L1H1 FWD","50kWh","a0pQC00000DMhJw","","916145P03299R4090031","Electric",{"$f":"IF(report1737987713132[[#This Row],[Erstzulassungsdatum]]=\"\",\"\",YEAR(report1737987713132[[#This Row],[Erstzulassungsdatum]]))","v":""},"eDeliver 3",""]
["LSH14C4C6RD056433","Maxus_CH","eDeliver 3","eDeliver 3 VAN L1H1 FWD","50kWh","a0pQC00000DMhJw","","916145P03299R4090075","Electric",{"$f":"IF(report1737987713132[[#This Row],[Erstzulassungsdatum]]=\"\",\"\",YEAR(report1737987713132[[#This Row],[Erstzulassungsdatum]]))","v":""},"eDeliver 3",""]
["LSH14C4C2RD056431","Maxus_CH","eDeliver 3","eDeliver 3 VAN L1H1 FWD","50kWh","a0pQC00000DMhJw","","916145P03299R4090019","Electric",{"$f":"IF(report1737987713132[[#This Row],[Erstzulassungsdatum]]=\"\",\"\",YEAR(report1737987713132[[#This Row],[Erstzulassungsdatum]]))","v":""},"eDeliver 3",""]
["LSH14C4C0RD056475","Maxus_CH","eDeliver 3","eDeliver 3 VAN L1H1 FWD","50kWh","a0pQC00000DMhJw","","916145P03299R4090009","Electric",{"$f":"IF(report1737987713132[[#This Row],[Erstzulassungsdatum]]=\"\",\"\",YEAR(report1737987713132[[#This Row],[Erstzulassungsdatum]]))","v":""},"eDeliver 3",""]
["LSH14C4C3RD056471","Maxus_CH","eDeliver 3","eDeliver 3 VAN L1H1 FWD","50kWh","a0pQC00000DMhJw","","916145P03299R4090025","Electric",{"$f":"IF(report1737987713132[[#This Row],[Erstzulassungsdatum]]=\"\",\"\",YEAR(report1737987713132[[#This Row],[Erstzulassungsdatum]]))","v":""},"eDeliver 3",""]
["LSH14C4C8RD056434","Maxus_CH","eDeliver 3","eDeliver 3 VAN L1H1 FWD","50kWh","a0pQC00000DMhJw","","916145P03299R4090065","Electric",{"$f":"IF(report1737987713132[[#This Row],[Erstzulassungsdatum]]=\"\",\"\",YEAR(report1737987713132[[#This Row],[Erstzulassungsdatum]]))","v":""},"eDeliver 3",""]
["LSH14C4C5PA093570","Maxus_CH","eDeliver 3","eDeliver 3 VAN L2H1 FWD","50kWh","a0pQC00000DMpip","","916502P03299NC190089","Electric",{"$f":"IF(report1737987713132[[#This Row],[Erstzulassungsdatum]]=\"\",\"\",YEAR(report1737987713132[[#This Row],[Erstzulassungsdatum]]))","v":""},"eDeliver 3",""]
["LSH14C4C7PA093618","Maxus_CH","eDeliver 3","eDeliver 3 VAN L2H1 FWD","50kWh","a0pQC00000DMpip","","916502P03299P1100199","Electric",{"$f":"IF(report1737987713132[[#This Row],[Erstzulassungsdatum]]=\"\",\"\",YEAR(report1737987713132[[#This Row],[Erstzulassungsdatum]]))","v":""},"eDeliver 3",""]
["LSH14J7C4RA073328","Maxus_CH","(e)Deliver 9","Deliver 9 VAN L3H2 FWD","Luxury","a0pQC00000DMlx3","","M9241008105","Diesel",{"$f":"IF(report1737987713132[[#This Row],[Erstzulassungsdatum]]=\"\",\"\",YEAR(report1737987713132[[#This Row],[Erstzulassungsdatum]]))","v":""},"Deliver 9",""]
["LSH14J7C9RA073325","Maxus_CH","(e)Deliver 9","Deliver 9 VAN L3H2 FWD","Luxury","a0pQC00000DMlx3","","M9241007700","Diesel",{"$f":"IF(report1737987713132[[#This Row],[Erstzulassungsdatum]]=\"\",\"\",YEAR(report1737987713132[[#This Row],[Erstzulassungsdatum]]))","v":""},"Deliver 9",""]
["LSH14J7C0PA105737","Maxus_CH","(e)Deliver 9","Deliver 9 VAN L3H2 FWD","Comfort","a0pQC00000DMlx4","","M923A087559","Diesel",{"$f":"IF(report1737987713132[[#This Row],[Erstzulassungsdatum]]=\"\",\"\",YEAR(report1737987713132[[#This Row],[Erstzulassungsdatum]]))","v":""},"Deliver 9",""]
["LSH14J7C0PA105740","Maxus_CH","(e)Deliver 9","Deliver 9 VAN L3H2 FWD","Comfort","a0pQC00000DMlx4","","M9239086142","Diesel",{"$f":"IF(report1737987713132[[#This Row],[Erstzulassungsdatum]]=\"\",\"\",YEAR(report1737987713132[[#This Row],[Erstzulassungsdatum]]))","v":""},"Deliver 9",""]
["LSH14J7C0PA106550","Maxus_CH","(e)Deliver 9","Deliver 9 VAN L3H2 FWD","Comfort","a0pQC00000DMlx4","","M9239086621","Diesel",{"$f":"IF(report1737987713132[[#This Row],[Erstzulassungsdatum]]=\"\",\"\",YEAR(report1737987713132[[#This Row],[Erstzulassungsdatum]]))","v":""},"Deliver 9",""]
["LSH14J7C0PA106533","Maxus_CH","(e)Deliver 9","Deliver 9 VAN L3H2 FWD","Comfort","a0pQC00000DMlx4","","M923A087245","Diesel",{"$f":"IF(report1737987713132[[#This Row],[Erstzulassungsdatum]]=\"\",\"\",YEAR(report1737987713132[[#This Row],[Erstzulassungsdatum]]))","v":""},"Deliver 9",""]
["LSH14J7C0PA106547","Maxus_CH","(e)Deliver 9","Deliver 9 VAN L3H2 FWD","Comfort","a0pQC00000DMlx4","","M923A087231","Diesel",{"$f":"IF(report1737987713132[[#This Row],[Erstzulassungsdatum]]=\"\",\"\",YEAR(report1737987713132[[#This Row],[Erstzulassungsdatum]]))","v":""},"Deliver 9",""]
["LSH14J7C0PA105723","Maxus_CH","(e)Deliver 9","Deliver 9 VAN L3H2 FWD","Comfort","a0pQC00000DMlx4","","M923A086948","Diesel",{"$f":"IF(report1737987713132[[#This Row],[Erstzulassungsdatum]]=\"\",\"\",YEAR(report1737987713132[[#This Row],[Erstzulassungsdatum]]))","v":""},"Deliver 9",""]
["LSH14J7C5RA103999","Maxus_CH","(e)Deliver 9","Deliver 9 VAN L3H2 FWD","Comfort","a0pQC00000DMlx5","","M9244029325","Diesel",{"$f":"IF(report1737987713132[[#This Row],[Erstzulassungsdatum]]=\"\",\"\",YEAR(report1737987713132[[#This Row],[Erstzulassungsdatum]]))","v":""},"Deliver 9",""]
["LSH14J7C3RA103998","Maxus_CH","(e)Deliver 9","Deliver 9 VAN L3H2 FWD","Comfort","a0pQC00000DMlx5","","M9244028886","Diesel",{"$f":"IF(report1737987713132[[#This Row],[Erstzulassungsdatum]]=\"\",\"\",YEAR(report1737987713132[[#This Row],[Erstzulassungsdatum]]))","v":""},"Deliver 9",""]
["LSH14J7CXRA104002","Maxus_CH","(e)Deliver 9","Deliver 9 VAN L3H2 FWD","Comfort","a0pQC00000DMlx5","","M9244028882","Diesel",{"$f":"IF(report1737987713132[[#This Row],[Erstzulassungsdatum]]=\"\",\"\",YEAR(report1737987713132[[#This Row],[Erstzulassungsdatum]]))","v":""},"Deliver 9",""]
["LSH14J7C8RA104001","Maxus_CH","(e)Deliver 9","Deliver 9 VAN L3H2 FWD","Comfort","a0pQC00000DMlx5","","M9244028780","Diesel",{"$f":"IF(report1737987713132[[#This Row],[Erstzulassungsdatum]]=\"\",\"\",YEAR(report1737987713132[[#This Row],[Erstzulassungsdatum]]))","v":""},"Deliver 9",""]
["LSH14J7CXRA104016","Maxus_CH","(e)Deliver 9","Deliver 9 VAN L3H2 FWD","Comfort","a0pQC00000DMlx5","","M9244029327","Diesel",{"$f":"IF(report1737987713132[[#This Row],[Erstzulassungsdatum]]=\"\",\"\",YEAR(report1737987713132[[#This Row],[Erstzulassungsdatum]]))","v":""},"Deliver 9",""]
["LSH14J7C8RA104015","Maxus_CH","(e)Deliver 9","Deliver 9 VAN L3H2 FWD","Comfort","a0pQC00000DMlx5","","M9244029341","Diesel",{"$f":"IF(report1737987713132[[#This Row],[Erstzulassungsdatum]]=\"\",\"\",YEAR(report1737987713132[[#This Row],[Erstzulassungsdatum]]))","v":""},"Deliver 9",""]
["LSH14J7C9RA104010","Maxus_CH","(e)Deliver 9","Deliver 9 VAN L3H2 FWD","Comfort","a0pQC00000DMlx5","","M9244029348","Diesel",{"$f":"IF(report1737987713132[[#This Row],[Erstzulassungsdatum]]=\"\",\"\",YEAR(report1737987713132[[#This Row],[Erstzulassungsdatum]]))","v":""},"Deliver 9",""]
["LSH14J7C5RA104005","Maxus_CH","(e)Deliver 9","Deliver 9 VAN L3H2 FWD","Comfort","a0pQC00000DMlx5","","M9244028764","Diesel",{"$f":"IF(report1737987713132[[#This Row],[Erstzulassungsdatum]]=\"\",\"\",YEAR(report1737987713132[[#This Row],[Erstzulassungsdatum]]))","v":""},"Deliver 9",""]
["LSH14J7C2RA104012","Maxus_CH","(e)Deliver 9","Deliver 9 VAN L3H2 FWD","Comfort","a0pQC00000DMlx5","","M9244028922","Diesel",{"$f":"IF(report1737987713132[[#This Row],[Erstzulassungsdatum]]=\"\",\"\",YEAR(report1737987713132[[#This Row],[Erstzulassungsdatum]]))","v":""},"Deliver 9",""]
["LSH14J7C0RA104011","Maxus_CH","(e)Deliver 9","Deliver 9 VAN L3H2 FWD","Comfort","a0pQC00000DMlx5","","M9244029330","Diesel",{"$f":"IF(report1737987713132[[#This Row],[Erstzulassungsdatum]]=\"\",\"\",YEAR(report1737987713132[[#This Row],[Erstzulassungsdatum]]))","v":""},"Deliver 9",""]
["LSH14J7C9RA104007","Maxus_CH","(e)Deliver 9","Deliver 9 VAN L3H2 FWD","Comfort","a0pQC00000DMlx5","","M9244029364","Diesel",{"$f":"IF(report1737987713132[[#This Row],[Erstzulassungsdatum]]=\"\",\"\",YEAR(report1737987713132[[#This Row],[Erstzulassungsdatum]]))","v":""},"Deliver 9",""]
["LSH14J7C4RA104013","Maxus_CH","(e)Deliver 9","Deliver 9 VAN L3H2 FWD","Comfort","a0pQC00000DMlx5","","M9244028907","Diesel",{"$f":"IF(report1737987713132[[#This Row],[Erstzulassungsdatum]]=\"\",\"\",YEAR(report1737987713132[[#This Row],[Erstzulassungsdatum]]))","v":""},"Deliver 9",""]
["LSH14J7C7RA104006","Maxus_CH","(e)Deliver 9","Deliver 9 VAN L3H2 FWD","Comfort","a0pQC00000DMlx5","","M9244028898","Diesel",{"$f":"IF(report1737987713132[[#This Row],[Erstzulassungsdatum]]=\"\",\"\",YEAR(report1737987713132[[#This Row],[Erstzulassungsdatum]]))","v":""},"Deliver 9",""]
["LSH14J7C6RA104014","Maxus_CH","(e)Deliver 9","Deliver 9 VAN L3H2 FWD","Comfort","a0pQC00000DMlx5","","M9244029355","Diesel",{"$f":"IF(report1737987713132[[#This Row],[Erstzulassungsdatum]]=\"\",\"\",YEAR(report1737987713132[[#This Row],[Erstzulassungsdatum]]))","v":""},"Deliver 9",""]
["LSH14J7C3RA104004","Maxus_CH","(e)Deliver 9","Deliver 9 VAN L3H2 FWD","Comfort","a0pQC00000DMlx5","","M9244028885","Diesel",{"$f":"IF(report1737987713132[[#This Row],[Erstzulassungsdatum]]=\"\",\"\",YEAR(report1737987713132[[#This Row],[Erstzulassungsdatum]]))","v":""},"Deliver 9",""]
["LSH14J7C6RA104000","Maxus_CH","(e)Deliver 9","Deliver 9 VAN L3H2 FWD","Comfort","a0pQC00000DMlx5","","M9244029345","Diesel",{"$f":"IF(report1737987713132[[#This Row],[Erstzulassungsdatum]]=\"\",\"\",YEAR(report1737987713132[[#This Row],[Erstzulassungsdatum]]))","v":""},"Deliver 9",""]
["LSFAL11A2PA106259","Maxus_CH","(e)Deliver 9","Deliver 9 Cabine L3 RWD","Luxury","a0pQC00000DMnfX","","M9241000044","Diesel",{"$f":"IF(report1737987713132[[#This Row],[Erstzulassungsdatum]]=\"\",\"\",YEAR(report1737987713132[[#This Row],[Erstzulassungsdatum]]))","v":""},"Deliver 9",""]
["LSFAL11A0PA107491","Maxus_CH","(e)Deliver 9","Deliver 9 Cabine L3 RWD","Luxury","a0pQC00000DMnfX","","M9221009382","Diesel",{"$f":"IF(report1737987713132[[#This Row],[Erstzulassungsdatum]]=\"\",\"\",YEAR(report1737987713132[[#This Row],[Erstzulassungsdatum]]))","v":""},"Deliver 9",""]
["LSFAL11A5PA105901","Maxus_CH","(e)Deliver 9","Deliver 9 Cabine L3 RWD","Luxury","a0pQC00000DMnfX","","M9241000852","Diesel",{"$f":"IF(report1737987713132[[#This Row],[Erstzulassungsdatum]]=\"\",\"\",YEAR(report1737987713132[[#This Row],[Erstzulassungsdatum]]))","v":""},"Deliver 9",""]
["LSFAL11A5PA106269","Maxus_CH","(e)Deliver 9","Deliver 9 Cabine L3 RWD","Luxury","a0pQC00000DMnfX","","M9241000034","",{"$f":"IF(report1737987713132[[#This Row],[Erstzulassungsdatum]]=\"\",\"\",YEAR(report1737987713132[[#This Row],[Erstzulassungsdatum]]))","v":""},"Deliver 9",""]
["LSFAL11A3PA107498","Maxus_CH","(e)Deliver 9","Deliver 9 Cabine L3 RWD","Luxury","a0pQC00000DMnfX","","M9241000844","Diesel",{"$f":"IF(report1737987713132[[#This Row],[Erstzulassungsdatum]]=\"\",\"\",YEAR(report1737987713132[[#This Row],[Erstzulassungsdatum]]))","v":""},"Deliver 9",""]
["LSFAL11A1PA106253","Maxus_CH","(e)Deliver 9","Deliver 9 Cabine L3 RWD","Luxury","a0pQC00000DMnfX","","M921B087297","Diesel",{"$f":"IF(report1737987713132[[#This Row],[Erstzulassungsdatum]]=\"\",\"\",YEAR(report1737987713132[[#This Row],[Erstzulassungsdatum]]))","v":""},"Deliver 9",""]
["LSFAL11A4PA107509","Maxus_CH","(e)Deliver 9","Deliver 9 Cabine L3 RWD","Luxury","a0pQC00000DMnfX","","M9241000047","Diesel",{"$f":"IF(report1737987713132[[#This Row],[Erstzulassungsdatum]]=\"\",\"\",YEAR(report1737987713132[[#This Row],[Erstzulassungsdatum]]))","v":""},"Deliver 9",""]
["LSFAL11A5PA106255","Maxus_CH","(e)Deliver 9","Deliver 9 Cabine L3 RWD","Luxury","a0pQC00000DMnfX","","M9241000856","Diesel",{"$f":"IF(report1737987713132[[#This Row],[Erstzulassungsdatum]]=\"\",\"\",YEAR(report1737987713132[[#This Row],[Erstzulassungsdatum]]))","v":""},"Deliver 9",""]
["LSFAL11A0PA105899","Maxus_CH","(e)Deliver 9","Deliver 9 Cabine L3 RWD","Luxury","a0pQC00000DMnfX","","M9241000840","Diesel",{"$f":"IF(report1737987713132[[#This Row],[Erstzulassungsdatum]]=\"\",\"\",YEAR(report1737987713132[[#This Row],[Erstzulassungsdatum]]))","v":""},"Deliver 9",""]
["LSFAL11A5PA107485","Maxus_CH","(e)Deliver 9","Deliver 9 Cabine L3 RWD","Luxury","a0pQC00000DMnfX","","M9241000046","Diesel",{"$f":"IF(report1737987713132[[#This Row],[Erstzulassungsdatum]]=\"\",\"\",YEAR(report1737987713132[[#This Row],[Erstzulassungsdatum]]))","v":""},"Deliver 9",""]
["LSFAL11A0PA106986","Maxus_CH","(e)Deliver 9","Deliver 9 Cabine L4 RWD","Luxury","a0pQC00000DMhQK","","M9241001119","Diesel",{"$f":"IF(report1737987713132[[#This Row],[Erstzulassungsdatum]]=\"\",\"\",YEAR(report1737987713132[[#This Row],[Erstzulassungsdatum]]))","v":""},"Deliver 9",""]
["LSFAL11A0PA107572","Maxus_CH","(e)Deliver 9","Deliver 9 Cabine L4 RWD","Luxury","a0pQC00000DMhQK","","M9241000843","Diesel",{"$f":"IF(report1737987713132[[#This Row],[Erstzulassungsdatum]]=\"\",\"\",YEAR(report1737987713132[[#This Row],[Erstzulassungsdatum]]))","v":""},"Deliver 9",""]
["LSFAL11A1PA105927","Maxus_CH","(e)Deliver 9","Deliver 9 Cabine L4 RWD","Luxury","a0pQC00000DMhQK","","M9241000314","Diesel",{"$f":"IF(report1737987713132[[#This Row],[Erstzulassungsdatum]]=\"\",\"\",YEAR(report1737987713132[[#This Row],[Erstzulassungsdatum]]))","v":""},"Deliver 9",""]
["LSFAL11A0PA107569","Maxus_CH","(e)Deliver 9","Deliver 9 Cabine L4 RWD","Luxury","a0pQC00000DMhQK","","M9241000845","Diesel",{"$f":"IF(report1737987713132[[#This Row],[Erstzulassungsdatum]]=\"\",\"\",YEAR(report1737987713132[[#This Row],[Erstzulassungsdatum]]))","v":""},"Deliver 9",""]
["LSFAL1100MA147900","Maxus_CH","(e)Deliver 9","eDeliver 9 Cabine L4","FWD 65kWh","a0pQC00000DMvQ1","","914600P00034NA230160","Electric",{"$f":"IF(report1737987713132[[#This Row],[Erstzulassungsdatum]]=\"\",\"\",YEAR(report1737987713132[[#This Row],[Erstzulassungsdatum]]))","v":""},"eDeliver 9",""]
["LSFAL110XMA114046","Maxus_CH","(e)Deliver 9","eDeliver 9 Cabine L4","FWD 65kWh","a0pQC00000DMvQ1","","914600P00034N8240004","Electric",{"$f":"IF(report1737987713132[[#This Row],[Erstzulassungsdatum]]=\"\",\"\",YEAR(report1737987713132[[#This Row],[Erstzulassungsdatum]]))","v":""},"eDeliver 9",""]
["LSFAL1107NA068970","Maxus_CH","(e)Deliver 9","eDeliver 9 Cabine L4","FWD 65kWh","a0pQC00000DMvQ1","","914600P00034NB190130","Electric",{"$f":"IF(report1737987713132[[#This Row],[Erstzulassungsdatum]]=\"\",\"\",YEAR(report1737987713132[[#This Row],[Erstzulassungsdatum]]))","v":""},"eDeliver 9",""]
["LSFAL1100MA147914","Maxus_CH","(e)Deliver 9","eDeliver 9 Cabine L4","FWD 65kWh","a0pQC00000DMvQ1","","914600P00034NA230154","Electric",{"$f":"IF(report1737987713132[[#This Row],[Erstzulassungsdatum]]=\"\",\"\",YEAR(report1737987713132[[#This Row],[Erstzulassungsdatum]]))","v":""},"eDeliver 9",""]
["LSH14J7C7PA107369","Maxus_CH","(e)Deliver 9","Deliver 9 VAN L3H2 RWD","Luxury","a0pQC00000DN0uH","","M9235044085","Diesel",{"$f":"IF(report1737987713132[[#This Row],[Erstzulassungsdatum]]=\"\",\"\",YEAR(report1737987713132[[#This Row],[Erstzulassungsdatum]]))","v":""},"Deliver 9",""]
["LSH14J4C1RA107679","Maxus_CH","(e)Deliver 9","eDeliver 9 VAN L2H2","FWD 77kWh","a0pQC00000DMtxm","","915046P03299PB140049","Electric",{"$f":"IF(report1737987713132[[#This Row],[Erstzulassungsdatum]]=\"\",\"\",YEAR(report1737987713132[[#This Row],[Erstzulassungsdatum]]))","v":""},"eDeliver 9",""]
["LSH14J4C9RA106523","Maxus_CH","(e)Deliver 9","eDeliver 9 VAN L3H2","FWD 77kWh","a0pQC00000DMtZi","","915046P03299R3230156","Electric",{"$f":"IF(report1737987713132[[#This Row],[Erstzulassungsdatum]]=\"\",\"\",YEAR(report1737987713132[[#This Row],[Erstzulassungsdatum]]))","v":""},"eDeliver 9",""]
["LSH14J4C7RA106522","Maxus_CH","(e)Deliver 9","eDeliver 9 VAN L3H2","FWD 77kWh","a0pQC00000DMtZi","","915046P03299R3230112","Electric",{"$f":"IF(report1737987713132[[#This Row],[Erstzulassungsdatum]]=\"\",\"\",YEAR(report1737987713132[[#This Row],[Erstzulassungsdatum]]))","v":""},"eDeliver 9",""]
["LSH14J4C0RA106524","Maxus_CH","(e)Deliver 9","eDeliver 9 VAN L3H2","FWD 77kWh","a0pQC00000DMtZi","","915046P03299R3230168","Electric",{"$f":"IF(report1737987713132[[#This Row],[Erstzulassungsdatum]]=\"\",\"\",YEAR(report1737987713132[[#This Row],[Erstzulassungsdatum]]))","v":""},"eDeliver 9",""]
["LSH14J4C4RA106526","Maxus_CH","(e)Deliver 9","eDeliver 9 VAN L3H2","FWD 77kWh","a0pQC00000DMtZi","","915046P03299R3230163","Electric",{"$f":"IF(report1737987713132[[#This Row],[Erstzulassungsdatum]]=\"\",\"\",YEAR(report1737987713132[[#This Row],[Erstzulassungsdatum]]))","v":""},"eDeliver 9",""]
["LSH14J4C2RA106525","Maxus_CH","(e)Deliver 9","eDeliver 9 VAN L3H2","FWD 77kWh","a0pQC00000DMtZi","","915046P03299R3230038","Electric",{"$f":"IF(report1737987713132[[#This Row],[Erstzulassungsdatum]]=\"\",\"\",YEAR(report1737987713132[[#This Row],[Erstzulassungsdatum]]))","v":""},"eDeliver 9",""]
["LSH14J4CXRA107681","Maxus_CH","(e)Deliver 9","eDeliver 9 VAN L3H2","FWD 88kWh","a0pQC00000DMtZj","","915046P03299R3230143","Electric",{"$f":"IF(report1737987713132[[#This Row],[Erstzulassungsdatum]]=\"\",\"\",YEAR(report1737987713132[[#This Row],[Erstzulassungsdatum]]))","v":""},"eDeliver 9",""]
["LSH14J4C8RA107680","Maxus_CH","(e)Deliver 9","eDeliver 9 VAN L3H2","FWD 88kWh","a0pQC00000DMtZj","","915046P03299R3230090","Electric",{"$f":"IF(report1737987713132[[#This Row],[Erstzulassungsdatum]]=\"\",\"\",YEAR(report1737987713132[[#This Row],[Erstzulassungsdatum]]))","v":""},"eDeliver 9",""]
["LSH15J5C5RV126126","Maxus_CH","(e)Deliver 7","eDeliver 7 VAN L2H1 AWD","88kWh","a0pQC00000DMnfa","","","Electric",{"$f":"IF(report1737987713132[[#This Row],[Erstzulassungsdatum]]=\"\",\"\",YEAR(report1737987713132[[#This Row],[Erstzulassungsdatum]]))","v":""},"eDeliver 7",""]
["LSH15J5C0RV126129","Maxus_CH","(e)Deliver 7","eDeliver 7 VAN L2H1 AWD","88kWh","a0pQC00000DMnfa","","","Electric",{"$f":"IF(report1737987713132[[#This Row],[Erstzulassungsdatum]]=\"\",\"\",YEAR(report1737987713132[[#This Row],[Erstzulassungsdatum]]))","v":""},"eDeliver 7",""]
["LSH15J5C2RV126133","Maxus_CH","(e)Deliver 7","eDeliver 7 VAN L2H1 AWD","88kWh","a0pQC00000DMnfa","","","Electric",{"$f":"IF(report1737987713132[[#This Row],[Erstzulassungsdatum]]=\"\",\"\",YEAR(report1737987713132[[#This Row],[Erstzulassungsdatum]]))","v":""},"eDeliver 7",""]
["LSH15J5CXSV122305","Maxus_CH","(e)Deliver 7","eDeliver 7 VAN L2H1 AWD","88kWh","a0pQC00000DMnfa","","918787P06014S1150019","Electric",{"$f":"IF(report1737987713132[[#This Row],[Erstzulassungsdatum]]=\"\",\"\",YEAR(report1737987713132[[#This Row],[Erstzulassungsdatum]]))","v":""},"eDeliver 7",""]
["LSH15J5C4SV122302","Maxus_CH","(e)Deliver 7","eDeliver 7 VAN L2H1 AWD","88kWh","a0pQC00000DMnfa","","918787P06014S1150008","Electric",{"$f":"IF(report1737987713132[[#This Row],[Erstzulassungsdatum]]=\"\",\"\",YEAR(report1737987713132[[#This Row],[Erstzulassungsdatum]]))","v":""},"eDeliver 7",""]
["LSH15J5C3SV122307","Maxus_CH","(e)Deliver 7","eDeliver 7 VAN L2H1 AWD","88kWh","a0pQC00000DMnfa","","919482P03299RB150003","Electric",{"$f":"IF(report1737987713132[[#This Row],[Erstzulassungsdatum]]=\"\",\"\",YEAR(report1737987713132[[#This Row],[Erstzulassungsdatum]]))","v":""},"eDeliver 7",""]
["LSH15J5C7SV122309","Maxus_CH","(e)Deliver 7","eDeliver 7 VAN L2H1 AWD","88kWh Dual Sliding Door","a0pQC00000DMnfb","","919482P03299RB150048","Electric",{"$f":"IF(report1737987713132[[#This Row],[Erstzulassungsdatum]]=\"\",\"\",YEAR(report1737987713132[[#This Row],[Erstzulassungsdatum]]))","v":""},"eDeliver 7",""]
["LSH15J5C3SV122310","Maxus_CH","(e)Deliver 7","eDeliver 7 VAN L2H1 AWD","88kWh Dual Sliding Door","a0pQC00000DMnfb","","919482P03299RB150078","Electric",{"$f":"IF(report1737987713132[[#This Row],[Erstzulassungsdatum]]=\"\",\"\",YEAR(report1737987713132[[#This Row],[Erstzulassungsdatum]]))","v":""},"eDeliver 7",""]
["LSH15J5C3RV126139","Maxus_CH","(e)Deliver 7","eDeliver 7 VAN L2H1 AWD","88kWh Dual Sliding Door Luxury","a0pQC00000DMnfc","","","Electric",{"$f":"IF(report1737987713132[[#This Row],[Erstzulassungsdatum]]=\"\",\"\",YEAR(report1737987713132[[#This Row],[Erstzulassungsdatum]]))","v":""},"eDeliver 7",""]
["LSH15J5C7SV120916","Maxus_CH","(e)Deliver 7","eDeliver 7 VAN L2H1 AWD","88kWh Dual Sliding Door Swiss Post Los 49 #1","a0pQC00000HhTgA","","918787P06014R4200030","Electric",{"$f":"IF(report1737987713132[[#This Row],[Erstzulassungsdatum]]=\"\",\"\",YEAR(report1737987713132[[#This Row],[Erstzulassungsdatum]]))","v":""},"eDeliver 7",""]
["LSH15J5C8SV120925","Maxus_CH","(e)Deliver 7","eDeliver 7 VAN L2H1 AWD","88kWh Dual Sliding Door Swiss Post Los 49 #1","a0pQC00000HhTgA","","918787P06014RA250002","Electric",{"$f":"IF(report1737987713132[[#This Row],[Erstzulassungsdatum]]=\"\",\"\",YEAR(report1737987713132[[#This Row],[Erstzulassungsdatum]]))","v":""},"eDeliver 7",""]
["LSH15J5CXSV122420","Maxus_CH","(e)Deliver 7","eDeliver 7 VAN L2H1 AWD","88kWh Dual Sliding Door Swiss Post Los 49 #1","a0pQC00000HhTgA","","918787P06014S1210033","Electric",{"$f":"IF(report1737987713132[[#This Row],[Erstzulassungsdatum]]=\"\",\"\",YEAR(report1737987713132[[#This Row],[Erstzulassungsdatum]]))","v":""},"eDeliver 7",""]
["LSH15J5C5SV120932","Maxus_CH","(e)Deliver 7","eDeliver 7 VAN L2H1 AWD","88kWh Dual Sliding Door Swiss Post Luxury Post IMS #1","a0pQC00000IT8UY","","918787P06014R9020018","Electric",{"$f":"IF(report1737987713132[[#This Row],[Erstzulassungsdatum]]=\"\",\"\",YEAR(report1737987713132[[#This Row],[Erstzulassungsdatum]]))","v":""},"eDeliver 7",""]
["LSH15J5C8SV122755","Maxus_CH","(e)Deliver 7","eDeliver 7 VAN L2H1 AWD","88kWh Dual Sliding Door Swiss Post Los 49 #3","a0pQC00000Ozuac","","918787P06014S1180004","Electric",{"$f":"IF(report1737987713132[[#This Row],[Erstzulassungsdatum]]=\"\",\"\",YEAR(report1737987713132[[#This Row],[Erstzulassungsdatum]]))","v":""},"eDeliver 7",""]
["LSH15J5CXSV122756","Maxus_CH","(e)Deliver 7","eDeliver 7 VAN L2H1 AWD","88kWh Dual Sliding Door Swiss Post Los 49 #3","a0pQC00000Ozuac","","918787P06014S1180003","Electric",{"$f":"IF(report1737987713132[[#This Row],[Erstzulassungsdatum]]=\"\",\"\",YEAR(report1737987713132[[#This Row],[Erstzulassungsdatum]]))","v":""},"eDeliver 7",""]
["LSH14J7C6SV121524","Maxus_CH","(e)Deliver 7","Deliver 7 VAN L2H1 FWD","-","a0pQC00000DMxYG","","M9252007882","Diesel",{"$f":"IF(report1737987713132[[#This Row],[Erstzulassungsdatum]]=\"\",\"\",YEAR(report1737987713132[[#This Row],[Erstzulassungsdatum]]))","v":""},"Deliver 7",""]
["LSH14J7C9SV122893","Maxus_CH","(e)Deliver 7","Deliver 7 VAN L2H1 FWD","-","a0pQC00000DMxYG","","M9257041666","Diesel",{"$f":"IF(report1737987713132[[#This Row],[Erstzulassungsdatum]]=\"\",\"\",YEAR(report1737987713132[[#This Row],[Erstzulassungsdatum]]))","v":""},"Deliver 7",""]
["LSH14J7C1SV121625","Maxus_CH","(e)Deliver 7","Deliver 7 VAN L2H1 FWD","-","a0pQC00000DMxYG","","M9251003959","Diesel",{"$f":"IF(report1737987713132[[#This Row],[Erstzulassungsdatum]]=\"\",\"\",YEAR(report1737987713132[[#This Row],[Erstzulassungsdatum]]))","v":""},"Deliver 7",""]
["LSH14J7C3SV121612","Maxus_CH","(e)Deliver 7","Deliver 7 VAN L2H1 FWD","-","a0pQC00000DMxYG","","M9252007516","Diesel",{"$f":"IF(report1737987713132[[#This Row],[Erstzulassungsdatum]]=\"\",\"\",YEAR(report1737987713132[[#This Row],[Erstzulassungsdatum]]))","v":""},"Deliver 7",""]
["LSH14J7C7SV122066","Maxus_CH","(e)Deliver 7","Deliver 7 VAN L2H1 FWD","-","a0pQC00000DMxYG","","M9254022132","Diesel",{"$f":"IF(report1737987713132[[#This Row],[Erstzulassungsdatum]]=\"\",\"\",YEAR(report1737987713132[[#This Row],[Erstzulassungsdatum]]))","v":""},"Deliver 7",""]
["LSH14J7C9SV122067","Maxus_CH","(e)Deliver 7","Deliver 7 VAN L2H1 FWD","-","a0pQC00000DMxYG","","M9254022709","Diesel",{"$f":"IF(report1737987713132[[#This Row],[Erstzulassungsdatum]]=\"\",\"\",YEAR(report1737987713132[[#This Row],[Erstzulassungsdatum]]))","v":""},"Deliver 7",""]
["LSH14J7CXSV122076","Maxus_CH","(e)Deliver 7","Deliver 7 VAN L2H1 FWD","-","a0pQC00000DMxYG","","M9254022707","Diesel",{"$f":"IF(report1737987713132[[#This Row],[Erstzulassungsdatum]]=\"\",\"\",YEAR(report1737987713132[[#This Row],[Erstzulassungsdatum]]))","v":""},"Deliver 7",""]
["LSH14J7C5SV122289","Maxus_CH","(e)Deliver 7","Deliver 7 VAN L2H1 FWD","-","a0pQC00000DMxYG","","M9255028982","Diesel",{"$f":"IF(report1737987713132[[#This Row],[Erstzulassungsdatum]]=\"\",\"\",YEAR(report1737987713132[[#This Row],[Erstzulassungsdatum]]))","v":""},"Deliver 7",""]
["LSH14J7CXSV122286","Maxus_CH","(e)Deliver 7","Deliver 7 VAN L2H1 FWD","-","a0pQC00000DMxYG","","M9255028061","Diesel",{"$f":"IF(report1737987713132[[#This Row],[Erstzulassungsdatum]]=\"\",\"\",YEAR(report1737987713132[[#This Row],[Erstzulassungsdatum]]))","v":""},"Deliver 7",""]
["LSH14J7C9SV122294","Maxus_CH","(e)Deliver 7","Deliver 7 VAN L2H1 FWD","-","a0pQC00000DMxYG","","M9255028062","Diesel",{"$f":"IF(report1737987713132[[#This Row],[Erstzulassungsdatum]]=\"\",\"\",YEAR(report1737987713132[[#This Row],[Erstzulassungsdatum]]))","v":""},"Deliver 7",""]
["LSH14J7C8SV122271","Maxus_CH","(e)Deliver 7","Deliver 7 VAN L2H1 FWD","-","a0pQC00000DMxYG","","M9255028056","Diesel",{"$f":"IF(report1737987713132[[#This Row],[Erstzulassungsdatum]]=\"\",\"\",YEAR(report1737987713132[[#This Row],[Erstzulassungsdatum]]))","v":""},"Deliver 7",""]
["LSH14J7C0SV122278","Maxus_CH","(e)Deliver 7","Deliver 7 VAN L2H1 FWD","-","a0pQC00000DMxYG","","M9255028055","Diesel",{"$f":"IF(report1737987713132[[#This Row],[Erstzulassungsdatum]]=\"\",\"\",YEAR(report1737987713132[[#This Row],[Erstzulassungsdatum]]))","v":""},"Deliver 7",""]
["LSH14J7C0SV122281","Maxus_CH","(e)Deliver 7","Deliver 7 VAN L2H1 FWD","-","a0pQC00000DMxYG","","M9255027308","Diesel",{"$f":"IF(report1737987713132[[#This Row],[Erstzulassungsdatum]]=\"\",\"\",YEAR(report1737987713132[[#This Row],[Erstzulassungsdatum]]))","v":""},"Deliver 7",""]
["LSH14J7C0SV122295","Maxus_CH","(e)Deliver 7","Deliver 7 VAN L2H1 FWD","-","a0pQC00000DMxYG","","M9255027310","Diesel",{"$f":"IF(report1737987713132[[#This Row],[Erstzulassungsdatum]]=\"\",\"\",YEAR(report1737987713132[[#This Row],[Erstzulassungsdatum]]))","v":""},"Deliver 7",""]
["LSH14J7C1SV122273","Maxus_CH","(e)Deliver 7","Deliver 7 VAN L2H1 FWD","-","a0pQC00000DMxYG","","M9255027304","Diesel",{"$f":"IF(report1737987713132[[#This Row],[Erstzulassungsdatum]]=\"\",\"\",YEAR(report1737987713132[[#This Row],[Erstzulassungsdatum]]))","v":""},"Deliver 7",""]
["LSH14J7C6SV122270","Maxus_CH","(e)Deliver 7","Deliver 7 VAN L2H1 FWD","-","a0pQC00000DMxYG","","M9255027501","Diesel",{"$f":"IF(report1737987713132[[#This Row],[Erstzulassungsdatum]]=\"\",\"\",YEAR(report1737987713132[[#This Row],[Erstzulassungsdatum]]))","v":""},"Deliver 7",""]
["LSH14J7CXSV122269","Maxus_CH","(e)Deliver 7","Deliver 7 VAN L2H1 FWD","-","a0pQC00000DMxYG","","M9255027497","Diesel",{"$f":"IF(report1737987713132[[#This Row],[Erstzulassungsdatum]]=\"\",\"\",YEAR(report1737987713132[[#This Row],[Erstzulassungsdatum]]))","v":""},"Deliver 7",""]
["LSH14J7C2SV122279","Maxus_CH","(e)Deliver 7","Deliver 7 VAN L2H1 FWD","-","a0pQC00000DMxYG","","M9254023866","Diesel",{"$f":"IF(report1737987713132[[#This Row],[Erstzulassungsdatum]]=\"\",\"\",YEAR(report1737987713132[[#This Row],[Erstzulassungsdatum]]))","v":""},"Deliver 7",""]
["LSH14J7C2SV122282","Maxus_CH","(e)Deliver 7","Deliver 7 VAN L2H1 FWD","-","a0pQC00000DMxYG","","M9255027496","Diesel",{"$f":"IF(report1737987713132[[#This Row],[Erstzulassungsdatum]]=\"\",\"\",YEAR(report1737987713132[[#This Row],[Erstzulassungsdatum]]))","v":""},"Deliver 7",""]
["LSH14J7C3SV122288","Maxus_CH","(e)Deliver 7","Deliver 7 VAN L2H1 FWD","-","a0pQC00000DMxYG","","M9254023863","Diesel",{"$f":"IF(report1737987713132[[#This Row],[Erstzulassungsdatum]]=\"\",\"\",YEAR(report1737987713132[[#This Row],[Erstzulassungsdatum]]))","v":""},"Deliver 7",""]
["LSH14J7C4SV122266","Maxus_CH","(e)Deliver 7","Deliver 7 VAN L2H1 FWD","-","a0pQC00000DMxYG","","M9254026495","Diesel",{"$f":"IF(report1737987713132[[#This Row],[Erstzulassungsdatum]]=\"\",\"\",YEAR(report1737987713132[[#This Row],[Erstzulassungsdatum]]))","v":""},"Deliver 7",""]
["LSH14J7C6SV122267","Maxus_CH","(e)Deliver 7","Deliver 7 VAN L2H1 FWD","-","a0pQC00000DMxYG","","M9255027305","Diesel",{"$f":"IF(report1737987713132[[#This Row],[Erstzulassungsdatum]]=\"\",\"\",YEAR(report1737987713132[[#This Row],[Erstzulassungsdatum]]))","v":""},"Deliver 7",""]
["LSH14J7C6SV122284","Maxus_CH","(e)Deliver 7","Deliver 7 VAN L2H1 FWD","-","a0pQC00000DMxYG","","M9254023865","Diesel",{"$f":"IF(report1737987713132[[#This Row],[Erstzulassungsdatum]]=\"\",\"\",YEAR(report1737987713132[[#This Row],[Erstzulassungsdatum]]))","v":""},"Deliver 7",""]
["LSH14J7C8SV122268","Maxus_CH","(e)Deliver 7","Deliver 7 VAN L2H1 FWD","-","a0pQC00000DMxYG","","M9255027311","Diesel",{"$f":"IF(report1737987713132[[#This Row],[Erstzulassungsdatum]]=\"\",\"\",YEAR(report1737987713132[[#This Row],[Erstzulassungsdatum]]))","v":""},"Deliver 7",""]
["LSH14J7C7SV122648","Maxus_CH","(e)Deliver 7","Deliver 7 VAN L2H1 FWD","-","a0pQC00000DMxYG","","M9256035460","Diesel",{"$f":"IF(report1737987713132[[#This Row],[Erstzulassungsdatum]]=\"\",\"\",YEAR(report1737987713132[[#This Row],[Erstzulassungsdatum]]))","v":""},"Deliver 7",""]
["LSH14J7CXSV122675","Maxus_CH","(e)Deliver 7","Deliver 7 VAN L2H1 FWD","-","a0pQC00000DMxYG","","M9256036337","Diesel",{"$f":"IF(report1737987713132[[#This Row],[Erstzulassungsdatum]]=\"\",\"\",YEAR(report1737987713132[[#This Row],[Erstzulassungsdatum]]))","v":""},"Deliver 7",""]
["LSH14J7C5SV122678","Maxus_CH","(e)Deliver 7","Deliver 7 VAN L2H1 FWD","-","a0pQC00000DMxYG","","M9256036031","Diesel",{"$f":"IF(report1737987713132[[#This Row],[Erstzulassungsdatum]]=\"\",\"\",YEAR(report1737987713132[[#This Row],[Erstzulassungsdatum]]))","v":""},"Deliver 7",""]
["LSH14J7C8SV122660","Maxus_CH","(e)Deliver 7","Deliver 7 VAN L2H1 FWD","-","a0pQC00000DMxYG","","M9256036328","Diesel",{"$f":"IF(report1737987713132[[#This Row],[Erstzulassungsdatum]]=\"\",\"\",YEAR(report1737987713132[[#This Row],[Erstzulassungsdatum]]))","v":""},"Deliver 7",""]
["LSH14J7CXSV122644","Maxus_CH","(e)Deliver 7","Deliver 7 VAN L2H1 FWD","-","a0pQC00000DMxYG","","M9256035443","Diesel",{"$f":"IF(report1737987713132[[#This Row],[Erstzulassungsdatum]]=\"\",\"\",YEAR(report1737987713132[[#This Row],[Erstzulassungsdatum]]))","v":""},"Deliver 7",""]
["LSH14J7C5SV122647","Maxus_CH","(e)Deliver 7","Deliver 7 VAN L2H1 FWD","-","a0pQC00000DMxYG","","M9255032786","Diesel",{"$f":"IF(report1737987713132[[#This Row],[Erstzulassungsdatum]]=\"\",\"\",YEAR(report1737987713132[[#This Row],[Erstzulassungsdatum]]))","v":""},"Deliver 7",""]
["LSH14J7C7SV122651","Maxus_CH","(e)Deliver 7","Deliver 7 VAN L2H1 FWD","-","a0pQC00000DMxYG","","M9256036039","Diesel",{"$f":"IF(report1737987713132[[#This Row],[Erstzulassungsdatum]]=\"\",\"\",YEAR(report1737987713132[[#This Row],[Erstzulassungsdatum]]))","v":""},"Deliver 7",""]
["LSH14J7C6SV122656","Maxus_CH","(e)Deliver 7","Deliver 7 VAN L2H1 FWD","-","a0pQC00000DMxYG","","M9256036324","Diesel",{"$f":"IF(report1737987713132[[#This Row],[Erstzulassungsdatum]]=\"\",\"\",YEAR(report1737987713132[[#This Row],[Erstzulassungsdatum]]))","v":""},"Deliver 7",""]
["LSH14J7C5SV122664","Maxus_CH","(e)Deliver 7","Deliver 7 VAN L2H1 FWD","-","a0pQC00000DMxYG","","M9256036335","Diesel",{"$f":"IF(report1737987713132[[#This Row],[Erstzulassungsdatum]]=\"\",\"\",YEAR(report1737987713132[[#This Row],[Erstzulassungsdatum]]))","v":""},"Deliver 7",""]
["LSH14J7C4SV122669","Maxus_CH","(e)Deliver 7","Deliver 7 VAN L2H1 FWD","-","a0pQC00000DMxYG","","M9256036032","Diesel",{"$f":"IF(report1737987713132[[#This Row],[Erstzulassungsdatum]]=\"\",\"\",YEAR(report1737987713132[[#This Row],[Erstzulassungsdatum]]))","v":""},"Deliver 7",""]
["LSH14J7C6SV122673","Maxus_CH","(e)Deliver 7","Deliver 7 VAN L2H1 FWD","-","a0pQC00000DMxYG","","M9256037355","Diesel",{"$f":"IF(report1737987713132[[#This Row],[Erstzulassungsdatum]]=\"\",\"\",YEAR(report1737987713132[[#This Row],[Erstzulassungsdatum]]))","v":""},"Deliver 7",""]
["LSH14J7C3SV122677","Maxus_CH","(e)Deliver 7","Deliver 7 VAN L2H1 FWD","-","a0pQC00000DMxYG","","M9256036336","Diesel",{"$f":"IF(report1737987713132[[#This Row],[Erstzulassungsdatum]]=\"\",\"\",YEAR(report1737987713132[[#This Row],[Erstzulassungsdatum]]))","v":""},"Deliver 7",""]
["LSH14J7C3SV122680","Maxus_CH","(e)Deliver 7","Deliver 7 VAN L2H1 FWD","-","a0pQC00000DMxYG","","M9256036038","Diesel",{"$f":"IF(report1737987713132[[#This Row],[Erstzulassungsdatum]]=\"\",\"\",YEAR(report1737987713132[[#This Row],[Erstzulassungsdatum]]))","v":""},"Deliver 7",""]
["LSH14J7C8SV122657","Maxus_CH","(e)Deliver 7","Deliver 7 VAN L2H1 FWD","-","a0pQC00000DMxYG","","M9256037079","Diesel",{"$f":"IF(report1737987713132[[#This Row],[Erstzulassungsdatum]]=\"\",\"\",YEAR(report1737987713132[[#This Row],[Erstzulassungsdatum]]))","v":""},"Deliver 7",""]
["LSH14J7C1SV122662","Maxus_CH","(e)Deliver 7","Deliver 7 VAN L2H1 FWD","-","a0pQC00000DMxYG","","M9256036644","Diesel",{"$f":"IF(report1737987713132[[#This Row],[Erstzulassungsdatum]]=\"\",\"\",YEAR(report1737987713132[[#This Row],[Erstzulassungsdatum]]))","v":""},"Deliver 7",""]
["LSH14J7C2SV122654","Maxus_CH","(e)Deliver 7","Deliver 7 VAN L2H1 FWD","-","a0pQC00000DMxYG","","M9256036332","Diesel",{"$f":"IF(report1737987713132[[#This Row],[Erstzulassungsdatum]]=\"\",\"\",YEAR(report1737987713132[[#This Row],[Erstzulassungsdatum]]))","v":""},"Deliver 7",""]
["LSH14J7C0SV122670","Maxus_CH","(e)Deliver 7","Deliver 7 VAN L2H1 FWD","-","a0pQC00000DMxYG","","M9256036041","Diesel",{"$f":"IF(report1737987713132[[#This Row],[Erstzulassungsdatum]]=\"\",\"\",YEAR(report1737987713132[[#This Row],[Erstzulassungsdatum]]))","v":""},"Deliver 7",""]
["LSH14J7C8SV122674","Maxus_CH","(e)Deliver 7","Deliver 7 VAN L2H1 FWD","-","a0pQC00000DMxYG","","M9256036329","Diesel",{"$f":"IF(report1737987713132[[#This Row],[Erstzulassungsdatum]]=\"\",\"\",YEAR(report1737987713132[[#This Row],[Erstzulassungsdatum]]))","v":""},"Deliver 7",""]
["LSH14J7C7SV122679","Maxus_CH","(e)Deliver 7","Deliver 7 VAN L2H1 FWD","-","a0pQC00000DMxYG","","M9256036334","Diesel",{"$f":"IF(report1737987713132[[#This Row],[Erstzulassungsdatum]]=\"\",\"\",YEAR(report1737987713132[[#This Row],[Erstzulassungsdatum]]))","v":""},"Deliver 7",""]
["LSH14J7C7SV122682","Maxus_CH","(e)Deliver 7","Deliver 7 VAN L2H1 FWD","-","a0pQC00000DMxYG","","M9256036030","Diesel",{"$f":"IF(report1737987713132[[#This Row],[Erstzulassungsdatum]]=\"\",\"\",YEAR(report1737987713132[[#This Row],[Erstzulassungsdatum]]))","v":""},"Deliver 7",""]
["LSH14J7C0SV122684","Maxus_CH","(e)Deliver 7","Deliver 7 VAN L2H1 FWD","-","a0pQC00000DMxYG","","M9256036325","Diesel",{"$f":"IF(report1737987713132[[#This Row],[Erstzulassungsdatum]]=\"\",\"\",YEAR(report1737987713132[[#This Row],[Erstzulassungsdatum]]))","v":""},"Deliver 7",""]
["LSH14J7CXSV122661","Maxus_CH","(e)Deliver 7","Deliver 7 VAN L2H1 FWD","-","a0pQC00000DMxYG","","M9256036338","Diesel",{"$f":"IF(report1737987713132[[#This Row],[Erstzulassungsdatum]]=\"\",\"\",YEAR(report1737987713132[[#This Row],[Erstzulassungsdatum]]))","v":""},"Deliver 7",""]
["LSH14J7C7SV122665","Maxus_CH","(e)Deliver 7","Deliver 7 VAN L2H1 FWD","-","a0pQC00000DMxYG","","M9256036326","Diesel",{"$f":"IF(report1737987713132[[#This Row],[Erstzulassungsdatum]]=\"\",\"\",YEAR(report1737987713132[[#This Row],[Erstzulassungsdatum]]))","v":""},"Deliver 7",""]
["LSH14J7C2SV122668","Maxus_CH","(e)Deliver 7","Deliver 7 VAN L2H1 FWD","-","a0pQC00000DMxYG","","M9256036330","Diesel",{"$f":"IF(report1737987713132[[#This Row],[Erstzulassungsdatum]]=\"\",\"\",YEAR(report1737987713132[[#This Row],[Erstzulassungsdatum]]))","v":""},"Deliver 7",""]
["LSH14J7C4SV122672","Maxus_CH","(e)Deliver 7","Deliver 7 VAN L2H1 FWD","-","a0pQC00000DMxYG","","M9256037080","Diesel",{"$f":"IF(report1737987713132[[#This Row],[Erstzulassungsdatum]]=\"\",\"\",YEAR(report1737987713132[[#This Row],[Erstzulassungsdatum]]))","v":""},"Deliver 7",""]
["LSH14J7C1SV122676","Maxus_CH","(e)Deliver 7","Deliver 7 VAN L2H1 FWD","-","a0pQC00000DMxYG","","M9256036327","Diesel",{"$f":"IF(report1737987713132[[#This Row],[Erstzulassungsdatum]]=\"\",\"\",YEAR(report1737987713132[[#This Row],[Erstzulassungsdatum]]))","v":""},"Deliver 7",""]
["LSH14J7C5SV122681","Maxus_CH","(e)Deliver 7","Deliver 7 VAN L2H1 FWD","-","a0pQC00000DMxYG","","M9256037072","Diesel",{"$f":"IF(report1737987713132[[#This Row],[Erstzulassungsdatum]]=\"\",\"\",YEAR(report1737987713132[[#This Row],[Erstzulassungsdatum]]))","v":""},"Deliver 7",""]
["LSH14J7C4SV122655","Maxus_CH","(e)Deliver 7","Deliver 7 VAN L2H1 FWD","-","a0pQC00000DMxYG","","M9256037081","Diesel",{"$f":"IF(report1737987713132[[#This Row],[Erstzulassungsdatum]]=\"\",\"\",YEAR(report1737987713132[[#This Row],[Erstzulassungsdatum]]))","v":""},"Deliver 7",""]
["LSH14J7C9SV122652","Maxus_CH","(e)Deliver 7","Deliver 7 VAN L2H1 FWD","-","a0pQC00000DMxYG","","M9256037073","Diesel",{"$f":"IF(report1737987713132[[#This Row],[Erstzulassungsdatum]]=\"\",\"\",YEAR(report1737987713132[[#This Row],[Erstzulassungsdatum]]))","v":""},"Deliver 7",""]
["LSH14J7C0SV122846","Maxus_CH","(e)Deliver 7","Deliver 7 VAN L2H1 FWD","-","a0pQC00000DMxYG","","M9257041951","Diesel",{"$f":"IF(report1737987713132[[#This Row],[Erstzulassungsdatum]]=\"\",\"\",YEAR(report1737987713132[[#This Row],[Erstzulassungsdatum]]))","v":""},"Deliver 7",""]
["LSH14J7C2SV122847","Maxus_CH","(e)Deliver 7","Deliver 7 VAN L2H1 FWD","-","a0pQC00000DMxYG","","M9256037765","Diesel",{"$f":"IF(report1737987713132[[#This Row],[Erstzulassungsdatum]]=\"\",\"\",YEAR(report1737987713132[[#This Row],[Erstzulassungsdatum]]))","v":""},"Deliver 7",""]
["LSH14J7C2SV122850","Maxus_CH","(e)Deliver 7","Deliver 7 VAN L2H1 FWD","-","a0pQC00000DMxYG","","M9257041654","Diesel",{"$f":"IF(report1737987713132[[#This Row],[Erstzulassungsdatum]]=\"\",\"\",YEAR(report1737987713132[[#This Row],[Erstzulassungsdatum]]))","v":""},"Deliver 7",""]
["LSH14J7C3SV122856","Maxus_CH","(e)Deliver 7","Deliver 7 VAN L2H1 FWD","-","a0pQC00000DMxYG","","M9257041949","Diesel",{"$f":"IF(report1737987713132[[#This Row],[Erstzulassungsdatum]]=\"\",\"\",YEAR(report1737987713132[[#This Row],[Erstzulassungsdatum]]))","v":""},"Deliver 7",""]
["LSH14J7C4SV122848","Maxus_CH","(e)Deliver 7","Deliver 7 VAN L2H1 FWD","-","a0pQC00000DMxYG","","M9256037766","Diesel",{"$f":"IF(report1737987713132[[#This Row],[Erstzulassungsdatum]]=\"\",\"\",YEAR(report1737987713132[[#This Row],[Erstzulassungsdatum]]))","v":""},"Deliver 7",""]
["LSH14J7C5SV122843","Maxus_CH","(e)Deliver 7","Deliver 7 VAN L2H1 FWD","-","a0pQC00000DMxYG","","M9257041355","Diesel",{"$f":"IF(report1737987713132[[#This Row],[Erstzulassungsdatum]]=\"\",\"\",YEAR(report1737987713132[[#This Row],[Erstzulassungsdatum]]))","v":""},"Deliver 7",""]
["LSH14J7C5SV122860","Maxus_CH","(e)Deliver 7","Deliver 7 VAN L2H1 FWD","-","a0pQC00000DMxYG","","M9257041368","Diesel",{"$f":"IF(report1737987713132[[#This Row],[Erstzulassungsdatum]]=\"\",\"\",YEAR(report1737987713132[[#This Row],[Erstzulassungsdatum]]))","v":""},"Deliver 7",""]
["LSH14J7C6SV122849","Maxus_CH","(e)Deliver 7","Deliver 7 VAN L2H1 FWD","-","a0pQC00000DMxYG","","M9257041954","Diesel",{"$f":"IF(report1737987713132[[#This Row],[Erstzulassungsdatum]]=\"\",\"\",YEAR(report1737987713132[[#This Row],[Erstzulassungsdatum]]))","v":""},"Deliver 7",""]
["LSH14J7C6SV122852","Maxus_CH","(e)Deliver 7","Deliver 7 VAN L2H1 FWD","-","a0pQC00000DMxYG","","M9257041655","Diesel",{"$f":"IF(report1737987713132[[#This Row],[Erstzulassungsdatum]]=\"\",\"\",YEAR(report1737987713132[[#This Row],[Erstzulassungsdatum]]))","v":""},"Deliver 7",""]
["LSH14J7C7SV122844","Maxus_CH","(e)Deliver 7","Deliver 7 VAN L2H1 FWD","-","a0pQC00000DMxYG","","M9256037764","Diesel",{"$f":"IF(report1737987713132[[#This Row],[Erstzulassungsdatum]]=\"\",\"\",YEAR(report1737987713132[[#This Row],[Erstzulassungsdatum]]))","v":""},"Deliver 7",""]
["LSH14J7C7SV122858","Maxus_CH","(e)Deliver 7","Deliver 7 VAN L2H1 FWD","-","a0pQC00000DMxYG","","M9257041952","Diesel",{"$f":"IF(report1737987713132[[#This Row],[Erstzulassungsdatum]]=\"\",\"\",YEAR(report1737987713132[[#This Row],[Erstzulassungsdatum]]))","v":""},"Deliver 7",""]
["LSH14J7C7SV122861","Maxus_CH","(e)Deliver 7","Deliver 7 VAN L2H1 FWD","-","a0pQC00000DMxYG","","M9256039681","Diesel",{"$f":"IF(report1737987713132[[#This Row],[Erstzulassungsdatum]]=\"\",\"\",YEAR(report1737987713132[[#This Row],[Erstzulassungsdatum]]))","v":""},"Deliver 7",""]
["LSH14J7C9SV122845","Maxus_CH","(e)Deliver 7","Deliver 7 VAN L2H1 FWD","-","a0pQC00000DMxYG","","M9257041950","Diesel",{"$f":"IF(report1737987713132[[#This Row],[Erstzulassungsdatum]]=\"\",\"\",YEAR(report1737987713132[[#This Row],[Erstzulassungsdatum]]))","v":""},"Deliver 7",""]
["LSH14J7C9SV122862","Maxus_CH","(e)Deliver 7","Deliver 7 VAN L2H1 FWD","-","a0pQC00000DMxYG","","M9257042550","Diesel",{"$f":"IF(report1737987713132[[#This Row],[Erstzulassungsdatum]]=\"\",\"\",YEAR(report1737987713132[[#This Row],[Erstzulassungsdatum]]))","v":""},"Deliver 7",""]
["LSH14J7CXSV122854","Maxus_CH","(e)Deliver 7","Deliver 7 VAN L2H1 FWD","-","a0pQC00000DMxYG","","M9257041354","Diesel",{"$f":"IF(report1737987713132[[#This Row],[Erstzulassungsdatum]]=\"\",\"\",YEAR(report1737987713132[[#This Row],[Erstzulassungsdatum]]))","v":""},"Deliver 7",""]
["LSH14J7C7SV122245","Maxus_CH","(e)Deliver 7","Deliver 7 VAN L2H1 FWD","Dual Sliding Door","a0pQC00000DMxYH","","M9254025614","Diesel",{"$f":"IF(report1737987713132[[#This Row],[Erstzulassungsdatum]]=\"\",\"\",YEAR(report1737987713132[[#This Row],[Erstzulassungsdatum]]))","v":""},"Deliver 7",""]
["LSH14J7C3SV122243","Maxus_CH","(e)Deliver 7","Deliver 7 VAN L2H1 FWD","Dual Sliding Door","a0pQC00000DMxYH","","M9254024972","Diesel",{"$f":"IF(report1737987713132[[#This Row],[Erstzulassungsdatum]]=\"\",\"\",YEAR(report1737987713132[[#This Row],[Erstzulassungsdatum]]))","v":""},"Deliver 7",""]
["LSH14J7C5SV122244","Maxus_CH","(e)Deliver 7","Deliver 7 VAN L2H1 FWD","Dual Sliding Door","a0pQC00000DMxYH","","M9254023031","Diesel",{"$f":"IF(report1737987713132[[#This Row],[Erstzulassungsdatum]]=\"\",\"\",YEAR(report1737987713132[[#This Row],[Erstzulassungsdatum]]))","v":""},"Deliver 7",""]
["LSH14J7C8SV122240","Maxus_CH","(e)Deliver 7","Deliver 7 VAN L2H1 FWD","Dual Sliding Door","a0pQC00000DMxYH","","M9254026506","Diesel",{"$f":"IF(report1737987713132[[#This Row],[Erstzulassungsdatum]]=\"\",\"\",YEAR(report1737987713132[[#This Row],[Erstzulassungsdatum]]))","v":""},"Deliver 7",""]
["LSH14J7C9SV122246","Maxus_CH","(e)Deliver 7","Deliver 7 VAN L2H1 FWD","Dual Sliding Door","a0pQC00000DMxYH","","M9254025613","Diesel",{"$f":"IF(report1737987713132[[#This Row],[Erstzulassungsdatum]]=\"\",\"\",YEAR(report1737987713132[[#This Row],[Erstzulassungsdatum]]))","v":""},"Deliver 7",""]
["LSH14J7CXSV122241","Maxus_CH","(e)Deliver 7","Deliver 7 VAN L2H1 FWD","Dual Sliding Door","a0pQC00000DMxYH","","M9254026516","Diesel",{"$f":"IF(report1737987713132[[#This Row],[Erstzulassungsdatum]]=\"\",\"\",YEAR(report1737987713132[[#This Row],[Erstzulassungsdatum]]))","v":""},"Deliver 7",""]
["LSH14J7C1SV122659","Maxus_CH","(e)Deliver 7","Deliver 7 VAN L2H1 FWD","Dual Sliding Door","a0pQC00000DMxYH","","M9256035461","Diesel",{"$f":"IF(report1737987713132[[#This Row],[Erstzulassungsdatum]]=\"\",\"\",YEAR(report1737987713132[[#This Row],[Erstzulassungsdatum]]))","v":""},"Deliver 7",""]
["LSH14J7C1SV122645","Maxus_CH","(e)Deliver 7","Deliver 7 VAN L2H1 FWD","Dual Sliding Door","a0pQC00000DMxYH","","M9256034878","Diesel",{"$f":"IF(report1737987713132[[#This Row],[Erstzulassungsdatum]]=\"\",\"\",YEAR(report1737987713132[[#This Row],[Erstzulassungsdatum]]))","v":""},"Deliver 7",""]
["LSH14J7C9SV122649","Maxus_CH","(e)Deliver 7","Deliver 7 VAN L2H1 FWD","Dual Sliding Door","a0pQC00000DMxYH","","M9256035457","Diesel",{"$f":"IF(report1737987713132[[#This Row],[Erstzulassungsdatum]]=\"\",\"\",YEAR(report1737987713132[[#This Row],[Erstzulassungsdatum]]))","v":""},"Deliver 7",""]
["LSH14J7CXSV122658","Maxus_CH","(e)Deliver 7","Deliver 7 VAN L2H1 FWD","Dual Sliding Door","a0pQC00000DMxYH","","M9256035454","Diesel",{"$f":"IF(report1737987713132[[#This Row],[Erstzulassungsdatum]]=\"\",\"\",YEAR(report1737987713132[[#This Row],[Erstzulassungsdatum]]))","v":""},"Deliver 7",""]
["LSH14J7C3SV122663","Maxus_CH","(e)Deliver 7","Deliver 7 VAN L2H1 FWD","Dual Sliding Door","a0pQC00000DMxYH","","M9256035456","Diesel",{"$f":"IF(report1737987713132[[#This Row],[Erstzulassungsdatum]]=\"\",\"\",YEAR(report1737987713132[[#This Row],[Erstzulassungsdatum]]))","v":""},"Deliver 7",""]
["LSH14J7C0SV122667","Maxus_CH","(e)Deliver 7","Deliver 7 VAN L2H1 FWD","Dual Sliding Door","a0pQC00000DMxYH","","M9256035455","Diesel",{"$f":"IF(report1737987713132[[#This Row],[Erstzulassungsdatum]]=\"\",\"\",YEAR(report1737987713132[[#This Row],[Erstzulassungsdatum]]))","v":""},"Deliver 7",""]
["LSH14J7C4SV122851","Maxus_CH","(e)Deliver 7","Deliver 7 VAN L2H1 FWD","Dual Sliding Door","a0pQC00000DMxYH","","M9256037763","Diesel",{"$f":"IF(report1737987713132[[#This Row],[Erstzulassungsdatum]]=\"\",\"\",YEAR(report1737987713132[[#This Row],[Erstzulassungsdatum]]))","v":""},"Deliver 7",""]
["LSH14J7C8SV122853","Maxus_CH","(e)Deliver 7","Deliver 7 VAN L2H1 FWD","Dual Sliding Door","a0pQC00000DMxYH","","M9257042552","Diesel",{"$f":"IF(report1737987713132[[#This Row],[Erstzulassungsdatum]]=\"\",\"\",YEAR(report1737987713132[[#This Row],[Erstzulassungsdatum]]))","v":""},"Deliver 7",""]
["LSH14J7C1SV122855","Maxus_CH","(e)Deliver 7","Deliver 7 VAN L2H1 FWD","Dual Sliding Door","a0pQC00000DMxYH","","M9257042553","Diesel",{"$f":"IF(report1737987713132[[#This Row],[Erstzulassungsdatum]]=\"\",\"\",YEAR(report1737987713132[[#This Row],[Erstzulassungsdatum]]))","v":""},"Deliver 7",""]
["LSH14J7C5SV122857","Maxus_CH","(e)Deliver 7","Deliver 7 VAN L2H1 FWD","Dual Sliding Door","a0pQC00000DMxYH","","M9257042548","Diesel",{"$f":"IF(report1737987713132[[#This Row],[Erstzulassungsdatum]]=\"\",\"\",YEAR(report1737987713132[[#This Row],[Erstzulassungsdatum]]))","v":""},"Deliver 7",""]
["LSH14J7C9SV122859","Maxus_CH","(e)Deliver 7","Deliver 7 VAN L2H1 FWD","Dual Sliding Door","a0pQC00000DMxYH","","M9256034508","Diesel",{"$f":"IF(report1737987713132[[#This Row],[Erstzulassungsdatum]]=\"\",\"\",YEAR(report1737987713132[[#This Row],[Erstzulassungsdatum]]))","v":""},"Deliver 7",""]
["LSH14J7C4SV122686","Maxus_CH","(e)Deliver 7","Deliver 7 VAN L2H1 FWD","Window Package","a0pQC00000J8eWt","","M9256037357","Diesel",{"$f":"IF(report1737987713132[[#This Row],[Erstzulassungsdatum]]=\"\",\"\",YEAR(report1737987713132[[#This Row],[Erstzulassungsdatum]]))","v":""},"Deliver 7",""]
["LSH14J7C3SV122338","Maxus_CH","(e)Deliver 7","Deliver 7 VAN L2H1 FWD","Window Package","a0pQC00000MmlUp","","M9255028997","Diesel",{"$f":"IF(report1737987713132[[#This Row],[Erstzulassungsdatum]]=\"\",\"\",YEAR(report1737987713132[[#This Row],[Erstzulassungsdatum]]))","v":""},"Deliver 7",""]
["LSH14J7C5SV122339","Maxus_CH","(e)Deliver 7","Deliver 7 VAN L2H1 FWD","Window Package","a0pQC00000MmlUp","","M9255028341","Diesel",{"$f":"IF(report1737987713132[[#This Row],[Erstzulassungsdatum]]=\"\",\"\",YEAR(report1737987713132[[#This Row],[Erstzulassungsdatum]]))","v":""},"Deliver 7",""]
["LSH14J4C1RV122580","Maxus_CH","(e)Deliver 7","eDeliver 7 VAN L1H1 FWD","77kWh","a0pQC00000DMveU","","917164P03299R3290191","Electric",{"$f":"IF(report1737987713132[[#This Row],[Erstzulassungsdatum]]=\"\",\"\",YEAR(report1737987713132[[#This Row],[Erstzulassungsdatum]]))","v":""},"eDeliver 7",""]
["LSH14J4CXRV121766","Maxus_CH","(e)Deliver 7","eDeliver 7 VAN L1H1 FWD","77kWh","a0pQC00000DMveU","","917164P03299R1040037","Electric",{"$f":"IF(report1737987713132[[#This Row],[Erstzulassungsdatum]]=\"\",\"\",YEAR(report1737987713132[[#This Row],[Erstzulassungsdatum]]))","v":""},"eDeliver 7",""]
["LSH14J4C3RV122578","Maxus_CH","(e)Deliver 7","eDeliver 7 VAN L1H1 FWD","77kWh","a0pQC00000DMveU","","917164P03299R4010089","Electric",{"$f":"IF(report1737987713132[[#This Row],[Erstzulassungsdatum]]=\"\",\"\",YEAR(report1737987713132[[#This Row],[Erstzulassungsdatum]]))","v":""},"eDeliver 7",""]
["LSH14J4C8RV121801","Maxus_CH","(e)Deliver 7","eDeliver 7 VAN L1H1 FWD","77kWh","a0pQC00000DMveU","","917164P03299R1040051","Electric",{"$f":"IF(report1737987713132[[#This Row],[Erstzulassungsdatum]]=\"\",\"\",YEAR(report1737987713132[[#This Row],[Erstzulassungsdatum]]))","v":""},"eDeliver 7",""]
["LSH14J4C5RV122579","Maxus_CH","(e)Deliver 7","eDeliver 7 VAN L1H1 FWD","77kWh","a0pQC00000DMveU","","917164P03299R3290147","Electric",{"$f":"IF(report1737987713132[[#This Row],[Erstzulassungsdatum]]=\"\",\"\",YEAR(report1737987713132[[#This Row],[Erstzulassungsdatum]]))","v":""},"eDeliver 7",""]
["LSH14J4C6RV121814","Maxus_CH","(e)Deliver 7","eDeliver 7 VAN L1H1 FWD","77kWh","a0pQC00000DMveU","","917164P03299R1040089","Electric",{"$f":"IF(report1737987713132[[#This Row],[Erstzulassungsdatum]]=\"\",\"\",YEAR(report1737987713132[[#This Row],[Erstzulassungsdatum]]))","v":""},"eDeliver 7",""]
["LSH14J4CXRV122576","Maxus_CH","(e)Deliver 7","eDeliver 7 VAN L1H1 FWD","77kWh","a0pQC00000DMveU","","917164P03299R4010140","Electric",{"$f":"IF(report1737987713132[[#This Row],[Erstzulassungsdatum]]=\"\",\"\",YEAR(report1737987713132[[#This Row],[Erstzulassungsdatum]]))","v":""},"eDeliver 7",""]
["LSH14J4C6RV120775","Maxus_CH","(e)Deliver 7","eDeliver 7 VAN L1H1 FWD","77kWh","a0pQC00000DMveU","","917164P03299PC090154","Electric",{"$f":"IF(report1737987713132[[#This Row],[Erstzulassungsdatum]]=\"\",\"\",YEAR(report1737987713132[[#This Row],[Erstzulassungsdatum]]))","v":""},"eDeliver 7",""]
["LSH14J4C4RV121794","Maxus_CH","(e)Deliver 7","eDeliver 7 VAN L1H1 FWD","77kWh","a0pQC00000DMveU","","917164P03299R1040124","Electric",{"$f":"IF(report1737987713132[[#This Row],[Erstzulassungsdatum]]=\"\",\"\",YEAR(report1737987713132[[#This Row],[Erstzulassungsdatum]]))","v":""},"eDeliver 7",""]
["LSH14J4C8RV121796","Maxus_CH","(e)Deliver 7","eDeliver 7 VAN L1H1 FWD","77kWh","a0pQC00000DMveU","","917164P03299PC250114","Electric",{"$f":"IF(report1737987713132[[#This Row],[Erstzulassungsdatum]]=\"\",\"\",YEAR(report1737987713132[[#This Row],[Erstzulassungsdatum]]))","v":""},"eDeliver 7",""]
["LSH14J4C5RV121786","Maxus_CH","(e)Deliver 7","eDeliver 7 VAN L1H1 FWD","77kWh","a0pQC00000DMveU","","917164P03299PC250018","Electric",{"$f":"IF(report1737987713132[[#This Row],[Erstzulassungsdatum]]=\"\",\"\",YEAR(report1737987713132[[#This Row],[Erstzulassungsdatum]]))","v":""},"eDeliver 7",""]
["LSH14J4C1RV122577","Maxus_CH","(e)Deliver 7","eDeliver 7 VAN L1H1 FWD","77kWh","a0pQC00000DMveU","","917164P03299R3290120","Electric",{"$f":"IF(report1737987713132[[#This Row],[Erstzulassungsdatum]]=\"\",\"\",YEAR(report1737987713132[[#This Row],[Erstzulassungsdatum]]))","v":""},"eDeliver 7",""]
["LSH14J4C1RV121817","Maxus_CH","(e)Deliver 7","eDeliver 7 VAN L1H1 FWD","77kWh","a0pQC00000DMveU","","917164P03299R1040167","Electric",{"$f":"IF(report1737987713132[[#This Row],[Erstzulassungsdatum]]=\"\",\"\",YEAR(report1737987713132[[#This Row],[Erstzulassungsdatum]]))","v":""},"eDeliver 7",""]
["LSH14J4C4RV121780","Maxus_CH","(e)Deliver 7","eDeliver 7 VAN L1H1 FWD","77kWh","a0pQC00000DMveU","","917164P03299R1040195","Electric",{"$f":"IF(report1737987713132[[#This Row],[Erstzulassungsdatum]]=\"\",\"\",YEAR(report1737987713132[[#This Row],[Erstzulassungsdatum]]))","v":""},"eDeliver 7",""]
["LSH14J4C9RV121810","Maxus_CH","(e)Deliver 7","eDeliver 7 VAN L1H1 FWD","77kWh","a0pQC00000DMveU","","917164P03299PC250155","Electric",{"$f":"IF(report1737987713132[[#This Row],[Erstzulassungsdatum]]=\"\",\"\",YEAR(report1737987713132[[#This Row],[Erstzulassungsdatum]]))","v":""},"eDeliver 7",""]
["LSH14J4C0RV121808","Maxus_CH","(e)Deliver 7","eDeliver 7 VAN L1H1 FWD","77kWh","a0pQC00000DMveU","","917164P03299R1040138","Electric",{"$f":"IF(report1737987713132[[#This Row],[Erstzulassungsdatum]]=\"\",\"\",YEAR(report1737987713132[[#This Row],[Erstzulassungsdatum]]))","v":""},"eDeliver 7",""]
["LSH14J4C5RV120783","Maxus_CH","(e)Deliver 7","eDeliver 7 VAN L1H1 FWD","77kWh","a0pQC00000DMveU","","917164P03299PC070088","Electric",{"$f":"IF(report1737987713132[[#This Row],[Erstzulassungsdatum]]=\"\",\"\",YEAR(report1737987713132[[#This Row],[Erstzulassungsdatum]]))","v":""},"eDeliver 7",""]
["LSH14J4C5RV120640","Maxus_CH","(e)Deliver 7","eDeliver 7 VAN L1H1 FWD","77kWh","a0pQC00000DMveU","","917164P03299P9070056","Electric",{"$f":"IF(report1737987713132[[#This Row],[Erstzulassungsdatum]]=\"\",\"\",YEAR(report1737987713132[[#This Row],[Erstzulassungsdatum]]))","v":""},"eDeliver 7",""]
["LSH14J4C6RV120789","Maxus_CH","(e)Deliver 7","eDeliver 7 VAN L1H1 FWD","77kWh","a0pQC00000DMveU","","917164P03299PC250101","Electric",{"$f":"IF(report1737987713132[[#This Row],[Erstzulassungsdatum]]=\"\",\"\",YEAR(report1737987713132[[#This Row],[Erstzulassungsdatum]]))","v":""},"eDeliver 7",""]
["LSH14J4C1RV120778","Maxus_CH","(e)Deliver 7","eDeliver 7 VAN L1H1 FWD","77kWh","a0pQC00000DMveU","","917164P03299PC070154","Electric",{"$f":"IF(report1737987713132[[#This Row],[Erstzulassungsdatum]]=\"\",\"\",YEAR(report1737987713132[[#This Row],[Erstzulassungsdatum]]))","v":""},"eDeliver 7",""]
["LSH14J4C8RV122608","Maxus_CH","(e)Deliver 7","eDeliver 7 VAN L1H1 FWD","88kWh","a0pQC00000DMveV","","917164P03299R4010214","Electric",{"$f":"IF(report1737987713132[[#This Row],[Erstzulassungsdatum]]=\"\",\"\",YEAR(report1737987713132[[#This Row],[Erstzulassungsdatum]]))","v":""},"eDeliver 7",""]
["LSH14J4C7SV121522","Maxus_CH","(e)Deliver 7","eDeliver 7 VAN L1H1 FWD","88kWh","a0pQC00000HQjcY","","914712P03299RB050073","Electric",{"$f":"IF(report1737987713132[[#This Row],[Erstzulassungsdatum]]=\"\",\"\",YEAR(report1737987713132[[#This Row],[Erstzulassungsdatum]]))","v":""},"eDeliver 7",""]
["LSH14J4C3SV122084","Maxus_CH","(e)Deliver 7","eDeliver 7 VAN L1H1 FWD","88kWh","a0pQC00000HQjcY","","914712P03299RB050170","Electric",{"$f":"IF(report1737987713132[[#This Row],[Erstzulassungsdatum]]=\"\",\"\",YEAR(report1737987713132[[#This Row],[Erstzulassungsdatum]]))","v":""},"eDeliver 7",""]
["LSH14J4C5SV122300","Maxus_CH","(e)Deliver 7","eDeliver 7 VAN L1H1 FWD","88kWh","a0pQC00000HQjcY","","914712P03299RB050191","Electric",{"$f":"IF(report1737987713132[[#This Row],[Erstzulassungsdatum]]=\"\",\"\",YEAR(report1737987713132[[#This Row],[Erstzulassungsdatum]]))","v":""},"eDeliver 7",""]
["LSH14J4C7SV122301","Maxus_CH","(e)Deliver 7","eDeliver 7 VAN L1H1 FWD","88kWh","a0pQC00000HQjcY","","914712P03299RB050025","Electric",{"$f":"IF(report1737987713132[[#This Row],[Erstzulassungsdatum]]=\"\",\"\",YEAR(report1737987713132[[#This Row],[Erstzulassungsdatum]]))","v":""},"eDeliver 7",""]
["LSH14J4C2SV122299","Maxus_CH","(e)Deliver 7","eDeliver 7 VAN L1H1 FWD","88kWh","a0pQC00000HQjcY","","914712P03299RB050074","Electric",{"$f":"IF(report1737987713132[[#This Row],[Erstzulassungsdatum]]=\"\",\"\",YEAR(report1737987713132[[#This Row],[Erstzulassungsdatum]]))","v":""},"eDeliver 7",""]
["LSH14J4C0SV122303","Maxus_CH","(e)Deliver 7","eDeliver 7 VAN L1H1 FWD","88kWh","a0pQC00000HQjcY","","914712P03299RB050078","Electric",{"$f":"IF(report1737987713132[[#This Row],[Erstzulassungsdatum]]=\"\",\"\",YEAR(report1737987713132[[#This Row],[Erstzulassungsdatum]]))","v":""},"eDeliver 7",""]
["LSH15J5C7RV126130","Maxus_CH","(e)Deliver 7","eDeliver 7 VAN L1H1 AWD","88kWh","a0pQC00000DN1Ov","","918787P06014R8280013","Electric",{"$f":"IF(report1737987713132[[#This Row],[Erstzulassungsdatum]]=\"\",\"\",YEAR(report1737987713132[[#This Row],[Erstzulassungsdatum]]))","v":""},"eDeliver 7",""]
["LSH15J5C9RV126145","Maxus_CH","(e)Deliver 7","eDeliver 7 VAN L1H1 AWD","88kWh","a0pQC00000DN1Ov","","","",{"$f":"IF(report1737987713132[[#This Row],[Erstzulassungsdatum]]=\"\",\"\",YEAR(report1737987713132[[#This Row],[Erstzulassungsdatum]]))","v":""},"eDeliver 7",""]
["LSH15J5C7SV122083","Maxus_CH","(e)Deliver 7","eDeliver 7 VAN L1H1 AWD","88kWh","a0pQC00000DN1Ov","","","Electric",{"$f":"IF(report1737987713132[[#This Row],[Erstzulassungsdatum]]=\"\",\"\",YEAR(report1737987713132[[#This Row],[Erstzulassungsdatum]]))","v":""},"eDeliver 7",""]
["LSH15J5C7SV121516","Maxus_CH","(e)Deliver 7","eDeliver 7 VAN L1H1 AWD","88kWh","a0pQC00000DN1Ov","","918787P06014RA010029","Electric",{"$f":"IF(report1737987713132[[#This Row],[Erstzulassungsdatum]]=\"\",\"\",YEAR(report1737987713132[[#This Row],[Erstzulassungsdatum]]))","v":""},"eDeliver 7",""]
["LSH15J5C8SV122304","Maxus_CH","(e)Deliver 7","eDeliver 7 VAN L1H1 AWD","88kWh","a0pQC00000DN1Ov","","919482P03299RB150020","Electric",{"$f":"IF(report1737987713132[[#This Row],[Erstzulassungsdatum]]=\"\",\"\",YEAR(report1737987713132[[#This Row],[Erstzulassungsdatum]]))","v":""},"eDeliver 7",""]
["LSH15J5C5SV122308","Maxus_CH","(e)Deliver 7","eDeliver 7 VAN L1H1 AWD","88kWh","a0pQC00000DN1Ov","","919482P03299RB150016","Electric",{"$f":"IF(report1737987713132[[#This Row],[Erstzulassungsdatum]]=\"\",\"\",YEAR(report1737987713132[[#This Row],[Erstzulassungsdatum]]))","v":""},"eDeliver 7",""]
["LSH15J5C1SV122306","Maxus_CH","(e)Deliver 7","eDeliver 7 VAN L1H1 AWD","88kWh","a0pQC00000DN1Ov","","919482P03299RB150080","Electric",{"$f":"IF(report1737987713132[[#This Row],[Erstzulassungsdatum]]=\"\",\"\",YEAR(report1737987713132[[#This Row],[Erstzulassungsdatum]]))","v":""},"eDeliver 7",""]
["LSH14J4C9RV121919","Maxus_CH","(e)Deliver 7","eDeliver 7 VAN L2H1 FWD","77kWh","a0pQC00000DMo23","","917164P03299PC190074","Electric",{"$f":"IF(report1737987713132[[#This Row],[Erstzulassungsdatum]]=\"\",\"\",YEAR(report1737987713132[[#This Row],[Erstzulassungsdatum]]))","v":""},"eDeliver 7",""]
["LSH14J4C8RV121913","Maxus_CH","(e)Deliver 7","eDeliver 7 VAN L2H1 FWD","77kWh","a0pQC00000DMo23","","917164P03299PC070116","Electric",{"$f":"IF(report1737987713132[[#This Row],[Erstzulassungsdatum]]=\"\",\"\",YEAR(report1737987713132[[#This Row],[Erstzulassungsdatum]]))","v":""},"eDeliver 7",""]
["LSH14J4C7RV121918","Maxus_CH","(e)Deliver 7","eDeliver 7 VAN L2H1 FWD","77kWh","a0pQC00000DMo23","","917164P03299PB170043","Electric",{"$f":"IF(report1737987713132[[#This Row],[Erstzulassungsdatum]]=\"\",\"\",YEAR(report1737987713132[[#This Row],[Erstzulassungsdatum]]))","v":""},"eDeliver 7",""]
["LSH14J4C4RV121939","Maxus_CH","(e)Deliver 7","eDeliver 7 VAN L2H1 FWD","77kWh","a0pQC00000DMo23","","917164P03299PC070098","Electric",{"$f":"IF(report1737987713132[[#This Row],[Erstzulassungsdatum]]=\"\",\"\",YEAR(report1737987713132[[#This Row],[Erstzulassungsdatum]]))","v":""},"eDeliver 7",""]
["LSH14J4C2RV121924","Maxus_CH","(e)Deliver 7","eDeliver 7 VAN L2H1 FWD","77kWh","a0pQC00000DMo23","","917164P03299R1040052","Electric",{"$f":"IF(report1737987713132[[#This Row],[Erstzulassungsdatum]]=\"\",\"\",YEAR(report1737987713132[[#This Row],[Erstzulassungsdatum]]))","v":""},"eDeliver 7",""]
["LSH14J4C8RV120681","Maxus_CH","(e)Deliver 7","eDeliver 7 VAN L2H1 FWD","77kWh","a0pQC00000DMo23","","917164P03299P9250192","Electric",{"$f":"IF(report1737987713132[[#This Row],[Erstzulassungsdatum]]=\"\",\"\",YEAR(report1737987713132[[#This Row],[Erstzulassungsdatum]]))","v":""},"eDeliver 7",""]
["LSH14J4C8RV121832","Maxus_CH","(e)Deliver 7","eDeliver 7 VAN L2H1 FWD","88kWh","a0pQC00000DMo24","","917164P03299PC250009","Electric",{"$f":"IF(report1737987713132[[#This Row],[Erstzulassungsdatum]]=\"\",\"\",YEAR(report1737987713132[[#This Row],[Erstzulassungsdatum]]))","v":""},"eDeliver 7",""]
["LSH14J4C9RV121869","Maxus_CH","(e)Deliver 7","eDeliver 7 VAN L2H1 FWD","88kWh","a0pQC00000DMo24","","917164P03299P9050002","Electric",{"$f":"IF(report1737987713132[[#This Row],[Erstzulassungsdatum]]=\"\",\"\",YEAR(report1737987713132[[#This Row],[Erstzulassungsdatum]]))","v":""},"eDeliver 7",""]
["LSH14J4C1RV121865","Maxus_CH","(e)Deliver 7","eDeliver 7 VAN L2H1 FWD","88kWh","a0pQC00000DMo24","","917164P03299PC250051","Electric",{"$f":"IF(report1737987713132[[#This Row],[Erstzulassungsdatum]]=\"\",\"\",YEAR(report1737987713132[[#This Row],[Erstzulassungsdatum]]))","v":""},"eDeliver 7",""]
["LSH14J4CXRV121864","Maxus_CH","(e)Deliver 7","eDeliver 7 VAN L2H1 FWD","88kWh","a0pQC00000DMo24","","917164P03299PC070076","Electric",{"$f":"IF(report1737987713132[[#This Row],[Erstzulassungsdatum]]=\"\",\"\",YEAR(report1737987713132[[#This Row],[Erstzulassungsdatum]]))","v":""},"eDeliver 7",""]
["LSH14J4C2RV122555","Maxus_CH","(e)Deliver 7","eDeliver 7 VAN L2H1 FWD","88kWh Dual Sliding Door","a0pQC00000DMo25","","917164P03299R3280058","Electric",{"$f":"IF(report1737987713132[[#This Row],[Erstzulassungsdatum]]=\"\",\"\",YEAR(report1737987713132[[#This Row],[Erstzulassungsdatum]]))","v":""},"eDeliver 7",""]
["LSH14J4C0RV122554","Maxus_CH","(e)Deliver 7","eDeliver 7 VAN L2H1 FWD","88kWh Dual Sliding Door","a0pQC00000DMo25","","917164P03299R3290184","Electric",{"$f":"IF(report1737987713132[[#This Row],[Erstzulassungsdatum]]=\"\",\"\",YEAR(report1737987713132[[#This Row],[Erstzulassungsdatum]]))","v":""},"eDeliver 7",""]
["LSH14J4C7RV120641","Maxus_CH","(e)Deliver 7","eDeliver 7 VAN L2H1 FWD","88kWh Dual Sliding Door","a0pQC00000DMo25","","917164P03299PC070177","Electric",{"$f":"IF(report1737987713132[[#This Row],[Erstzulassungsdatum]]=\"\",\"\",YEAR(report1737987713132[[#This Row],[Erstzulassungsdatum]]))","v":""},"eDeliver 7",""]
["LSH14J4C2RV122961","Maxus_CH","(e)Deliver 7","eDeliver 7 VAN L2H1 FWD","88kWh","a0pQC00000HQhxP","","914712P03299R6150004","Electric",{"$f":"IF(report1737987713132[[#This Row],[Erstzulassungsdatum]]=\"\",\"\",YEAR(report1737987713132[[#This Row],[Erstzulassungsdatum]]))","v":""},"eDeliver 7",""]
["LSH14J4C8SV120931","Maxus_CH","(e)Deliver 7","eDeliver 7 VAN L2H1 FWD","88kWh Dual Sliding Door Swiss Post IT #1","a0pQC00000IT7mM","","914712P03299RB050080","Electric",{"$f":"IF(report1737987713132[[#This Row],[Erstzulassungsdatum]]=\"\",\"\",YEAR(report1737987713132[[#This Row],[Erstzulassungsdatum]]))","v":""},"eDeliver 7",""]
["LSKG48C13RD041776","Maxus_CH","MIFA 7","MIFA 7 Premium","90kWh","a0pQC00000DMtmO","","A123803A10001576","Electric",{"$f":"IF(report1737987713132[[#This Row],[Erstzulassungsdatum]]=\"\",\"\",YEAR(report1737987713132[[#This Row],[Erstzulassungsdatum]]))","v":""},"Mifa 7",""]
["LSH14J4C3RD055941","Maxus_CH","eDeliver 5","eDeliver 5 VAN L1H1 FWD","64kWh","a0pQC00000DMtZm","","911693P03299R4280071","Electric",{"$f":"IF(report1737987713132[[#This Row],[Erstzulassungsdatum]]=\"\",\"\",YEAR(report1737987713132[[#This Row],[Erstzulassungsdatum]]))","v":""},"eDeliver 5",""]
["LSH14J4C8RD055935","Maxus_CH","eDeliver 5","eDeliver 5 VAN L1H1 FWD","64kWh","a0pQC00000DMtZm","","911693P03299R4280062","Electric",{"$f":"IF(report1737987713132[[#This Row],[Erstzulassungsdatum]]=\"\",\"\",YEAR(report1737987713132[[#This Row],[Erstzulassungsdatum]]))","v":""},"eDeliver 5",""]
["LSH14J4C6RD055934","Maxus_CH","eDeliver 5","eDeliver 5 VAN L1H1 FWD","64kWh","a0pQC00000DMtZm","","911693P03299R4280049","Electric",{"$f":"IF(report1737987713132[[#This Row],[Erstzulassungsdatum]]=\"\",\"\",YEAR(report1737987713132[[#This Row],[Erstzulassungsdatum]]))","v":""},"eDeliver 5",""]
["LSH14J4C5RD060753","Maxus_CH","eDeliver 5","eDeliver 5 VAN L1H1 FWD","64kWh","a0pQC00000DMtZm","","911693P03299R5090026","Electric",{"$f":"IF(report1737987713132[[#This Row],[Erstzulassungsdatum]]=\"\",\"\",YEAR(report1737987713132[[#This Row],[Erstzulassungsdatum]]))","v":""},"eDeliver 5",""]
["LSH14J4C9RD060755","Maxus_CH","eDeliver 5","eDeliver 5 VAN L1H1 FWD","64kWh","a0pQC00000DMtZm","","911693P03299R5160075","Electric",{"$f":"IF(report1737987713132[[#This Row],[Erstzulassungsdatum]]=\"\",\"\",YEAR(report1737987713132[[#This Row],[Erstzulassungsdatum]]))","v":""},"eDeliver 5",""]
["LSH14J4C4RD060758","Maxus_CH","eDeliver 5","eDeliver 5 VAN L1H1 FWD","64kWh","a0pQC00000DMtZm","","911693P03299R5090194","Electric",{"$f":"IF(report1737987713132[[#This Row],[Erstzulassungsdatum]]=\"\",\"\",YEAR(report1737987713132[[#This Row],[Erstzulassungsdatum]]))","v":""},"eDeliver 5",""]
["LSH14J4C2RD060760","Maxus_CH","eDeliver 5","eDeliver 5 VAN L1H1 FWD","64kWh","a0pQC00000DMtZm","","911693P03299R5160135","Electric",{"$f":"IF(report1737987713132[[#This Row],[Erstzulassungsdatum]]=\"\",\"\",YEAR(report1737987713132[[#This Row],[Erstzulassungsdatum]]))","v":""},"eDeliver 5",""]
["LSH14J4C9RD059489","Maxus_CH","eDeliver 5","eDeliver 5 VAN L1H1 FWD","64kWh","a0pQC00000DMtZm","","911693P03299R5090047","Electric",{"$f":"IF(report1737987713132[[#This Row],[Erstzulassungsdatum]]=\"\",\"\",YEAR(report1737987713132[[#This Row],[Erstzulassungsdatum]]))","v":""},"eDeliver 5",""]
["LSH14J4CXRD060764","Maxus_CH","eDeliver 5","eDeliver 5 VAN L1H1 FWD","64kWh","a0pQC00000DMtZm","","911693P03299R5160130","Electric",{"$f":"IF(report1737987713132[[#This Row],[Erstzulassungsdatum]]=\"\",\"\",YEAR(report1737987713132[[#This Row],[Erstzulassungsdatum]]))","v":""},"eDeliver 5",""]
["LSH14J4C3RD055938","Maxus_CH","eDeliver 5","eDeliver 5 VAN L1H1 FWD","64kWh","a0pQC00000DMtZm","","911693P03299R4280015","Electric",{"$f":"IF(report1737987713132[[#This Row],[Erstzulassungsdatum]]=\"\",\"\",YEAR(report1737987713132[[#This Row],[Erstzulassungsdatum]]))","v":""},"eDeliver 5",""]
["LSH14J4C1RD060765","Maxus_CH","eDeliver 5","eDeliver 5 VAN L1H1 FWD","64kWh","a0pQC00000DMtZm","","911693P03299R4280090","Electric",{"$f":"IF(report1737987713132[[#This Row],[Erstzulassungsdatum]]=\"\",\"\",YEAR(report1737987713132[[#This Row],[Erstzulassungsdatum]]))","v":""},"eDeliver 5",""]
["LSH14J4CXRD059484","Maxus_CH","eDeliver 5","eDeliver 5 VAN L1H1 FWD","64kWh","a0pQC00000DMtZm","","911693P03299R5160062","Electric",{"$f":"IF(report1737987713132[[#This Row],[Erstzulassungsdatum]]=\"\",\"\",YEAR(report1737987713132[[#This Row],[Erstzulassungsdatum]]))","v":""},"eDeliver 5",""]
["LSH14J4C5RD059487","Maxus_CH","eDeliver 5","eDeliver 5 VAN L1H1 FWD","64kWh","a0pQC00000DMtZm","","911693P03299R5160048","Electric",{"$f":"IF(report1737987713132[[#This Row],[Erstzulassungsdatum]]=\"\",\"\",YEAR(report1737987713132[[#This Row],[Erstzulassungsdatum]]))","v":""},"eDeliver 5",""]
["LSH14J4C7RD060754","Maxus_CH","eDeliver 5","eDeliver 5 VAN L1H1 FWD","64kWh","a0pQC00000DMtZm","","911693P03299R5090025","Electric",{"$f":"IF(report1737987713132[[#This Row],[Erstzulassungsdatum]]=\"\",\"\",YEAR(report1737987713132[[#This Row],[Erstzulassungsdatum]]))","v":""},"eDeliver 5",""]
["LSH14J4C1RD059485","Maxus_CH","eDeliver 5","eDeliver 5 VAN L1H1 FWD","64kWh","a0pQC00000DMtZm","","911693P03299R5160040","Electric",{"$f":"IF(report1737987713132[[#This Row],[Erstzulassungsdatum]]=\"\",\"\",YEAR(report1737987713132[[#This Row],[Erstzulassungsdatum]]))","v":""},"eDeliver 5",""]
["LSH14J4C4RD060761","Maxus_CH","eDeliver 5","eDeliver 5 VAN L1H1 FWD","64kWh","a0pQC00000DMtZm","","911693P03299R5160046","Electric",{"$f":"IF(report1737987713132[[#This Row],[Erstzulassungsdatum]]=\"\",\"\",YEAR(report1737987713132[[#This Row],[Erstzulassungsdatum]]))","v":""},"eDeliver 5",""]
["LSH14J4CXSD047955","Maxus_CH","eDeliver 5","eDeliver 5 VAN L1H1 FWD","64kWh","a0pQC00000DMtZm","","913526P03299S1160143","Electric",{"$f":"IF(report1737987713132[[#This Row],[Erstzulassungsdatum]]=\"\",\"\",YEAR(report1737987713132[[#This Row],[Erstzulassungsdatum]]))","v":""},"eDeliver 5",""]
["LSH14J4C8SD047954","Maxus_CH","eDeliver 5","eDeliver 5 VAN L1H1 FWD","64kWh","a0pQC00000DMtZm","","913526P03299S1160108","Electric",{"$f":"IF(report1737987713132[[#This Row],[Erstzulassungsdatum]]=\"\",\"\",YEAR(report1737987713132[[#This Row],[Erstzulassungsdatum]]))","v":""},"eDeliver 5",""]
["LSH14J4C6SD047953","Maxus_CH","eDeliver 5","eDeliver 5 VAN L1H1 FWD","64kWh","a0pQC00000DMtZm","","913526P03299S1160102","Electric",{"$f":"IF(report1737987713132[[#This Row],[Erstzulassungsdatum]]=\"\",\"\",YEAR(report1737987713132[[#This Row],[Erstzulassungsdatum]]))","v":""},"eDeliver 5",""]
["LSH14J4C4SD047952","Maxus_CH","eDeliver 5","eDeliver 5 VAN L1H1 FWD","64kWh","a0pQC00000DMtZm","","913526P03299S1160171","Electric",{"$f":"IF(report1737987713132[[#This Row],[Erstzulassungsdatum]]=\"\",\"\",YEAR(report1737987713132[[#This Row],[Erstzulassungsdatum]]))","v":""},"eDeliver 5",""]
["LSH14J4C2SD047951","Maxus_CH","eDeliver 5","eDeliver 5 VAN L1H1 FWD","64kWh","a0pQC00000DMtZm","","913526P03299S1130030","Electric",{"$f":"IF(report1737987713132[[#This Row],[Erstzulassungsdatum]]=\"\",\"\",YEAR(report1737987713132[[#This Row],[Erstzulassungsdatum]]))","v":""},"eDeliver 5",""]
["LSH14J4C0SD047950","Maxus_CH","eDeliver 5","eDeliver 5 VAN L1H1 FWD","64kWh","a0pQC00000DMtZm","","913526P03299S1160008","Electric",{"$f":"IF(report1737987713132[[#This Row],[Erstzulassungsdatum]]=\"\",\"\",YEAR(report1737987713132[[#This Row],[Erstzulassungsdatum]]))","v":""},"eDeliver 5",""]
["LSH14J4C8SD050269","Maxus_CH","eDeliver 5","eDeliver 5 VAN L1H1 FWD","64kWh","a0pQC00000DMtZm","","913526P03299S1190022","Electric",{"$f":"IF(report1737987713132[[#This Row],[Erstzulassungsdatum]]=\"\",\"\",YEAR(report1737987713132[[#This Row],[Erstzulassungsdatum]]))","v":""},"eDeliver 5",""]
["LSH14J4C6SD050271","Maxus_CH","eDeliver 5","eDeliver 5 VAN L1H1 FWD","64kWh","a0pQC00000DMtZm","","913526P03299S1070021","Electric",{"$f":"IF(report1737987713132[[#This Row],[Erstzulassungsdatum]]=\"\",\"\",YEAR(report1737987713132[[#This Row],[Erstzulassungsdatum]]))","v":""},"eDeliver 5",""]
["LSH14J4C6SD050268","Maxus_CH","eDeliver 5","eDeliver 5 VAN L1H1 FWD","64kWh","a0pQC00000DMtZm","","913526P03299S1190102","Electric",{"$f":"IF(report1737987713132[[#This Row],[Erstzulassungsdatum]]=\"\",\"\",YEAR(report1737987713132[[#This Row],[Erstzulassungsdatum]]))","v":""},"eDeliver 5",""]
["LSH14J4C4SD050270","Maxus_CH","eDeliver 5","eDeliver 5 VAN L1H1 FWD","64kWh","a0pQC00000DMtZm","","913526P03299S1190049","Electric",{"$f":"IF(report1737987713132[[#This Row],[Erstzulassungsdatum]]=\"\",\"\",YEAR(report1737987713132[[#This Row],[Erstzulassungsdatum]]))","v":""},"eDeliver 5",""]
["LSH14J4C4SD050267","Maxus_CH","eDeliver 5","eDeliver 5 VAN L1H1 FWD","64kWh","a0pQC00000DMtZm","","913526P03299S1190124","Electric",{"$f":"IF(report1737987713132[[#This Row],[Erstzulassungsdatum]]=\"\",\"\",YEAR(report1737987713132[[#This Row],[Erstzulassungsdatum]]))","v":""},"eDeliver 5",""]
["LSH14J4C2SD050266","Maxus_CH","eDeliver 5","eDeliver 5 VAN L1H1 FWD","64kWh","a0pQC00000DMtZm","","913526P03299S1190161","Electric",{"$f":"IF(report1737987713132[[#This Row],[Erstzulassungsdatum]]=\"\",\"\",YEAR(report1737987713132[[#This Row],[Erstzulassungsdatum]]))","v":""},"eDeliver 5",""]
["LSH14J4C8SD060509","Maxus_CH","eDeliver 5","eDeliver 5 VAN L1H1 FWD","64kWh","a0pQC00000DMtZm","","913526P03299S1190137","Electric",{"$f":"IF(report1737987713132[[#This Row],[Erstzulassungsdatum]]=\"\",\"\",YEAR(report1737987713132[[#This Row],[Erstzulassungsdatum]]))","v":""},"eDeliver 5",""]
["LSH14J4C2SD060506","Maxus_CH","eDeliver 5","eDeliver 5 VAN L1H1 FWD","64kWh","a0pQC00000DMtZm","","913526P03299S4050023","Electric",{"$f":"IF(report1737987713132[[#This Row],[Erstzulassungsdatum]]=\"\",\"\",YEAR(report1737987713132[[#This Row],[Erstzulassungsdatum]]))","v":""},"eDeliver 5",""]
["LSH14J4C4SD060507","Maxus_CH","eDeliver 5","eDeliver 5 VAN L1H1 FWD","64kWh","a0pQC00000DMtZm","","913526P03299S1040144","Electric",{"$f":"IF(report1737987713132[[#This Row],[Erstzulassungsdatum]]=\"\",\"\",YEAR(report1737987713132[[#This Row],[Erstzulassungsdatum]]))","v":""},"eDeliver 5",""]
["LSH14J4C6SD060508","Maxus_CH","eDeliver 5","eDeliver 5 VAN L1H1 FWD","64kWh","a0pQC00000DMtZm","","913526P03299S1190140","Electric",{"$f":"IF(report1737987713132[[#This Row],[Erstzulassungsdatum]]=\"\",\"\",YEAR(report1737987713132[[#This Row],[Erstzulassungsdatum]]))","v":""},"eDeliver 5",""]
["LSKG48C19ND069656","Maxus_CH","MIFA 9","MIFA 9 Luxury","90kWh 7-Seater","a0pQC00000DN1aD","","A122B02A10114492","Electric",{"$f":"IF(report1737987713132[[#This Row],[Erstzulassungsdatum]]=\"\",\"\",YEAR(report1737987713132[[#This Row],[Erstzulassungsdatum]]))","v":""},"Mifa 9",""]
["LSFAL1606RA138666","Maxus_CH","eTerron 9","eTerron 9 Luxury","AWD 102kWh Black Met","a0pQC00000FQqle","","","Electric",{"$f":"IF(report1737987713132[[#This Row],[Erstzulassungsdatum]]=\"\",\"\",YEAR(report1737987713132[[#This Row],[Erstzulassungsdatum]]))","v":""},"eTerron 9",""]
["LSFAL1604SA074259","Maxus_CH","eTerron 9","eTerron 9 Luxury","AWD 102kWh Black Met","a0pQC00000FQqle","","TZ180XS0951A124405A002494","Electric",{"$f":"IF(report1737987713132[[#This Row],[Erstzulassungsdatum]]=\"\",\"\",YEAR(report1737987713132[[#This Row],[Erstzulassungsdatum]]))","v":""},"eTerron 9",""]
["LSFAL1600SA098476","Maxus_CH","eTerron 9","eTerron 9 Luxury","AWD 102kWh Black Met","a0pQC00000FQqle","","A124B22A00271941","Electric",{"$f":"IF(report1737987713132[[#This Row],[Erstzulassungsdatum]]=\"\",\"\",YEAR(report1737987713132[[#This Row],[Erstzulassungsdatum]]))","v":""},"eTerron 9",""]
["LSFAL1602SA098477","Maxus_CH","eTerron 9","eTerron 9 Luxury","AWD 102kWh Black Met","a0pQC00000FQqle","","A124B25A00275432","Electric",{"$f":"IF(report1737987713132[[#This Row],[Erstzulassungsdatum]]=\"\",\"\",YEAR(report1737987713132[[#This Row],[Erstzulassungsdatum]]))","v":""},"eTerron 9",""]
["LSFAL1609SA098475","Maxus_CH","eTerron 9","eTerron 9 Luxury","AWD 102kWh Black Met","a0pQC00000FQqle","","A124C10A00000416","Electric",{"$f":"IF(report1737987713132[[#This Row],[Erstzulassungsdatum]]=\"\",\"\",YEAR(report1737987713132[[#This Row],[Erstzulassungsdatum]]))","v":""},"eTerron 9",""]
["LSFAL1609RA138676","Maxus_CH","eTerron 9","eTerron 9 Luxury","AWD 102kWh","a0pQC00000FQqlf","","","Electric",{"$f":"IF(report1737987713132[[#This Row],[Erstzulassungsdatum]]=\"\",\"\",YEAR(report1737987713132[[#This Row],[Erstzulassungsdatum]]))","v":""},"eTerron 9",""]
["LSFAL1608RA138670","Maxus_CH","eTerron 9","eTerron 9 Luxury","AWD 102kWh","a0pQC00000FQqlf","","","Electric",{"$f":"IF(report1737987713132[[#This Row],[Erstzulassungsdatum]]=\"\",\"\",YEAR(report1737987713132[[#This Row],[Erstzulassungsdatum]]))","v":""},"eTerron 9",""]
["LSFAL1600RA138677","Maxus_CH","eTerron 9","eTerron 9 Luxury","AWD 102kWh","a0pQC00000FQqlf","","","Electric",{"$f":"IF(report1737987713132[[#This Row],[Erstzulassungsdatum]]=\"\",\"\",YEAR(report1737987713132[[#This Row],[Erstzulassungsdatum]]))","v":""},"eTerron 9",""]
["LSFAL1600SA074260","Maxus_CH","eTerron 9","eTerron 9 Luxury","AWD 102kWh","a0pQC00000FQqlf","","TZ180XS0951A124928A002568","Electric",{"$f":"IF(report1737987713132[[#This Row],[Erstzulassungsdatum]]=\"\",\"\",YEAR(report1737987713132[[#This Row],[Erstzulassungsdatum]]))","v":""},"eTerron 9",""]
["LSFAL1602SA074258","Maxus_CH","eTerron 9","eTerron 9 Luxury","AWD 102kWh","a0pQC00000FQqlf","","TZ180XS0951A124405A002494","Electric",{"$f":"IF(report1737987713132[[#This Row],[Erstzulassungsdatum]]=\"\",\"\",YEAR(report1737987713132[[#This Row],[Erstzulassungsdatum]]))","v":""},"eTerron 9",""]
["LSFAL1602SA082053","Maxus_CH","eTerron 9","eTerron 9 Luxury","AWD 102kWh","a0pQC00000FQqlf","","TZ180XS0951A124405A002489","Electric",{"$f":"IF(report1737987713132[[#This Row],[Erstzulassungsdatum]]=\"\",\"\",YEAR(report1737987713132[[#This Row],[Erstzulassungsdatum]]))","v":""},"eTerron 9",""]
["LSFAL1600SA082052","Maxus_CH","eTerron 9","eTerron 9 Luxury","AWD 102kWh","a0pQC00000FQqlf","","TZ180XS0951A124405A002489","Electric",{"$f":"IF(report1737987713132[[#This Row],[Erstzulassungsdatum]]=\"\",\"\",YEAR(report1737987713132[[#This Row],[Erstzulassungsdatum]]))","v":""},"eTerron 9",""]
["LSFAL160XSA098470","Maxus_CH","eTerron 9","eTerron 9 Luxury","AWD 102kWh","a0pQC00000FQqlf","","A124B24A00274433","Electric",{"$f":"IF(report1737987713132[[#This Row],[Erstzulassungsdatum]]=\"\",\"\",YEAR(report1737987713132[[#This Row],[Erstzulassungsdatum]]))","v":""},"eTerron 9",""]
["LSFAL1601SA098471","Maxus_CH","eTerron 9","eTerron 9 Luxury","AWD 102kWh","a0pQC00000FQqlf","","A124B25A00275709","Electric",{"$f":"IF(report1737987713132[[#This Row],[Erstzulassungsdatum]]=\"\",\"\",YEAR(report1737987713132[[#This Row],[Erstzulassungsdatum]]))","v":""},"eTerron 9",""]
["LSFAL1605SA098473","Maxus_CH","eTerron 9","eTerron 9 Luxury","AWD 102kWh","a0pQC00000FQqlf","","A124B22A00272142","Electric",{"$f":"IF(report1737987713132[[#This Row],[Erstzulassungsdatum]]=\"\",\"\",YEAR(report1737987713132[[#This Row],[Erstzulassungsdatum]]))","v":""},"eTerron 9",""]
["LSFAL1607SA098474","Maxus_CH","eTerron 9","eTerron 9 Luxury","AWD 102kWh","a0pQC00000FQqlf","","A124B25A00276064","Electric",{"$f":"IF(report1737987713132[[#This Row],[Erstzulassungsdatum]]=\"\",\"\",YEAR(report1737987713132[[#This Row],[Erstzulassungsdatum]]))","v":""},"eTerron 9",""]
["LSFAL1603SA068100","Maxus_CH","eTerron 9","eTerron 9 Premium","AWD 102kWh Black Met (Black&White Interior)","a0pQC00000FQlNo","","TZ180XS0951A124415A002505","Electric",{"$f":"IF(report1737987713132[[#This Row],[Erstzulassungsdatum]]=\"\",\"\",YEAR(report1737987713132[[#This Row],[Erstzulassungsdatum]]))","v":""},"eTerron 9",""]
["LSFAL1604SA074262","Maxus_CH","eTerron 9","eTerron 9 Premium","AWD 102kWh Black Met (Black&White Interior)","a0pQC00000FQlNo","","TZ180XS0951A124405A002485","Electric",{"$f":"IF(report1737987713132[[#This Row],[Erstzulassungsdatum]]=\"\",\"\",YEAR(report1737987713132[[#This Row],[Erstzulassungsdatum]]))","v":""},"eTerron 9",""]
["LSFAL1606SA098479","Maxus_CH","eTerron 9","eTerron 9 Premium","AWD 102kWh Black Met (Black&White Interior)","a0pQC00000FQlNo","","A124B25A00274870","Electric",{"$f":"IF(report1737987713132[[#This Row],[Erstzulassungsdatum]]=\"\",\"\",YEAR(report1737987713132[[#This Row],[Erstzulassungsdatum]]))","v":""},"eTerron 9",""]
["LSFAL1604SA098478","Maxus_CH","eTerron 9","eTerron 9 Premium","AWD 102kWh Black Met (Black&White Interior)","a0pQC00000FQlNo","","A124B22A00272229","Electric",{"$f":"IF(report1737987713132[[#This Row],[Erstzulassungsdatum]]=\"\",\"\",YEAR(report1737987713132[[#This Row],[Erstzulassungsdatum]]))","v":""},"eTerron 9",""]
["LSFAL1602SA074261","Maxus_CH","eTerron 9","eTerron 9 Premium","AWD 102kWh (Black&White Interior)","a0pQC00000FQlNp","","TZ180XS0951A124927A002566","Electric",{"$f":"IF(report1737987713132[[#This Row],[Erstzulassungsdatum]]=\"\",\"\",YEAR(report1737987713132[[#This Row],[Erstzulassungsdatum]]))","v":""},"eTerron 9",""]
["LSFAL1603SA074270","Maxus_CH","eTerron 9","eTerron 9 Premium","AWD 102kWh (Black&White Interior)","a0pQC00000FQlNp","","TZ180XS0951A124928A002580","Electric",{"$f":"IF(report1737987713132[[#This Row],[Erstzulassungsdatum]]=\"\",\"\",YEAR(report1737987713132[[#This Row],[Erstzulassungsdatum]]))","v":""},"eTerron 9",""]
["LSFAL1602SA098480","Maxus_CH","eTerron 9","eTerron 9 Premium","AWD 102kWh (Black&White Interior)","a0pQC00000FQlNp","","A124C04A00278085","Electric",{"$f":"IF(report1737987713132[[#This Row],[Erstzulassungsdatum]]=\"\",\"\",YEAR(report1737987713132[[#This Row],[Erstzulassungsdatum]]))","v":""},"eTerron 9",""]
["LSFAL160XSA114537","Maxus_CH","eTerron 9","eTerron 9 Premium","AWD 102kWh (Black Interior)","a0pQC00000KxYzv","","A124B24A00274277","Electric",{"$f":"IF(report1737987713132[[#This Row],[Erstzulassungsdatum]]=\"\",\"\",YEAR(report1737987713132[[#This Row],[Erstzulassungsdatum]]))","v":""},"eTerron 9",""]
["LSFAL1601SA114538","Maxus_CH","eTerron 9","eTerron 9 Premium","AWD 102kWh (Black Interior)","a0pQC00000KxYzv","","A124B24A00274116","Electric",{"$f":"IF(report1737987713132[[#This Row],[Erstzulassungsdatum]]=\"\",\"\",YEAR(report1737987713132[[#This Row],[Erstzulassungsdatum]]))","v":""},"eTerron 9",""]
["LSFAL1603SA114539","Maxus_CH","eTerron 9","eTerron 9 Premium","AWD 102kWh (Black Interior)","a0pQC00000KxYzv","","A124B22A00271403","Electric",{"$f":"IF(report1737987713132[[#This Row],[Erstzulassungsdatum]]=\"\",\"\",YEAR(report1737987713132[[#This Row],[Erstzulassungsdatum]]))","v":""},"eTerron 9",""]
["LSFAL160XSA114540","Maxus_CH","eTerron 9","eTerron 9 Premium","AWD 102kWh (Black Interior)","a0pQC00000KxYzv","","A124B22A00271810","Electric",{"$f":"IF(report1737987713132[[#This Row],[Erstzulassungsdatum]]=\"\",\"\",YEAR(report1737987713132[[#This Row],[Erstzulassungsdatum]]))","v":""},"eTerron 9",""]
["LSFAM11C5RA134557","Maxus_CH","T60 MAX","T60 MAX","AWD","a0pQC00000FBTso","","M924A064096","Diesel",{"$f":"IF(report1737987713132[[#This Row],[Erstzulassungsdatum]]=\"\",\"\",YEAR(report1737987713132[[#This Row],[Erstzulassungsdatum]]))","v":""},"T60 Max","2024-09-30"]
["LSFAM11C2SA074257","Maxus_CH","T60 MAX","T60 MAX","AWD","a0pQC00000FBTso","","M9252007577","Diesel",{"$f":"IF(report1737987713132[[#This Row],[Erstzulassungsdatum]]=\"\",\"\",YEAR(report1737987713132[[#This Row],[Erstzulassungsdatum]]))","v":""},"T60 Max","2025-01-31"]
["LSFAM11C6SA082054","Maxus_CH","T60 MAX","T60 MAX","AWD","a0pQC00000FBTso","","M9253017082","Diesel",{"$f":"IF(report1737987713132[[#This Row],[Erstzulassungsdatum]]=\"\",\"\",YEAR(report1737987713132[[#This Row],[Erstzulassungsdatum]]))","v":""},"T60 Max","2025-02-28"]
["LSFAM11C8SA082055","Maxus_CH","T60 MAX","T60 MAX","AWD","a0pQC00000FBTso","","M9253017083","Diesel",{"$f":"IF(report1737987713132[[#This Row],[Erstzulassungsdatum]]=\"\",\"\",YEAR(report1737987713132[[#This Row],[Erstzulassungsdatum]]))","v":""},"T60 Max","2025-02-28"]
["LSFAM11C0SA098508","Maxus_CH","T60 MAX","T60 MAX","AWD","a0pQC00000FBTso","","M9255028789","Diesel",{"$f":"IF(report1737987713132[[#This Row],[Erstzulassungsdatum]]=\"\",\"\",YEAR(report1737987713132[[#This Row],[Erstzulassungsdatum]]))","v":""},"T60 Max","2025-04-30"]
["LSFAM11C8SA092956","Maxus_CH","T60 MAX","T60 MAX","AWD","a0pQC00000FBTso","","M9254022748","Diesel",{"$f":"IF(report1737987713132[[#This Row],[Erstzulassungsdatum]]=\"\",\"\",YEAR(report1737987713132[[#This Row],[Erstzulassungsdatum]]))","v":""},"T60 Max","2025-03-31"]
["LSFAM11C6SA092955","Maxus_CH","T60 MAX","T60 MAX","AWD","a0pQC00000FBTso","","M9254022756","Diesel",{"$f":"IF(report1737987713132[[#This Row],[Erstzulassungsdatum]]=\"\",\"\",YEAR(report1737987713132[[#This Row],[Erstzulassungsdatum]]))","v":""},"T60 Max","2025-03-31"]
["LSFAM11C0SA098511","Maxus_CH","T60 MAX","T60 MAX","AWD","a0pQC00000FBTso","","M9255028790","Diesel",{"$f":"IF(report1737987713132[[#This Row],[Erstzulassungsdatum]]=\"\",\"\",YEAR(report1737987713132[[#This Row],[Erstzulassungsdatum]]))","v":""},"T60 Max","2025-04-30"]
["LSFAM11C1SA098498","Maxus_CH","T60 MAX","T60 MAX","AWD","a0pQC00000FBTso","","M9255028781","Diesel",{"$f":"IF(report1737987713132[[#This Row],[Erstzulassungsdatum]]=\"\",\"\",YEAR(report1737987713132[[#This Row],[Erstzulassungsdatum]]))","v":""},"T60 Max","2025-04-30"]
["LSFAM11C1SA098503","Maxus_CH","T60 MAX","T60 MAX","AWD","a0pQC00000FBTso","","M9255029063","Diesel",{"$f":"IF(report1737987713132[[#This Row],[Erstzulassungsdatum]]=\"\",\"\",YEAR(report1737987713132[[#This Row],[Erstzulassungsdatum]]))","v":""},"T60 Max","2025-04-30"]
["LSFAM11C2SA098493","Maxus_CH","T60 MAX","T60 MAX","AWD","a0pQC00000FBTso","","M9255027571","Diesel",{"$f":"IF(report1737987713132[[#This Row],[Erstzulassungsdatum]]=\"\",\"\",YEAR(report1737987713132[[#This Row],[Erstzulassungsdatum]]))","v":""},"T60 Max","2025-04-30"]
["LSFAM11C2SA098509","Maxus_CH","T60 MAX","T60 MAX","AWD","a0pQC00000FBTso","","M9255028791","Diesel",{"$f":"IF(report1737987713132[[#This Row],[Erstzulassungsdatum]]=\"\",\"\",YEAR(report1737987713132[[#This Row],[Erstzulassungsdatum]]))","v":""},"T60 Max","2025-04-30"]
["LSFAM11C7SA092947","Maxus_CH","T60 MAX","T60 MAX","AWD","a0pQC00000FBTso","","M9254022755","Diesel",{"$f":"IF(report1737987713132[[#This Row],[Erstzulassungsdatum]]=\"\",\"\",YEAR(report1737987713132[[#This Row],[Erstzulassungsdatum]]))","v":""},"T60 Max","2025-03-31"]
["LSFAM11C4SA092940","Maxus_CH","T60 MAX","T60 MAX","AWD","a0pQC00000FBTso","","M9254022742","Diesel",{"$f":"IF(report1737987713132[[#This Row],[Erstzulassungsdatum]]=\"\",\"\",YEAR(report1737987713132[[#This Row],[Erstzulassungsdatum]]))","v":""},"T60 Max","2025-03-31"]
["LSFAM11C6SA092941","Maxus_CH","T60 MAX","T60 MAX","AWD","a0pQC00000FBTso","","M9254022736","Diesel",{"$f":"IF(report1737987713132[[#This Row],[Erstzulassungsdatum]]=\"\",\"\",YEAR(report1737987713132[[#This Row],[Erstzulassungsdatum]]))","v":""},"T60 Max","2025-03-31"]
["LSFAM11C3SA098499","Maxus_CH","T60 MAX","T60 MAX","AWD","a0pQC00000FBTso","","M9255028783","Diesel",{"$f":"IF(report1737987713132[[#This Row],[Erstzulassungsdatum]]=\"\",\"\",YEAR(report1737987713132[[#This Row],[Erstzulassungsdatum]]))","v":""},"T60 Max","2025-04-30"]
["LSFAM11C9SA092951","Maxus_CH","T60 MAX","T60 MAX","AWD","a0pQC00000FBTso","","M9254022749","Diesel",{"$f":"IF(report1737987713132[[#This Row],[Erstzulassungsdatum]]=\"\",\"\",YEAR(report1737987713132[[#This Row],[Erstzulassungsdatum]]))","v":""},"T60 Max","2025-03-31"]
["LSFAM11C1SA092944","Maxus_CH","T60 MAX","T60 MAX","AWD","a0pQC00000FBTso","","M9254022753","Diesel",{"$f":"IF(report1737987713132[[#This Row],[Erstzulassungsdatum]]=\"\",\"\",YEAR(report1737987713132[[#This Row],[Erstzulassungsdatum]]))","v":""},"T60 Max","2025-03-31"]
["LSFAM11C5SA092946","Maxus_CH","T60 MAX","T60 MAX","AWD","a0pQC00000FBTso","","M9254022745","Diesel",{"$f":"IF(report1737987713132[[#This Row],[Erstzulassungsdatum]]=\"\",\"\",YEAR(report1737987713132[[#This Row],[Erstzulassungsdatum]]))","v":""},"T60 Max","2025-03-31"]
["LSFAM11C0SA098489","Maxus_CH","T60 MAX","T60 MAX","AWD","a0pQC00000FBTso","","M9255027404","Diesel",{"$f":"IF(report1737987713132[[#This Row],[Erstzulassungsdatum]]=\"\",\"\",YEAR(report1737987713132[[#This Row],[Erstzulassungsdatum]]))","v":""},"T60 Max","2025-04-30"]
["LSFAM11C6SA098481","Maxus_CH","T60 MAX","T60 MAX","AWD","a0pQC00000FBTso","","M9255027412","Diesel",{"$f":"IF(report1737987713132[[#This Row],[Erstzulassungsdatum]]=\"\",\"\",YEAR(report1737987713132[[#This Row],[Erstzulassungsdatum]]))","v":""},"T60 Max","2025-04-30"]
["LSFAM11C1SA098484","Maxus_CH","T60 MAX","T60 MAX","AWD","a0pQC00000FBTso","","M9255028133","Diesel",{"$f":"IF(report1737987713132[[#This Row],[Erstzulassungsdatum]]=\"\",\"\",YEAR(report1737987713132[[#This Row],[Erstzulassungsdatum]]))","v":""},"T60 Max","2025-04-30"]
["LSFAM11C9SA098488","Maxus_CH","T60 MAX","T60 MAX","AWD","a0pQC00000FBTso","","M9255029057","Diesel",{"$f":"IF(report1737987713132[[#This Row],[Erstzulassungsdatum]]=\"\",\"\",YEAR(report1737987713132[[#This Row],[Erstzulassungsdatum]]))","v":""},"T60 Max","2025-04-30"]
["LSFAM11C9SA098491","Maxus_CH","T60 MAX","T60 MAX","AWD","a0pQC00000FBTso","","M9255028134","Diesel",{"$f":"IF(report1737987713132[[#This Row],[Erstzulassungsdatum]]=\"\",\"\",YEAR(report1737987713132[[#This Row],[Erstzulassungsdatum]]))","v":""},"T60 Max","2025-04-30"]
["LSFAM11C8SA098482","Maxus_CH","T60 MAX","T60 MAX","AWD","a0pQC00000FBTso","","M9255027807","Diesel",{"$f":"IF(report1737987713132[[#This Row],[Erstzulassungsdatum]]=\"\",\"\",YEAR(report1737987713132[[#This Row],[Erstzulassungsdatum]]))","v":""},"T60 Max","2025-04-30"]
["LSFAM11CXSA098483","Maxus_CH","T60 MAX","T60 MAX","AWD","a0pQC00000FBTso","","M9255028131","Diesel",{"$f":"IF(report1737987713132[[#This Row],[Erstzulassungsdatum]]=\"\",\"\",YEAR(report1737987713132[[#This Row],[Erstzulassungsdatum]]))","v":""},"T60 Max","2025-04-30"]
["LSFAM11C4SA098494","Maxus_CH","T60 MAX","T60 MAX","AWD","a0pQC00000FBTso","","M9255029051","Diesel",{"$f":"IF(report1737987713132[[#This Row],[Erstzulassungsdatum]]=\"\",\"\",YEAR(report1737987713132[[#This Row],[Erstzulassungsdatum]]))","v":""},"T60 Max","2025-04-30"]
["LSFAM11C6SA098500","Maxus_CH","T60 MAX","T60 MAX","AWD","a0pQC00000FBTso","","M9255028779","Diesel",{"$f":"IF(report1737987713132[[#This Row],[Erstzulassungsdatum]]=\"\",\"\",YEAR(report1737987713132[[#This Row],[Erstzulassungsdatum]]))","v":""},"T60 Max","2025-04-30"]
["LSFAM11CXSA098502","Maxus_CH","T60 MAX","T60 MAX","AWD","a0pQC00000FBTso","","M9255028792","Diesel",{"$f":"IF(report1737987713132[[#This Row],[Erstzulassungsdatum]]=\"\",\"\",YEAR(report1737987713132[[#This Row],[Erstzulassungsdatum]]))","v":""},"T60 Max","2025-04-30"]
["LSFAM11C6SA098514","Maxus_CH","T60 MAX","T60 MAX","AWD","a0pQC00000FBTso","","M9255027413","Diesel",{"$f":"IF(report1737987713132[[#This Row],[Erstzulassungsdatum]]=\"\",\"\",YEAR(report1737987713132[[#This Row],[Erstzulassungsdatum]]))","v":""},"T60 Max","2025-04-30"]
["LSFAM11C1SA098520","Maxus_CH","T60 MAX","T60 MAX","AWD","a0pQC00000FBTso","","M9255027573","Diesel",{"$f":"IF(report1737987713132[[#This Row],[Erstzulassungsdatum]]=\"\",\"\",YEAR(report1737987713132[[#This Row],[Erstzulassungsdatum]]))","v":""},"T60 Max","2025-04-30"]
["LSFAM11C4SA098513","Maxus_CH","T60 MAX","T60 MAX","AWD","a0pQC00000FBTso","","M9255028132","Diesel",{"$f":"IF(report1737987713132[[#This Row],[Erstzulassungsdatum]]=\"\",\"\",YEAR(report1737987713132[[#This Row],[Erstzulassungsdatum]]))","v":""},"T60 Max","2025-04-30"]
["LSFAM11C7SA098523","Maxus_CH","T60 MAX","T60 MAX","AWD","a0pQC00000FBTso","","M9255027411","Diesel",{"$f":"IF(report1737987713132[[#This Row],[Erstzulassungsdatum]]=\"\",\"\",YEAR(report1737987713132[[#This Row],[Erstzulassungsdatum]]))","v":""},"T60 Max","2025-04-30"]
["LSFAM11C8SA098515","Maxus_CH","T60 MAX","T60 MAX","AWD","a0pQC00000FBTso","","M9255027403","Diesel",{"$f":"IF(report1737987713132[[#This Row],[Erstzulassungsdatum]]=\"\",\"\",YEAR(report1737987713132[[#This Row],[Erstzulassungsdatum]]))","v":""},"T60 Max","2025-04-30"]
["LSFAM11CXSA098516","Maxus_CH","T60 MAX","T60 MAX","AWD","a0pQC00000FBTso","","M9255027570","Diesel",{"$f":"IF(report1737987713132[[#This Row],[Erstzulassungsdatum]]=\"\",\"\",YEAR(report1737987713132[[#This Row],[Erstzulassungsdatum]]))","v":""},"T60 Max","2025-04-30"]
["LSFAM11C1SA109015","Maxus_CH","T60 MAX","T60 MAX","AWD","a0pQC00000FBTso","","M9256034940","Diesel",{"$f":"IF(report1737987713132[[#This Row],[Erstzulassungsdatum]]=\"\",\"\",YEAR(report1737987713132[[#This Row],[Erstzulassungsdatum]]))","v":""},"T60 Max","2025-05-31"]
["LSFAM11C5SA109017","Maxus_CH","T60 MAX","T60 MAX","AWD","a0pQC00000FBTso","","M9256034937","Diesel",{"$f":"IF(report1737987713132[[#This Row],[Erstzulassungsdatum]]=\"\",\"\",YEAR(report1737987713132[[#This Row],[Erstzulassungsdatum]]))","v":""},"T60 Max","2025-05-31"]
["LSFAM11C3SA109016","Maxus_CH","T60 MAX","T60 MAX","AWD","a0pQC00000FBTso","","M9256034932","Diesel",{"$f":"IF(report1737987713132[[#This Row],[Erstzulassungsdatum]]=\"\",\"\",YEAR(report1737987713132[[#This Row],[Erstzulassungsdatum]]))","v":""},"T60 Max","2025-05-31"]
["LSFAM11C7SA109018","Maxus_CH","T60 MAX","T60 MAX","AWD","a0pQC00000FBTso","","M9256034936","Diesel",{"$f":"IF(report1737987713132[[#This Row],[Erstzulassungsdatum]]=\"\",\"\",YEAR(report1737987713132[[#This Row],[Erstzulassungsdatum]]))","v":""},"T60 Max","2025-05-31"]
["LSFAM11C0SA109023","Maxus_CH","T60 MAX","T60 MAX","AWD","a0pQC00000FBTso","","M9256034949","Diesel",{"$f":"IF(report1737987713132[[#This Row],[Erstzulassungsdatum]]=\"\",\"\",YEAR(report1737987713132[[#This Row],[Erstzulassungsdatum]]))","v":""},"T60 Max","2025-05-31"]
["LSFAM11C4SA109025","Maxus_CH","T60 MAX","T60 MAX","AWD","a0pQC00000FBTso","","M9256035206","Diesel",{"$f":"IF(report1737987713132[[#This Row],[Erstzulassungsdatum]]=\"\",\"\",YEAR(report1737987713132[[#This Row],[Erstzulassungsdatum]]))","v":""},"T60 Max","2025-05-31"]
["LSFAM11C5SA109020","Maxus_CH","T60 MAX","T60 MAX","AWD","a0pQC00000FBTso","","M9256034947","Diesel",{"$f":"IF(report1737987713132[[#This Row],[Erstzulassungsdatum]]=\"\",\"\",YEAR(report1737987713132[[#This Row],[Erstzulassungsdatum]]))","v":""},"T60 Max","2025-05-31"]
["LSFAM11C7SA109021","Maxus_CH","T60 MAX","T60 MAX","AWD","a0pQC00000FBTso","","M9256034933","Diesel",{"$f":"IF(report1737987713132[[#This Row],[Erstzulassungsdatum]]=\"\",\"\",YEAR(report1737987713132[[#This Row],[Erstzulassungsdatum]]))","v":""},"T60 Max","2025-05-31"]
["LSFAM11C9SA109022","Maxus_CH","T60 MAX","T60 MAX","AWD","a0pQC00000FBTso","","M9256034945","Diesel",{"$f":"IF(report1737987713132[[#This Row],[Erstzulassungsdatum]]=\"\",\"\",YEAR(report1737987713132[[#This Row],[Erstzulassungsdatum]]))","v":""},"T60 Max","2025-05-31"]
["LSFAM11C6SA109026","Maxus_CH","T60 MAX","T60 MAX","AWD","a0pQC00000FBTso","","M9256034946","Diesel",{"$f":"IF(report1737987713132[[#This Row],[Erstzulassungsdatum]]=\"\",\"\",YEAR(report1737987713132[[#This Row],[Erstzulassungsdatum]]))","v":""},"T60 Max","2025-05-31"]
["LSFAM11C1SA109029","Maxus_CH","T60 MAX","T60 MAX","AWD","a0pQC00000FBTso","","M9256035219","Diesel",{"$f":"IF(report1737987713132[[#This Row],[Erstzulassungsdatum]]=\"\",\"\",YEAR(report1737987713132[[#This Row],[Erstzulassungsdatum]]))","v":""},"T60 Max","2025-05-31"]
["LSFAM11C1SA109032","Maxus_CH","T60 MAX","T60 MAX","AWD","a0pQC00000FBTso","","M9256035216","Diesel",{"$f":"IF(report1737987713132[[#This Row],[Erstzulassungsdatum]]=\"\",\"\",YEAR(report1737987713132[[#This Row],[Erstzulassungsdatum]]))","v":""},"T60 Max","2025-05-31"]
["LSFAM11C8SA109030","Maxus_CH","T60 MAX","T60 MAX","AWD","a0pQC00000FBTso","","M9256035204","Diesel",{"$f":"IF(report1737987713132[[#This Row],[Erstzulassungsdatum]]=\"\",\"\",YEAR(report1737987713132[[#This Row],[Erstzulassungsdatum]]))","v":""},"T60 Max","2025-05-31"]
["LSFAM11CXSA109028","Maxus_CH","T60 MAX","T60 MAX","AWD","a0pQC00000FBTso","","M9256035205","Diesel",{"$f":"IF(report1737987713132[[#This Row],[Erstzulassungsdatum]]=\"\",\"\",YEAR(report1737987713132[[#This Row],[Erstzulassungsdatum]]))","v":""},"T60 Max","2025-05-31"]
["LSFAM11C0SA109037","Maxus_CH","T60 MAX","T60 MAX","AWD","a0pQC00000FBTso","","M9256034944","Diesel",{"$f":"IF(report1737987713132[[#This Row],[Erstzulassungsdatum]]=\"\",\"\",YEAR(report1737987713132[[#This Row],[Erstzulassungsdatum]]))","v":""},"T60 Max","2025-05-31"]
["LSFAM11C0SA109040","Maxus_CH","T60 MAX","T60 MAX","AWD","a0pQC00000FBTso","","M9256034943","Diesel",{"$f":"IF(report1737987713132[[#This Row],[Erstzulassungsdatum]]=\"\",\"\",YEAR(report1737987713132[[#This Row],[Erstzulassungsdatum]]))","v":""},"T60 Max","2025-05-31"]
["LSFAM11C2SA109038","Maxus_CH","T60 MAX","T60 MAX","AWD","a0pQC00000FBTso","","M9256034935","Diesel",{"$f":"IF(report1737987713132[[#This Row],[Erstzulassungsdatum]]=\"\",\"\",YEAR(report1737987713132[[#This Row],[Erstzulassungsdatum]]))","v":""},"T60 Max","2025-05-31"]
["LSFAM11C2SA109041","Maxus_CH","T60 MAX","T60 MAX","AWD","a0pQC00000FBTso","","M9256034950","Diesel",{"$f":"IF(report1737987713132[[#This Row],[Erstzulassungsdatum]]=\"\",\"\",YEAR(report1737987713132[[#This Row],[Erstzulassungsdatum]]))","v":""},"T60 Max","2025-05-31"]
["LSFAM11C4SA109039","Maxus_CH","T60 MAX","T60 MAX","AWD","a0pQC00000FBTso","","M9255032737","Diesel",{"$f":"IF(report1737987713132[[#This Row],[Erstzulassungsdatum]]=\"\",\"\",YEAR(report1737987713132[[#This Row],[Erstzulassungsdatum]]))","v":""},"T60 Max","2025-05-31"]
["LSFAM11C5SA109034","Maxus_CH","T60 MAX","T60 MAX","AWD","a0pQC00000FBTso","","M9256034942","Diesel",{"$f":"IF(report1737987713132[[#This Row],[Erstzulassungsdatum]]=\"\",\"\",YEAR(report1737987713132[[#This Row],[Erstzulassungsdatum]]))","v":""},"T60 Max","2025-05-31"]
["LSFAM11C6SA109043","Maxus_CH","T60 MAX","T60 MAX","AWD","a0pQC00000FBTso","","M9256034931","Diesel",{"$f":"IF(report1737987713132[[#This Row],[Erstzulassungsdatum]]=\"\",\"\",YEAR(report1737987713132[[#This Row],[Erstzulassungsdatum]]))","v":""},"T60 Max","2025-05-31"]
["LSFAM11C7SA109035","Maxus_CH","T60 MAX","T60 MAX","AWD","a0pQC00000FBTso","","M9256034941","Diesel",{"$f":"IF(report1737987713132[[#This Row],[Erstzulassungsdatum]]=\"\",\"\",YEAR(report1737987713132[[#This Row],[Erstzulassungsdatum]]))","v":""},"T60 Max","2025-05-31"]
["LSFAM11C8SA109044","Maxus_CH","T60 MAX","T60 MAX","AWD","a0pQC00000FBTso","","M9256034951","Diesel",{"$f":"IF(report1737987713132[[#This Row],[Erstzulassungsdatum]]=\"\",\"\",YEAR(report1737987713132[[#This Row],[Erstzulassungsdatum]]))","v":""},"T60 Max","2025-05-31"]
["LSFAM11C9SA109036","Maxus_CH","T60 MAX","T60 MAX","AWD","a0pQC00000FBTso","","M9256035214","Diesel",{"$f":"IF(report1737987713132[[#This Row],[Erstzulassungsdatum]]=\"\",\"\",YEAR(report1737987713132[[#This Row],[Erstzulassungsdatum]]))","v":""},"T60 Max","2025-05-31"]

{"sheet":"Servicezeiten","index":3,"n_rows":22,"n_cols":17,"rows_kept":22,"cut":false,"hidden":true,"merged":[]}
["Modell",1,2,3,4,5,null,null,null,null,null,null,null,null,null,null,"Jahr"]
["eDeliver 3",1,1.2,1,1.2,1,null,null,null,null,null,null,null,null,null,null,2015]
["eDeliver 9",0.5,1,1.2,1,1.2,null,null,null,null,null,null,null,null,null,null,2016]
["Deliver 9",1.5,1.4,2,1.4,2,null,null,null,null,null,null,null,null,null,null,2017]
["EV80",0.5,1,1.5,1,1.5,null,null,null,null,null,null,null,null,null,null,2018]
["eDeliver 7",0.5,1,1.2,1,1.2,null,null,null,null,null,null,null,null,null,null,2019]
["Mifa 9",0.5,1,1.2,1,1.2,null,null,null,null,null,null,null,null,null,null,2020]
["eTerron 9",0.5,1,1.2,1,1.2,null,null,null,null,null,null,null,null,null,null,2021]
["Mifa 7",0.5,1,1.2,1,1.2,null,null,null,null,null,null,null,null,null,null,2022]
["eDeliver 5",0.5,1,1.2,1,1.2,null,null,null,null,null,null,null,null,null,null,2023]
["T60 Max",1.5,1.4,2,1.4,2,null,null,null,null,null,null,null,null,null,null,2024]
["Deliver 7",1.5,1.4,2,1.4,2,null,null,null,null,null,null,null,null,null,null,2025]
["T90 EV",0.5,1,1.2,1,1.2,null,null,null,null,null,null,null,null,null,null,2026]
[null,null,null,null,null,null,null,null,null,null,null,null,null,null,null,null,2027]
[null,null,null,null,null,null,null,null,null,null,null,null,null,null,null,null,2028]
[null,null,null,null,null,null,null,null,null,null,null,null,null,null,null,null,2029]
[null,null,null,null,null,null,null,null,null,null,null,null,null,null,null,null,2030]
[null,null,null,null,null,null,null,null,null,null,null,null,null,null,null,null,2031]
[null,null,null,null,null,null,null,null,null,null,null,null,null,null,null,null,2032]
[null,null,null,null,null,null,null,null,null,null,null,null,null,null,null,null,2033]
[null,null,null,null,null,null,null,null,null,null,null,null,null,null,null,null,2034]
[null,null,null,null,null,null,null,null,null,null,null,null,null,null,null,null,2035]

{"sheet":"VIN Table","index":4,"n_rows":28,"n_cols":12,"rows_kept":28,"cut":false,"hidden":true,"merged":[]}
[null,"eD5","eT9","T60","D7","eD7","eD3","M9","M7","D9","eD9","T90"]
[1,"L","L","L","L","L","L","L","L","L","L","L"]
[2,"S","S","S","S","S","S","S","S","S","S","S"]
[3,"H","F","F","H","H","F","K","K","H","H","F"]
[4,1,"A","A",1,1,null,"G","G",1,1,"A"]
[5,4,"M","M","M","M","M",4,4,4,4,"L"]
[6,"J",1,1,"J","J",1,8,8,"J","J",1]
[7,4,1,1,7,4,1,"C","C",7,4,1]
[8,"C",0,null,"C","C",0,1,1,null,null,0]
[9]
[10,"N","N","N","P","N","N","N","N","N","N","N"]
[11,"D","A","A","V","V",null,"D","D","A","A","A"]
[12]
[13]
[14]
[15]
[16]
[17]
[]
[null,null,null,"Identifier"]
[]
[null,null,null,null,null,null,null,"8 = EV"]
[null,"4= BEV","1 Front Engine; 2 Rear Engine","1 Front Engine; 2 Rear Engine",null,null,"1 Front Engine; 2 Rear Engine","C = LHD"]
[null,"Brake System","0= EV; C= Diesel; J= Benzin","A: -120kW Diesel; B: - 160kW Diesel; C: -200kW Diesel; 0: EW","Brake System","Brake System","0= EV","Engine Posi",null,null,null,"0= EV"]
[null,null,null,"Verfification Number"]
[null,null,null,"N= 2022; P= 2023…..."]
[null,null,null,"Plant",null,null,"E oder A oder D"]
[null,null,null,"Serieal No"]